Workbook

Sheet MENU
L4: =+TABLAS!A92 -> 2-1-3-4-5-6-7-8-9-10-11-T
L5: =+TABLAS!A123 -> 2-1-3-4-5-6-7-8-9-10-11-T
L6: =+TABLAS!A154 -> 2-1-3-4-5-6-7-8-9-10-11-T
L7: =+TABLAS!A217 -> 2-1-3-4-5-6-7-8-9-10-11-T
L8: =+TABLAS!A248 -> 2-1-3-4-5-6-7-8-9-10-11-T
L9: =+TABLAS!A279 -> 2-1-3-4-5-6-7-8-9-10-11-T
L10: =+TABLAS!A310 -> 2-1-3-4-5-6-7-8-9-10-11-T
L11: =+TABLAS!A341 -> 2-1-3-4-5-6-7-8-9-10-11-T
L12: =+TABLAS!A372 -> 2-1-3-4-5-6-7-8-9-10-11-T
L13: =+TABLAS!A403 -> 2-1-3-4-5-6-7-8-9-10-11-T
H27: CONTROL DE MESES
H29: =+TABLAS!A92 -> 2-1-3-4-5-6-7-8-9-10-11-T
C30: =+'RABIA URBANA'!F16 -> __ENE_NOV_2024

Sheet TABLAS (hidden)
C8: Valores | I8: Tabla | J8: =IF(I9="(Todas)","CUSCO ","") ->  | O8: =MID(D9,6,5) -> LA CO
C9: RED | D9: 03 - LA CONVENCION | I9: =IF(MID(D9,1,2)="99","(All)",MID(D9,1,2)) -> 03 | J9: =IF(I9="(All)"," ",I9) -> 03 | M9: =LEN(MID(D9,5,90)) -> 14 | O9: =IF(MID(D9,6,5)="(All)","",D9) -> 03 - LA CONVENCION
C10: Micro RED | D10: 0399 - (All) | I10: =IF(MID(D10,3,2)="99","(All)",MID(D10,1,4)) -> (All) | M10: =LEN(MID(D10,7,90)) -> 6 | O10: =IF(MID(D10,8,5)="(All)","",D10) -> 
C11: Establecimiento | D11: 999999999 - (All) | I11: =IF(OR(MID(D11,1,9)="999999999",MID(D11,1,9)="000000000"),"(All)",MID(D11,1,9)) -> (All) | M11: =LEN(MID(D11,12,90)) -> 6 | O11: =IF(MID(D11,13,5)="(All)","",D11) -> 
C12: Provincia | D12: 00 - (All) | I12: =IF(MID(D12,1,2)="00","(All)",MID(D12,1,2)) -> (All) | M12: =LEN(MID(D12,6,90)) -> 5 | O12: =IF(MID(D12,6,5)="(All)","",D12) -> 
C13: Distrito | D13: 0000 - (All) | I13: =IF(OR(MID(D13,1,4)="0000",MID(D13,3,2)="00"),"(All)",MID(D13,1,4)) -> (All) | M13: =LEN(MID(D13,8,90)) -> 5 | O13: =IF(MID(D13,8,5)="(All)","",D13) -> 
C14: Ejecutora | D14: 99 - (ALL) | I14: =IF(MID(D14,1,2)="99","(All)",MID(D14,1,2)) -> (All) | M14: =LEN(MID(D14,5,90)) -> 6 | O14: =IF(MID(D14,6,5)="(All)","",D14) -> 
C16: Año | D16: 2024 | I16: =+D16 -> 2024 | J16: =IF(I16="(Todas)"," ",I16) -> 2024
B20: 1 | C20: 1 | D20: 1 | E20: 1 | F20: 1 | G20: 1 | H20: 1 | I20: 1 | J20: 1 | K20: 1 | L20: 1 | M20: 0 | N20: =SUM(B20:M20) -> 11
B21: =IF(B20=1,"ENERO","") -> ENERO | C21: =IF(C20=1,"FEBRERO","") -> FEBRERO | D21: =IF(D20=1,"MARZO","") -> MARZO | E21: =IF(E20=1,"ABRIL","") -> ABRIL | F21: =IF(F20=1,"MAYO","") -> MAYO | G21: =IF(G20=1,"JUNIO","") -> JUNIO | H21: =IF(H20=1,"JULIO","") -> JULIO | I21: =IF(I20=1,"AGOSTO","") -> AGOSTO | J21: =IF(J20=1,"SETIEMBRE","") -> SETIEMBRE | K21: =IF(K20=1,"OCTUBRE","") -> OCTUBRE | L21: =IF(L20=1,"NOVIEMBRE","") -> NOVIEMBRE | M21: =IF(M20=1,"DICIEMBRE","") ->  | N21: =IF(B20=1,B21,IF(C20=1,C21,IF(D20=1,D21,IF(E20=1,E21,IF(F20=1,F21,IF(G20=1,G21,IF(H20=1,H21,IF(I20=1,I21,IF(J20=1,J21,IF(K20=1,K21,IF(L20=1,L21,IF(M20=1,M21,"")))))))))))) -> ENERO
N22: =IF(N20=1,N21,"") -> 
B23: 2 | C23: 4 | D23: 6 | E23: 8 | F23: 10 | G23: 12 | H23: 14 | I23: 16 | J23: 18 | K23: 20 | L23: 22 | N23: =MIN(B23:M23) -> 2 | O23: =MAX(B23:M23) -> 22 | P23: =MAX(C23:N23) -> 22
B24: =IF(B23=2,"ENE","") -> ENE | C24: =IF(C23=4,"FEB","") -> FEB | D24: =IF(D23=6,"MAR","") -> MAR | E24: =IF(E23=8,"ABR","") -> ABR | F24: =IF(F23=10,"MAY","") -> MAY | G24: =IF(G23=12,"JUN","") -> JUN | H24: =IF(H23=14,"JUL","") -> JUL | I24: =IF(I23=16,"AGO","") -> AGO | J24: =IF(J23=18,"SET","") -> SET | K24: =IF(K23=20,"OCT","") -> OCT | L24: =IF(L23=22,"NOV","") -> NOV | M24: =IF(M23=24,"DIC","") ->  | N24: =IF(N23=B23,B24,IF(N23=C23,C24,IF(N23=D23,D24,IF(N23=E23,E24,IF(N23=F23,F24,IF(N23=G23,G24,IF(N23=H23,H58,IF(N23=I23,I24,IF(N23=J23,J24,IF(N23=K23,K24,IF(N23=L23,L24,IF(N23=M23,M24,"")))))))))))) -> ENE | O24: =IF(O23=C23,C24,IF(O23=D23,D24,IF(O23=E23,E24,IF(O23=F23,F24,IF(O23=G23,G24,IF(O23=H23,H24,IF(O23=I23,I24,IF(O23=J23,J24,IF(O23=K23,K24,IF(O23=L23,L24,IF(O23=M23,M24,""))))))))))) -> NOV | P24: =IF(P23=D23,D24,IF(P23=E23,E24,IF(P23=F23,F24,IF(P23=G23,G24,IF(P23=H23,H24,IF(P23=I23,I24,IF(P23=J23,J24,IF(P23=K23,K24,IF(P23=L23,L24,IF(P23=M23,M24,IF(P23=N23,N24,""))))))))))) -> NOV
N25: =CONCATENATE(N24," - ",O24) -> ENE - NOV
N26: =IF(N23=O23,N22,N25) -> ENE - NOV
A66: R_URBANA 01
A67: anno | B67: 2024
A68: cod_red | B68: 03
A69: codmic | B69: (Todas)
A70: cod_prov | B70: (Todas)
A71: coddist | B71: (Todas)
A72: cod_estab | B72: (Todas)
A73: cod_eje | B73: (Todas)
B75: Valores
A76: Etiquetas de fila | B76: BAS001 | C76: BAS002 | D76: BAS003 | E76: BAS004 | F76: BAS005 | G76: BAS006 | H76: BAS007 | I76: BAS008 | J76: BAS009 | K76: BAS010 | L76: BAS011 | M76: BAS012 | N76: BAS013 | O76: BAS014 | P76: BAS015 | Q76: BAS016 | R76: BAS017 | S76: BAS018 | T76: BAS019 | U76: BAS020 | V76: BAS021 | W76: BAS022 | X76: BAS023 | Y76: BAS024 | Z76: BAS025 | AA76: BAS026 | AB76: BAS027 | AC76: BAS028 | AD76: BAS029 | AE76: BAS030 | AF76: BAS031 | AG76: BAS032 | AH76: BAS033 | AI76: BAS034 | AJ76: BAS035 | AK76: BAS036 | AL76: BAS037 | AM76: BAS038 | AN76: BAS039 | AO76: BAS040 | AP76: BAS041 | AQ76: BAS042 | AR76: BAS043 | AS76: BAS044 | AT76: BAS045 | AU76: BAS046 | AV76: BAS047 | AW76: BAS048 | AX76: BAS049 | AY76: BAS050 | AZ76: BAS051 | BA76: BAS052 | BB76: BAS053 | BC76: BAS054 | BD76: BAS055 | BE76: BAS056 | BF76: BAS057 | BG76: BAS058 | BH76: BAS059 | BI76: BAS060 | BJ76: BAS061 | BK76: BAS062 | BL76: BAS063 | BM76: BAS064 | BN76: BAS065 | BO76: BAS066 | BP76: BAS067 | BQ76: BAS068 | BR76: BAS069 | BS76: BAS070 | BT76: BAS071 | BU76: BAS072 | BV76: BAS073 | BW76: BAS074 | BX76: BAS075 | BY76: BAS076 | BZ76: BAS077 | CA76: BAS078 | CB76: BAS079 | CC76: BAS080 | CD76: BAS081 | CE76: BAS082 | CF76: BAS083 | CG76: BAS084 | CH76: BAS085 | CI76: BAS086 | CJ76: BAS087 | CK76: BAS088 | CL76: BAS089 | CM76: BAS090 | CN76: BAS091 | CO76: BAS092 | CP76: BAS093 | CQ76: BAS094 | CR76: BAS095 | CS76: BAS096 | CT76: BAS097 | CU76: BAS098 | CV76: BAS099 | CW76: BAS100 | CX76: BAS101 | CY76: BAS102 | CZ76: BAS103 | DA76: BAS104 | DB76: BAS105 | DC76: BAS106 | DD76: BAS107 | DE76: BAS108 | DF76: BAS109 | DG76: BAS110 | DH76: BAS111 | DI76: BAS112 | DJ76: BAS113 | DK76: BAS114 | DL76: BAS115 | DM76: BAS116 | DN76: BAS117 | DO76: BAS118 | DP76: BAS119 | DQ76: BAS120 | DR76: BAS121 | DS76: BAS122 | DT76: BAS123 | DU76: BAS124 | DV76: BAS125 | DW76: BAS126 | DX76: BAS127 | DY76: BAS128 | DZ76: BAS129 | EA76: BAS130 | EB76: BAS131 | EC76: BAS132 | ED76: BAS133 | EE76: BAS134 | EF76: BAS135 | EG76: BAS136 | EH76: BAS137 | EI76: BAS138 | EJ76: BAS139 | EK76: BAS140 | EL76: BAS141 | EM76: BAS142 | EN76: BAS143 | EO76: BAS144 | EP76: BAS145 | EQ76: BAS146 | ER76: BAS147 | ES76: BAS148 | ET76: BAS149 | EU76: BAS150 | EV76: BAS151 | EW76: BAS152 | EX76: BAS153 | EY76: BAS154 | EZ76: BAS155 | FA76: BAS156 | FB76: BAS157 | FC76: BAS158 | FD76: BAS159 | FE76: BAS160 | FF76: BAS161 | FG76: BAS162 | FH76: BAS163 | FI76: BAS164 | FJ76: BAS165 | FK76: BAS166 | FL76: BAS167 | FM76: BAS168 | FN76: BAS169 | FO76: BAS170 | FP76: BAS171 | FQ76: BAS172 | FR76: BAS173 | FS76: BAS174 | FT76: BAS175 | FU76: BAS176 | FV76: BAS177 | FW76: BAS178 | FX76: BAS179 | FY76: BAS180 | FZ76: BAS181 | GA76: BAS182 | GB76: BAS183 | GC76: BAS184 | GD76: BAS185 | GE76: BAS186 | GF76: BAS187 | GG76: BAS188 | GH76: BAS189 | GI76: BAS190 | GJ76: BAS191 | GK76: BAS192 | GL76: BAS193 | GM76: BAS194 | GN76: BAS195 | GO76: BAS196 | GP76: BAS197 | GQ76: BAS198 | GR76: BAS199 | GS76: BAS200 | GT76: BAS201 | GU76: BAS202 | GV76: BAS203 | GW76: BAS204 | GX76: BAS205 | GY76: BAS206 | GZ76: BAS207 | HA76: BAS208 | HB76: BAS209 | HC76: BAS210 | HD76: BAS211 | HE76: BAS212 | HF76: BAS213 | HG76: BAS214 | HH76: BAS215 | HI76: BAS216 | HJ76: BAS217 | HK76: BAS218 | HL76: BAS219 | HM76: BAS220 | HN76: BAS221 | HO76: BAS222 | HP76: BAS223 | HQ76: BAS224 | HR76: BAS225 | HS76: BAS226 | HT76: BAS227 | HU76: BAS228 | HV76: BAS229 | HW76: BAS230
A77: 2 | B77: 0 | C77: 0 | D77: 0 | E77: 0 | F77: 0 | G77: 0 | H77: 0 | I77: 0 | J77: 0 | K77: 0 | L77: 0 | M77: 0 | N77: 0 | O77: 0 | P77: 0 | Q77: 0 | R77: 0 | S77: 0 | T77: 0 | U77: 0 | V77: 0 | W77: 0 | X77: 0 | Y77: 0 | Z77: 0 | AA77: 0 | AB77: 0 | AC77: 0 | AD77: 0 | AE77: 0 | AF77: 0 | AG77: 0 | AH77: 0 | AI77: 0 | AJ77: 0 | AK77: 0 | AL77: 0 | AM77: 0 | AN77: 0 | AO77: 0 | AP77: 0 | AQ77: 0 | AR77: 0 | AS77: 0 | AT77: 0 | AU77: 0 | AV77: 0 | AW77: 0 | AX77: 0 | AY77: 0 | AZ77: 3 | BA77: 0 | BB77: 2 | BC77: 1 | BD77: 3 | BE77: 1 | BF77: 0 | BG77: 0 | BH77: 0 | BI77: 1 | BJ77: 0 | BK77: 0 | BL77: 0 | BM77: 0 | BN77: 0 | BO77: 0 | BP77: 0 | BQ77: 0 | BR77: 0 | BS77: 0 | BT77: 0 | BU77: 0 | BV77: 0 | BW77: 0 | BX77: 0 | BY77: 0 | BZ77: 0 | CA77: 0 | CB77: 0 | CC77: 0 | CD77: 0 | CE77: 1 | CF77: 0 | CG77: 0 | CH77: 0 | CI77: 0 | CJ77: 0 | CK77: 0 | CL77: 0 | CM77: 0 | CN77: 0 | CO77: 0 | CP77: 0 | CQ77: 0 | CR77: 0 | CS77: 0 | CT77: 0 | CU77: 0 | CV77: 0 | CW77: 0 | CX77: 0 | CY77: 0 | CZ77: 0 | DA77: 0 | DB77: 0 | DC77: 0 | DD77: 0 | DE77: 0 | DF77: 0 | DG77: 0 | DH77: 0 | DI77: 0 | DJ77: 0 | DK77: 0 | DL77: 0 | DM77: 0 | DN77: 0 | DO77: 0 | DP77: 0 | DQ77: 0 | DR77: 0 | DS77: 0 | DT77: 0 | DU77: 0 | DV77: 0 | DW77: 0 | DX77: 0 | DY77: 0 | DZ77: 0 | EA77: 0 | EB77: 0 | EC77: 0 | ED77: 0 | EE77: 0 | EF77: 0 | EG77: 0 | EH77: 0 | EI77: 0 | EJ77: 0 | EK77: 0 | EL77: 0 | EM77: 0 | EN77: 0 | EO77: 0 | EP77: 0 | EQ77: 0 | ER77: 0 | ES77: 0 | ET77: 0 | EU77: 0 | EV77: 0 | EW77: 0 | EX77: 0 | EY77: 0 | EZ77: 0 | FA77: 0 | FB77: 0 | FC77: 0 | FD77: 0 | FE77: 0 | FF77: 0 | FG77: 0 | FH77: 0 | FI77: 0 | FJ77: 0 | FK77: 0 | FL77: 0 | FM77: 0 | FN77: 0 | FO77: 0 | FP77: 0 | FQ77: 0 | FR77: 0 | FS77: 0 | FT77: 0 | FU77: 0 | FV77: 0 | FW77: 0 | FX77: 0 | FY77: 0 | FZ77: 0 | GA77: 0 | GB77: 0 | GC77: 0 | GD77: 0 | GE77: 0 | GF77: 0 | GG77: 0 | GH77: 0 | GI77: 0 | GJ77: 0 | GK77: 0 | GL77: 0 | GM77: 0 | GN77: 0 | GO77: 0 | GP77: 0 | GQ77: 0 | GR77: 0 | GS77: 0 | GT77: 0 | GU77: 0 | GV77: 0 | GW77: 0 | GX77: 0 | GY77: 0 | GZ77: 0 | HA77: 0 | HB77: 0 | HC77: 0 | HD77: 0 | HE77: 0 | HF77: 0 | HG77: 0 | HH77: 0 | HI77: 0 | HJ77: 0 | HK77: 0 | HL77: 0 | HM77: 0 | HN77: 0 | HO77: 0 | HP77: 0 | HQ77: 0 | HR77: 0 | HS77: 0 | HT77: 0 | HU77: 0 | HV77: 0 | HW77: 0
A78: 1 | B78: 0 | C78: 0 | D78: 0 | E78: 1 | F78: 0 | G78: 0 | H78: 0 | I78: 0 | J78: 0 | K78: 0 | L78: 0 | M78: 0 | N78: 0 | O78: 1 | P78: 0 | Q78: 0 | R78: 0 | S78: 0 | T78: 0 | U78: 0 | V78: 0 | W78: 0 | X78: 0 | Y78: 0 | Z78: 0 | AA78: 0 | AB78: 0 | AC78: 0 | AD78: 2 | AE78: 0 | AF78: 0 | AG78: 0 | AH78: 0 | AI78: 0 | AJ78: 0 | AK78: 0 | AL78: 0 | AM78: 0 | AN78: 0 | AO78: 0 | AP78: 0 | AQ78: 0 | AR78: 0 | AS78: 0 | AT78: 0 | AU78: 0 | AV78: 1 | AW78: 0 | AX78: 0 | AY78: 0 | AZ78: 1 | BA78: 1 | BB78: 1 | BC78: 2 | BD78: 3 | BE78: 1 | BF78: 0 | BG78: 0 | BH78: 1 | BI78: 0 | BJ78: 0 | BK78: 0 | BL78: 0 | BM78: 0 | BN78: 0 | BO78: 0 | BP78: 0 | BQ78: 0 | BR78: 0 | BS78: 1 | BT78: 0 | BU78: 0 | BV78: 0 | BW78: 0 | BX78: 1 | BY78: 0 | BZ78: 1 | CA78: 0 | CB78: 0 | CC78: 0 | CD78: 0 | CE78: 0 | CF78: 0 | CG78: 0 | CH78: 0 | CI78: 0 | CJ78: 0 | CK78: 0 | CL78: 0 | CM78: 0 | CN78: 0 | CO78: 0 | CP78: 0 | CQ78: 0 | CR78: 0 | CS78: 0 | CT78: 0 | CU78: 0 | CV78: 0 | CW78: 0 | CX78: 0 | CY78: 0 | CZ78: 0 | DA78: 0 | DB78: 0 | DC78: 0 | DD78: 0 | DE78: 0 | DF78: 0 | DG78: 0 | DH78: 0 | DI78: 0 | DJ78: 0 | DK78: 0 | DL78: 0 | DM78: 0 | DN78: 0 | DO78: 0 | DP78: 0 | DQ78: 0 | DR78: 0 | DS78: 0 | DT78: 0 | DU78: 0 | DV78: 0 | DW78: 0 | DX78: 0 | DY78: 0 | DZ78: 0 | EA78: 0 | EB78: 0 | EC78: 0 | ED78: 0 | EE78: 0 | EF78: 0 | EG78: 0 | EH78: 0 | EI78: 0 | EJ78: 0 | EK78: 0 | EL78: 0 | EM78: 0 | EN78: 0 | EO78: 0 | EP78: 0 | EQ78: 0 | ER78: 0 | ES78: 0 | ET78: 0 | EU78: 0 | EV78: 0 | EW78: 0 | EX78: 0 | EY78: 0 | EZ78: 0 | FA78: 0 | FB78: 0 | FC78: 0 | FD78: 0 | FE78: 0 | FF78: 0 | FG78: 0 | FH78: 0 | FI78: 0 | FJ78: 0 | FK78: 0 | FL78: 0 | FM78: 0 | FN78: 0 | FO78: 0 | FP78: 0 | FQ78: 0 | FR78: 0 | FS78: 0 | FT78: 0 | FU78: 0 | FV78: 0 | FW78: 0 | FX78: 0 | FY78: 0 | FZ78: 0 | GA78: 0 | GB78: 0 | GC78: 0 | GD78: 0 | GE78: 0 | GF78: 0 | GG78: 0 | GH78: 0 | GI78: 0 | GJ78: 0 | GK78: 0 | GL78: 0 | GM78: 0 | GN78: 0 | GO78: 0 | GP78: 0 | GQ78: 0 | GR78: 0 | GS78: 0 | GT78: 0 | GU78: 0 | GV78: 0 | GW78: 0 | GX78: 0 | GY78: 0 | GZ78: 0 | HA78: 0 | HB78: 0 | HC78: 0 | HD78: 0 | HE78: 0 | HF78: 0 | HG78: 0 | HH78: 0 | HI78: 0 | HJ78: 0 | HK78: 0 | HL78: 0 | HM78: 0 | HN78: 0 | HO78: 0 | HP78: 0 | HQ78: 0 | HR78: 0 | HS78: 0 | HT78: 0 | HU78: 0 | HV78: 0 | HW78: 0
A79: 3 | B79: 0 | C79: 0 | D79: 0 | E79: 0 | F79: 0 | G79: 0 | H79: 0 | I79: 0 | J79: 0 | K79: 0 | L79: 0 | M79: 0 | N79: 0 | O79: 0 | P79: 0 | Q79: 0 | R79: 0 | S79: 0 | T79: 0 | U79: 0 | V79: 0 | W79: 0 | X79: 0 | Y79: 0 | Z79: 0 | AA79: 0 | AB79: 0 | AC79: 0 | AD79: 0 | AE79: 0 | AF79: 0 | AG79: 0 | AH79: 0 | AI79: 0 | AJ79: 0 | AK79: 0 | AL79: 0 | AM79: 0 | AN79: 0 | AO79: 0 | AP79: 0 | AQ79: 0 | AR79: 0 | AS79: 0 | AT79: 0 | AU79: 0 | AV79: 0 | AW79: 0 | AX79: 0 | AY79: 0 | AZ79: 1 | BA79: 0 | BB79: 0 | BC79: 1 | BD79: 3 | BE79: 1 | BF79: 0 | BG79: 0 | BH79: 3 | BI79: 0 | BJ79: 0 | BK79: 0 | BL79: 0 | BM79: 0 | BN79: 0 | BO79: 0 | BP79: 0 | BQ79: 0 | BR79: 0 | BS79: 0 | BT79: 0 | BU79: 0 | BV79: 0 | BW79: 0 | BX79: 0 | BY79: 0 | BZ79: 0 | CA79: 0 | CB79: 0 | CC79: 0 | CD79: 0 | CE79: 0 | CF79: 1 | CG79: 0 | CH79: 0 | CI79: 0 | CJ79: 0 | CK79: 0 | CL79: 1 | CM79: 0 | CN79: 0 | CO79: 0 | CP79: 0 | CQ79: 0 | CR79: 0 | CS79: 0 | CT79: 0 | CU79: 0 | CV79: 0 | CW79: 0 | CX79: 0 | CY79: 0 | CZ79: 0 | DA79: 0 | DB79: 0 | DC79: 0 | DD79: 0 | DE79: 0 | DF79: 0 | DG79: 0 | DH79: 0 | DI79: 0 | DJ79: 0 | DK79: 0 | DL79: 0 | DM79: 0 | DN79: 0 | DO79: 0 | DP79: 0 | DQ79: 0 | DR79: 0 | DS79: 0 | DT79: 0 | DU79: 0 | DV79: 0 | DW79: 0 | DX79: 0 | DY79: 0 | DZ79: 0 | EA79: 0 | EB79: 0 | EC79: 0 | ED79: 0 | EE79: 0 | EF79: 0 | EG79: 0 | EH79: 0 | EI79: 0 | EJ79: 0 | EK79: 0 | EL79: 0 | EM79: 0 | EN79: 0 | EO79: 0 | EP79: 0 | EQ79: 0 | ER79: 0 | ES79: 0 | ET79: 0 | EU79: 0 | EV79: 0 | EW79: 0 | EX79: 0 | EY79: 0 | EZ79: 0 | FA79: 0 | FB79: 0 | FC79: 0 | FD79: 0 | FE79: 0 | FF79: 0 | FG79: 0 | FH79: 0 | FI79: 0 | FJ79: 0 | FK79: 0 | FL79: 0 | FM79: 0 | FN79: 0 | FO79: 0 | FP79: 0 | FQ79: 0 | FR79: 0 | FS79: 0 | FT79: 0 | FU79: 0 | FV79: 0 | FW79: 0 | FX79: 0 | FY79: 0 | FZ79: 0 | GA79: 0 | GB79: 0 | GC79: 0 | GD79: 0 | GE79: 0 | GF79: 0 | GG79: 0 | GH79: 0 | GI79: 0 | GJ79: 0 | GK79: 0 | GL79: 0 | GM79: 0 | GN79: 0 | GO79: 0 | GP79: 0 | GQ79: 0 | GR79: 0 | GS79: 0 | GT79: 0 | GU79: 0 | GV79: 0 | GW79: 0 | GX79: 0 | GY79: 0 | GZ79: 0 | HA79: 0 | HB79: 0 | HC79: 0 | HD79: 0 | HE79: 0 | HF79: 0 | HG79: 0 | HH79: 0 | HI79: 0 | HJ79: 0 | HK79: 0 | HL79: 0 | HM79: 0 | HN79: 0 | HO79: 0 | HP79: 0 | HQ79: 0 | HR79: 0 | HS79: 0 | HT79: 0 | HU79: 0 | HV79: 0 | HW79: 0
A80: 4 | B80: 0 | C80: 0 | D80: 0 | E80: 2 | F80: 0 | G80: 0 | H80: 0 | I80: 0 | J80: 4 | K80: 0 | L80: 0 | M80: 0 | N80: 0 | O80: 0 | P80: 0 | Q80: 0 | R80: 0 | S80: 1 | T80: 0 | U80: 0 | V80: 0 | W80: 0 | X80: 0 | Y80: 0 | Z80: 0 | AA80: 0 | AB80: 0 | AC80: 0 | AD80: 0 | AE80: 0 | AF80: 0 | AG80: 0 | AH80: 0 | AI80: 0 | AJ80: 0 | AK80: 0 | AL80: 0 | AM80: 0 | AN80: 0 | AO80: 0 | AP80: 0 | AQ80: 0 | AR80: 0 | AS80: 0 | AT80: 0 | AU80: 0 | AV80: 0 | AW80: 0 | AX80: 0 | AY80: 0 | AZ80: 1 | BA80: 0 | BB80: 1 | BC80: 3 | BD80: 0 | BE80: 1 | BF80: 1 | BG80: 0 | BH80: 3 | BI80: 0 | BJ80: 0 | BK80: 0 | BL80: 0 | BM80: 0 | BN80: 0 | BO80: 0 | BP80: 0 | BQ80: 0 | BR80: 0 | BS80: 0 | BT80: 0 | BU80: 0 | BV80: 0 | BW80: 0 | BX80: 0 | BY80: 0 | BZ80: 0 | CA80: 0 | CB80: 0 | CC80: 0 | CD80: 0 | CE80: 0 | CF80: 0 | CG80: 0 | CH80: 0 | CI80: 0 | CJ80: 0 | CK80: 0 | CL80: 0 | CM80: 0 | CN80: 0 | CO80: 0 | CP80: 0 | CQ80: 0 | CR80: 0 | CS80: 0 | CT80: 0 | CU80: 0 | CV80: 0 | CW80: 0 | CX80: 0 | CY80: 0 | CZ80: 0 | DA80: 0 | DB80: 0 | DC80: 0 | DD80: 0 | DE80: 0 | DF80: 0 | DG80: 0 | DH80: 0 | DI80: 0 | DJ80: 0 | DK80: 0 | DL80: 0 | DM80: 0 | DN80: 0 | DO80: 0 | DP80: 0 | DQ80: 0 | DR80: 0 | DS80: 0 | DT80: 0 | DU80: 0 | DV80: 0 | DW80: 0 | DX80: 0 | DY80: 0 | DZ80: 0 | EA80: 0 | EB80: 0 | EC80: 0 | ED80: 0 | EE80: 0 | EF80: 0 | EG80: 0 | EH80: 0 | EI80: 0 | EJ80: 0 | EK80: 0 | EL80: 0 | EM80: 0 | EN80: 0 | EO80: 0 | EP80: 0 | EQ80: 0 | ER80: 0 | ES80: 0 | ET80: 0 | EU80: 0 | EV80: 0 | EW80: 0 | EX80: 0 | EY80: 0 | EZ80: 0 | FA80: 0 | FB80: 0 | FC80: 0 | FD80: 0 | FE80: 0 | FF80: 0 | FG80: 0 | FH80: 0 | FI80: 0 | FJ80: 0 | FK80: 0 | FL80: 0 | FM80: 0 | FN80: 0 | FO80: 0 | FP80: 0 | FQ80: 0 | FR80: 0 | FS80: 0 | FT80: 0 | FU80: 0 | FV80: 0 | FW80: 0 | FX80: 0 | FY80: 0 | FZ80: 0 | GA80: 0 | GB80: 0 | GC80: 0 | GD80: 0 | GE80: 0 | GF80: 0 | GG80: 0 | GH80: 0 | GI80: 0 | GJ80: 0 | GK80: 0 | GL80: 0 | GM80: 0 | GN80: 0 | GO80: 0 | GP80: 0 | GQ80: 0 | GR80: 0 | GS80: 0 | GT80: 0 | GU80: 0 | GV80: 0 | GW80: 0 | GX80: 0 | GY80: 0 | GZ80: 0 | HA80: 0 | HB80: 0 | HC80: 0 | HD80: 0 | HE80: 0 | HF80: 0 | HG80: 0 | HH80: 0 | HI80: 0 | HJ80: 0 | HK80: 0 | HL80: 0 | HM80: 0 | HN80: 0 | HO80: 0 | HP80: 0 | HQ80: 0 | HR80: 0 | HS80: 0 | HT80: 0 | HU80: 0 | HV80: 0 | HW80: 0
A81: 5 | B81: 0 | C81: 0 | D81: 0 | E81: 1 | F81: 0 | G81: 0 | H81: 0 | I81: 0 | J81: 0 | K81: 0 | L81: 0 | M81: 0 | N81: 0 | O81: 0 | P81: 0 | Q81: 0 | R81: 0 | S81: 0 | T81: 0 | U81: 0 | V81: 0 | W81: 0 | X81: 0 | Y81: 0 | Z81: 0 | AA81: 0 | AB81: 0 | AC81: 0 | AD81: 0 | AE81: 0 | AF81: 0 | AG81: 0 | AH81: 0 | AI81: 0 | AJ81: 0 | AK81: 0 | AL81: 0 | AM81: 0 | AN81: 0 | AO81: 0 | AP81: 0 | AQ81: 0 | AR81: 0 | AS81: 0 | AT81: 1 | AU81: 0 | AV81: 0 | AW81: 1 | AX81: 0 | AY81: 0 | AZ81: 3 | BA81: 0 | BB81: 1 | BC81: 1 | BD81: 1 | BE81: 0 | BF81: 0 | BG81: 1 | BH81: 0 | BI81: 0 | BJ81: 0 | BK81: 0 | BL81: 0 | BM81: 0 | BN81: 0 | BO81: 0 | BP81: 0 | BQ81: 0 | BR81: 0 | BS81: 0 | BT81: 0 | BU81: 0 | BV81: 0 | BW81: 0 | BX81: 0 | BY81: 0 | BZ81: 0 | CA81: 0 | CB81: 0 | CC81: 0 | CD81: 0 | CE81: 0 | CF81: 1 | CG81: 1 | CH81: 0 | CI81: 0 | CJ81: 0 | CK81: 1 | CL81: 0 | CM81: 0 | CN81: 0 | CO81: 0 | CP81: 0 | CQ81: 0 | CR81: 0 | CS81: 0 | CT81: 0 | CU81: 0 | CV81: 0 | CW81: 0 | CX81: 0 | CY81: 0 | CZ81: 0 | DA81: 0 | DB81: 0 | DC81: 0 | DD81: 0 | DE81: 0 | DF81: 0 | DG81: 0 | DH81: 0 | DI81: 0 | DJ81: 0 | DK81: 0 | DL81: 0 | DM81: 0 | DN81: 0 | DO81: 0 | DP81: 0 | DQ81: 0 | DR81: 0 | DS81: 0 | DT81: 0 | DU81: 0 | DV81: 0 | DW81: 0 | DX81: 0 | DY81: 0 | DZ81: 0 | EA81: 0 | EB81: 0 | EC81: 0 | ED81: 0 | EE81: 0 | EF81: 0 | EG81: 0 | EH81: 0 | EI81: 0 | EJ81: 0 | EK81: 0 | EL81: 0 | EM81: 0 | EN81: 0 | EO81: 0 | EP81: 0 | EQ81: 0 | ER81: 0 | ES81: 0 | ET81: 0 | EU81: 0 | EV81: 0 | EW81: 0 | EX81: 0 | EY81: 0 | EZ81: 0 | FA81: 0 | FB81: 0 | FC81: 0 | FD81: 0 | FE81: 0 | FF81: 0 | FG81: 0 | FH81: 0 | FI81: 0 | FJ81: 0 | FK81: 0 | FL81: 0 | FM81: 0 | FN81: 0 | FO81: 0 | FP81: 0 | FQ81: 0 | FR81: 0 | FS81: 0 | FT81: 0 | FU81: 0 | FV81: 0 | FW81: 0 | FX81: 0 | FY81: 0 | FZ81: 0 | GA81: 0 | GB81: 0 | GC81: 0 | GD81: 0 | GE81: 0 | GF81: 0 | GG81: 0 | GH81: 0 | GI81: 0 | GJ81: 0 | GK81: 0 | GL81: 0 | GM81: 0 | GN81: 0 | GO81: 0 | GP81: 0 | GQ81: 0 | GR81: 0 | GS81: 0 | GT81: 0 | GU81: 0 | GV81: 0 | GW81: 0 | GX81: 0 | GY81: 0 | GZ81: 0 | HA81: 0 | HB81: 0 | HC81: 0 | HD81: 0 | HE81: 0 | HF81: 0 | HG81: 0 | HH81: 0 | HI81: 0 | HJ81: 0 | HK81: 0 | HL81: 0 | HM81: 0 | HN81: 0 | HO81: 0 | HP81: 0 | HQ81: 0 | HR81: 0 | HS81: 0 | HT81: 0 | HU81: 0 | HV81: 0 | HW81: 0
A82: 6 | B82: 0 | C82: 0 | D82: 0 | E82: 0 | F82: 0 | G82: 0 | H82: 0 | I82: 0 | J82: 0 | K82: 0 | L82: 0 | M82: 0 | N82: 0 | O82: 0 | P82: 0 | Q82: 0 | R82: 0 | S82: 0 | T82: 0 | U82: 0 | V82: 0 | W82: 0 | X82: 0 | Y82: 0 | Z82: 0 | AA82: 0 | AB82: 0 | AC82: 0 | AD82: 0 | AE82: 0 | AF82: 0 | AG82: 0 | AH82: 0 | AI82: 0 | AJ82: 0 | AK82: 0 | AL82: 0 | AM82: 0 | AN82: 0 | AO82: 0 | AP82: 0 | AQ82: 0 | AR82: 0 | AS82: 0 | AT82: 0 | AU82: 0 | AV82: 0 | AW82: 0 | AX82: 0 | AY82: 0 | AZ82: 2 | BA82: 0 | BB82: 0 | BC82: 4 | BD82: 0 | BE82: 0 | BF82: 0 | BG82: 1 | BH82: 2 | BI82: 1 | BJ82: 0 | BK82: 0 | BL82: 0 | BM82: 0 | BN82: 0 | BO82: 0 | BP82: 0 | BQ82: 0 | BR82: 0 | BS82: 0 | BT82: 0 | BU82: 0 | BV82: 0 | BW82: 0 | BX82: 0 | BY82: 0 | BZ82: 0 | CA82: 0 | CB82: 0 | CC82: 0 | CD82: 0 | CE82: 0 | CF82: 0 | CG82: 0 | CH82: 0 | CI82: 0 | CJ82: 0 | CK82: 1 | CL82: 0 | CM82: 0 | CN82: 0 | CO82: 0 | CP82: 0 | CQ82: 0 | CR82: 0 | CS82: 0 | CT82: 0 | CU82: 0 | CV82: 0 | CW82: 0 | CX82: 0 | CY82: 0 | CZ82: 0 | DA82: 0 | DB82: 0 | DC82: 0 | DD82: 0 | DE82: 0 | DF82: 0 | DG82: 0 | DH82: 0 | DI82: 0 | DJ82: 0 | DK82: 0 | DL82: 0 | DM82: 0 | DN82: 0 | DO82: 0 | DP82: 0 | DQ82: 0 | DR82: 0 | DS82: 0 | DT82: 0 | DU82: 0 | DV82: 0 | DW82: 0 | DX82: 0 | DY82: 0 | DZ82: 0 | EA82: 0 | EB82: 0 | EC82: 0 | ED82: 0 | EE82: 0 | EF82: 0 | EG82: 0 | EH82: 0 | EI82: 0 | EJ82: 0 | EK82: 0 | EL82: 0 | EM82: 0 | EN82: 0 | EO82: 0 | EP82: 0 | EQ82: 0 | ER82: 0 | ES82: 0 | ET82: 0 | EU82: 0 | EV82: 0 | EW82: 0 | EX82: 0 | EY82: 0 | EZ82: 0 | FA82: 0 | FB82: 0 | FC82: 0 | FD82: 0 | FE82: 0 | FF82: 0 | FG82: 0 | FH82: 0 | FI82: 0 | FJ82: 0 | FK82: 0 | FL82: 0 | FM82: 0 | FN82: 0 | FO82: 0 | FP82: 0 | FQ82: 0 | FR82: 0 | FS82: 0 | FT82: 0 | FU82: 0 | FV82: 0 | FW82: 0 | FX82: 0 | FY82: 0 | FZ82: 0 | GA82: 0 | GB82: 0 | GC82: 0 | GD82: 0 | GE82: 0 | GF82: 0 | GG82: 0 | GH82: 0 | GI82: 0 | GJ82: 0 | GK82: 0 | GL82: 0 | GM82: 0 | GN82: 0 | GO82: 0 | GP82: 0 | GQ82: 0 | GR82: 0 | GS82: 0 | GT82: 0 | GU82: 0 | GV82: 0 | GW82: 0 | GX82: 0 | GY82: 0 | GZ82: 0 | HA82: 0 | HB82: 0 | HC82: 0 | HD82: 0 | HE82: 0 | HF82: 0 | HG82: 0 | HH82: 0 | HI82: 0 | HJ82: 0 | HK82: 0 | HL82: 0 | HM82: 0 | HN82: 0 | HO82: 0 | HP82: 0 | HQ82: 0 | HR82: 0 | HS82: 0 | HT82: 0 | HU82: 0 | HV82: 0 | HW82: 0
A83: 7 | B83: 0 | C83: 0 | D83: 0 | E83: 1 | F83: 0 | G83: 0 | H83: 0 | I83: 0 | J83: 0 | K83: 0 | L83: 0 | M83: 0 | N83: 0 | O83: 1 | P83: 0 | Q83: 0 | R83: 0 | S83: 0 | T83: 0 | U83: 0 | V83: 0 | W83: 0 | X83: 0 | Y83: 0 | Z83: 0 | AA83: 0 | AB83: 0 | AC83: 0 | AD83: 0 | AE83: 0 | AF83: 0 | AG83: 0 | AH83: 0 | AI83: 0 | AJ83: 0 | AK83: 0 | AL83: 0 | AM83: 0 | AN83: 0 | AO83: 0 | AP83: 1 | AQ83: 0 | AR83: 0 | AS83: 0 | AT83: 0 | AU83: 0 | AV83: 0 | AW83: 0 | AX83: 0 | AY83: 0 | AZ83: 1 | BA83: 0 | BB83: 0 | BC83: 1 | BD83: 0 | BE83: 0 | BF83: 1 | BG83: 0 | BH83: 4 | BI83: 0 | BJ83: 0 | BK83: 0 | BL83: 0 | BM83: 0 | BN83: 0 | BO83: 0 | BP83: 0 | BQ83: 0 | BR83: 0 | BS83: 0 | BT83: 0 | BU83: 0 | BV83: 0 | BW83: 0 | BX83: 0 | BY83: 0 | BZ83: 0 | CA83: 0 | CB83: 0 | CC83: 0 | CD83: 0 | CE83: 0 | CF83: 1 | CG83: 1 | CH83: 0 | CI83: 1 | CJ83: 0 | CK83: 0 | CL83: 0 | CM83: 0 | CN83: 0 | CO83: 0 | CP83: 0 | CQ83: 0 | CR83: 0 | CS83: 0 | CT83: 0 | CU83: 0 | CV83: 0 | CW83: 0 | CX83: 0 | CY83: 0 | CZ83: 0 | DA83: 0 | DB83: 0 | DC83: 0 | DD83: 0 | DE83: 0 | DF83: 0 | DG83: 0 | DH83: 0 | DI83: 0 | DJ83: 0 | DK83: 0 | DL83: 0 | DM83: 0 | DN83: 0 | DO83: 0 | DP83: 0 | DQ83: 0 | DR83: 0 | DS83: 0 | DT83: 0 | DU83: 0 | DV83: 0 | DW83: 0 | DX83: 0 | DY83: 0 | DZ83: 0 | EA83: 0 | EB83: 0 | EC83: 0 | ED83: 0 | EE83: 0 | EF83: 0 | EG83: 0 | EH83: 0 | EI83: 0 | EJ83: 0 | EK83: 0 | EL83: 0 | EM83: 0 | EN83: 0 | EO83: 0 | EP83: 0 | EQ83: 0 | ER83: 0 | ES83: 0 | ET83: 0 | EU83: 0 | EV83: 0 | EW83: 0 | EX83: 0 | EY83: 0 | EZ83: 0 | FA83: 0 | FB83: 0 | FC83: 0 | FD83: 0 | FE83: 0 | FF83: 0 | FG83: 0 | FH83: 0 | FI83: 0 | FJ83: 0 | FK83: 0 | FL83: 0 | FM83: 0 | FN83: 0 | FO83: 0 | FP83: 0 | FQ83: 0 | FR83: 0 | FS83: 0 | FT83: 0 | FU83: 0 | FV83: 0 | FW83: 0 | FX83: 0 | FY83: 0 | FZ83: 0 | GA83: 0 | GB83: 0 | GC83: 0 | GD83: 0 | GE83: 0 | GF83: 0 | GG83: 0 | GH83: 0 | GI83: 0 | GJ83: 0 | GK83: 0 | GL83: 0 | GM83: 0 | GN83: 0 | GO83: 0 | GP83: 0 | GQ83: 0 | GR83: 0 | GS83: 0 | GT83: 0 | GU83: 0 | GV83: 0 | GW83: 0 | GX83: 0 | GY83: 0 | GZ83: 0 | HA83: 0 | HB83: 0 | HC83: 0 | HD83: 0 | HE83: 0 | HF83: 0 | HG83: 0 | HH83: 0 | HI83: 0 | HJ83: 0 | HK83: 0 | HL83: 0 | HM83: 0 | HN83: 0 | HO83: 0 | HP83: 0 | HQ83: 0 | HR83: 0 | HS83: 0 | HT83: 0 | HU83: 0 | HV83: 0 | HW83: 0
A84: 8 | B84: 2 | C84: 0 | D84: 0 | E84: 1 | F84: 1 | G84: 0 | H84: 0 | I84: 0 | J84: 0 | K84: 0 | L84: 1 | M84: 0 | N84: 0 | O84: 0 | P84: 0 | Q84: 2 | R84: 0 | S84: 0 | T84: 0 | U84: 0 | V84: 1 | W84: 0 | X84: 0 | Y84: 0 | Z84: 1 | AA84: 0 | AB84: 0 | AC84: 0 | AD84: 0 | AE84: 0 | AF84: 0 | AG84: 0 | AH84: 0 | AI84: 1 | AJ84: 0 | AK84: 0 | AL84: 0 | AM84: 0 | AN84: 0 | AO84: 0 | AP84: 0 | AQ84: 0 | AR84: 0 | AS84: 0 | AT84: 0 | AU84: 0 | AV84: 0 | AW84: 0 | AX84: 0 | AY84: 0 | AZ84: 1 | BA84: 0 | BB84: 1 | BC84: 3 | BD84: 1 | BE84: 1 | BF84: 0 | BG84: 0 | BH84: 0 | BI84: 4 | BJ84: 0 | BK84: 0 | BL84: 0 | BM84: 0 | BN84: 0 | BO84: 0 | BP84: 0 | BQ84: 0 | BR84: 0 | BS84: 0 | BT84: 0 | BU84: 0 | BV84: 0 | BW84: 0 | BX84: 0 | BY84: 0 | BZ84: 0 | CA84: 1 | CB84: 0 | CC84: 0 | CD84: 0 | CE84: 1 | CF84: 0 | CG84: 0 | CH84: 0 | CI84: 0 | CJ84: 0 | CK84: 0 | CL84: 0 | CM84: 0 | CN84: 0 | CO84: 0 | CP84: 0 | CQ84: 0 | CR84: 0 | CS84: 0 | CT84: 0 | CU84: 0 | CV84: 0 | CW84: 0 | CX84: 0 | CY84: 0 | CZ84: 0 | DA84: 0 | DB84: 0 | DC84: 0 | DD84: 0 | DE84: 0 | DF84: 0 | DG84: 0 | DH84: 0 | DI84: 0 | DJ84: 0 | DK84: 0 | DL84: 0 | DM84: 0 | DN84: 0 | DO84: 0 | DP84: 0 | DQ84: 0 | DR84: 0 | DS84: 0 | DT84: 0 | DU84: 0 | DV84: 0 | DW84: 0 | DX84: 0 | DY84: 0 | DZ84: 0 | EA84: 0 | EB84: 0 | EC84: 0 | ED84: 0 | EE84: 0 | EF84: 0 | EG84: 0 | EH84: 0 | EI84: 0 | EJ84: 0 | EK84: 0 | EL84: 0 | EM84: 0 | EN84: 0 | EO84: 0 | EP84: 0 | EQ84: 0 | ER84: 0 | ES84: 0 | ET84: 0 | EU84: 0 | EV84: 0 | EW84: 0 | EX84: 0 | EY84: 0 | EZ84: 0 | FA84: 0 | FB84: 0 | FC84: 0 | FD84: 0 | FE84: 0 | FF84: 0 | FG84: 0 | FH84: 0 | FI84: 0 | FJ84: 0 | FK84: 0 | FL84: 0 | FM84: 0 | FN84: 0 | FO84: 0 | FP84: 0 | FQ84: 0 | FR84: 0 | FS84: 0 | FT84: 0 | FU84: 0 | FV84: 0 | FW84: 0 | FX84: 0 | FY84: 0 | FZ84: 0 | GA84: 0 | GB84: 0 | GC84: 0 | GD84: 0 | GE84: 0 | GF84: 0 | GG84: 0 | GH84: 0 | GI84: 0 | GJ84: 0 | GK84: 0 | GL84: 0 | GM84: 0 | GN84: 0 | GO84: 0 | GP84: 0 | GQ84: 0 | GR84: 0 | GS84: 0 | GT84: 0 | GU84: 0 | GV84: 0 | GW84: 0 | GX84: 0 | GY84: 0 | GZ84: 0 | HA84: 0 | HB84: 0 | HC84: 0 | HD84: 0 | HE84: 0 | HF84: 0 | HG84: 0 | HH84: 0 | HI84: 0 | HJ84: 0 | HK84: 0 | HL84: 0 | HM84: 0 | HN84: 0 | HO84: 0 | HP84: 0 | HQ84: 0 | HR84: 0 | HS84: 0 | HT84: 0 | HU84: 0 | HV84: 0 | HW84: 0
A85: 9 | B85: 0 | C85: 0 | D85: 1 | E85: 2 | F85: 0 | G85: 0 | H85: 0 | I85: 0 | J85: 0 | K85: 0 | L85: 0 | M85: 0 | N85: 1 | O85: 2 | P85: 0 | Q85: 0 | R85: 0 | S85: 1 | T85: 2 | U85: 0 | V85: 0 | W85: 0 | X85: 0 | Y85: 0 | Z85: 0 | AA85: 0 | AB85: 0 | AC85: 0 | AD85: 0 | AE85: 0 | AF85: 0 | AG85: 0 | AH85: 0 | AI85: 0 | AJ85: 0 | AK85: 0 | AL85: 0 | AM85: 0 | AN85: 0 | AO85: 0 | AP85: 0 | AQ85: 0 | AR85: 1 | AS85: 0 | AT85: 0 | AU85: 0 | AV85: 0 | AW85: 0 | AX85: 0 | AY85: 0 | AZ85: 0 | BA85: 0 | BB85: 0 | BC85: 1 | BD85: 1 | BE85: 0 | BF85: 0 | BG85: 0 | BH85: 0 | BI85: 0 | BJ85: 0 | BK85: 0 | BL85: 0 | BM85: 0 | BN85: 0 | BO85: 0 | BP85: 0 | BQ85: 0 | BR85: 0 | BS85: 0 | BT85: 0 | BU85: 0 | BV85: 0 | BW85: 0 | BX85: 0 | BY85: 0 | BZ85: 0 | CA85: 0 | CB85: 0 | CC85: 0 | CD85: 0 | CE85: 0 | CF85: 0 | CG85: 0 | CH85: 1 | CI85: 0 | CJ85: 0 | CK85: 0 | CL85: 0 | CM85: 0 | CN85: 0 | CO85: 0 | CP85: 0 | CQ85: 0 | CR85: 0 | CS85: 0 | CT85: 0 | CU85: 0 | CV85: 0 | CW85: 0 | CX85: 0 | CY85: 0 | CZ85: 0 | DA85: 0 | DB85: 0 | DC85: 0 | DD85: 0 | DE85: 0 | DF85: 0 | DG85: 0 | DH85: 0 | DI85: 0 | DJ85: 0 | DK85: 0 | DL85: 0 | DM85: 0 | DN85: 0 | DO85: 0 | DP85: 0 | DQ85: 0 | DR85: 0 | DS85: 0 | DT85: 0 | DU85: 0 | DV85: 0 | DW85: 0 | DX85: 0 | DY85: 0 | DZ85: 0 | EA85: 0 | EB85: 0 | EC85: 0 | ED85: 0 | EE85: 0 | EF85: 0 | EG85: 0 | EH85: 0 | EI85: 0 | EJ85: 0 | EK85: 0 | EL85: 0 | EM85: 0 | EN85: 0 | EO85: 0 | EP85: 0 | EQ85: 0 | ER85: 0 | ES85: 0 | ET85: 0 | EU85: 0 | EV85: 0 | EW85: 0 | EX85: 0 | EY85: 0 | EZ85: 0 | FA85: 0 | FB85: 0 | FC85: 0 | FD85: 0 | FE85: 0 | FF85: 0 | FG85: 0 | FH85: 0 | FI85: 0 | FJ85: 0 | FK85: 0 | FL85: 0 | FM85: 0 | FN85: 0 | FO85: 0 | FP85: 0 | FQ85: 0 | FR85: 0 | FS85: 0 | FT85: 0 | FU85: 0 | FV85: 0 | FW85: 0 | FX85: 0 | FY85: 0 | FZ85: 0 | GA85: 0 | GB85: 0 | GC85: 0 | GD85: 0 | GE85: 0 | GF85: 0 | GG85: 0 | GH85: 0 | GI85: 0 | GJ85: 0 | GK85: 0 | GL85: 0 | GM85: 0 | GN85: 0 | GO85: 0 | GP85: 0 | GQ85: 0 | GR85: 0 | GS85: 0 | GT85: 0 | GU85: 0 | GV85: 0 | GW85: 0 | GX85: 0 | GY85: 0 | GZ85: 0 | HA85: 0 | HB85: 0 | HC85: 0 | HD85: 0 | HE85: 0 | HF85: 0 | HG85: 0 | HH85: 0 | HI85: 0 | HJ85: 0 | HK85: 0 | HL85: 0 | HM85: 0 | HN85: 0 | HO85: 0 | HP85: 0 | HQ85: 0 | HR85: 0 | HS85: 0 | HT85: 0 | HU85: 0 | HV85: 0 | HW85: 0
A86: 10 | B86: 0 | C86: 0 | D86: 0 | E86: 0 | F86: 0 | G86: 0 | H86: 0 | I86: 0 | J86: 0 | K86: 0 | L86: 0 | M86: 0 | N86: 0 | O86: 0 | P86: 0 | Q86: 0 | R86: 0 | S86: 0 | T86: 0 | U86: 0 | V86: 0 | W86: 0 | X86: 0 | Y86: 0 | Z86: 0 | AA86: 0 | AB86: 0 | AC86: 0 | AD86: 0 | AE86: 0 | AF86: 0 | AG86: 0 | AH86: 0 | AI86: 0 | AJ86: 0 | AK86: 0 | AL86: 0 | AM86: 0 | AN86: 0 | AO86: 0 | AP86: 0 | AQ86: 0 | AR86: 0 | AS86: 0 | AT86: 0 | AU86: 0 | AV86: 0 | AW86: 0 | AX86: 0 | AY86: 0 | AZ86: 0 | BA86: 1 | BB86: 0 | BC86: 3 | BD86: 0 | BE86: 0 | BF86: 0 | BG86: 0 | BH86: 2 | BI86: 0 | BJ86: 0 | BK86: 0 | BL86: 0 | BM86: 0 | BN86: 0 | BO86: 0 | BP86: 0 | BQ86: 0 | BR86: 0 | BS86: 0 | BT86: 0 | BU86: 0 | BV86: 0 | BW86: 0 | BX86: 0 | BY86: 0 | BZ86: 0 | CA86: 0 | CB86: 0 | CC86: 0 | CD86: 0 | CE86: 0 | CF86: 0 | CG86: 0 | CH86: 0 | CI86: 0 | CJ86: 0 | CK86: 0 | CL86: 0 | CM86: 0 | CN86: 0 | CO86: 0 | CP86: 0 | CQ86: 0 | CR86: 0 | CS86: 0 | CT86: 0 | CU86: 0 | CV86: 0 | CW86: 0 | CX86: 0 | CY86: 0 | CZ86: 0 | DA86: 0 | DB86: 0 | DC86: 0 | DD86: 0 | DE86: 0 | DF86: 0 | DG86: 0 | DH86: 0 | DI86: 0 | DJ86: 0 | DK86: 0 | DL86: 0 | DM86: 0 | DN86: 0 | DO86: 0 | DP86: 0 | DQ86: 0 | DR86: 0 | DS86: 0 | DT86: 0 | DU86: 0 | DV86: 0 | DW86: 0 | DX86: 0 | DY86: 0 | DZ86: 0 | EA86: 0 | EB86: 0 | EC86: 0 | ED86: 0 | EE86: 0 | EF86: 0 | EG86: 0 | EH86: 0 | EI86: 0 | EJ86: 0 | EK86: 0 | EL86: 0 | EM86: 0 | EN86: 0 | EO86: 0 | EP86: 0 | EQ86: 0 | ER86: 0 | ES86: 0 | ET86: 0 | EU86: 0 | EV86: 0 | EW86: 0 | EX86: 0 | EY86: 0 | EZ86: 0 | FA86: 0 | FB86: 0 | FC86: 0 | FD86: 0 | FE86: 0 | FF86: 0 | FG86: 0 | FH86: 0 | FI86: 0 | FJ86: 0 | FK86: 0 | FL86: 0 | FM86: 0 | FN86: 0 | FO86: 0 | FP86: 0 | FQ86: 0 | FR86: 0 | FS86: 0 | FT86: 0 | FU86: 0 | FV86: 0 | FW86: 0 | FX86: 0 | FY86: 0 | FZ86: 0 | GA86: 0 | GB86: 0 | GC86: 0 | GD86: 0 | GE86: 0 | GF86: 0 | GG86: 0 | GH86: 0 | GI86: 0 | GJ86: 0 | GK86: 0 | GL86: 0 | GM86: 0 | GN86: 0 | GO86: 0 | GP86: 0 | GQ86: 0 | GR86: 0 | GS86: 0 | GT86: 0 | GU86: 0 | GV86: 0 | GW86: 0 | GX86: 0 | GY86: 0 | GZ86: 0 | HA86: 0 | HB86: 0 | HC86: 0 | HD86: 0 | HE86: 0 | HF86: 0 | HG86: 0 | HH86: 0 | HI86: 0 | HJ86: 0 | HK86: 0 | HL86: 0 | HM86: 0 | HN86: 0 | HO86: 0 | HP86: 0 | HQ86: 0 | HR86: 0 | HS86: 0 | HT86: 0 | HU86: 0 | HV86: 0 | HW86: 0
A87: 11 | B87: 0 | C87: 0 | D87: 0 | E87: 1 | F87: 0 | G87: 0 | H87: 0 | I87: 0 | J87: 0 | K87: 0 | L87: 0 | M87: 0 | N87: 0 | O87: 1 | P87: 0 | Q87: 0 | R87: 0 | S87: 0 | T87: 0 | U87: 0 | V87: 0 | W87: 0 | X87: 0 | Y87: 0 | Z87: 0 | AA87: 0 | AB87: 0 | AC87: 0 | AD87: 0 | AE87: 0 | AF87: 0 | AG87: 0 | AH87: 0 | AI87: 0 | AJ87: 0 | AK87: 0 | AL87: 0 | AM87: 0 | AN87: 0 | AO87: 0 | AP87: 1 | AQ87: 0 | AR87: 0 | AS87: 0 | AT87: 0 | AU87: 0 | AV87: 0 | AW87: 1 | AX87: 2 | AY87: 0 | AZ87: 1 | BA87: 0 | BB87: 1 | BC87: 1 | BD87: 0 | BE87: 0 | BF87: 0 | BG87: 0 | BH87: 1 | BI87: 0 | BJ87: 0 | BK87: 0 | BL87: 0 | BM87: 0 | BN87: 0 | BO87: 0 | BP87: 0 | BQ87: 0 | BR87: 0 | BS87: 0 | BT87: 0 | BU87: 0 | BV87: 0 | BW87: 0 | BX87: 0 | BY87: 0 | BZ87: 0 | CA87: 0 | CB87: 0 | CC87: 0 | CD87: 0 | CE87: 0 | CF87: 0 | CG87: 0 | CH87: 0 | CI87: 0 | CJ87: 0 | CK87: 0 | CL87: 0 | CM87: 0 | CN87: 0 | CO87: 0 | CP87: 0 | CQ87: 0 | CR87: 0 | CS87: 0 | CT87: 0 | CU87: 0 | CV87: 0 | CW87: 0 | CX87: 0 | CY87: 0 | CZ87: 0 | DA87: 0 | DB87: 0 | DC87: 0 | DD87: 0 | DE87: 0 | DF87: 0 | DG87: 0 | DH87: 0 | DI87: 0 | DJ87: 0 | DK87: 0 | DL87: 0 | DM87: 0 | DN87: 0 | DO87: 0 | DP87: 0 | DQ87: 0 | DR87: 0 | DS87: 0 | DT87: 0 | DU87: 0 | DV87: 0 | DW87: 0 | DX87: 0 | DY87: 0 | DZ87: 0 | EA87: 0 | EB87: 0 | EC87: 0 | ED87: 0 | EE87: 0 | EF87: 0 | EG87: 0 | EH87: 0 | EI87: 0 | EJ87: 0 | EK87: 0 | EL87: 0 | EM87: 0 | EN87: 0 | EO87: 0 | EP87: 0 | EQ87: 0 | ER87: 0 | ES87: 0 | ET87: 0 | EU87: 0 | EV87: 0 | EW87: 0 | EX87: 0 | EY87: 0 | EZ87: 0 | FA87: 0 | FB87: 0 | FC87: 0 | FD87: 0 | FE87: 0 | FF87: 0 | FG87: 0 | FH87: 0 | FI87: 0 | FJ87: 0 | FK87: 0 | FL87: 0 | FM87: 0 | FN87: 0 | FO87: 0 | FP87: 0 | FQ87: 0 | FR87: 0 | FS87: 0 | FT87: 0 | FU87: 0 | FV87: 0 | FW87: 0 | FX87: 0 | FY87: 0 | FZ87: 0 | GA87: 0 | GB87: 0 | GC87: 0 | GD87: 0 | GE87: 0 | GF87: 0 | GG87: 0 | GH87: 0 | GI87: 0 | GJ87: 0 | GK87: 0 | GL87: 0 | GM87: 0 | GN87: 0 | GO87: 0 | GP87: 0 | GQ87: 0 | GR87: 0 | GS87: 0 | GT87: 0 | GU87: 0 | GV87: 0 | GW87: 0 | GX87: 0 | GY87: 0 | GZ87: 0 | HA87: 0 | HB87: 0 | HC87: 0 | HD87: 0 | HE87: 0 | HF87: 0 | HG87: 0 | HH87: 0 | HI87: 0 | HJ87: 0 | HK87: 0 | HL87: 0 | HM87: 0 | HN87: 0 | HO87: 0 | HP87: 0 | HQ87: 0 | HR87: 0 | HS87: 0 | HT87: 0 | HU87: 0 | HV87: 0 | HW87: 0
A88: T | B88: 2 | C88: 0 | D88: 1 | E88: 9 | F88: 1 | G88: 0 | H88: 0 | I88: 0 | J88: 4 | K88: 0 | L88: 1 | M88: 0 | N88: 1 | O88: 5 | P88: 0 | Q88: 2 | R88: 0 | S88: 2 | T88: 2 | U88: 0 | V88: 1 | W88: 0 | X88: 0 | Y88: 0 | Z88: 1 | AA88: 0 | AB88: 0 | AC88: 0 | AD88: 2 | AE88: 0 | AF88: 0 | AG88: 0 | AH88: 0 | AI88: 1 | AJ88: 0 | AK88: 0 | AL88: 0 | AM88: 0 | AN88: 0 | AO88: 0 | AP88: 2 | AQ88: 0 | AR88: 1 | AS88: 0 | AT88: 1 | AU88: 0 | AV88: 1 | AW88: 2 | AX88: 2 | AY88: 0 | AZ88: 14 | BA88: 2 | BB88: 7 | BC88: 21 | BD88: 12 | BE88: 5 | BF88: 2 | BG88: 2 | BH88: 16 | BI88: 6 | BJ88: 0 | BK88: 0 | BL88: 0 | BM88: 0 | BN88: 0 | BO88: 0 | BP88: 0 | BQ88: 0 | BR88: 0 | BS88: 1 | BT88: 0 | BU88: 0 | BV88: 0 | BW88: 0 | BX88: 1 | BY88: 0 | BZ88: 1 | CA88: 1 | CB88: 0 | CC88: 0 | CD88: 0 | CE88: 2 | CF88: 3 | CG88: 2 | CH88: 1 | CI88: 1 | CJ88: 0 | CK88: 2 | CL88: 1 | CM88: 0 | CN88: 0 | CO88: 0 | CP88: 0 | CQ88: 0 | CR88: 0 | CS88: 0 | CT88: 0 | CU88: 0 | CV88: 0 | CW88: 0 | CX88: 0 | CY88: 0 | CZ88: 0 | DA88: 0 | DB88: 0 | DC88: 0 | DD88: 0 | DE88: 0 | DF88: 0 | DG88: 0 | DH88: 0 | DI88: 0 | DJ88: 0 | DK88: 0 | DL88: 0 | DM88: 0 | DN88: 0 | DO88: 0 | DP88: 0 | DQ88: 0 | DR88: 0 | DS88: 0 | DT88: 0 | DU88: 0 | DV88: 0 | DW88: 0 | DX88: 0 | DY88: 0 | DZ88: 0 | EA88: 0 | EB88: 0 | EC88: 0 | ED88: 0 | EE88: 0 | EF88: 0 | EG88: 0 | EH88: 0 | EI88: 0 | EJ88: 0 | EK88: 0 | EL88: 0 | EM88: 0 | EN88: 0 | EO88: 0 | EP88: 0 | EQ88: 0 | ER88: 0 | ES88: 0 | ET88: 0 | EU88: 0 | EV88: 0 | EW88: 0 | EX88: 0 | EY88: 0 | EZ88: 0 | FA88: 0 | FB88: 0 | FC88: 0 | FD88: 0 | FE88: 0 | FF88: 0 | FG88: 0 | FH88: 0 | FI88: 0 | FJ88: 0 | FK88: 0 | FL88: 0 | FM88: 0 | FN88: 0 | FO88: 0 | FP88: 0 | FQ88: 0 | FR88: 0 | FS88: 0 | FT88: 0 | FU88: 0 | FV88: 0 | FW88: 0 | FX88: 0 | FY88: 0 | FZ88: 0 | GA88: 0 | GB88: 0 | GC88: 0 | GD88: 0 | GE88: 0 | GF88: 0 | GG88: 0 | GH88: 0 | GI88: 0 | GJ88: 0 | GK88: 0 | GL88: 0 | GM88: 0 | GN88: 0 | GO88: 0 | GP88: 0 | GQ88: 0 | GR88: 0 | GS88: 0 | GT88: 0 | GU88: 0 | GV88: 0 | GW88: 0 | GX88: 0 | GY88: 0 | GZ88: 0 | HA88: 0 | HB88: 0 | HC88: 0 | HD88: 0 | HE88: 0 | HF88: 0 | HG88: 0 | HH88: 0 | HI88: 0 | HJ88: 0 | HK88: 0 | HL88: 0 | HM88: 0 | HN88: 0 | HO88: 0 | HP88: 0 | HQ88: 0 | HR88: 0 | HS88: 0 | HT88: 0 | HU88: 0 | HV88: 0 | HW88: 0
A90: TOTAL
A91: =COUNT(A77:A88) -> 11 | B91: =SUM(B77:B88) -> 4 | C91: =SUM(C77:C88) -> 0 | D91: 2 | E91: 18 | F91: 2 | G91: 0 | H91: 0 | I91: 0 | J91: 8 | K91: 0 | L91: 2 | M91: 0 | N91: 2 | O91: 10 | P91: 0 | Q91: 4 | R91: 0 | S91: 4 | T91: 4 | U91: 0 | V91: 2 | W91: 0 | X91: 0 | Y91: 0 | Z91: 2 | AA91: 0 | AB91: 0 | AC91: 0 | AD91: 4 | AE91: 0 | AF91: 0 | AG91: 0 | AH91: 0 | AI91: 2 | AJ91: 0 | AK91: 0 | AL91: 0 | AM91: 0 | AN91: 0 | AO91: 0 | AP91: 4 | AQ91: 0 | AR91: 2 | AS91: 0 | AT91: 2 | AU91: 0 | AV91: 2 | AW91: 4 | AX91: 4 | AY91: 0 | AZ91: 28 | BA91: 4 | BB91: 14 | BC91: 42 | BD91: 24 | BE91: 10 | BF91: 4 | BG91: 4 | BH91: 32 | BI91: 12 | BJ91: 0 | BK91: 0 | BL91: 0 | BM91: 0 | BN91: 0 | BO91: =SUM(BO77:BO88) -> 0 | BP91: 0 | BQ91: 0 | BR91: 0 | BS91: 2 | BT91: 0 | BU91: 0 | BV91: 0 | BW91: 0 | BX91: 2 | BY91: 0 | BZ91: 2 | CA91: 2 | CB91: 0 | CC91: 0 | CD91: 0 | CE91: 4 | CF91: 6 | CG91: 4 | CH91: 2 | CI91: 2 | CJ91: 0 | CK91: 4 | CL91: 2 | CM91: 0 | CN91: 0 | CO91: 0 | CP91: 0 | CQ91: 0 | CR91: 0 | CS91: 0 | CT91: 0 | CU91: 0 | CV91: 0 | CW91: 0 | CX91: 0 | CY91: 0 | CZ91: 0 | DA91: 0 | DB91: 0 | DC91: 0 | DD91: 0 | DE91: 0 | DF91: 0 | DG91: 0 | DH91: 0 | DI91: 0 | DJ91: 0 | DK91: 0 | DL91: 0 | DM91: 0 | DN91: 0 | DO91: 0 | DP91: 0 | DQ91: 0 | DR91: 0 | DS91: 0 | DT91: 0 | DU91: 0 | DV91: 0 | DW91: 0 | DX91: 0 | DY91: 0 | DZ91: 0 | EA91: =SUM(EA77:EA88) -> 0 | EB91: 0 | EC91: 0 | ED91: 0 | EE91: 0 | EF91: 0 | EG91: 0 | EH91: 0 | EI91: 0 | EJ91: 0 | EK91: 0 | EL91: 0 | EM91: 0 | EN91: 0 | EO91: 0 | EP91: 0 | EQ91: 0 | ER91: 0 | ES91: 0 | ET91: 0 | EU91: 0 | EV91: 0 | EW91: 0 | EX91: 0 | EY91: 0 | EZ91: 0 | FA91: 0 | FB91: 0 | FC91: 0 | FD91: 0 | FE91: 0 | FF91: 0 | FG91: 0 | FH91: 0 | FI91: 0 | FJ91: 0 | FK91: 0 | FL91: 0 | FM91: 0 | FN91: 0 | FO91: 0 | FP91: 0 | FQ91: 0 | FR91: 0 | FS91: 0 | FT91: 0 | FU91: 0 | FV91: 0 | FW91: 0 | FX91: 0 | FY91: 0 | FZ91: 0 | GA91: 0 | GB91: 0 | GC91: 0 | GD91: 0 | GE91: 0 | GF91: 0 | GG91: 0 | GH91: 0 | GI91: 0 | GJ91: 0 | GK91: 0 | GL91: 0 | GM91: =SUM(GM77:GM88) -> 0 | GN91: 0 | GO91: 0 | GP91: 0 | GQ91: 0 | GR91: 0 | GS91: 0 | GT91: 0 | GU91: 0 | GV91: 0 | GW91: 0 | GX91: 0 | GY91: 0 | GZ91: 0 | HA91: 0 | HB91: 0 | HC91: 0 | HD91: 0 | HE91: 0 | HF91: 0 | HG91: 0 | HH91: 0 | HI91: 0 | HJ91: 0 | HK91: 0 | HL91: 0 | HM91: 0 | HN91: 0 | HO91: 0 | HP91: 0 | HQ91: 0 | HR91: 0 | HS91: 0 | HT91: 0 | HU91: 0 | HV91: 0 | HW91: 0
A92: =CONCATENATE(A77,"-",A78,"-",A79,"-",A80,"-",A81,"-",A82,"-",A83,"-",A84,"-",A85,"-",A86,"-",A87,"-",A88) -> 2-1-3-4-5-6-7-8-9-10-11-T
B93: BAS001 | C93: BAS002 | D93: BAS003 | E93: BAS004 | F93: BAS005 | G93: BAS006 | H93: BAS007 | I93: BAS008 | J93: BAS009 | K93: BAS010 | L93: BAS011 | M93: BAS012 | N93: BAS013 | O93: BAS014 | P93: BAS015 | Q93: BAS016 | R93: BAS017 | S93: BAS018 | T93: BAS019 | U93: BAS020 | V93: BAS021 | W93: BAS022 | X93: BAS023 | Y93: BAS024 | Z93: BAS025 | AA93: BAS026 | AB93: BAS027 | AC93: BAS028 | AD93: BAS029 | AE93: BAS030 | AF93: BAS031 | AG93: BAS032 | AH93: BAS033 | AI93: BAS034 | AJ93: BAS035 | AK93: BAS036 | AL93: BAS037 | AM93: BAS038 | AN93: BAS039 | AO93: BAS040 | AP93: BAS041 | AQ93: BAS042 | AR93: BAS043 | AS93: BAS044 | AT93: BAS045 | AU93: BAS046 | AV93: BAS047 | AW93: BAS048 | AX93: BAS049 | AY93: BAS050 | AZ93: BAS051 | BA93: BAS052 | BB93: BAS053 | BC93: BAS054 | BD93: BAS055 | BE93: BAS056 | BF93: BAS057 | BG93: BAS058 | BH93: BAS059 | BI93: BAS060 | BJ93: BAS061 | BK93: BAS062 | BL93: BAS063 | BM93: BAS064 | BN93: BAS065 | BO93: BAS066 | BP93: BAS067 | BQ93: BAS068 | BR93: BAS069 | BS93: BAS070 | BT93: BAS071 | BU93: BAS072 | BV93: BAS073 | BW93: BAS074 | BX93: BAS075 | BY93: BAS076 | BZ93: BAS077 | CA93: BAS078 | CB93: BAS079 | CC93: BAS080 | CD93: BAS081 | CE93: BAS082 | CF93: BAS083 | CG93: BAS084 | CH93: BAS085 | CI93: BAS086 | CJ93: BAS087 | CK93: BAS088 | CL93: BAS089 | CM93: BAS090 | CN93: BAS091 | CO93: BAS092 | CP93: BAS093 | CQ93: BAS094 | CR93: BAS095 | CS93: BAS096 | CT93: BAS097 | CU93: BAS098 | CV93: BAS099 | CW93: BAS100 | CX93: BAS101 | CY93: BAS102 | CZ93: BAS103 | DA93: BAS104 | DB93: BAS105 | DC93: BAS106 | DD93: BAS107 | DE93: BAS108 | DF93: BAS109 | DG93: BAS110 | DH93: BAS111 | DI93: BAS112 | DJ93: BAS113 | DK93: BAS114 | DL93: BAS115 | DM93: BAS116 | DN93: BAS117 | DO93: BAS118 | DP93: BAS119 | DQ93: BAS120 | DR93: BAS121 | DS93: BAS122 | DT93: BAS123 | DU93: BAS124 | DV93: BAS125 | DW93: BAS126 | DX93: BAS127 | DY93: BAS128 | DZ93: BAS129 | EA93: BAS130 | EB93: BAS131 | EC93: BAS132 | ED93: BAS133 | EE93: BAS134 | EF93: BAS135 | EG93: BAS136 | EH93: BAS137 | EI93: BAS138 | EJ93: BAS139 | EK93: BAS140 | EL93: BAS141 | EM93: BAS142 | EN93: BAS143 | EO93: BAS144 | EP93: BAS145 | EQ93: BAS146 | ER93: BAS147 | ES93: BAS148 | ET93: BAS149 | EU93: BAS150 | EV93: BAS151 | EW93: BAS152 | EX93: BAS153 | EY93: BAS154 | EZ93: BAS155 | FA93: BAS156 | FB93: BAS157 | FC93: BAS158 | FD93: BAS159 | FE93: BAS160 | FF93: BAS161 | FG93: BAS162 | FH93: BAS163 | FI93: BAS164 | FJ93: BAS165 | FK93: BAS166 | FL93: BAS167 | FM93: BAS168 | FN93: BAS169 | FO93: BAS170 | FP93: BAS171 | FQ93: BAS172 | FR93: BAS173 | FS93: BAS174 | FT93: BAS175 | FU93: BAS176 | FV93: BAS177 | FW93: BAS178 | FX93: BAS179 | FY93: BAS180 | FZ93: BAS181 | GA93: BAS182 | GB93: BAS183 | GC93: BAS184 | GD93: BAS185 | GE93: BAS186 | GF93: BAS187 | GG93: BAS188 | GH93: BAS189 | GI93: BAS190 | GJ93: BAS191 | GK93: BAS192 | GL93: BAS193 | GM93: BAS194 | GN93: BAS195 | GO93: BAS196 | GP93: BAS197 | GQ93: BAS198 | GR93: BAS199 | GS93: BAS200 | GT93: BAS201 | GU93: BAS202 | GV93: BAS203 | GW93: BAS204 | GX93: BAS205 | GY93: BAS206 | GZ93: BAS207 | HA93: BAS208 | HB93: BAS209 | HC93: BAS210 | HD93: BAS211 | HE93: BAS212 | HF93: BAS213 | HG93: BAS214 | HH93: BAS215 | HI93: BAS216 | HJ93: BAS217 | HK93: BAS218 | HL93: BAS219 | HM93: BAS220 | HN93: BAS221 | HO93: BAS222 | HP93: BAS223 | HQ93: BAS224 | HR93: BAS225 | HS93: BAS226 | HT93: BAS227 | HU93: BAS228 | HV93: BAS229 | HW93: BAS230
B94: =IF(B93=B76,"SI","NO") -> SI | C94: =IF(C93=C76,"SI","NO") -> SI | D94: SI | E94: SI | F94: SI | G94: SI | H94: SI | I94: SI | J94: SI | K94: SI | L94: SI | M94: SI | N94: SI | O94: SI | P94: SI | Q94: SI | R94: SI | S94: SI | T94: SI | U94: SI | V94: SI | W94: SI | X94: SI | Y94: SI | Z94: SI | AA94: SI | AB94: SI | AC94: SI | AD94: SI | AE94: SI | AF94: SI | AG94: SI | AH94: SI | AI94: SI | AJ94: SI | AK94: SI | AL94: SI | AM94: SI | AN94: SI | AO94: SI | AP94: SI | AQ94: SI | AR94: SI | AS94: SI | AT94: SI | AU94: SI | AV94: SI | AW94: SI | AX94: SI | AY94: SI | AZ94: SI | BA94: SI | BB94: SI | BC94: SI | BD94: SI | BE94: SI | BF94: SI | BG94: SI | BH94: SI | BI94: SI | BJ94: SI | BK94: SI | BL94: SI | BM94: SI | BN94: SI | BO94: =IF(BO93=BO76,"SI","NO") -> SI | BP94: SI | BQ94: SI | BR94: SI | BS94: SI | BT94: SI | BU94: SI | BV94: SI | BW94: SI | BX94: SI | BY94: SI | BZ94: SI | CA94: SI | CB94: SI | CC94: SI | CD94: SI | CE94: SI | CF94: SI | CG94: SI | CH94: SI | CI94: SI | CJ94: SI | CK94: SI | CL94: SI | CM94: SI | CN94: SI | CO94: SI | CP94: SI | CQ94: SI | CR94: SI | CS94: SI | CT94: SI | CU94: SI | CV94: SI | CW94: SI | CX94: SI | CY94: SI | CZ94: SI | DA94: SI | DB94: SI | DC94: SI | DD94: SI | DE94: SI | DF94: SI | DG94: SI | DH94: SI | DI94: SI | DJ94: SI | DK94: SI | DL94: SI | DM94: SI | DN94: SI | DO94: SI | DP94: SI | DQ94: SI | DR94: SI | DS94: SI | DT94: SI | DU94: SI | DV94: SI | DW94: SI | DX94: SI | DY94: SI | DZ94: SI | EA94: =IF(EA93=EA76,"SI","NO") -> SI | EB94: SI | EC94: SI | ED94: SI | EE94: SI | EF94: SI | EG94: SI | EH94: SI | EI94: SI | EJ94: SI | EK94: SI | EL94: SI | EM94: SI | EN94: SI | EO94: SI | EP94: SI | EQ94: SI | ER94: SI | ES94: SI | ET94: SI | EU94: SI | EV94: SI | EW94: SI | EX94: SI | EY94: SI | EZ94: SI | FA94: SI | FB94: SI | FC94: SI | FD94: SI | FE94: SI | FF94: SI | FG94: SI | FH94: SI | FI94: SI | FJ94: SI | FK94: SI | FL94: SI | FM94: SI | FN94: SI | FO94: SI | FP94: SI | FQ94: SI | FR94: SI | FS94: SI | FT94: SI | FU94: SI | FV94: SI | FW94: SI | FX94: SI | FY94: SI | FZ94: SI | GA94: SI | GB94: SI | GC94: SI | GD94: SI | GE94: SI | GF94: SI | GG94: SI | GH94: SI | GI94: SI | GJ94: SI | GK94: SI | GL94: SI | GM94: =IF(GM93=GM76,"SI","NO") -> SI | GN94: SI | GO94: SI | GP94: SI | GQ94: SI | GR94: SI | GS94: SI | GT94: SI | GU94: SI | GV94: SI | GW94: SI | GX94: SI | GY94: SI | GZ94: SI | HA94: SI | HB94: SI | HC94: SI | HD94: SI | HE94: SI | HF94: SI | HG94: SI | HH94: SI | HI94: SI | HJ94: SI | HK94: SI | HL94: SI | HM94: SI | HN94: SI | HO94: SI | HP94: SI | HQ94: SI | HR94: SI | HS94: SI | HT94: SI | HU94: SI | HV94: SI | HW94: SI
A97: R_URBANA 02
A98: anno | B98: 2024
A99: cod_red | B99: 03
A100: codmic | B100: (Todas)
A101: cod_prov | B101: (Todas)
A102: coddist | B102: (Todas)
A103: cod_estab | B103: (Todas)
A104: cod_eje | B104: (Todas)
B106: Valores
A107: Etiquetas de fila | B107: BAS001 | C107: BAS002 | D107: BAS003 | E107: BAS004 | F107: BAS005 | G107: BAS006 | H107: BAS007 | I107: BAS008 | J107: BAS009 | K107: BAS010 | L107: BAS011 | M107: BAS012 | N107: BAS013 | O107: BAS014 | P107: BAS015 | Q107: BAS016 | R107: BAS017 | S107: BAS018 | T107: BAS019 | U107: BAS020 | V107: BAS021 | W107: BAS022 | X107: BAS023 | Y107: BAS024 | Z107: BAS025 | AA107: BAS026 | AB107: BAS027 | AC107: BAS028 | AD107: BAS029 | AE107: BAS030 | AF107: BAS031 | AG107: BAS032 | AH107: BAS033 | AI107: BAS034 | AJ107: BAS035 | AK107: BAS036 | AL107: BAS037 | AM107: BAS038 | AN107: BAS039 | AO107: BAS040 | AP107: BAS041 | AQ107: BAS042 | AR107: BAS043 | AS107: BAS044 | AT107: BAS045 | AU107: BAS046 | AV107: BAS047 | AW107: BAS048 | AX107: BAS049 | AY107: BAS050 | AZ107: BAS051 | BA107: BAS052 | BB107: BAS053 | BC107: BAS054 | BD107: BAS055 | BE107: BAS056 | BF107: BAS057 | BG107: BAS058 | BH107: BAS059 | BI107: BAS060 | BJ107: BAS061 | BK107: BAS062 | BL107: BAS063 | BM107: BAS064 | BN107: BAS065 | BO107: BAS066 | BP107: BAS067 | BQ107: BAS068 | BR107: BAS069 | BS107: BAS070 | BT107: BAS071 | BU107: BAS072 | BV107: BAS073 | BW107: BAS074 | BX107: BAS075 | BY107: BAS076 | BZ107: BAS077 | CA107: BAS078 | CB107: BAS079 | CC107: BAS080 | CD107: BAS081 | CE107: BAS082 | CF107: BAS083 | CG107: BAS084 | CH107: BAS085 | CI107: BAS086 | CJ107: BAS087 | CK107: BAS088 | CL107: BAS089 | CM107: BAS090 | CN107: BAS091 | CO107: BAS092 | CP107: BAS093 | CQ107: BAS094 | CR107: BAS095 | CS107: BAS096 | CT107: BAS097 | CU107: BAS098 | CV107: BAS099 | CW107: BAS100 | CX107: BAS101 | CY107: BAS102 | CZ107: BAS103 | DA107: BAS104 | DB107: BAS105 | DC107: BAS106 | DD107: BAS107 | DE107: BAS108 | DF107: BAS109 | DG107: BAS110 | DH107: BAS111 | DI107: BAS112 | DJ107: BAS113 | DK107: BAS114 | DL107: BAS115 | DM107: BAS116 | DN107: BAS117 | DO107: BAS118 | DP107: BAS119 | DQ107: BAS120 | DR107: BAS121 | DS107: BAS122 | DT107: BAS123 | DU107: BAS124 | DV107: BAS125 | DW107: BAS126 | DX107: BAS127 | DY107: BAS128 | DZ107: BAS129 | EA107: BAS130 | EB107: BAS131 | EC107: BAS132 | ED107: BAS133 | EE107: BAS134 | EF107: BAS135 | EG107: BAS136 | EH107: BAS137 | EI107: BAS138 | EJ107: BAS139 | EK107: BAS140 | EL107: BAS141 | EM107: BAS142 | EN107: BAS143 | EO107: BAS144 | EP107: BAS145 | EQ107: BAS146 | ER107: BAS147 | ES107: BAS148 | ET107: BAS149 | EU107: BAS150 | EV107: BAS151 | EW107: BAS152 | EX107: BAS153 | EY107: BAS154 | EZ107: BAS155 | FA107: BAS156 | FB107: BAS157 | FC107: BAS158 | FD107: BAS159 | FE107: BAS160 | FF107: BAS161 | FG107: BAS162 | FH107: BAS163 | FI107: BAS164 | FJ107: BAS165 | FK107: BAS166 | FL107: BAS167 | FM107: BAS168 | FN107: BAS169 | FO107: BAS170 | FP107: BAS171 | FQ107: BAS172 | FR107: BAS173 | FS107: BAS174 | FT107: BAS175 | FU107: BAS176 | FV107: BAS177 | FW107: BAS178 | FX107: BAS179 | FY107: BAS180 | FZ107: BAS181 | GA107: BAS182 | GB107: BAS183 | GC107: BAS184 | GD107: BAS185 | GE107: BAS186 | GF107: BAS187 | GG107: BAS188 | GH107: BAS189 | GI107: BAS190 | GJ107: BAS191 | GK107: BAS192 | GL107: BAS193 | GM107: BAS194 | GN107: BAS195 | GO107: BAS196 | GP107: BAS197 | GQ107: BAS198 | GR107: BAS199 | GS107: BAS200 | GT107: BAS201 | GU107: BAS202 | GV107: BAS203 | GW107: BAS204 | GX107: BAS205 | GY107: BAS206 | GZ107: BAS207 | HA107: BAS208 | HB107: BAS209 | HC107: BAS210 | HD107: BAS211 | HE107: BAS212 | HF107: BAS213 | HG107: BAS214 | HH107: BAS215 | HI107: BAS216 | HJ107: BAS217 | HK107: BAS218 | HL107: BAS219 | HM107: BAS220 | HN107: BAS221 | HO107: BAS222 | HP107: BAS223 | HQ107: BAS224 | HR107: BAS225 | HS107: BAS226 | HT107: BAS227 | HU107: BAS228 | HV107: BAS229 | HW107: BAS230
A108: 2 | B108: 0 | C108: 0 | D108: 0 | E108: 0 | F108: 0 | G108: 0 | H108: 0 | I108: 0 | J108: 0 | K108: 0 | L108: 0 | M108: 0 | N108: 0 | O108: 0 | P108: 0 | Q108: 0 | R108: 0 | S108: 0 | T108: 0 | U108: 0 | V108: 0 | W108: 0 | X108: 0 | Y108: 0 | Z108: 0 | AA108: 1 | AB108: 0 | AC108: 1 | AD108: 1 | AE108: 1 | AF108: 1 | AG108: 0 | AH108: 1 | AI108: 0 | AJ108: 0 | AK108: 2 | AL108: 0 | AM108: 1 | AN108: 1 | AO108: 1 | AP108: 0 | AQ108: 0 | AR108: 0 | AS108: 0 | AT108: 1 | AU108: 1 | AV108: 1 | AW108: 0 | AX108: 1 | AY108: 1 | AZ108: 0 | BA108: 0 | BB108: 0 | BC108: 0 | BD108: 1 | BE108: 1 | BF108: 0 | BG108: 0 | BH108: 0 | BI108: 0 | BJ108: 0 | BK108: 0 | BL108: 0 | BM108: 0 | BN108: 1 | BO108: 1 | BP108: 0 | BQ108: 0 | BR108: 0 | BS108: 0 | BT108: 0 | BU108: 0 | BV108: 0 | BW108: 0 | BX108: 0 | BY108: 0 | BZ108: 2 | CA108: 0 | CB108: 0 | CC108: 1 | CD108: 0 | CE108: 2 | CF108: 0 | CG108: 0 | CH108: 1 | CI108: 0 | CJ108: 2 | CK108: 0 | CL108: 0 | CM108: 0 | CN108: 0 | CO108: 0 | CP108: 0 | CQ108: 0 | CR108: 0 | CS108: 0 | CT108: 0 | CU108: 0 | CV108: 0 | CW108: 0 | CX108: 0 | CY108: 0 | CZ108: 0 | DA108: 0 | DB108: 0 | DC108: 0 | DD108: 0 | DE108: 0 | DF108: 0 | DG108: 0 | DH108: 0 | DI108: 0 | DJ108: 0 | DK108: 0 | DL108: 0 | DM108: 0 | DN108: 0 | DO108: 0 | DP108: 0 | DQ108: 0 | DR108: 0 | DS108: 0 | DT108: 0 | DU108: 0 | DV108: 0 | DW108: 0 | DX108: 0 | DY108: 0 | DZ108: 0 | EA108: 0 | EB108: 0 | EC108: 0 | ED108: 0 | EE108: 0 | EF108: 0 | EG108: 0 | EH108: 0 | EI108: 0 | EJ108: 0 | EK108: 0 | EL108: 0 | EM108: 0 | EN108: 0 | EO108: 0 | EP108: 0 | EQ108: 0 | ER108: 0 | ES108: 0 | ET108: 0 | EU108: 0 | EV108: 0 | EW108: 0 | EX108: 0 | EY108: 0 | EZ108: 0 | FA108: 0 | FB108: 0 | FC108: 0 | FD108: 0 | FE108: 0 | FF108: 0 | FG108: 0 | FH108: 0 | FI108: 0 | FJ108: 0 | FK108: 0 | FL108: 0 | FM108: 0 | FN108: 0 | FO108: 0 | FP108: 0 | FQ108: 0 | FR108: 0 | FS108: 0 | FT108: 0 | FU108: 0 | FV108: 0 | FW108: 0 | FX108: 0 | FY108: 0 | FZ108: 0 | GA108: 0 | GB108: 0 | GC108: 0 | GD108: 0 | GE108: 0 | GF108: 0 | GG108: 0 | GH108: 0 | GI108: 0 | GJ108: 0 | GK108: 0 | GL108: 0 | GM108: 0 | GN108: 0 | GO108: 0 | GP108: 0 | GQ108: 0 | GR108: 0 | GS108: 0 | GT108: 0 | GU108: 0 | GV108: 0 | GW108: 0 | GX108: 0 | GY108: 0 | GZ108: 0 | HA108: 0 | HB108: 0 | HC108: 0 | HD108: 0 | HE108: 0 | HF108: 0 | HG108: 0 | HH108: 0 | HI108: 0 | HJ108: 0 | HK108: 0 | HL108: 0 | HM108: 0 | HN108: 0 | HO108: 0 | HP108: 0 | HQ108: 0 | HR108: 0 | HS108: 0 | HT108: 0 | HU108: 0 | HV108: 0 | HW108: 0
A109: 1 | B109: 0 | C109: 0 | D109: 0 | E109: 0 | F109: 0 | G109: 0 | H109: 0 | I109: 0 | J109: 0 | K109: 0 | L109: 0 | M109: 0 | N109: 0 | O109: 0 | P109: 0 | Q109: 0 | R109: 0 | S109: 0 | T109: 0 | U109: 0 | V109: 0 | W109: 0 | X109: 0 | Y109: 0 | Z109: 0 | AA109: 2 | AB109: 1 | AC109: 2 | AD109: 3 | AE109: 1 | AF109: 2 | AG109: 2 | AH109: 2 | AI109: 3 | AJ109: 1 | AK109: 1 | AL109: 2 | AM109: 2 | AN109: 4 | AO109: 1 | AP109: 0 | AQ109: 1 | AR109: 1 | AS109: 0 | AT109: 1 | AU109: 0 | AV109: 0 | AW109: 0 | AX109: 0 | AY109: 0 | AZ109: 2 | BA109: 1 | BB109: 0 | BC109: 0 | BD109: 0 | BE109: 2 | BF109: 0 | BG109: 0 | BH109: 0 | BI109: 0 | BJ109: 2 | BK109: 0 | BL109: 0 | BM109: 0 | BN109: 0 | BO109: 1 | BP109: 0 | BQ109: 0 | BR109: 0 | BS109: 0 | BT109: 0 | BU109: 0 | BV109: 0 | BW109: 0 | BX109: 0 | BY109: 0 | BZ109: 0 | CA109: 0 | CB109: 0 | CC109: 0 | CD109: 0 | CE109: 0 | CF109: 0 | CG109: 0 | CH109: 0 | CI109: 0 | CJ109: 0 | CK109: 0 | CL109: 0 | CM109: 0 | CN109: 0 | CO109: 0 | CP109: 0 | CQ109: 0 | CR109: 0 | CS109: 0 | CT109: 0 | CU109: 0 | CV109: 1 | CW109: 0 | CX109: 0 | CY109: 0 | CZ109: 0 | DA109: 0 | DB109: 0 | DC109: 0 | DD109: 0 | DE109: 0 | DF109: 0 | DG109: 0 | DH109: 0 | DI109: 0 | DJ109: 0 | DK109: 0 | DL109: 0 | DM109: 0 | DN109: 0 | DO109: 0 | DP109: 0 | DQ109: 0 | DR109: 0 | DS109: 0 | DT109: 0 | DU109: 0 | DV109: 0 | DW109: 0 | DX109: 0 | DY109: 0 | DZ109: 0 | EA109: 0 | EB109: 0 | EC109: 0 | ED109: 0 | EE109: 0 | EF109: 0 | EG109: 0 | EH109: 0 | EI109: 0 | EJ109: 0 | EK109: 0 | EL109: 0 | EM109: 0 | EN109: 0 | EO109: 0 | EP109: 0 | EQ109: 0 | ER109: 0 | ES109: 0 | ET109: 0 | EU109: 0 | EV109: 0 | EW109: 0 | EX109: 0 | EY109: 0 | EZ109: 0 | FA109: 0 | FB109: 0 | FC109: 0 | FD109: 0 | FE109: 0 | FF109: 0 | FG109: 0 | FH109: 0 | FI109: 0 | FJ109: 0 | FK109: 0 | FL109: 0 | FM109: 0 | FN109: 0 | FO109: 0 | FP109: 0 | FQ109: 0 | FR109: 0 | FS109: 0 | FT109: 0 | FU109: 0 | FV109: 0 | FW109: 0 | FX109: 0 | FY109: 0 | FZ109: 0 | GA109: 0 | GB109: 0 | GC109: 0 | GD109: 0 | GE109: 0 | GF109: 0 | GG109: 0 | GH109: 0 | GI109: 0 | GJ109: 0 | GK109: 0 | GL109: 0 | GM109: 0 | GN109: 0 | GO109: 0 | GP109: 0 | GQ109: 0 | GR109: 0 | GS109: 0 | GT109: 0 | GU109: 0 | GV109: 0 | GW109: 0 | GX109: 0 | GY109: 0 | GZ109: 0 | HA109: 0 | HB109: 0 | HC109: 0 | HD109: 0 | HE109: 0 | HF109: 0 | HG109: 0 | HH109: 0 | HI109: 0 | HJ109: 0 | HK109: 0 | HL109: 0 | HM109: 0 | HN109: 0 | HO109: 0 | HP109: 0 | HQ109: 0 | HR109: 0 | HS109: 0 | HT109: 0 | HU109: 0 | HV109: 0 | HW109: 0
A110: 3 | B110: 0 | C110: 0 | D110: 0 | E110: 0 | F110: 0 | G110: 0 | H110: 0 | I110: 0 | J110: 0 | K110: 0 | L110: 0 | M110: 0 | N110: 0 | O110: 0 | P110: 0 | Q110: 0 | R110: 0 | S110: 0 | T110: 0 | U110: 0 | V110: 0 | W110: 0 | X110: 0 | Y110: 0 | Z110: 0 | AA110: 0 | AB110: 0 | AC110: 1 | AD110: 1 | AE110: 4 | AF110: 0 | AG110: 0 | AH110: 2 | AI110: 2 | AJ110: 3 | AK110: 0 | AL110: 0 | AM110: 1 | AN110: 2 | AO110: 3 | AP110: 0 | AQ110: 0 | AR110: 0 | AS110: 2 | AT110: 3 | AU110: 1 | AV110: 0 | AW110: 0 | AX110: 1 | AY110: 2 | AZ110: 0 | BA110: 0 | BB110: 0 | BC110: 0 | BD110: 0 | BE110: 0 | BF110: 0 | BG110: 0 | BH110: 1 | BI110: 0 | BJ110: 0 | BK110: 0 | BL110: 0 | BM110: 0 | BN110: 0 | BO110: 0 | BP110: 0 | BQ110: 1 | BR110: 0 | BS110: 0 | BT110: 0 | BU110: 0 | BV110: 0 | BW110: 0 | BX110: 0 | BY110: 2 | BZ110: 0 | CA110: 2 | CB110: 0 | CC110: 0 | CD110: 0 | CE110: 0 | CF110: 2 | CG110: 0 | CH110: 0 | CI110: 1 | CJ110: 0 | CK110: 0 | CL110: 0 | CM110: 1 | CN110: 0 | CO110: 0 | CP110: 0 | CQ110: 0 | CR110: 0 | CS110: 0 | CT110: 0 | CU110: 0 | CV110: 0 | CW110: 0 | CX110: 0 | CY110: 0 | CZ110: 0 | DA110: 0 | DB110: 0 | DC110: 0 | DD110: 0 | DE110: 0 | DF110: 0 | DG110: 0 | DH110: 0 | DI110: 0 | DJ110: 0 | DK110: 0 | DL110: 0 | DM110: 0 | DN110: 0 | DO110: 0 | DP110: 0 | DQ110: 0 | DR110: 0 | DS110: 0 | DT110: 0 | DU110: 0 | DV110: 0 | DW110: 0 | DX110: 0 | DY110: 0 | DZ110: 0 | EA110: 0 | EB110: 0 | EC110: 0 | ED110: 0 | EE110: 0 | EF110: 0 | EG110: 0 | EH110: 0 | EI110: 0 | EJ110: 0 | EK110: 0 | EL110: 0 | EM110: 0 | EN110: 0 | EO110: 0 | EP110: 0 | EQ110: 0 | ER110: 0 | ES110: 0 | ET110: 0 | EU110: 0 | EV110: 0 | EW110: 0 | EX110: 0 | EY110: 0 | EZ110: 0 | FA110: 0 | FB110: 0 | FC110: 0 | FD110: 0 | FE110: 0 | FF110: 0 | FG110: 0 | FH110: 0 | FI110: 0 | FJ110: 0 | FK110: 0 | FL110: 0 | FM110: 0 | FN110: 0 | FO110: 0 | FP110: 0 | FQ110: 0 | FR110: 0 | FS110: 0 | FT110: 0 | FU110: 0 | FV110: 0 | FW110: 0 | FX110: 0 | FY110: 0 | FZ110: 0 | GA110: 0 | GB110: 0 | GC110: 0 | GD110: 0 | GE110: 0 | GF110: 0 | GG110: 0 | GH110: 0 | GI110: 0 | GJ110: 0 | GK110: 0 | GL110: 0 | GM110: 0 | GN110: 0 | GO110: 0 | GP110: 0 | GQ110: 0 | GR110: 0 | GS110: 0 | GT110: 0 | GU110: 0 | GV110: 0 | GW110: 0 | GX110: 0 | GY110: 0 | GZ110: 0 | HA110: 0 | HB110: 0 | HC110: 0 | HD110: 0 | HE110: 0 | HF110: 0 | HG110: 0 | HH110: 0 | HI110: 0 | HJ110: 0 | HK110: 0 | HL110: 0 | HM110: 0 | HN110: 0 | HO110: 0 | HP110: 0 | HQ110: 0 | HR110: 0 | HS110: 0 | HT110: 0 | HU110: 0 | HV110: 0 | HW110: 0
A111: 4 | B111: 0 | C111: 0 | D111: 0 | E111: 0 | F111: 0 | G111: 0 | H111: 0 | I111: 0 | J111: 0 | K111: 0 | L111: 0 | M111: 0 | N111: 0 | O111: 0 | P111: 0 | Q111: 0 | R111: 0 | S111: 0 | T111: 0 | U111: 0 | V111: 0 | W111: 0 | X111: 0 | Y111: 0 | Z111: 0 | AA111: 0 | AB111: 0 | AC111: 0 | AD111: 0 | AE111: 1 | AF111: 0 | AG111: 0 | AH111: 0 | AI111: 0 | AJ111: 1 | AK111: 0 | AL111: 0 | AM111: 0 | AN111: 0 | AO111: 1 | AP111: 0 | AQ111: 0 | AR111: 0 | AS111: 1 | AT111: 0 | AU111: 0 | AV111: 0 | AW111: 0 | AX111: 0 | AY111: 0 | AZ111: 2 | BA111: 0 | BB111: 0 | BC111: 0 | BD111: 0 | BE111: 1 | BF111: 0 | BG111: 0 | BH111: 0 | BI111: 0 | BJ111: 0 | BK111: 0 | BL111: 0 | BM111: 0 | BN111: 0 | BO111: 0 | BP111: 0 | BQ111: 0 | BR111: 0 | BS111: 0 | BT111: 0 | BU111: 0 | BV111: 0 | BW111: 0 | BX111: 0 | BY111: 0 | BZ111: 0 | CA111: 1 | CB111: 1 | CC111: 0 | CD111: 0 | CE111: 0 | CF111: 1 | CG111: 1 | CH111: 0 | CI111: 0 | CJ111: 0 | CK111: 0 | CL111: 0 | CM111: 0 | CN111: 0 | CO111: 0 | CP111: 0 | CQ111: 1 | CR111: 0 | CS111: 0 | CT111: 0 | CU111: 0 | CV111: 0 | CW111: 0 | CX111: 0 | CY111: 0 | CZ111: 0 | DA111: 0 | DB111: 0 | DC111: 0 | DD111: 0 | DE111: 0 | DF111: 0 | DG111: 0 | DH111: 0 | DI111: 0 | DJ111: 0 | DK111: 0 | DL111: 0 | DM111: 0 | DN111: 0 | DO111: 0 | DP111: 0 | DQ111: 0 | DR111: 0 | DS111: 0 | DT111: 0 | DU111: 0 | DV111: 0 | DW111: 0 | DX111: 0 | DY111: 0 | DZ111: 0 | EA111: 0 | EB111: 0 | EC111: 0 | ED111: 0 | EE111: 0 | EF111: 0 | EG111: 0 | EH111: 0 | EI111: 0 | EJ111: 0 | EK111: 0 | EL111: 0 | EM111: 0 | EN111: 0 | EO111: 0 | EP111: 0 | EQ111: 0 | ER111: 0 | ES111: 0 | ET111: 0 | EU111: 0 | EV111: 0 | EW111: 0 | EX111: 0 | EY111: 0 | EZ111: 0 | FA111: 0 | FB111: 0 | FC111: 0 | FD111: 0 | FE111: 0 | FF111: 0 | FG111: 0 | FH111: 0 | FI111: 0 | FJ111: 0 | FK111: 0 | FL111: 0 | FM111: 0 | FN111: 0 | FO111: 0 | FP111: 0 | FQ111: 0 | FR111: 0 | FS111: 0 | FT111: 0 | FU111: 0 | FV111: 0 | FW111: 0 | FX111: 0 | FY111: 0 | FZ111: 0 | GA111: 0 | GB111: 0 | GC111: 0 | GD111: 0 | GE111: 0 | GF111: 0 | GG111: 0 | GH111: 0 | GI111: 0 | GJ111: 0 | GK111: 0 | GL111: 0 | GM111: 0 | GN111: 0 | GO111: 0 | GP111: 0 | GQ111: 0 | GR111: 0 | GS111: 0 | GT111: 0 | GU111: 0 | GV111: 0 | GW111: 0 | GX111: 0 | GY111: 0 | GZ111: 0 | HA111: 0 | HB111: 0 | HC111: 0 | HD111: 0 | HE111: 0 | HF111: 0 | HG111: 0 | HH111: 0 | HI111: 0 | HJ111: 0 | HK111: 0 | HL111: 0 | HM111: 0 | HN111: 0 | HO111: 0 | HP111: 0 | HQ111: 0 | HR111: 0 | HS111: 0 | HT111: 0 | HU111: 0 | HV111: 0 | HW111: 0
A112: 5 | B112: 0 | C112: 0 | D112: 0 | E112: 0 | F112: 0 | G112: 0 | H112: 0 | I112: 0 | J112: 0 | K112: 0 | L112: 0 | M112: 0 | N112: 0 | O112: 0 | P112: 0 | Q112: 0 | R112: 0 | S112: 0 | T112: 0 | U112: 0 | V112: 0 | W112: 0 | X112: 0 | Y112: 0 | Z112: 0 | AA112: 1 | AB112: 1 | AC112: 2 | AD112: 2 | AE112: 0 | AF112: 1 | AG112: 0 | AH112: 2 | AI112: 2 | AJ112: 0 | AK112: 1 | AL112: 0 | AM112: 2 | AN112: 1 | AO112: 0 | AP112: 0 | AQ112: 0 | AR112: 0 | AS112: 1 | AT112: 0 | AU112: 0 | AV112: 0 | AW112: 0 | AX112: 1 | AY112: 0 | AZ112: 0 | BA112: 0 | BB112: 0 | BC112: 0 | BD112: 1 | BE112: 0 | BF112: 0 | BG112: 0 | BH112: 0 | BI112: 1 | BJ112: 0 | BK112: 0 | BL112: 0 | BM112: 2 | BN112: 3 | BO112: 0 | BP112: 0 | BQ112: 0 | BR112: 0 | BS112: 1 | BT112: 0 | BU112: 0 | BV112: 0 | BW112: 0 | BX112: 0 | BY112: 0 | BZ112: 0 | CA112: 1 | CB112: 0 | CC112: 0 | CD112: 0 | CE112: 0 | CF112: 1 | CG112: 0 | CH112: 1 | CI112: 0 | CJ112: 0 | CK112: 1 | CL112: 1 | CM112: 0 | CN112: 0 | CO112: 0 | CP112: 0 | CQ112: 1 | CR112: 0 | CS112: 0 | CT112: 0 | CU112: 0 | CV112: 1 | CW112: 0 | CX112: 0 | CY112: 0 | CZ112: 0 | DA112: 0 | DB112: 0 | DC112: 0 | DD112: 0 | DE112: 0 | DF112: 0 | DG112: 0 | DH112: 0 | DI112: 0 | DJ112: 0 | DK112: 0 | DL112: 0 | DM112: 0 | DN112: 0 | DO112: 0 | DP112: 0 | DQ112: 0 | DR112: 0 | DS112: 0 | DT112: 0 | DU112: 0 | DV112: 0 | DW112: 0 | DX112: 0 | DY112: 0 | DZ112: 0 | EA112: 0 | EB112: 0 | EC112: 0 | ED112: 0 | EE112: 0 | EF112: 0 | EG112: 0 | EH112: 0 | EI112: 0 | EJ112: 0 | EK112: 0 | EL112: 0 | EM112: 0 | EN112: 0 | EO112: 0 | EP112: 0 | EQ112: 0 | ER112: 0 | ES112: 0 | ET112: 0 | EU112: 0 | EV112: 0 | EW112: 0 | EX112: 0 | EY112: 0 | EZ112: 0 | FA112: 0 | FB112: 0 | FC112: 0 | FD112: 0 | FE112: 0 | FF112: 0 | FG112: 0 | FH112: 0 | FI112: 0 | FJ112: 0 | FK112: 0 | FL112: 0 | FM112: 0 | FN112: 0 | FO112: 0 | FP112: 0 | FQ112: 0 | FR112: 0 | FS112: 0 | FT112: 0 | FU112: 0 | FV112: 0 | FW112: 0 | FX112: 0 | FY112: 0 | FZ112: 0 | GA112: 0 | GB112: 0 | GC112: 0 | GD112: 0 | GE112: 0 | GF112: 0 | GG112: 0 | GH112: 0 | GI112: 0 | GJ112: 0 | GK112: 0 | GL112: 0 | GM112: 0 | GN112: 0 | GO112: 0 | GP112: 0 | GQ112: 0 | GR112: 0 | GS112: 0 | GT112: 0 | GU112: 0 | GV112: 0 | GW112: 0 | GX112: 0 | GY112: 0 | GZ112: 0 | HA112: 0 | HB112: 0 | HC112: 0 | HD112: 0 | HE112: 0 | HF112: 0 | HG112: 0 | HH112: 0 | HI112: 0 | HJ112: 0 | HK112: 0 | HL112: 0 | HM112: 0 | HN112: 0 | HO112: 0 | HP112: 0 | HQ112: 0 | HR112: 0 | HS112: 0 | HT112: 0 | HU112: 0 | HV112: 0 | HW112: 0
A113: 6 | B113: 0 | C113: 0 | D113: 0 | E113: 0 | F113: 0 | G113: 0 | H113: 0 | I113: 0 | J113: 0 | K113: 0 | L113: 0 | M113: 0 | N113: 0 | O113: 0 | P113: 0 | Q113: 0 | R113: 0 | S113: 0 | T113: 0 | U113: 0 | V113: 0 | W113: 0 | X113: 0 | Y113: 0 | Z113: 0 | AA113: 0 | AB113: 0 | AC113: 1 | AD113: 0 | AE113: 0 | AF113: 0 | AG113: 1 | AH113: 1 | AI113: 0 | AJ113: 1 | AK113: 0 | AL113: 1 | AM113: 1 | AN113: 1 | AO113: 0 | AP113: 1 | AQ113: 1 | AR113: 2 | AS113: 1 | AT113: 0 | AU113: 1 | AV113: 0 | AW113: 1 | AX113: 1 | AY113: 0 | AZ113: 0 | BA113: 0 | BB113: 0 | BC113: 2 | BD113: 0 | BE113: 1 | BF113: 0 | BG113: 0 | BH113: 1 | BI113: 0 | BJ113: 0 | BK113: 0 | BL113: 0 | BM113: 1 | BN113: 0 | BO113: 0 | BP113: 0 | BQ113: 0 | BR113: 0 | BS113: 0 | BT113: 0 | BU113: 0 | BV113: 0 | BW113: 0 | BX113: 1 | BY113: 0 | BZ113: 0 | CA113: 0 | CB113: 1 | CC113: 0 | CD113: 0 | CE113: 0 | CF113: 2 | CG113: 0 | CH113: 0 | CI113: 0 | CJ113: 0 | CK113: 0 | CL113: 0 | CM113: 0 | CN113: 0 | CO113: 0 | CP113: 0 | CQ113: 0 | CR113: 0 | CS113: 1 | CT113: 0 | CU113: 0 | CV113: 0 | CW113: 0 | CX113: 0 | CY113: 0 | CZ113: 0 | DA113: 0 | DB113: 0 | DC113: 0 | DD113: 0 | DE113: 0 | DF113: 0 | DG113: 0 | DH113: 0 | DI113: 0 | DJ113: 0 | DK113: 0 | DL113: 0 | DM113: 0 | DN113: 0 | DO113: 0 | DP113: 0 | DQ113: 0 | DR113: 0 | DS113: 0 | DT113: 0 | DU113: 0 | DV113: 0 | DW113: 0 | DX113: 0 | DY113: 0 | DZ113: 0 | EA113: 0 | EB113: 0 | EC113: 0 | ED113: 0 | EE113: 0 | EF113: 0 | EG113: 0 | EH113: 0 | EI113: 0 | EJ113: 0 | EK113: 0 | EL113: 0 | EM113: 0 | EN113: 0 | EO113: 0 | EP113: 0 | EQ113: 0 | ER113: 0 | ES113: 0 | ET113: 0 | EU113: 0 | EV113: 0 | EW113: 0 | EX113: 0 | EY113: 0 | EZ113: 0 | FA113: 0 | FB113: 0 | FC113: 0 | FD113: 0 | FE113: 0 | FF113: 0 | FG113: 0 | FH113: 0 | FI113: 0 | FJ113: 0 | FK113: 0 | FL113: 0 | FM113: 0 | FN113: 0 | FO113: 0 | FP113: 0 | FQ113: 0 | FR113: 0 | FS113: 0 | FT113: 0 | FU113: 0 | FV113: 0 | FW113: 0 | FX113: 0 | FY113: 0 | FZ113: 0 | GA113: 0 | GB113: 0 | GC113: 0 | GD113: 0 | GE113: 0 | GF113: 0 | GG113: 0 | GH113: 0 | GI113: 0 | GJ113: 0 | GK113: 0 | GL113: 0 | GM113: 0 | GN113: 0 | GO113: 0 | GP113: 0 | GQ113: 0 | GR113: 0 | GS113: 0 | GT113: 0 | GU113: 0 | GV113: 0 | GW113: 0 | GX113: 0 | GY113: 0 | GZ113: 0 | HA113: 0 | HB113: 0 | HC113: 0 | HD113: 0 | HE113: 0 | HF113: 0 | HG113: 0 | HH113: 0 | HI113: 0 | HJ113: 0 | HK113: 0 | HL113: 0 | HM113: 0 | HN113: 0 | HO113: 0 | HP113: 0 | HQ113: 0 | HR113: 0 | HS113: 0 | HT113: 0 | HU113: 0 | HV113: 0 | HW113: 0
A114: 7 | B114: 0 | C114: 0 | D114: 0 | E114: 0 | F114: 0 | G114: 0 | H114: 0 | I114: 0 | J114: 0 | K114: 0 | L114: 0 | M114: 0 | N114: 0 | O114: 0 | P114: 0 | Q114: 0 | R114: 0 | S114: 0 | T114: 0 | U114: 0 | V114: 0 | W114: 0 | X114: 0 | Y114: 0 | Z114: 0 | AA114: 3 | AB114: 0 | AC114: 3 | AD114: 2 | AE114: 2 | AF114: 2 | AG114: 0 | AH114: 2 | AI114: 2 | AJ114: 3 | AK114: 1 | AL114: 0 | AM114: 3 | AN114: 5 | AO114: 2 | AP114: 0 | AQ114: 0 | AR114: 3 | AS114: 3 | AT114: 1 | AU114: 0 | AV114: 1 | AW114: 1 | AX114: 0 | AY114: 0 | AZ114: 0 | BA114: 0 | BB114: 0 | BC114: 0 | BD114: 0 | BE114: 0 | BF114: 0 | BG114: 0 | BH114: 0 | BI114: 0 | BJ114: 0 | BK114: 0 | BL114: 0 | BM114: 0 | BN114: 0 | BO114: 0 | BP114: 0 | BQ114: 0 | BR114: 0 | BS114: 0 | BT114: 0 | BU114: 0 | BV114: 0 | BW114: 0 | BX114: 0 | BY114: 0 | BZ114: 0 | CA114: 0 | CB114: 1 | CC114: 0 | CD114: 1 | CE114: 0 | CF114: 0 | CG114: 2 | CH114: 0 | CI114: 1 | CJ114: 0 | CK114: 0 | CL114: 2 | CM114: 0 | CN114: 1 | CO114: 0 | CP114: 0 | CQ114: 2 | CR114: 0 | CS114: 0 | CT114: 0 | CU114: 0 | CV114: 1 | CW114: 0 | CX114: 0 | CY114: 0 | CZ114: 0 | DA114: 0 | DB114: 0 | DC114: 0 | DD114: 0 | DE114: 0 | DF114: 0 | DG114: 0 | DH114: 0 | DI114: 0 | DJ114: 0 | DK114: 0 | DL114: 0 | DM114: 0 | DN114: 0 | DO114: 0 | DP114: 0 | DQ114: 0 | DR114: 0 | DS114: 0 | DT114: 0 | DU114: 0 | DV114: 0 | DW114: 0 | DX114: 0 | DY114: 0 | DZ114: 0 | EA114: 0 | EB114: 0 | EC114: 0 | ED114: 0 | EE114: 0 | EF114: 0 | EG114: 0 | EH114: 0 | EI114: 0 | EJ114: 0 | EK114: 0 | EL114: 0 | EM114: 0 | EN114: 0 | EO114: 0 | EP114: 0 | EQ114: 0 | ER114: 0 | ES114: 0 | ET114: 0 | EU114: 0 | EV114: 0 | EW114: 0 | EX114: 0 | EY114: 0 | EZ114: 0 | FA114: 0 | FB114: 0 | FC114: 0 | FD114: 0 | FE114: 0 | FF114: 0 | FG114: 0 | FH114: 0 | FI114: 0 | FJ114: 0 | FK114: 0 | FL114: 0 | FM114: 0 | FN114: 0 | FO114: 0 | FP114: 0 | FQ114: 0 | FR114: 0 | FS114: 0 | FT114: 0 | FU114: 0 | FV114: 0 | FW114: 0 | FX114: 0 | FY114: 0 | FZ114: 0 | GA114: 0 | GB114: 0 | GC114: 0 | GD114: 0 | GE114: 0 | GF114: 0 | GG114: 0 | GH114: 0 | GI114: 0 | GJ114: 0 | GK114: 0 | GL114: 0 | GM114: 0 | GN114: 0 | GO114: 0 | GP114: 0 | GQ114: 0 | GR114: 0 | GS114: 0 | GT114: 0 | GU114: 0 | GV114: 0 | GW114: 0 | GX114: 0 | GY114: 0 | GZ114: 0 | HA114: 0 | HB114: 0 | HC114: 0 | HD114: 0 | HE114: 0 | HF114: 0 | HG114: 0 | HH114: 0 | HI114: 0 | HJ114: 0 | HK114: 0 | HL114: 0 | HM114: 0 | HN114: 0 | HO114: 0 | HP114: 0 | HQ114: 0 | HR114: 0 | HS114: 0 | HT114: 0 | HU114: 0 | HV114: 0 | HW114: 0
A115: 8 | B115: 0 | C115: 0 | D115: 0 | E115: 0 | F115: 0 | G115: 0 | H115: 0 | I115: 0 | J115: 0 | K115: 0 | L115: 0 | M115: 0 | N115: 0 | O115: 0 | P115: 0 | Q115: 0 | R115: 0 | S115: 0 | T115: 0 | U115: 0 | V115: 0 | W115: 0 | X115: 0 | Y115: 0 | Z115: 0 | AA115: 0 | AB115: 0 | AC115: 4 | AD115: 1 | AE115: 1 | AF115: 0 | AG115: 0 | AH115: 3 | AI115: 1 | AJ115: 0 | AK115: 0 | AL115: 0 | AM115: 2 | AN115: 1 | AO115: 0 | AP115: 1 | AQ115: 0 | AR115: 2 | AS115: 1 | AT115: 1 | AU115: 1 | AV115: 0 | AW115: 2 | AX115: 2 | AY115: 1 | AZ115: 0 | BA115: 0 | BB115: 2 | BC115: 0 | BD115: 2 | BE115: 0 | BF115: 0 | BG115: 2 | BH115: 0 | BI115: 1 | BJ115: 0 | BK115: 0 | BL115: 1 | BM115: 0 | BN115: 2 | BO115: 1 | BP115: 0 | BQ115: 1 | BR115: 0 | BS115: 1 | BT115: 0 | BU115: 0 | BV115: 0 | BW115: 0 | BX115: 0 | BY115: 1 | BZ115: 1 | CA115: 0 | CB115: 1 | CC115: 3 | CD115: 2 | CE115: 1 | CF115: 0 | CG115: 0 | CH115: 3 | CI115: 0 | CJ115: 0 | CK115: 0 | CL115: 0 | CM115: 4 | CN115: 0 | CO115: 0 | CP115: 0 | CQ115: 0 | CR115: 3 | CS115: 1 | CT115: 0 | CU115: 0 | CV115: 1 | CW115: 1 | CX115: 0 | CY115: 0 | CZ115: 0 | DA115: 0 | DB115: 0 | DC115: 0 | DD115: 0 | DE115: 0 | DF115: 0 | DG115: 0 | DH115: 0 | DI115: 0 | DJ115: 0 | DK115: 0 | DL115: 0 | DM115: 0 | DN115: 0 | DO115: 0 | DP115: 0 | DQ115: 0 | DR115: 0 | DS115: 0 | DT115: 0 | DU115: 0 | DV115: 0 | DW115: 0 | DX115: 0 | DY115: 0 | DZ115: 0 | EA115: 0 | EB115: 0 | EC115: 0 | ED115: 0 | EE115: 0 | EF115: 0 | EG115: 0 | EH115: 0 | EI115: 0 | EJ115: 0 | EK115: 0 | EL115: 0 | EM115: 0 | EN115: 0 | EO115: 0 | EP115: 0 | EQ115: 0 | ER115: 0 | ES115: 0 | ET115: 0 | EU115: 0 | EV115: 0 | EW115: 0 | EX115: 0 | EY115: 0 | EZ115: 0 | FA115: 0 | FB115: 0 | FC115: 0 | FD115: 0 | FE115: 0 | FF115: 0 | FG115: 0 | FH115: 0 | FI115: 0 | FJ115: 0 | FK115: 0 | FL115: 0 | FM115: 0 | FN115: 0 | FO115: 0 | FP115: 0 | FQ115: 0 | FR115: 0 | FS115: 0 | FT115: 0 | FU115: 0 | FV115: 0 | FW115: 0 | FX115: 0 | FY115: 0 | FZ115: 0 | GA115: 0 | GB115: 0 | GC115: 0 | GD115: 0 | GE115: 0 | GF115: 0 | GG115: 0 | GH115: 0 | GI115: 0 | GJ115: 0 | GK115: 0 | GL115: 0 | GM115: 0 | GN115: 0 | GO115: 0 | GP115: 0 | GQ115: 0 | GR115: 0 | GS115: 0 | GT115: 0 | GU115: 0 | GV115: 0 | GW115: 0 | GX115: 0 | GY115: 0 | GZ115: 0 | HA115: 0 | HB115: 0 | HC115: 0 | HD115: 0 | HE115: 0 | HF115: 0 | HG115: 0 | HH115: 0 | HI115: 0 | HJ115: 0 | HK115: 0 | HL115: 0 | HM115: 0 | HN115: 0 | HO115: 0 | HP115: 0 | HQ115: 0 | HR115: 0 | HS115: 0 | HT115: 0 | HU115: 0 | HV115: 0 | HW115: 0
A116: 9 | B116: 0 | C116: 0 | D116: 0 | E116: 0 | F116: 0 | G116: 0 | H116: 0 | I116: 0 | J116: 0 | K116: 0 | L116: 0 | M116: 0 | N116: 0 | O116: 0 | P116: 0 | Q116: 0 | R116: 0 | S116: 0 | T116: 0 | U116: 0 | V116: 0 | W116: 0 | X116: 0 | Y116: 0 | Z116: 0 | AA116: 0 | AB116: 0 | AC116: 0 | AD116: 4 | AE116: 0 | AF116: 0 | AG116: 0 | AH116: 1 | AI116: 2 | AJ116: 0 | AK116: 0 | AL116: 0 | AM116: 1 | AN116: 1 | AO116: 1 | AP116: 0 | AQ116: 0 | AR116: 0 | AS116: 1 | AT116: 0 | AU116: 0 | AV116: 0 | AW116: 0 | AX116: 1 | AY116: 0 | AZ116: 0 | BA116: 0 | BB116: 0 | BC116: 0 | BD116: 0 | BE116: 0 | BF116: 0 | BG116: 0 | BH116: 0 | BI116: 0 | BJ116: 0 | BK116: 0 | BL116: 0 | BM116: 0 | BN116: 0 | BO116: 0 | BP116: 0 | BQ116: 0 | BR116: 0 | BS116: 0 | BT116: 0 | BU116: 0 | BV116: 0 | BW116: 0 | BX116: 0 | BY116: 1 | BZ116: 1 | CA116: 6 | CB116: 4 | CC116: 0 | CD116: 1 | CE116: 1 | CF116: 5 | CG116: 4 | CH116: 0 | CI116: 1 | CJ116: 0 | CK116: 0 | CL116: 1 | CM116: 0 | CN116: 0 | CO116: 0 | CP116: 0 | CQ116: 1 | CR116: 0 | CS116: 0 | CT116: 0 | CU116: 0 | CV116: 0 | CW116: 2 | CX116: 0 | CY116: 0 | CZ116: 0 | DA116: 0 | DB116: 0 | DC116: 0 | DD116: 0 | DE116: 0 | DF116: 0 | DG116: 0 | DH116: 0 | DI116: 0 | DJ116: 0 | DK116: 0 | DL116: 0 | DM116: 0 | DN116: 0 | DO116: 0 | DP116: 0 | DQ116: 0 | DR116: 0 | DS116: 0 | DT116: 0 | DU116: 0 | DV116: 0 | DW116: 0 | DX116: 0 | DY116: 0 | DZ116: 0 | EA116: 0 | EB116: 0 | EC116: 0 | ED116: 0 | EE116: 0 | EF116: 0 | EG116: 0 | EH116: 0 | EI116: 0 | EJ116: 0 | EK116: 0 | EL116: 0 | EM116: 0 | EN116: 0 | EO116: 0 | EP116: 0 | EQ116: 0 | ER116: 0 | ES116: 0 | ET116: 0 | EU116: 0 | EV116: 0 | EW116: 0 | EX116: 0 | EY116: 0 | EZ116: 0 | FA116: 0 | FB116: 0 | FC116: 0 | FD116: 0 | FE116: 0 | FF116: 0 | FG116: 0 | FH116: 0 | FI116: 0 | FJ116: 0 | FK116: 0 | FL116: 0 | FM116: 0 | FN116: 0 | FO116: 0 | FP116: 0 | FQ116: 0 | FR116: 0 | FS116: 0 | FT116: 0 | FU116: 0 | FV116: 0 | FW116: 0 | FX116: 0 | FY116: 0 | FZ116: 0 | GA116: 0 | GB116: 0 | GC116: 0 | GD116: 0 | GE116: 0 | GF116: 0 | GG116: 0 | GH116: 0 | GI116: 0 | GJ116: 0 | GK116: 0 | GL116: 0 | GM116: 0 | GN116: 0 | GO116: 0 | GP116: 0 | GQ116: 0 | GR116: 0 | GS116: 0 | GT116: 0 | GU116: 0 | GV116: 0 | GW116: 0 | GX116: 0 | GY116: 0 | GZ116: 0 | HA116: 0 | HB116: 0 | HC116: 0 | HD116: 0 | HE116: 0 | HF116: 0 | HG116: 0 | HH116: 0 | HI116: 0 | HJ116: 0 | HK116: 0 | HL116: 0 | HM116: 0 | HN116: 0 | HO116: 0 | HP116: 0 | HQ116: 0 | HR116: 0 | HS116: 0 | HT116: 0 | HU116: 0 | HV116: 0 | HW116: 0
A117: 10 | B117: 0 | C117: 0 | D117: 0 | E117: 0 | F117: 0 | G117: 0 | H117: 0 | I117: 0 | J117: 0 | K117: 0 | L117: 0 | M117: 0 | N117: 0 | O117: 0 | P117: 0 | Q117: 0 | R117: 0 | S117: 0 | T117: 0 | U117: 0 | V117: 0 | W117: 0 | X117: 0 | Y117: 0 | Z117: 0 | AA117: 1 | AB117: 0 | AC117: 2 | AD117: 3 | AE117: 1 | AF117: 1 | AG117: 0 | AH117: 0 | AI117: 3 | AJ117: 1 | AK117: 0 | AL117: 0 | AM117: 0 | AN117: 3 | AO117: 1 | AP117: 0 | AQ117: 0 | AR117: 1 | AS117: 4 | AT117: 1 | AU117: 0 | AV117: 0 | AW117: 0 | AX117: 0 | AY117: 0 | AZ117: 0 | BA117: 0 | BB117: 0 | BC117: 1 | BD117: 0 | BE117: 0 | BF117: 0 | BG117: 0 | BH117: 1 | BI117: 0 | BJ117: 0 | BK117: 0 | BL117: 0 | BM117: 1 | BN117: 0 | BO117: 0 | BP117: 0 | BQ117: 0 | BR117: 1 | BS117: 0 | BT117: 0 | BU117: 0 | BV117: 0 | BW117: 1 | BX117: 0 | BY117: 12 | BZ117: 1 | CA117: 1 | CB117: 4 | CC117: 0 | CD117: 35 | CE117: 22 | CF117: 26 | CG117: 45 | CH117: 13 | CI117: 4 | CJ117: 0 | CK117: 0 | CL117: 2 | CM117: 0 | CN117: 1 | CO117: 1 | CP117: 2 | CQ117: 2 | CR117: 0 | CS117: 1 | CT117: 0 | CU117: 2 | CV117: 2 | CW117: 0 | CX117: 0 | CY117: 0 | CZ117: 0 | DA117: 0 | DB117: 0 | DC117: 0 | DD117: 0 | DE117: 0 | DF117: 0 | DG117: 0 | DH117: 0 | DI117: 0 | DJ117: 0 | DK117: 0 | DL117: 0 | DM117: 0 | DN117: 0 | DO117: 0 | DP117: 0 | DQ117: 0 | DR117: 0 | DS117: 0 | DT117: 0 | DU117: 0 | DV117: 0 | DW117: 0 | DX117: 0 | DY117: 0 | DZ117: 0 | EA117: 0 | EB117: 0 | EC117: 0 | ED117: 0 | EE117: 0 | EF117: 0 | EG117: 0 | EH117: 0 | EI117: 0 | EJ117: 0 | EK117: 0 | EL117: 0 | EM117: 0 | EN117: 0 | EO117: 0 | EP117: 0 | EQ117: 0 | ER117: 0 | ES117: 0 | ET117: 0 | EU117: 0 | EV117: 0 | EW117: 0 | EX117: 0 | EY117: 0 | EZ117: 0 | FA117: 0 | FB117: 0 | FC117: 0 | FD117: 0 | FE117: 0 | FF117: 0 | FG117: 0 | FH117: 0 | FI117: 0 | FJ117: 0 | FK117: 0 | FL117: 0 | FM117: 0 | FN117: 0 | FO117: 0 | FP117: 0 | FQ117: 0 | FR117: 0 | FS117: 0 | FT117: 0 | FU117: 0 | FV117: 0 | FW117: 0 | FX117: 0 | FY117: 0 | FZ117: 0 | GA117: 0 | GB117: 0 | GC117: 0 | GD117: 0 | GE117: 0 | GF117: 0 | GG117: 0 | GH117: 0 | GI117: 0 | GJ117: 0 | GK117: 0 | GL117: 0 | GM117: 0 | GN117: 0 | GO117: 0 | GP117: 0 | GQ117: 0 | GR117: 0 | GS117: 0 | GT117: 0 | GU117: 0 | GV117: 0 | GW117: 0 | GX117: 0 | GY117: 0 | GZ117: 0 | HA117: 0 | HB117: 0 | HC117: 0 | HD117: 0 | HE117: 0 | HF117: 0 | HG117: 0 | HH117: 0 | HI117: 0 | HJ117: 0 | HK117: 0 | HL117: 0 | HM117: 0 | HN117: 0 | HO117: 0 | HP117: 0 | HQ117: 0 | HR117: 0 | HS117: 0 | HT117: 0 | HU117: 0 | HV117: 0 | HW117: 0
A118: 11 | B118: 0 | C118: 0 | D118: 0 | E118: 0 | F118: 0 | G118: 0 | H118: 0 | I118: 0 | J118: 0 | K118: 0 | L118: 0 | M118: 0 | N118: 0 | O118: 0 | P118: 0 | Q118: 0 | R118: 0 | S118: 0 | T118: 0 | U118: 0 | V118: 0 | W118: 0 | X118: 0 | Y118: 0 | Z118: 0 | AA118: 0 | AB118: 0 | AC118: 1 | AD118: 0 | AE118: 0 | AF118: 0 | AG118: 0 | AH118: 0 | AI118: 1 | AJ118: 0 | AK118: 0 | AL118: 0 | AM118: 0 | AN118: 1 | AO118: 0 | AP118: 0 | AQ118: 0 | AR118: 2 | AS118: 0 | AT118: 0 | AU118: 0 | AV118: 0 | AW118: 1 | AX118: 1 | AY118: 0 | AZ118: 0 | BA118: 0 | BB118: 0 | BC118: 0 | BD118: 0 | BE118: 0 | BF118: 0 | BG118: 0 | BH118: 0 | BI118: 0 | BJ118: 0 | BK118: 0 | BL118: 0 | BM118: 0 | BN118: 0 | BO118: 0 | BP118: 0 | BQ118: 0 | BR118: 0 | BS118: 0 | BT118: 0 | BU118: 0 | BV118: 0 | BW118: 0 | BX118: 0 | BY118: 1 | BZ118: 0 | CA118: 1 | CB118: 1 | CC118: 0 | CD118: 0 | CE118: 1 | CF118: 1 | CG118: 1 | CH118: 0 | CI118: 1 | CJ118: 0 | CK118: 1 | CL118: 2 | CM118: 0 | CN118: 0 | CO118: 0 | CP118: 0 | CQ118: 0 | CR118: 0 | CS118: 0 | CT118: 0 | CU118: 1 | CV118: 0 | CW118: 0 | CX118: 0 | CY118: 0 | CZ118: 0 | DA118: 0 | DB118: 0 | DC118: 0 | DD118: 0 | DE118: 0 | DF118: 0 | DG118: 0 | DH118: 0 | DI118: 0 | DJ118: 0 | DK118: 0 | DL118: 0 | DM118: 0 | DN118: 0 | DO118: 0 | DP118: 0 | DQ118: 0 | DR118: 0 | DS118: 0 | DT118: 0 | DU118: 0 | DV118: 0 | DW118: 0 | DX118: 0 | DY118: 0 | DZ118: 1 | EA118: 0 | EB118: 0 | EC118: 0 | ED118: 0 | EE118: 0 | EF118: 0 | EG118: 0 | EH118: 0 | EI118: 0 | EJ118: 0 | EK118: 0 | EL118: 0 | EM118: 0 | EN118: 0 | EO118: 0 | EP118: 0 | EQ118: 0 | ER118: 0 | ES118: 0 | ET118: 0 | EU118: 0 | EV118: 0 | EW118: 0 | EX118: 0 | EY118: 0 | EZ118: 0 | FA118: 0 | FB118: 0 | FC118: 0 | FD118: 0 | FE118: 0 | FF118: 0 | FG118: 0 | FH118: 0 | FI118: 0 | FJ118: 0 | FK118: 0 | FL118: 0 | FM118: 0 | FN118: 0 | FO118: 0 | FP118: 0 | FQ118: 0 | FR118: 0 | FS118: 0 | FT118: 0 | FU118: 0 | FV118: 0 | FW118: 0 | FX118: 0 | FY118: 0 | FZ118: 0 | GA118: 0 | GB118: 0 | GC118: 0 | GD118: 0 | GE118: 0 | GF118: 0 | GG118: 0 | GH118: 0 | GI118: 0 | GJ118: 0 | GK118: 0 | GL118: 0 | GM118: 0 | GN118: 0 | GO118: 0 | GP118: 0 | GQ118: 0 | GR118: 0 | GS118: 0 | GT118: 0 | GU118: 0 | GV118: 0 | GW118: 0 | GX118: 0 | GY118: 0 | GZ118: 0 | HA118: 0 | HB118: 0 | HC118: 0 | HD118: 0 | HE118: 0 | HF118: 0 | HG118: 0 | HH118: 0 | HI118: 0 | HJ118: 0 | HK118: 0 | HL118: 0 | HM118: 0 | HN118: 0 | HO118: 0 | HP118: 0 | HQ118: 0 | HR118: 0 | HS118: 0 | HT118: 0 | HU118: 0 | HV118: 0 | HW118: 0
A119: T | B119: 0 | C119: 0 | D119: 0 | E119: 0 | F119: 0 | G119: 0 | H119: 0 | I119: 0 | J119: 0 | K119: 0 | L119: 0 | M119: 0 | N119: 0 | O119: 0 | P119: 0 | Q119: 0 | R119: 0 | S119: 0 | T119: 0 | U119: 0 | V119: 0 | W119: 0 | X119: 0 | Y119: 0 | Z119: 0 | AA119: 8 | AB119: 2 | AC119: 17 | AD119: 17 | AE119: 11 | AF119: 7 | AG119: 3 | AH119: 14 | AI119: 16 | AJ119: 10 | AK119: 5 | AL119: 3 | AM119: 13 | AN119: 20 | AO119: 10 | AP119: 2 | AQ119: 2 | AR119: 11 | AS119: 14 | AT119: 8 | AU119: 4 | AV119: 2 | AW119: 5 | AX119: 8 | AY119: 4 | AZ119: 4 | BA119: 1 | BB119: 2 | BC119: 3 | BD119: 4 | BE119: 5 | BF119: 0 | BG119: 2 | BH119: 3 | BI119: 2 | BJ119: 2 | BK119: 0 | BL119: 1 | BM119: 4 | BN119: 6 | BO119: 3 | BP119: 0 | BQ119: 2 | BR119: 1 | BS119: 2 | BT119: 0 | BU119: 0 | BV119: 0 | BW119: 1 | BX119: 1 | BY119: 17 | BZ119: 5 | CA119: 12 | CB119: 13 | CC119: 4 | CD119: 39 | CE119: 27 | CF119: 38 | CG119: 53 | CH119: 18 | CI119: 8 | CJ119: 2 | CK119: 2 | CL119: 8 | CM119: 5 | CN119: 2 | CO119: 1 | CP119: 2 | CQ119: 7 | CR119: 3 | CS119: 3 | CT119: 0 | CU119: 3 | CV119: 6 | CW119: 3 | CX119: 0 | CY119: 0 | CZ119: 0 | DA119: 0 | DB119: 0 | DC119: 0 | DD119: 0 | DE119: 0 | DF119: 0 | DG119: 0 | DH119: 0 | DI119: 0 | DJ119: 0 | DK119: 0 | DL119: 0 | DM119: 0 | DN119: 0 | DO119: 0 | DP119: 0 | DQ119: 0 | DR119: 0 | DS119: 0 | DT119: 0 | DU119: 0 | DV119: 0 | DW119: 0 | DX119: 0 | DY119: 0 | DZ119: 1 | EA119: 0 | EB119: 0 | EC119: 0 | ED119: 0 | EE119: 0 | EF119: 0 | EG119: 0 | EH119: 0 | EI119: 0 | EJ119: 0 | EK119: 0 | EL119: 0 | EM119: 0 | EN119: 0 | EO119: 0 | EP119: 0 | EQ119: 0 | ER119: 0 | ES119: 0 | ET119: 0 | EU119: 0 | EV119: 0 | EW119: 0 | EX119: 0 | EY119: 0 | EZ119: 0 | FA119: 0 | FB119: 0 | FC119: 0 | FD119: 0 | FE119: 0 | FF119: 0 | FG119: 0 | FH119: 0 | FI119: 0 | FJ119: 0 | FK119: 0 | FL119: 0 | FM119: 0 | FN119: 0 | FO119: 0 | FP119: 0 | FQ119: 0 | FR119: 0 | FS119: 0 | FT119: 0 | FU119: 0 | FV119: 0 | FW119: 0 | FX119: 0 | FY119: 0 | FZ119: 0 | GA119: 0 | GB119: 0 | GC119: 0 | GD119: 0 | GE119: 0 | GF119: 0 | GG119: 0 | GH119: 0 | GI119: 0 | GJ119: 0 | GK119: 0 | GL119: 0 | GM119: 0 | GN119: 0 | GO119: 0 | GP119: 0 | GQ119: 0 | GR119: 0 | GS119: 0 | GT119: 0 | GU119: 0 | GV119: 0 | GW119: 0 | GX119: 0 | GY119: 0 | GZ119: 0 | HA119: 0 | HB119: 0 | HC119: 0 | HD119: 0 | HE119: 0 | HF119: 0 | HG119: 0 | HH119: 0 | HI119: 0 | HJ119: 0 | HK119: 0 | HL119: 0 | HM119: 0 | HN119: 0 | HO119: 0 | HP119: 0 | HQ119: 0 | HR119: 0 | HS119: 0 | HT119: 0 | HU119: 0 | HV119: 0 | HW119: 0
A121: TOTAL
A122: =COUNT(A108:A119) -> 11 | B122: =SUM(B108:B119) -> 0 | C122: =SUM(C108:C119) -> 0 | D122: 0 | E122: 0 | F122: 0 | G122: 0 | H122: 0 | I122: 0 | J122: 0 | K122: 0 | L122: 0 | M122: 0 | N122: 0 | O122: 0 | P122: 0 | Q122: 0 | R122: 0 | S122: 0 | T122: 0 | U122: 0 | V122: 0 | W122: 0 | X122: 0 | Y122: 0 | Z122: 0 | AA122: 16 | AB122: 4 | AC122: 34 | AD122: 34 | AE122: 22 | AF122: 14 | AG122: 6 | AH122: 28 | AI122: 32 | AJ122: 20 | AK122: 10 | AL122: 6 | AM122: 26 | AN122: 40 | AO122: 20 | AP122: 4 | AQ122: 4 | AR122: 22 | AS122: 28 | AT122: 16 | AU122: 8 | AV122: 4 | AW122: 10 | AX122: 16 | AY122: 8 | AZ122: 8 | BA122: 2 | BB122: 4 | BC122: 6 | BD122: 8 | BE122: 10 | BF122: 0 | BG122: 4 | BH122: 6 | BI122: 4 | BJ122: 4 | BK122: 0 | BL122: 2 | BM122: 8 | BN122: 12 | BO122: =SUM(BO108:BO119) -> 6 | BP122: 0 | BQ122: 4 | BR122: 2 | BS122: 4 | BT122: 0 | BU122: 0 | BV122: 0 | BW122: 2 | BX122: 2 | BY122: 34 | BZ122: 10 | CA122: 24 | CB122: 26 | CC122: 8 | CD122: 78 | CE122: 54 | CF122: 76 | CG122: 106 | CH122: 36 | CI122: 16 | CJ122: 4 | CK122: 4 | CL122: 16 | CM122: 10 | CN122: 4 | CO122: 2 | CP122: 4 | CQ122: 14 | CR122: 6 | CS122: 6 | CT122: 0 | CU122: 6 | CV122: 12 | CW122: 6 | CX122: 0 | CY122: 0 | CZ122: 0 | DA122: 0 | DB122: 0 | DC122: 0 | DD122: 0 | DE122: 0 | DF122: 0 | DG122: 0 | DH122: 0 | DI122: 0 | DJ122: 0 | DK122: 0 | DL122: 0 | DM122: 0 | DN122: 0 | DO122: 0 | DP122: 0 | DQ122: 0 | DR122: 0 | DS122: 0 | DT122: 0 | DU122: 0 | DV122: 0 | DW122: 0 | DX122: 0 | DY122: 0 | DZ122: 2 | EA122: =SUM(EA108:EA119) -> 0 | EB122: 0 | EC122: 0 | ED122: 0 | EE122: 0 | EF122: 0 | EG122: 0 | EH122: 0 | EI122: 0 | EJ122: 0 | EK122: 0 | EL122: 0 | EM122: 0 | EN122: 0 | EO122: 0 | EP122: 0 | EQ122: 0 | ER122: 0 | ES122: 0 | ET122: 0 | EU122: 0 | EV122: 0 | EW122: 0 | EX122: 0 | EY122: 0 | EZ122: 0 | FA122: 0 | FB122: 0 | FC122: 0 | FD122: 0 | FE122: 0 | FF122: 0 | FG122: 0 | FH122: 0 | FI122: 0 | FJ122: 0 | FK122: 0 | FL122: 0 | FM122: 0 | FN122: 0 | FO122: 0 | FP122: 0 | FQ122: 0 | FR122: 0 | FS122: 0 | FT122: 0 | FU122: 0 | FV122: 0 | FW122: 0 | FX122: 0 | FY122: 0 | FZ122: 0 | GA122: 0 | GB122: 0 | GC122: 0 | GD122: 0 | GE122: 0 | GF122: 0 | GG122: 0 | GH122: 0 | GI122: 0 | GJ122: 0 | GK122: 0 | GL122: 0 | GM122: =SUM(GM108:GM119) -> 0 | GN122: 0 | GO122: 0 | GP122: 0 | GQ122: 0 | GR122: 0 | GS122: 0 | GT122: 0 | GU122: 0 | GV122: 0 | GW122: 0 | GX122: 0 | GY122: 0 | GZ122: 0 | HA122: 0 | HB122: 0 | HC122: 0 | HD122: 0 | HE122: 0 | HF122: 0 | HG122: 0 | HH122: 0 | HI122: 0 | HJ122: 0 | HK122: 0 | HL122: 0 | HM122: 0 | HN122: 0 | HO122: 0 | HP122: 0 | HQ122: 0 | HR122: 0 | HS122: 0 | HT122: 0 | HU122: 0 | HV122: 0 | HW122: 0
A123: =CONCATENATE(A108,"-",A109,"-",A110,"-",A111,"-",A112,"-",A113,"-",A114,"-",A115,"-",A116,"-",A117,"-",A118,"-",A119) -> 2-1-3-4-5-6-7-8-9-10-11-T
B124: BAS001 | C124: BAS002 | D124: BAS003 | E124: BAS004 | F124: BAS005 | G124: BAS006 | H124: BAS007 | I124: BAS008 | J124: BAS009 | K124: BAS010 | L124: BAS011 | M124: BAS012 | N124: BAS013 | O124: BAS014 | P124: BAS015 | Q124: BAS016 | R124: BAS017 | S124: BAS018 | T124: BAS019 | U124: BAS020 | V124: BAS021 | W124: BAS022 | X124: BAS023 | Y124: BAS024 | Z124: BAS025 | AA124: BAS026 | AB124: BAS027 | AC124: BAS028 | AD124: BAS029 | AE124: BAS030 | AF124: BAS031 | AG124: BAS032 | AH124: BAS033 | AI124: BAS034 | AJ124: BAS035 | AK124: BAS036 | AL124: BAS037 | AM124: BAS038 | AN124: BAS039 | AO124: BAS040 | AP124: BAS041 | AQ124: BAS042 | AR124: BAS043 | AS124: BAS044 | AT124: BAS045 | AU124: BAS046 | AV124: BAS047 | AW124: BAS048 | AX124: BAS049 | AY124: BAS050 | AZ124: BAS051 | BA124: BAS052 | BB124: BAS053 | BC124: BAS054 | BD124: BAS055 | BE124: BAS056 | BF124: BAS057 | BG124: BAS058 | BH124: BAS059 | BI124: BAS060 | BJ124: BAS061 | BK124: BAS062 | BL124: BAS063 | BM124: BAS064 | BN124: BAS065 | BO124: BAS066 | BP124: BAS067 | BQ124: BAS068 | BR124: BAS069 | BS124: BAS070 | BT124: BAS071 | BU124: BAS072 | BV124: BAS073 | BW124: BAS074 | BX124: BAS075 | BY124: BAS076 | BZ124: BAS077 | CA124: BAS078 | CB124: BAS079 | CC124: BAS080 | CD124: BAS081 | CE124: BAS082 | CF124: BAS083 | CG124: BAS084 | CH124: BAS085 | CI124: BAS086 | CJ124: BAS087 | CK124: BAS088 | CL124: BAS089 | CM124: BAS090 | CN124: BAS091 | CO124: BAS092 | CP124: BAS093 | CQ124: BAS094 | CR124: BAS095 | CS124: BAS096 | CT124: BAS097 | CU124: BAS098 | CV124: BAS099 | CW124: BAS100 | CX124: BAS101 | CY124: BAS102 | CZ124: BAS103 | DA124: BAS104 | DB124: BAS105 | DC124: BAS106 | DD124: BAS107 | DE124: BAS108 | DF124: BAS109 | DG124: BAS110 | DH124: BAS111 | DI124: BAS112 | DJ124: BAS113 | DK124: BAS114 | DL124: BAS115 | DM124: BAS116 | DN124: BAS117 | DO124: BAS118 | DP124: BAS119 | DQ124: BAS120 | DR124: BAS121 | DS124: BAS122 | DT124: BAS123 | DU124: BAS124 | DV124: BAS125 | DW124: BAS126 | DX124: BAS127 | DY124: BAS128 | DZ124: BAS129 | EA124: BAS130 | EB124: BAS131 | EC124: BAS132 | ED124: BAS133 | EE124: BAS134 | EF124: BAS135 | EG124: BAS136 | EH124: BAS137 | EI124: BAS138 | EJ124: BAS139 | EK124: BAS140 | EL124: BAS141 | EM124: BAS142 | EN124: BAS143 | EO124: BAS144 | EP124: BAS145 | EQ124: BAS146 | ER124: BAS147 | ES124: BAS148 | ET124: BAS149 | EU124: BAS150 | EV124: BAS151 | EW124: BAS152 | EX124: BAS153 | EY124: BAS154 | EZ124: BAS155 | FA124: BAS156 | FB124: BAS157 | FC124: BAS158 | FD124: BAS159 | FE124: BAS160 | FF124: BAS161 | FG124: BAS162 | FH124: BAS163 | FI124: BAS164 | FJ124: BAS165 | FK124: BAS166 | FL124: BAS167 | FM124: BAS168 | FN124: BAS169 | FO124: BAS170 | FP124: BAS171 | FQ124: BAS172 | FR124: BAS173 | FS124: BAS174 | FT124: BAS175 | FU124: BAS176 | FV124: BAS177 | FW124: BAS178 | FX124: BAS179 | FY124: BAS180 | FZ124: BAS181 | GA124: BAS182 | GB124: BAS183 | GC124: BAS184 | GD124: BAS185 | GE124: BAS186 | GF124: BAS187 | GG124: BAS188 | GH124: BAS189 | GI124: BAS190 | GJ124: BAS191 | GK124: BAS192 | GL124: BAS193 | GM124: BAS194 | GN124: BAS195 | GO124: BAS196 | GP124: BAS197 | GQ124: BAS198 | GR124: BAS199 | GS124: BAS200 | GT124: BAS201 | GU124: BAS202 | GV124: BAS203 | GW124: BAS204 | GX124: BAS205 | GY124: BAS206 | GZ124: BAS207 | HA124: BAS208 | HB124: BAS209 | HC124: BAS210 | HD124: BAS211 | HE124: BAS212 | HF124: BAS213 | HG124: BAS214 | HH124: BAS215 | HI124: BAS216 | HJ124: BAS217 | HK124: BAS218 | HL124: BAS219 | HM124: BAS220 | HN124: BAS221 | HO124: BAS222 | HP124: BAS223 | HQ124: BAS224 | HR124: BAS225 | HS124: BAS226 | HT124: BAS227 | HU124: BAS228 | HV124: BAS229 | HW124: BAS230
B125: =IF(B124=B107,"SI","NO") -> SI | C125: =IF(C124=C107,"SI","NO") -> SI | D125: SI | E125: SI | F125: SI | G125: SI | H125: SI | I125: SI | J125: SI | K125: SI | L125: SI | M125: SI | N125: SI | O125: SI | P125: SI | Q125: SI | R125: SI | S125: SI | T125: SI | U125: SI | V125: SI | W125: SI | X125: SI | Y125: SI | Z125: SI | AA125: SI | AB125: SI | AC125: SI | AD125: SI | AE125: SI | AF125: SI | AG125: SI | AH125: SI | AI125: SI | AJ125: SI | AK125: SI | AL125: SI | AM125: SI | AN125: SI | AO125: SI | AP125: SI | AQ125: SI | AR125: SI | AS125: SI | AT125: SI | AU125: SI | AV125: SI | AW125: SI | AX125: SI | AY125: SI | AZ125: SI | BA125: SI | BB125: SI | BC125: SI | BD125: SI | BE125: SI | BF125: SI | BG125: SI | BH125: SI | BI125: SI | BJ125: SI | BK125: SI | BL125: SI | BM125: SI | BN125: SI | BO125: =IF(BO124=BO107,"SI","NO") -> SI | BP125: SI | BQ125: SI | BR125: SI | BS125: SI | BT125: SI | BU125: SI | BV125: SI | BW125: SI | BX125: SI | BY125: SI | BZ125: SI | CA125: SI | CB125: SI | CC125: SI | CD125: SI | CE125: SI | CF125: SI | CG125: SI | CH125: SI | CI125: SI | CJ125: SI | CK125: SI | CL125: SI | CM125: SI | CN125: SI | CO125: SI | CP125: SI | CQ125: SI | CR125: SI | CS125: SI | CT125: SI | CU125: SI | CV125: SI | CW125: SI | CX125: SI | CY125: SI | CZ125: SI | DA125: SI | DB125: SI | DC125: SI | DD125: SI | DE125: SI | DF125: SI | DG125: SI | DH125: SI | DI125: SI | DJ125: SI | DK125: SI | DL125: SI | DM125: SI | DN125: SI | DO125: SI | DP125: SI | DQ125: SI | DR125: SI | DS125: SI | DT125: SI | DU125: SI | DV125: SI | DW125: SI | DX125: SI | DY125: SI | DZ125: SI | EA125: =IF(EA124=EA107,"SI","NO") -> SI | EB125: SI | EC125: SI | ED125: SI | EE125: SI | EF125: SI | EG125: SI | EH125: SI | EI125: SI | EJ125: SI | EK125: SI | EL125: SI | EM125: SI | EN125: SI | EO125: SI | EP125: SI | EQ125: SI | ER125: SI | ES125: SI | ET125: SI | EU125: SI | EV125: SI | EW125: SI | EX125: SI | EY125: SI | EZ125: SI | FA125: SI | FB125: SI | FC125: SI | FD125: SI | FE125: SI | FF125: SI | FG125: SI | FH125: SI | FI125: SI | FJ125: SI | FK125: SI | FL125: SI | FM125: SI | FN125: SI | FO125: SI | FP125: SI | FQ125: SI | FR125: SI | FS125: SI | FT125: SI | FU125: SI | FV125: SI | FW125: SI | FX125: SI | FY125: SI | FZ125: SI | GA125: SI | GB125: SI | GC125: SI | GD125: SI | GE125: SI | GF125: SI | GG125: SI | GH125: SI | GI125: SI | GJ125: SI | GK125: SI | GL125: SI | GM125: =IF(GM124=GM107,"SI","NO") -> SI | GN125: SI | GO125: SI | GP125: SI | GQ125: SI | GR125: SI | GS125: SI | GT125: SI | GU125: SI | GV125: SI | GW125: SI | GX125: SI | GY125: SI | GZ125: SI | HA125: SI | HB125: SI | HC125: SI | HD125: SI | HE125: SI | HF125: SI | HG125: SI | HH125: SI | HI125: SI | HJ125: SI | HK125: SI | HL125: SI | HM125: SI | HN125: SI | HO125: SI | HP125: SI | HQ125: SI | HR125: SI | HS125: SI | HT125: SI | HU125: SI | HV125: SI | HW125: SI
A128: R_URBANA 03
A129: anno | B129: 2024
A130: cod_red | B130: 03
A131: codmic | B131: (Todas)
A132: cod_prov | B132: (Todas)
A133: coddist | B133: (Todas)
A134: cod_estab | B134: (Todas)
A135: cod_eje | B135: (Todas)
B137: Valores
A138: Etiquetas de fila | B138: BAS001 | C138: BAS002 | D138: BAS003 | E138: BAS004 | F138: BAS005 | G138: BAS006 | H138: BAS007 | I138: BAS008 | J138: BAS009 | K138: BAS010 | L138: BAS011 | M138: BAS012 | N138: BAS013 | O138: BAS014 | P138: BAS015 | Q138: BAS016 | R138: BAS017 | S138: BAS018 | T138: BAS019 | U138: BAS020 | V138: BAS021 | W138: BAS022 | X138: BAS023 | Y138: BAS024 | Z138: BAS025 | AA138: BAS026 | AB138: BAS027 | AC138: BAS028 | AD138: BAS029 | AE138: BAS030 | AF138: BAS031 | AG138: BAS032 | AH138: BAS033 | AI138: BAS034 | AJ138: BAS035 | AK138: BAS036 | AL138: BAS037 | AM138: BAS038 | AN138: BAS039 | AO138: BAS040 | AP138: BAS041 | AQ138: BAS042 | AR138: BAS043 | AS138: BAS044 | AT138: BAS045 | AU138: BAS046 | AV138: BAS047 | AW138: BAS048 | AX138: BAS049 | AY138: BAS050 | AZ138: BAS051 | BA138: BAS052 | BB138: BAS053 | BC138: BAS054 | BD138: BAS055 | BE138: BAS056 | BF138: BAS057 | BG138: BAS058 | BH138: BAS059 | BI138: BAS060 | BJ138: BAS061 | BK138: BAS062 | BL138: BAS063 | BM138: BAS064 | BN138: BAS065 | BO138: BAS066 | BP138: BAS067 | BQ138: BAS068 | BR138: BAS069 | BS138: BAS070 | BT138: BAS071 | BU138: BAS072 | BV138: BAS073 | BW138: BAS074 | BX138: BAS075 | BY138: BAS076 | BZ138: BAS077 | CA138: BAS078 | CB138: BAS079 | CC138: BAS080 | CD138: BAS081 | CE138: BAS082 | CF138: BAS083 | CG138: BAS084 | CH138: BAS085 | CI138: BAS086 | CJ138: BAS087 | CK138: BAS088 | CL138: BAS089 | CM138: BAS090 | CN138: BAS091 | CO138: BAS092 | CP138: BAS093 | CQ138: BAS094 | CR138: BAS095 | CS138: BAS096 | CT138: BAS097 | CU138: BAS098 | CV138: BAS099 | CW138: BAS100 | CX138: BAS101 | CY138: BAS102 | CZ138: BAS103 | DA138: BAS104 | DB138: BAS105 | DC138: BAS106 | DD138: BAS107 | DE138: BAS108 | DF138: BAS109 | DG138: BAS110 | DH138: BAS111 | DI138: BAS112 | DJ138: BAS113 | DK138: BAS114 | DL138: BAS115 | DM138: BAS116 | DN138: BAS117 | DO138: BAS118 | DP138: BAS119 | DQ138: BAS120 | DR138: BAS121 | DS138: BAS122 | DT138: BAS123 | DU138: BAS124 | DV138: BAS125 | DW138: BAS126 | DX138: BAS127 | DY138: BAS128 | DZ138: BAS129 | EA138: BAS130 | EB138: BAS131 | EC138: BAS132 | ED138: BAS133 | EE138: BAS134 | EF138: BAS135 | EG138: BAS136 | EH138: BAS137 | EI138: BAS138 | EJ138: BAS139 | EK138: BAS140 | EL138: BAS141 | EM138: BAS142 | EN138: BAS143 | EO138: BAS144 | EP138: BAS145 | EQ138: BAS146 | ER138: BAS147 | ES138: BAS148 | ET138: BAS149 | EU138: BAS150 | EV138: BAS151 | EW138: BAS152 | EX138: BAS153 | EY138: BAS154 | EZ138: BAS155 | FA138: BAS156 | FB138: BAS157 | FC138: BAS158 | FD138: BAS159 | FE138: BAS160 | FF138: BAS161 | FG138: BAS162 | FH138: BAS163 | FI138: BAS164 | FJ138: BAS165 | FK138: BAS166 | FL138: BAS167 | FM138: BAS168 | FN138: BAS169 | FO138: BAS170 | FP138: BAS171 | FQ138: BAS172 | FR138: BAS173 | FS138: BAS174 | FT138: BAS175 | FU138: BAS176 | FV138: BAS177 | FW138: BAS178 | FX138: BAS179 | FY138: BAS180 | FZ138: BAS181 | GA138: BAS182 | GB138: BAS183 | GC138: BAS184 | GD138: BAS185 | GE138: BAS186 | GF138: BAS187 | GG138: BAS188 | GH138: BAS189 | GI138: BAS190 | GJ138: BAS191 | GK138: BAS192 | GL138: BAS193 | GM138: BAS194 | GN138: BAS195 | GO138: BAS196 | GP138: BAS197 | GQ138: BAS198 | GR138: BAS199 | GS138: BAS200 | GT138: BAS201 | GU138: BAS202 | GV138: BAS203 | GW138: BAS204 | GX138: BAS205 | GY138: BAS206 | GZ138: BAS207 | HA138: BAS208 | HB138: BAS209 | HC138: BAS210 | HD138: BAS211 | HE138: BAS212 | HF138: BAS213 | HG138: BAS214 | HH138: BAS215 | HI138: BAS216 | HJ138: BAS217 | HK138: BAS218 | HL138: BAS219 | HM138: BAS220 | HN138: BAS221 | HO138: BAS222 | HP138: BAS223 | HQ138: BAS224 | HR138: BAS225 | HS138: BAS226 | HT138: BAS227 | HU138: BAS228 | HV138: BAS229 | HW138: BAS230
A139: 2 | B139: 0 | C139: 0 | D139: 0 | E139: 0 | F139: 0 | G139: 0 | H139: 0 | I139: 0 | J139: 0 | K139: 0 | L139: 0 | M139: 0 | N139: 0 | O139: 0 | P139: 0 | Q139: 0 | R139: 0 | S139: 0 | T139: 0 | U139: 0 | V139: 0 | W139: 0 | X139: 0 | Y139: 0 | Z139: 0 | AA139: 0 | AB139: 0 | AC139: 0 | AD139: 0 | AE139: 0 | AF139: 0 | AG139: 0 | AH139: 0 | AI139: 0 | AJ139: 0 | AK139: 0 | AL139: 0 | AM139: 0 | AN139: 0 | AO139: 0 | AP139: 0 | AQ139: 0 | AR139: 0 | AS139: 0 | AT139: 0 | AU139: 0 | AV139: 0 | AW139: 0 | AX139: 0 | AY139: 0 | AZ139: 0 | BA139: 0 | BB139: 0 | BC139: 0 | BD139: 0 | BE139: 0 | BF139: 0 | BG139: 0 | BH139: 0 | BI139: 0 | BJ139: 0 | BK139: 0 | BL139: 0 | BM139: 0 | BN139: 0 | BO139: 0 | BP139: 0 | BQ139: 0 | BR139: 0 | BS139: 0 | BT139: 0 | BU139: 0 | BV139: 0 | BW139: 0 | BX139: 0 | BY139: 0 | BZ139: 0 | CA139: 0 | CB139: 0 | CC139: 0 | CD139: 0 | CE139: 0 | CF139: 0 | CG139: 0 | CH139: 0 | CI139: 0 | CJ139: 0 | CK139: 0 | CL139: 0 | CM139: 0 | CN139: 0 | CO139: 0 | CP139: 0 | CQ139: 0 | CR139: 0 | CS139: 0 | CT139: 0 | CU139: 0 | CV139: 0 | CW139: 0 | CX139: 0 | CY139: 0 | CZ139: 0 | DA139: 0 | DB139: 0 | DC139: 0 | DD139: 0 | DE139: 0 | DF139: 0 | DG139: 0 | DH139: 0 | DI139: 0 | DJ139: 0 | DK139: 0 | DL139: 0 | DM139: 0 | DN139: 0 | DO139: 0 | DP139: 0 | DQ139: 0 | DR139: 0 | DS139: 0 | DT139: 0 | DU139: 0 | DV139: 0 | DW139: 0 | DX139: 0 | DY139: 0 | DZ139: 0 | EA139: 0 | EB139: 0 | EC139: 0 | ED139: 0 | EE139: 0 | EF139: 0 | EG139: 0 | EH139: 0 | EI139: 0 | EJ139: 0 | EK139: 0 | EL139: 0 | EM139: 0 | EN139: 0 | EO139: 0 | EP139: 0 | EQ139: 0 | ER139: 0 | ES139: 0 | ET139: 0 | EU139: 0 | EV139: 0 | EW139: 0 | EX139: 0 | EY139: 0 | EZ139: 0 | FA139: 0 | FB139: 0 | FC139: 0 | FD139: 0 | FE139: 0 | FF139: 0 | FG139: 0 | FH139: 0 | FI139: 0 | FJ139: 0 | FK139: 0 | FL139: 0 | FM139: 0 | FN139: 0 | FO139: 0 | FP139: 0 | FQ139: 0 | FR139: 0 | FS139: 0 | FT139: 0 | FU139: 11 | FV139: 9 | FW139: 5 | FX139: 0 | FY139: 0 | FZ139: 0 | GA139: 0 | GB139: 0 | GC139: 0 | GD139: 0 | GE139: 0 | GF139: 0 | GG139: 0 | GH139: 0 | GI139: 0 | GJ139: 0 | GK139: 0 | GL139: 0 | GM139: 0 | GN139: 0 | GO139: 0 | GP139: 0 | GQ139: 0 | GR139: 0 | GS139: 0 | GT139: 0 | GU139: 0 | GV139: 0 | GW139: 0 | GX139: 0 | GY139: 0 | GZ139: 0 | HA139: 0 | HB139: 0 | HC139: 0 | HD139: 0 | HE139: 0 | HF139: 0 | HG139: 0 | HH139: 0 | HI139: 0 | HJ139: 0 | HK139: 0 | HL139: 0 | HM139: 0 | HN139: 0 | HO139: 0 | HP139: 0 | HQ139: 0 | HR139: 0 | HS139: 0 | HT139: 0 | HU139: 0 | HV139: 0 | HW139: 0
A140: 1 | B140: 0 | C140: 0 | D140: 0 | E140: 0 | F140: 0 | G140: 0 | H140: 0 | I140: 0 | J140: 0 | K140: 0 | L140: 0 | M140: 0 | N140: 0 | O140: 0 | P140: 0 | Q140: 0 | R140: 0 | S140: 0 | T140: 0 | U140: 0 | V140: 0 | W140: 0 | X140: 0 | Y140: 0 | Z140: 0 | AA140: 0 | AB140: 0 | AC140: 0 | AD140: 0 | AE140: 0 | AF140: 0 | AG140: 0 | AH140: 0 | AI140: 0 | AJ140: 0 | AK140: 0 | AL140: 0 | AM140: 0 | AN140: 0 | AO140: 0 | AP140: 0 | AQ140: 0 | AR140: 0 | AS140: 0 | AT140: 0 | AU140: 0 | AV140: 0 | AW140: 0 | AX140: 0 | AY140: 0 | AZ140: 0 | BA140: 0 | BB140: 0 | BC140: 0 | BD140: 0 | BE140: 0 | BF140: 0 | BG140: 0 | BH140: 0 | BI140: 0 | BJ140: 0 | BK140: 0 | BL140: 0 | BM140: 0 | BN140: 0 | BO140: 0 | BP140: 0 | BQ140: 0 | BR140: 0 | BS140: 0 | BT140: 0 | BU140: 0 | BV140: 0 | BW140: 0 | BX140: 0 | BY140: 0 | BZ140: 0 | CA140: 0 | CB140: 0 | CC140: 0 | CD140: 0 | CE140: 0 | CF140: 0 | CG140: 0 | CH140: 0 | CI140: 0 | CJ140: 0 | CK140: 0 | CL140: 0 | CM140: 0 | CN140: 0 | CO140: 0 | CP140: 0 | CQ140: 0 | CR140: 0 | CS140: 0 | CT140: 0 | CU140: 0 | CV140: 0 | CW140: 0 | CX140: 0 | CY140: 0 | CZ140: 0 | DA140: 0 | DB140: 0 | DC140: 0 | DD140: 0 | DE140: 0 | DF140: 0 | DG140: 0 | DH140: 0 | DI140: 0 | DJ140: 0 | DK140: 0 | DL140: 0 | DM140: 0 | DN140: 0 | DO140: 0 | DP140: 0 | DQ140: 0 | DR140: 0 | DS140: 0 | DT140: 0 | DU140: 0 | DV140: 0 | DW140: 0 | DX140: 0 | DY140: 0 | DZ140: 0 | EA140: 0 | EB140: 0 | EC140: 0 | ED140: 0 | EE140: 0 | EF140: 0 | EG140: 0 | EH140: 0 | EI140: 0 | EJ140: 3 | EK140: 0 | EL140: 0 | EM140: 0 | EN140: 0 | EO140: 0 | EP140: 0 | EQ140: 0 | ER140: 0 | ES140: 0 | ET140: 0 | EU140: 0 | EV140: 0 | EW140: 0 | EX140: 0 | EY140: 0 | EZ140: 0 | FA140: 0 | FB140: 0 | FC140: 0 | FD140: 0 | FE140: 0 | FF140: 0 | FG140: 0 | FH140: 0 | FI140: 0 | FJ140: 0 | FK140: 0 | FL140: 0 | FM140: 0 | FN140: 0 | FO140: 0 | FP140: 0 | FQ140: 0 | FR140: 0 | FS140: 0 | FT140: 0 | FU140: 4 | FV140: 4 | FW140: 2 | FX140: 0 | FY140: 0 | FZ140: 0 | GA140: 0 | GB140: 0 | GC140: 0 | GD140: 0 | GE140: 0 | GF140: 0 | GG140: 0 | GH140: 0 | GI140: 0 | GJ140: 0 | GK140: 0 | GL140: 0 | GM140: 0 | GN140: 0 | GO140: 0 | GP140: 0 | GQ140: 0 | GR140: 0 | GS140: 0 | GT140: 0 | GU140: 0 | GV140: 0 | GW140: 0 | GX140: 0 | GY140: 0 | GZ140: 0 | HA140: 0 | HB140: 0 | HC140: 0 | HD140: 0 | HE140: 0 | HF140: 0 | HG140: 0 | HH140: 0 | HI140: 0 | HJ140: 0 | HK140: 0 | HL140: 0 | HM140: 0 | HN140: 0 | HO140: 0 | HP140: 0 | HQ140: 0 | HR140: 0 | HS140: 0 | HT140: 0 | HU140: 0 | HV140: 0 | HW140: 0
A141: 3 | B141: 0 | C141: 0 | D141: 0 | E141: 0 | F141: 0 | G141: 0 | H141: 0 | I141: 0 | J141: 0 | K141: 0 | L141: 0 | M141: 0 | N141: 0 | O141: 0 | P141: 0 | Q141: 0 | R141: 0 | S141: 0 | T141: 0 | U141: 0 | V141: 0 | W141: 0 | X141: 0 | Y141: 0 | Z141: 0 | AA141: 0 | AB141: 0 | AC141: 0 | AD141: 0 | AE141: 0 | AF141: 0 | AG141: 0 | AH141: 0 | AI141: 0 | AJ141: 0 | AK141: 0 | AL141: 0 | AM141: 0 | AN141: 0 | AO141: 0 | AP141: 0 | AQ141: 0 | AR141: 0 | AS141: 0 | AT141: 0 | AU141: 0 | AV141: 0 | AW141: 0 | AX141: 0 | AY141: 0 | AZ141: 0 | BA141: 0 | BB141: 0 | BC141: 0 | BD141: 0 | BE141: 0 | BF141: 0 | BG141: 0 | BH141: 0 | BI141: 0 | BJ141: 0 | BK141: 0 | BL141: 0 | BM141: 0 | BN141: 0 | BO141: 0 | BP141: 0 | BQ141: 0 | BR141: 0 | BS141: 0 | BT141: 0 | BU141: 0 | BV141: 0 | BW141: 0 | BX141: 0 | BY141: 0 | BZ141: 0 | CA141: 0 | CB141: 0 | CC141: 0 | CD141: 0 | CE141: 0 | CF141: 0 | CG141: 0 | CH141: 0 | CI141: 0 | CJ141: 0 | CK141: 0 | CL141: 0 | CM141: 0 | CN141: 0 | CO141: 0 | CP141: 0 | CQ141: 0 | CR141: 0 | CS141: 0 | CT141: 0 | CU141: 0 | CV141: 0 | CW141: 0 | CX141: 0 | CY141: 0 | CZ141: 0 | DA141: 0 | DB141: 0 | DC141: 0 | DD141: 0 | DE141: 0 | DF141: 0 | DG141: 0 | DH141: 0 | DI141: 0 | DJ141: 0 | DK141: 0 | DL141: 0 | DM141: 0 | DN141: 0 | DO141: 0 | DP141: 0 | DQ141: 0 | DR141: 0 | DS141: 0 | DT141: 0 | DU141: 0 | DV141: 0 | DW141: 0 | DX141: 0 | DY141: 0 | DZ141: 0 | EA141: 0 | EB141: 0 | EC141: 0 | ED141: 0 | EE141: 0 | EF141: 0 | EG141: 0 | EH141: 0 | EI141: 0 | EJ141: 0 | EK141: 0 | EL141: 0 | EM141: 0 | EN141: 0 | EO141: 0 | EP141: 0 | EQ141: 0 | ER141: 0 | ES141: 0 | ET141: 0 | EU141: 0 | EV141: 0 | EW141: 0 | EX141: 0 | EY141: 0 | EZ141: 0 | FA141: 0 | FB141: 0 | FC141: 0 | FD141: 0 | FE141: 0 | FF141: 0 | FG141: 0 | FH141: 0 | FI141: 0 | FJ141: 0 | FK141: 0 | FL141: 0 | FM141: 0 | FN141: 0 | FO141: 0 | FP141: 0 | FQ141: 0 | FR141: 0 | FS141: 0 | FT141: 0 | FU141: 4 | FV141: 4 | FW141: 2 | FX141: 0 | FY141: 0 | FZ141: 0 | GA141: 0 | GB141: 0 | GC141: 0 | GD141: 0 | GE141: 0 | GF141: 0 | GG141: 0 | GH141: 0 | GI141: 0 | GJ141: 0 | GK141: 0 | GL141: 0 | GM141: 0 | GN141: 0 | GO141: 0 | GP141: 0 | GQ141: 0 | GR141: 0 | GS141: 0 | GT141: 0 | GU141: 0 | GV141: 0 | GW141: 0 | GX141: 0 | GY141: 0 | GZ141: 0 | HA141: 0 | HB141: 0 | HC141: 0 | HD141: 0 | HE141: 0 | HF141: 0 | HG141: 0 | HH141: 0 | HI141: 0 | HJ141: 0 | HK141: 0 | HL141: 0 | HM141: 0 | HN141: 0 | HO141: 0 | HP141: 0 | HQ141: 0 | HR141: 0 | HS141: 0 | HT141: 0 | HU141: 0 | HV141: 0 | HW141: 0
A142: 4 | B142: 0 | C142: 0 | D142: 0 | E142: 0 | F142: 0 | G142: 0 | H142: 0 | I142: 0 | J142: 0 | K142: 0 | L142: 0 | M142: 0 | N142: 0 | O142: 0 | P142: 0 | Q142: 0 | R142: 0 | S142: 0 | T142: 0 | U142: 0 | V142: 0 | W142: 0 | X142: 0 | Y142: 0 | Z142: 0 | AA142: 0 | AB142: 0 | AC142: 0 | AD142: 0 | AE142: 0 | AF142: 0 | AG142: 0 | AH142: 0 | AI142: 0 | AJ142: 0 | AK142: 0 | AL142: 0 | AM142: 0 | AN142: 0 | AO142: 0 | AP142: 0 | AQ142: 0 | AR142: 0 | AS142: 0 | AT142: 0 | AU142: 0 | AV142: 0 | AW142: 0 | AX142: 0 | AY142: 0 | AZ142: 0 | BA142: 0 | BB142: 0 | BC142: 0 | BD142: 0 | BE142: 0 | BF142: 0 | BG142: 0 | BH142: 0 | BI142: 0 | BJ142: 0 | BK142: 0 | BL142: 0 | BM142: 0 | BN142: 0 | BO142: 0 | BP142: 0 | BQ142: 0 | BR142: 0 | BS142: 0 | BT142: 0 | BU142: 0 | BV142: 0 | BW142: 0 | BX142: 0 | BY142: 0 | BZ142: 0 | CA142: 0 | CB142: 0 | CC142: 0 | CD142: 0 | CE142: 0 | CF142: 0 | CG142: 0 | CH142: 0 | CI142: 0 | CJ142: 0 | CK142: 0 | CL142: 0 | CM142: 0 | CN142: 0 | CO142: 0 | CP142: 0 | CQ142: 0 | CR142: 0 | CS142: 0 | CT142: 0 | CU142: 0 | CV142: 0 | CW142: 0 | CX142: 0 | CY142: 0 | CZ142: 0 | DA142: 0 | DB142: 0 | DC142: 0 | DD142: 0 | DE142: 0 | DF142: 0 | DG142: 0 | DH142: 0 | DI142: 0 | DJ142: 0 | DK142: 0 | DL142: 0 | DM142: 0 | DN142: 0 | DO142: 0 | DP142: 0 | DQ142: 0 | DR142: 0 | DS142: 0 | DT142: 0 | DU142: 0 | DV142: 0 | DW142: 0 | DX142: 0 | DY142: 0 | DZ142: 0 | EA142: 0 | EB142: 0 | EC142: 0 | ED142: 0 | EE142: 0 | EF142: 0 | EG142: 0 | EH142: 0 | EI142: 1 | EJ142: 2 | EK142: 0 | EL142: 0 | EM142: 0 | EN142: 0 | EO142: 0 | EP142: 0 | EQ142: 0 | ER142: 0 | ES142: 0 | ET142: 0 | EU142: 0 | EV142: 0 | EW142: 0 | EX142: 0 | EY142: 0 | EZ142: 0 | FA142: 0 | FB142: 0 | FC142: 0 | FD142: 0 | FE142: 0 | FF142: 0 | FG142: 0 | FH142: 0 | FI142: 0 | FJ142: 0 | FK142: 0 | FL142: 0 | FM142: 0 | FN142: 0 | FO142: 0 | FP142: 0 | FQ142: 0 | FR142: 0 | FS142: 0 | FT142: 0 | FU142: 6 | FV142: 6 | FW142: 2 | FX142: 0 | FY142: 0 | FZ142: 0 | GA142: 0 | GB142: 0 | GC142: 0 | GD142: 0 | GE142: 0 | GF142: 0 | GG142: 0 | GH142: 0 | GI142: 0 | GJ142: 0 | GK142: 0 | GL142: 0 | GM142: 0 | GN142: 0 | GO142: 0 | GP142: 0 | GQ142: 0 | GR142: 0 | GS142: 0 | GT142: 0 | GU142: 0 | GV142: 0 | GW142: 0 | GX142: 0 | GY142: 0 | GZ142: 0 | HA142: 0 | HB142: 0 | HC142: 0 | HD142: 0 | HE142: 0 | HF142: 0 | HG142: 0 | HH142: 0 | HI142: 0 | HJ142: 0 | HK142: 0 | HL142: 0 | HM142: 0 | HN142: 0 | HO142: 0 | HP142: 0 | HQ142: 0 | HR142: 0 | HS142: 0 | HT142: 0 | HU142: 0 | HV142: 0 | HW142: 0
A143: 5 | B143: 0 | C143: 0 | D143: 0 | E143: 0 | F143: 0 | G143: 0 | H143: 0 | I143: 0 | J143: 0 | K143: 0 | L143: 0 | M143: 0 | N143: 0 | O143: 0 | P143: 0 | Q143: 0 | R143: 0 | S143: 0 | T143: 0 | U143: 0 | V143: 0 | W143: 0 | X143: 0 | Y143: 0 | Z143: 0 | AA143: 0 | AB143: 0 | AC143: 0 | AD143: 0 | AE143: 0 | AF143: 0 | AG143: 0 | AH143: 0 | AI143: 0 | AJ143: 0 | AK143: 0 | AL143: 0 | AM143: 0 | AN143: 0 | AO143: 0 | AP143: 0 | AQ143: 0 | AR143: 0 | AS143: 0 | AT143: 0 | AU143: 0 | AV143: 0 | AW143: 0 | AX143: 0 | AY143: 0 | AZ143: 0 | BA143: 0 | BB143: 0 | BC143: 0 | BD143: 0 | BE143: 0 | BF143: 0 | BG143: 0 | BH143: 0 | BI143: 0 | BJ143: 0 | BK143: 0 | BL143: 0 | BM143: 0 | BN143: 0 | BO143: 0 | BP143: 0 | BQ143: 0 | BR143: 0 | BS143: 0 | BT143: 0 | BU143: 0 | BV143: 0 | BW143: 0 | BX143: 0 | BY143: 0 | BZ143: 0 | CA143: 0 | CB143: 0 | CC143: 0 | CD143: 0 | CE143: 0 | CF143: 0 | CG143: 0 | CH143: 0 | CI143: 0 | CJ143: 0 | CK143: 0 | CL143: 0 | CM143: 0 | CN143: 0 | CO143: 0 | CP143: 0 | CQ143: 0 | CR143: 0 | CS143: 0 | CT143: 0 | CU143: 0 | CV143: 0 | CW143: 0 | CX143: 0 | CY143: 0 | CZ143: 0 | DA143: 0 | DB143: 0 | DC143: 0 | DD143: 0 | DE143: 0 | DF143: 0 | DG143: 0 | DH143: 0 | DI143: 0 | DJ143: 0 | DK143: 0 | DL143: 0 | DM143: 0 | DN143: 0 | DO143: 0 | DP143: 0 | DQ143: 0 | DR143: 0 | DS143: 0 | DT143: 0 | DU143: 0 | DV143: 0 | DW143: 0 | DX143: 0 | DY143: 0 | DZ143: 0 | EA143: 0 | EB143: 0 | EC143: 0 | ED143: 0 | EE143: 0 | EF143: 0 | EG143: 0 | EH143: 0 | EI143: 0 | EJ143: 1 | EK143: 0 | EL143: 0 | EM143: 0 | EN143: 0 | EO143: 0 | EP143: 0 | EQ143: 0 | ER143: 0 | ES143: 0 | ET143: 0 | EU143: 0 | EV143: 0 | EW143: 0 | EX143: 0 | EY143: 0 | EZ143: 0 | FA143: 0 | FB143: 0 | FC143: 0 | FD143: 0 | FE143: 0 | FF143: 0 | FG143: 0 | FH143: 0 | FI143: 0 | FJ143: 0 | FK143: 0 | FL143: 0 | FM143: 0 | FN143: 0 | FO143: 0 | FP143: 0 | FQ143: 0 | FR143: 0 | FS143: 0 | FT143: 0 | FU143: 7 | FV143: 8 | FW143: 6 | FX143: 0 | FY143: 0 | FZ143: 0 | GA143: 0 | GB143: 0 | GC143: 0 | GD143: 0 | GE143: 0 | GF143: 0 | GG143: 0 | GH143: 0 | GI143: 0 | GJ143: 0 | GK143: 0 | GL143: 0 | GM143: 0 | GN143: 0 | GO143: 0 | GP143: 0 | GQ143: 0 | GR143: 0 | GS143: 0 | GT143: 0 | GU143: 0 | GV143: 0 | GW143: 0 | GX143: 0 | GY143: 0 | GZ143: 0 | HA143: 0 | HB143: 0 | HC143: 0 | HD143: 0 | HE143: 0 | HF143: 0 | HG143: 0 | HH143: 0 | HI143: 0 | HJ143: 0 | HK143: 0 | HL143: 0 | HM143: 0 | HN143: 0 | HO143: 0 | HP143: 0 | HQ143: 0 | HR143: 0 | HS143: 0 | HT143: 0 | HU143: 0 | HV143: 0 | HW143: 0
A144: 6 | B144: 0 | C144: 0 | D144: 0 | E144: 0 | F144: 0 | G144: 0 | H144: 0 | I144: 0 | J144: 0 | K144: 0 | L144: 0 | M144: 0 | N144: 0 | O144: 0 | P144: 0 | Q144: 0 | R144: 0 | S144: 0 | T144: 0 | U144: 0 | V144: 0 | W144: 0 | X144: 0 | Y144: 0 | Z144: 0 | AA144: 0 | AB144: 0 | AC144: 0 | AD144: 0 | AE144: 0 | AF144: 0 | AG144: 0 | AH144: 0 | AI144: 0 | AJ144: 0 | AK144: 0 | AL144: 0 | AM144: 0 | AN144: 0 | AO144: 0 | AP144: 0 | AQ144: 0 | AR144: 0 | AS144: 0 | AT144: 0 | AU144: 0 | AV144: 0 | AW144: 0 | AX144: 0 | AY144: 0 | AZ144: 0 | BA144: 0 | BB144: 0 | BC144: 0 | BD144: 0 | BE144: 0 | BF144: 0 | BG144: 0 | BH144: 0 | BI144: 0 | BJ144: 0 | BK144: 0 | BL144: 0 | BM144: 0 | BN144: 0 | BO144: 0 | BP144: 0 | BQ144: 0 | BR144: 0 | BS144: 0 | BT144: 0 | BU144: 0 | BV144: 0 | BW144: 0 | BX144: 0 | BY144: 0 | BZ144: 0 | CA144: 0 | CB144: 0 | CC144: 0 | CD144: 0 | CE144: 0 | CF144: 0 | CG144: 0 | CH144: 0 | CI144: 0 | CJ144: 0 | CK144: 0 | CL144: 0 | CM144: 0 | CN144: 0 | CO144: 0 | CP144: 0 | CQ144: 0 | CR144: 0 | CS144: 0 | CT144: 0 | CU144: 0 | CV144: 0 | CW144: 0 | CX144: 0 | CY144: 0 | CZ144: 0 | DA144: 0 | DB144: 0 | DC144: 0 | DD144: 0 | DE144: 0 | DF144: 0 | DG144: 0 | DH144: 0 | DI144: 0 | DJ144: 0 | DK144: 0 | DL144: 0 | DM144: 0 | DN144: 0 | DO144: 0 | DP144: 0 | DQ144: 0 | DR144: 0 | DS144: 0 | DT144: 0 | DU144: 0 | DV144: 0 | DW144: 0 | DX144: 0 | DY144: 0 | DZ144: 0 | EA144: 0 | EB144: 0 | EC144: 0 | ED144: 0 | EE144: 0 | EF144: 0 | EG144: 0 | EH144: 0 | EI144: 0 | EJ144: 0 | EK144: 0 | EL144: 0 | EM144: 0 | EN144: 0 | EO144: 0 | EP144: 0 | EQ144: 0 | ER144: 0 | ES144: 0 | ET144: 0 | EU144: 0 | EV144: 0 | EW144: 0 | EX144: 0 | EY144: 0 | EZ144: 0 | FA144: 0 | FB144: 0 | FC144: 0 | FD144: 0 | FE144: 0 | FF144: 0 | FG144: 0 | FH144: 0 | FI144: 0 | FJ144: 0 | FK144: 0 | FL144: 0 | FM144: 0 | FN144: 0 | FO144: 0 | FP144: 0 | FQ144: 0 | FR144: 0 | FS144: 0 | FT144: 0 | FU144: 3 | FV144: 2 | FW144: 3 | FX144: 0 | FY144: 0 | FZ144: 0 | GA144: 0 | GB144: 0 | GC144: 0 | GD144: 0 | GE144: 0 | GF144: 0 | GG144: 0 | GH144: 0 | GI144: 0 | GJ144: 0 | GK144: 0 | GL144: 0 | GM144: 0 | GN144: 0 | GO144: 0 | GP144: 0 | GQ144: 0 | GR144: 0 | GS144: 0 | GT144: 0 | GU144: 0 | GV144: 0 | GW144: 0 | GX144: 0 | GY144: 0 | GZ144: 0 | HA144: 0 | HB144: 0 | HC144: 0 | HD144: 0 | HE144: 0 | HF144: 0 | HG144: 0 | HH144: 0 | HI144: 0 | HJ144: 0 | HK144: 0 | HL144: 0 | HM144: 0 | HN144: 0 | HO144: 0 | HP144: 0 | HQ144: 0 | HR144: 0 | HS144: 0 | HT144: 0 | HU144: 0 | HV144: 0 | HW144: 0
A145: 7 | B145: 0 | C145: 0 | D145: 0 | E145: 0 | F145: 0 | G145: 0 | H145: 0 | I145: 0 | J145: 0 | K145: 0 | L145: 0 | M145: 0 | N145: 0 | O145: 0 | P145: 0 | Q145: 0 | R145: 0 | S145: 0 | T145: 0 | U145: 0 | V145: 0 | W145: 0 | X145: 0 | Y145: 0 | Z145: 0 | AA145: 0 | AB145: 0 | AC145: 0 | AD145: 0 | AE145: 0 | AF145: 0 | AG145: 0 | AH145: 0 | AI145: 0 | AJ145: 0 | AK145: 0 | AL145: 0 | AM145: 0 | AN145: 0 | AO145: 0 | AP145: 0 | AQ145: 0 | AR145: 0 | AS145: 0 | AT145: 0 | AU145: 0 | AV145: 0 | AW145: 0 | AX145: 0 | AY145: 0 | AZ145: 0 | BA145: 0 | BB145: 0 | BC145: 0 | BD145: 0 | BE145: 0 | BF145: 0 | BG145: 0 | BH145: 0 | BI145: 0 | BJ145: 0 | BK145: 0 | BL145: 0 | BM145: 0 | BN145: 0 | BO145: 0 | BP145: 0 | BQ145: 0 | BR145: 0 | BS145: 0 | BT145: 0 | BU145: 0 | BV145: 0 | BW145: 0 | BX145: 0 | BY145: 0 | BZ145: 0 | CA145: 0 | CB145: 0 | CC145: 0 | CD145: 0 | CE145: 0 | CF145: 0 | CG145: 0 | CH145: 0 | CI145: 0 | CJ145: 0 | CK145: 0 | CL145: 0 | CM145: 0 | CN145: 0 | CO145: 0 | CP145: 0 | CQ145: 0 | CR145: 0 | CS145: 0 | CT145: 0 | CU145: 0 | CV145: 0 | CW145: 0 | CX145: 0 | CY145: 0 | CZ145: 0 | DA145: 0 | DB145: 0 | DC145: 0 | DD145: 0 | DE145: 0 | DF145: 0 | DG145: 0 | DH145: 0 | DI145: 0 | DJ145: 0 | DK145: 0 | DL145: 0 | DM145: 0 | DN145: 0 | DO145: 0 | DP145: 0 | DQ145: 0 | DR145: 0 | DS145: 0 | DT145: 0 | DU145: 0 | DV145: 0 | DW145: 0 | DX145: 0 | DY145: 0 | DZ145: 0 | EA145: 0 | EB145: 0 | EC145: 0 | ED145: 0 | EE145: 0 | EF145: 0 | EG145: 0 | EH145: 0 | EI145: 0 | EJ145: 1 | EK145: 0 | EL145: 0 | EM145: 0 | EN145: 0 | EO145: 0 | EP145: 0 | EQ145: 0 | ER145: 0 | ES145: 0 | ET145: 0 | EU145: 0 | EV145: 0 | EW145: 0 | EX145: 0 | EY145: 0 | EZ145: 0 | FA145: 0 | FB145: 0 | FC145: 0 | FD145: 0 | FE145: 0 | FF145: 0 | FG145: 0 | FH145: 0 | FI145: 0 | FJ145: 0 | FK145: 0 | FL145: 0 | FM145: 0 | FN145: 0 | FO145: 0 | FP145: 0 | FQ145: 0 | FR145: 0 | FS145: 0 | FT145: 0 | FU145: 6 | FV145: 6 | FW145: 4 | FX145: 0 | FY145: 0 | FZ145: 0 | GA145: 0 | GB145: 0 | GC145: 0 | GD145: 0 | GE145: 0 | GF145: 0 | GG145: 0 | GH145: 0 | GI145: 0 | GJ145: 0 | GK145: 0 | GL145: 0 | GM145: 0 | GN145: 0 | GO145: 0 | GP145: 0 | GQ145: 0 | GR145: 0 | GS145: 0 | GT145: 0 | GU145: 0 | GV145: 0 | GW145: 0 | GX145: 0 | GY145: 0 | GZ145: 0 | HA145: 0 | HB145: 0 | HC145: 0 | HD145: 0 | HE145: 0 | HF145: 0 | HG145: 0 | HH145: 0 | HI145: 0 | HJ145: 0 | HK145: 0 | HL145: 0 | HM145: 0 | HN145: 0 | HO145: 0 | HP145: 0 | HQ145: 0 | HR145: 0 | HS145: 0 | HT145: 0 | HU145: 0 | HV145: 0 | HW145: 0
A146: 8 | B146: 0 | C146: 0 | D146: 0 | E146: 0 | F146: 0 | G146: 0 | H146: 0 | I146: 0 | J146: 0 | K146: 0 | L146: 0 | M146: 0 | N146: 0 | O146: 0 | P146: 0 | Q146: 0 | R146: 0 | S146: 0 | T146: 0 | U146: 0 | V146: 0 | W146: 0 | X146: 0 | Y146: 0 | Z146: 0 | AA146: 0 | AB146: 0 | AC146: 0 | AD146: 0 | AE146: 0 | AF146: 0 | AG146: 0 | AH146: 0 | AI146: 0 | AJ146: 0 | AK146: 0 | AL146: 0 | AM146: 0 | AN146: 0 | AO146: 0 | AP146: 0 | AQ146: 0 | AR146: 0 | AS146: 0 | AT146: 0 | AU146: 0 | AV146: 0 | AW146: 0 | AX146: 0 | AY146: 0 | AZ146: 0 | BA146: 0 | BB146: 0 | BC146: 0 | BD146: 0 | BE146: 0 | BF146: 0 | BG146: 0 | BH146: 0 | BI146: 0 | BJ146: 0 | BK146: 0 | BL146: 0 | BM146: 0 | BN146: 0 | BO146: 0 | BP146: 0 | BQ146: 0 | BR146: 0 | BS146: 0 | BT146: 0 | BU146: 0 | BV146: 0 | BW146: 0 | BX146: 0 | BY146: 0 | BZ146: 0 | CA146: 0 | CB146: 0 | CC146: 0 | CD146: 0 | CE146: 0 | CF146: 0 | CG146: 0 | CH146: 0 | CI146: 0 | CJ146: 0 | CK146: 0 | CL146: 0 | CM146: 0 | CN146: 0 | CO146: 0 | CP146: 0 | CQ146: 0 | CR146: 0 | CS146: 0 | CT146: 0 | CU146: 0 | CV146: 0 | CW146: 0 | CX146: 0 | CY146: 0 | CZ146: 0 | DA146: 0 | DB146: 0 | DC146: 0 | DD146: 0 | DE146: 0 | DF146: 0 | DG146: 0 | DH146: 0 | DI146: 0 | DJ146: 0 | DK146: 0 | DL146: 0 | DM146: 0 | DN146: 0 | DO146: 0 | DP146: 0 | DQ146: 0 | DR146: 0 | DS146: 0 | DT146: 0 | DU146: 0 | DV146: 0 | DW146: 0 | DX146: 0 | DY146: 0 | DZ146: 0 | EA146: 0 | EB146: 0 | EC146: 0 | ED146: 0 | EE146: 0 | EF146: 0 | EG146: 4 | EH146: 0 | EI146: 0 | EJ146: 1 | EK146: 1 | EL146: 0 | EM146: 0 | EN146: 0 | EO146: 0 | EP146: 0 | EQ146: 0 | ER146: 0 | ES146: 0 | ET146: 0 | EU146: 0 | EV146: 0 | EW146: 0 | EX146: 0 | EY146: 0 | EZ146: 0 | FA146: 0 | FB146: 0 | FC146: 0 | FD146: 0 | FE146: 0 | FF146: 0 | FG146: 0 | FH146: 0 | FI146: 0 | FJ146: 0 | FK146: 0 | FL146: 0 | FM146: 0 | FN146: 0 | FO146: 0 | FP146: 0 | FQ146: 0 | FR146: 0 | FS146: 0 | FT146: 0 | FU146: 9 | FV146: 7 | FW146: 3 | FX146: 0 | FY146: 0 | FZ146: 0 | GA146: 0 | GB146: 0 | GC146: 0 | GD146: 0 | GE146: 0 | GF146: 0 | GG146: 0 | GH146: 0 | GI146: 0 | GJ146: 0 | GK146: 0 | GL146: 0 | GM146: 0 | GN146: 0 | GO146: 0 | GP146: 0 | GQ146: 0 | GR146: 0 | GS146: 0 | GT146: 0 | GU146: 0 | GV146: 0 | GW146: 0 | GX146: 0 | GY146: 0 | GZ146: 0 | HA146: 0 | HB146: 0 | HC146: 0 | HD146: 0 | HE146: 0 | HF146: 0 | HG146: 0 | HH146: 0 | HI146: 40 | HJ146: 8520 | HK146: 5656 | HL146: 0 | HM146: 0 | HN146: 0 | HO146: 0 | HP146: 0 | HQ146: 0 | HR146: 0 | HS146: 0 | HT146: 0 | HU146: 0 | HV146: 0 | HW146: 0
A147: 9 | B147: 0 | C147: 0 | D147: 0 | E147: 0 | F147: 0 | G147: 0 | H147: 0 | I147: 0 | J147: 0 | K147: 0 | L147: 0 | M147: 0 | N147: 0 | O147: 0 | P147: 0 | Q147: 0 | R147: 0 | S147: 0 | T147: 0 | U147: 0 | V147: 0 | W147: 0 | X147: 0 | Y147: 0 | Z147: 0 | AA147: 0 | AB147: 0 | AC147: 0 | AD147: 0 | AE147: 0 | AF147: 0 | AG147: 0 | AH147: 0 | AI147: 0 | AJ147: 0 | AK147: 0 | AL147: 0 | AM147: 0 | AN147: 0 | AO147: 0 | AP147: 0 | AQ147: 0 | AR147: 0 | AS147: 0 | AT147: 0 | AU147: 0 | AV147: 0 | AW147: 0 | AX147: 0 | AY147: 0 | AZ147: 0 | BA147: 0 | BB147: 0 | BC147: 0 | BD147: 0 | BE147: 0 | BF147: 0 | BG147: 0 | BH147: 0 | BI147: 0 | BJ147: 0 | BK147: 0 | BL147: 0 | BM147: 0 | BN147: 0 | BO147: 0 | BP147: 0 | BQ147: 0 | BR147: 0 | BS147: 0 | BT147: 0 | BU147: 0 | BV147: 0 | BW147: 0 | BX147: 0 | BY147: 0 | BZ147: 0 | CA147: 0 | CB147: 0 | CC147: 0 | CD147: 0 | CE147: 0 | CF147: 0 | CG147: 0 | CH147: 0 | CI147: 0 | CJ147: 0 | CK147: 0 | CL147: 0 | CM147: 0 | CN147: 0 | CO147: 0 | CP147: 0 | CQ147: 0 | CR147: 0 | CS147: 0 | CT147: 0 | CU147: 0 | CV147: 0 | CW147: 0 | CX147: 0 | CY147: 0 | CZ147: 0 | DA147: 0 | DB147: 0 | DC147: 0 | DD147: 0 | DE147: 0 | DF147: 0 | DG147: 0 | DH147: 0 | DI147: 0 | DJ147: 0 | DK147: 0 | DL147: 0 | DM147: 0 | DN147: 0 | DO147: 0 | DP147: 0 | DQ147: 0 | DR147: 0 | DS147: 0 | DT147: 0 | DU147: 0 | DV147: 0 | DW147: 0 | DX147: 0 | DY147: 0 | DZ147: 0 | EA147: 0 | EB147: 0 | EC147: 0 | ED147: 0 | EE147: 0 | EF147: 0 | EG147: 0 | EH147: 0 | EI147: 2 | EJ147: 4 | EK147: 0 | EL147: 0 | EM147: 0 | EN147: 0 | EO147: 0 | EP147: 0 | EQ147: 0 | ER147: 0 | ES147: 0 | ET147: 0 | EU147: 0 | EV147: 0 | EW147: 0 | EX147: 0 | EY147: 0 | EZ147: 0 | FA147: 0 | FB147: 0 | FC147: 0 | FD147: 0 | FE147: 0 | FF147: 0 | FG147: 0 | FH147: 0 | FI147: 0 | FJ147: 0 | FK147: 0 | FL147: 0 | FM147: 0 | FN147: 0 | FO147: 0 | FP147: 0 | FQ147: 0 | FR147: 0 | FS147: 0 | FT147: 0 | FU147: 5 | FV147: 7 | FW147: 3 | FX147: 0 | FY147: 0 | FZ147: 0 | GA147: 0 | GB147: 0 | GC147: 0 | GD147: 0 | GE147: 0 | GF147: 0 | GG147: 0 | GH147: 0 | GI147: 0 | GJ147: 0 | GK147: 0 | GL147: 0 | GM147: 0 | GN147: 0 | GO147: 0 | GP147: 0 | GQ147: 0 | GR147: 0 | GS147: 0 | GT147: 0 | GU147: 0 | GV147: 0 | GW147: 0 | GX147: 0 | GY147: 0 | GZ147: 0 | HA147: 0 | HB147: 0 | HC147: 0 | HD147: 0 | HE147: 0 | HF147: 0 | HG147: 0 | HH147: 0 | HI147: 20 | HJ147: 741 | HK147: 234 | HL147: 0 | HM147: 0 | HN147: 0 | HO147: 0 | HP147: 0 | HQ147: 0 | HR147: 0 | HS147: 0 | HT147: 0 | HU147: 0 | HV147: 0 | HW147: 0
A148: 10 | B148: 0 | C148: 0 | D148: 0 | E148: 0 | F148: 0 | G148: 0 | H148: 0 | I148: 0 | J148: 0 | K148: 0 | L148: 0 | M148: 0 | N148: 0 | O148: 0 | P148: 0 | Q148: 0 | R148: 0 | S148: 0 | T148: 0 | U148: 0 | V148: 0 | W148: 0 | X148: 0 | Y148: 0 | Z148: 0 | AA148: 0 | AB148: 0 | AC148: 0 | AD148: 0 | AE148: 0 | AF148: 0 | AG148: 0 | AH148: 0 | AI148: 0 | AJ148: 0 | AK148: 0 | AL148: 0 | AM148: 0 | AN148: 0 | AO148: 0 | AP148: 0 | AQ148: 0 | AR148: 0 | AS148: 0 | AT148: 0 | AU148: 0 | AV148: 0 | AW148: 0 | AX148: 0 | AY148: 0 | AZ148: 0 | BA148: 0 | BB148: 0 | BC148: 0 | BD148: 0 | BE148: 0 | BF148: 0 | BG148: 0 | BH148: 0 | BI148: 0 | BJ148: 0 | BK148: 0 | BL148: 0 | BM148: 0 | BN148: 0 | BO148: 0 | BP148: 0 | BQ148: 0 | BR148: 0 | BS148: 0 | BT148: 0 | BU148: 0 | BV148: 0 | BW148: 0 | BX148: 0 | BY148: 0 | BZ148: 0 | CA148: 0 | CB148: 0 | CC148: 0 | CD148: 0 | CE148: 0 | CF148: 0 | CG148: 0 | CH148: 0 | CI148: 0 | CJ148: 0 | CK148: 0 | CL148: 0 | CM148: 0 | CN148: 0 | CO148: 0 | CP148: 0 | CQ148: 0 | CR148: 0 | CS148: 0 | CT148: 0 | CU148: 0 | CV148: 0 | CW148: 0 | CX148: 0 | CY148: 0 | CZ148: 0 | DA148: 0 | DB148: 0 | DC148: 0 | DD148: 0 | DE148: 0 | DF148: 0 | DG148: 0 | DH148: 0 | DI148: 0 | DJ148: 0 | DK148: 0 | DL148: 0 | DM148: 0 | DN148: 0 | DO148: 0 | DP148: 0 | DQ148: 0 | DR148: 0 | DS148: 0 | DT148: 0 | DU148: 0 | DV148: 0 | DW148: 0 | DX148: 0 | DY148: 0 | DZ148: 0 | EA148: 0 | EB148: 0 | EC148: 0 | ED148: 0 | EE148: 0 | EF148: 0 | EG148: 0 | EH148: 0 | EI148: 0 | EJ148: 0 | EK148: 0 | EL148: 0 | EM148: 0 | EN148: 0 | EO148: 0 | EP148: 0 | EQ148: 0 | ER148: 0 | ES148: 0 | ET148: 0 | EU148: 0 | EV148: 0 | EW148: 0 | EX148: 0 | EY148: 0 | EZ148: 0 | FA148: 0 | FB148: 0 | FC148: 0 | FD148: 0 | FE148: 0 | FF148: 0 | FG148: 0 | FH148: 0 | FI148: 0 | FJ148: 0 | FK148: 0 | FL148: 0 | FM148: 0 | FN148: 0 | FO148: 0 | FP148: 0 | FQ148: 0 | FR148: 0 | FS148: 0 | FT148: 0 | FU148: 3 | FV148: 3 | FW148: 2 | FX148: 0 | FY148: 0 | FZ148: 0 | GA148: 0 | GB148: 0 | GC148: 0 | GD148: 0 | GE148: 0 | GF148: 0 | GG148: 0 | GH148: 0 | GI148: 0 | GJ148: 0 | GK148: 0 | GL148: 0 | GM148: 0 | GN148: 0 | GO148: 0 | GP148: 0 | GQ148: 0 | GR148: 0 | GS148: 0 | GT148: 0 | GU148: 0 | GV148: 0 | GW148: 0 | GX148: 0 | GY148: 0 | GZ148: 0 | HA148: 0 | HB148: 0 | HC148: 0 | HD148: 0 | HE148: 0 | HF148: 0 | HG148: 0 | HH148: 0 | HI148: 0 | HJ148: 0 | HK148: 0 | HL148: 0 | HM148: 0 | HN148: 0 | HO148: 0 | HP148: 0 | HQ148: 0 | HR148: 0 | HS148: 0 | HT148: 0 | HU148: 0 | HV148: 0 | HW148: 0
A149: 11 | B149: 0 | C149: 0 | D149: 0 | E149: 0 | F149: 0 | G149: 0 | H149: 0 | I149: 0 | J149: 0 | K149: 0 | L149: 0 | M149: 0 | N149: 0 | O149: 0 | P149: 0 | Q149: 0 | R149: 0 | S149: 0 | T149: 0 | U149: 0 | V149: 0 | W149: 0 | X149: 0 | Y149: 0 | Z149: 0 | AA149: 0 | AB149: 0 | AC149: 0 | AD149: 0 | AE149: 0 | AF149: 0 | AG149: 0 | AH149: 0 | AI149: 0 | AJ149: 0 | AK149: 0 | AL149: 0 | AM149: 0 | AN149: 0 | AO149: 0 | AP149: 0 | AQ149: 0 | AR149: 0 | AS149: 0 | AT149: 0 | AU149: 0 | AV149: 0 | AW149: 0 | AX149: 0 | AY149: 0 | AZ149: 0 | BA149: 0 | BB149: 0 | BC149: 0 | BD149: 0 | BE149: 0 | BF149: 0 | BG149: 0 | BH149: 0 | BI149: 0 | BJ149: 0 | BK149: 0 | BL149: 0 | BM149: 0 | BN149: 0 | BO149: 0 | BP149: 0 | BQ149: 0 | BR149: 0 | BS149: 0 | BT149: 0 | BU149: 0 | BV149: 0 | BW149: 0 | BX149: 0 | BY149: 0 | BZ149: 0 | CA149: 0 | CB149: 0 | CC149: 0 | CD149: 0 | CE149: 0 | CF149: 0 | CG149: 0 | CH149: 0 | CI149: 0 | CJ149: 0 | CK149: 0 | CL149: 0 | CM149: 0 | CN149: 0 | CO149: 0 | CP149: 0 | CQ149: 0 | CR149: 0 | CS149: 0 | CT149: 0 | CU149: 0 | CV149: 0 | CW149: 0 | CX149: 0 | CY149: 0 | CZ149: 0 | DA149: 0 | DB149: 0 | DC149: 0 | DD149: 0 | DE149: 0 | DF149: 0 | DG149: 0 | DH149: 0 | DI149: 0 | DJ149: 0 | DK149: 0 | DL149: 0 | DM149: 0 | DN149: 0 | DO149: 0 | DP149: 0 | DQ149: 0 | DR149: 0 | DS149: 0 | DT149: 0 | DU149: 0 | DV149: 0 | DW149: 0 | DX149: 0 | DY149: 0 | DZ149: 0 | EA149: 0 | EB149: 0 | EC149: 0 | ED149: 0 | EE149: 0 | EF149: 0 | EG149: 0 | EH149: 0 | EI149: 0 | EJ149: 1 | EK149: 0 | EL149: 0 | EM149: 0 | EN149: 0 | EO149: 0 | EP149: 0 | EQ149: 0 | ER149: 0 | ES149: 0 | ET149: 0 | EU149: 0 | EV149: 0 | EW149: 0 | EX149: 0 | EY149: 0 | EZ149: 0 | FA149: 0 | FB149: 0 | FC149: 0 | FD149: 0 | FE149: 0 | FF149: 0 | FG149: 0 | FH149: 0 | FI149: 0 | FJ149: 0 | FK149: 0 | FL149: 0 | FM149: 0 | FN149: 0 | FO149: 0 | FP149: 0 | FQ149: 0 | FR149: 0 | FS149: 0 | FT149: 0 | FU149: 3 | FV149: 3 | FW149: 3 | FX149: 0 | FY149: 0 | FZ149: 0 | GA149: 0 | GB149: 0 | GC149: 0 | GD149: 0 | GE149: 0 | GF149: 0 | GG149: 0 | GH149: 0 | GI149: 0 | GJ149: 0 | GK149: 0 | GL149: 0 | GM149: 0 | GN149: 0 | GO149: 0 | GP149: 0 | GQ149: 0 | GR149: 0 | GS149: 0 | GT149: 0 | GU149: 0 | GV149: 0 | GW149: 0 | GX149: 0 | GY149: 0 | GZ149: 0 | HA149: 0 | HB149: 0 | HC149: 0 | HD149: 0 | HE149: 0 | HF149: 0 | HG149: 0 | HH149: 0 | HI149: 0 | HJ149: 0 | HK149: 0 | HL149: 0 | HM149: 0 | HN149: 0 | HO149: 0 | HP149: 0 | HQ149: 0 | HR149: 0 | HS149: 0 | HT149: 0 | HU149: 0 | HV149: 0 | HW149: 0
A150: T | B150: 0 | C150: 0 | D150: 0 | E150: 0 | F150: 0 | G150: 0 | H150: 0 | I150: 0 | J150: 0 | K150: 0 | L150: 0 | M150: 0 | N150: 0 | O150: 0 | P150: 0 | Q150: 0 | R150: 0 | S150: 0 | T150: 0 | U150: 0 | V150: 0 | W150: 0 | X150: 0 | Y150: 0 | Z150: 0 | AA150: 0 | AB150: 0 | AC150: 0 | AD150: 0 | AE150: 0 | AF150: 0 | AG150: 0 | AH150: 0 | AI150: 0 | AJ150: 0 | AK150: 0 | AL150: 0 | AM150: 0 | AN150: 0 | AO150: 0 | AP150: 0 | AQ150: 0 | AR150: 0 | AS150: 0 | AT150: 0 | AU150: 0 | AV150: 0 | AW150: 0 | AX150: 0 | AY150: 0 | AZ150: 0 | BA150: 0 | BB150: 0 | BC150: 0 | BD150: 0 | BE150: 0 | BF150: 0 | BG150: 0 | BH150: 0 | BI150: 0 | BJ150: 0 | BK150: 0 | BL150: 0 | BM150: 0 | BN150: 0 | BO150: 0 | BP150: 0 | BQ150: 0 | BR150: 0 | BS150: 0 | BT150: 0 | BU150: 0 | BV150: 0 | BW150: 0 | BX150: 0 | BY150: 0 | BZ150: 0 | CA150: 0 | CB150: 0 | CC150: 0 | CD150: 0 | CE150: 0 | CF150: 0 | CG150: 0 | CH150: 0 | CI150: 0 | CJ150: 0 | CK150: 0 | CL150: 0 | CM150: 0 | CN150: 0 | CO150: 0 | CP150: 0 | CQ150: 0 | CR150: 0 | CS150: 0 | CT150: 0 | CU150: 0 | CV150: 0 | CW150: 0 | CX150: 0 | CY150: 0 | CZ150: 0 | DA150: 0 | DB150: 0 | DC150: 0 | DD150: 0 | DE150: 0 | DF150: 0 | DG150: 0 | DH150: 0 | DI150: 0 | DJ150: 0 | DK150: 0 | DL150: 0 | DM150: 0 | DN150: 0 | DO150: 0 | DP150: 0 | DQ150: 0 | DR150: 0 | DS150: 0 | DT150: 0 | DU150: 0 | DV150: 0 | DW150: 0 | DX150: 0 | DY150: 0 | DZ150: 0 | EA150: 0 | EB150: 0 | EC150: 0 | ED150: 0 | EE150: 0 | EF150: 0 | EG150: 4 | EH150: 0 | EI150: 3 | EJ150: 13 | EK150: 1 | EL150: 0 | EM150: 0 | EN150: 0 | EO150: 0 | EP150: 0 | EQ150: 0 | ER150: 0 | ES150: 0 | ET150: 0 | EU150: 0 | EV150: 0 | EW150: 0 | EX150: 0 | EY150: 0 | EZ150: 0 | FA150: 0 | FB150: 0 | FC150: 0 | FD150: 0 | FE150: 0 | FF150: 0 | FG150: 0 | FH150: 0 | FI150: 0 | FJ150: 0 | FK150: 0 | FL150: 0 | FM150: 0 | FN150: 0 | FO150: 0 | FP150: 0 | FQ150: 0 | FR150: 0 | FS150: 0 | FT150: 0 | FU150: 61 | FV150: 59 | FW150: 35 | FX150: 0 | FY150: 0 | FZ150: 0 | GA150: 0 | GB150: 0 | GC150: 0 | GD150: 0 | GE150: 0 | GF150: 0 | GG150: 0 | GH150: 0 | GI150: 0 | GJ150: 0 | GK150: 0 | GL150: 0 | GM150: 0 | GN150: 0 | GO150: 0 | GP150: 0 | GQ150: 0 | GR150: 0 | GS150: 0 | GT150: 0 | GU150: 0 | GV150: 0 | GW150: 0 | GX150: 0 | GY150: 0 | GZ150: 0 | HA150: 0 | HB150: 0 | HC150: 0 | HD150: 0 | HE150: 0 | HF150: 0 | HG150: 0 | HH150: 0 | HI150: 60 | HJ150: 9261 | HK150: 5890 | HL150: 0 | HM150: 0 | HN150: 0 | HO150: 0 | HP150: 0 | HQ150: 0 | HR150: 0 | HS150: 0 | HT150: 0 | HU150: 0 | HV150: 0 | HW150: 0
A152: TOTAL
A153: =COUNT(A139:A150) -> 11 | B153: =SUM(B139:B150) -> 0 | C153: =SUM(C139:C150) -> 0 | D153: 0 | E153: 0 | F153: 0 | G153: 0 | H153: 0 | I153: 0 | J153: 0 | K153: 0 | L153: 0 | M153: 0 | N153: 0 | O153: 0 | P153: 0 | Q153: 0 | R153: 0 | S153: 0 | T153: 0 | U153: 0 | V153: 0 | W153: 0 | X153: 0 | Y153: 0 | Z153: 0 | AA153: 0 | AB153: 0 | AC153: 0 | AD153: 0 | AE153: 0 | AF153: 0 | AG153: 0 | AH153: 0 | AI153: 0 | AJ153: 0 | AK153: 0 | AL153: 0 | AM153: 0 | AN153: 0 | AO153: 0 | AP153: 0 | AQ153: 0 | AR153: 0 | AS153: 0 | AT153: 0 | AU153: 0 | AV153: 0 | AW153: 0 | AX153: 0 | AY153: 0 | AZ153: 0 | BA153: 0 | BB153: 0 | BC153: 0 | BD153: 0 | BE153: 0 | BF153: 0 | BG153: 0 | BH153: 0 | BI153: 0 | BJ153: 0 | BK153: 0 | BL153: 0 | BM153: 0 | BN153: 0 | BO153: =SUM(BO139:BO150) -> 0 | BP153: 0 | BQ153: 0 | BR153: 0 | BS153: 0 | BT153: 0 | BU153: 0 | BV153: 0 | BW153: 0 | BX153: 0 | BY153: 0 | BZ153: 0 | CA153: 0 | CB153: 0 | CC153: 0 | CD153: 0 | CE153: 0 | CF153: 0 | CG153: 0 | CH153: 0 | CI153: 0 | CJ153: 0 | CK153: 0 | CL153: 0 | CM153: 0 | CN153: 0 | CO153: 0 | CP153: 0 | CQ153: 0 | CR153: 0 | CS153: 0 | CT153: 0 | CU153: 0 | CV153: 0 | CW153: 0 | CX153: 0 | CY153: 0 | CZ153: 0 | DA153: 0 | DB153: 0 | DC153: 0 | DD153: 0 | DE153: 0 | DF153: 0 | DG153: 0 | DH153: 0 | DI153: 0 | DJ153: 0 | DK153: 0 | DL153: 0 | DM153: 0 | DN153: 0 | DO153: 0 | DP153: 0 | DQ153: 0 | DR153: 0 | DS153: 0 | DT153: 0 | DU153: 0 | DV153: 0 | DW153: 0 | DX153: 0 | DY153: 0 | DZ153: 0 | EA153: =SUM(EA139:EA150) -> 0 | EB153: 0 | EC153: 0 | ED153: 0 | EE153: 0 | EF153: 0 | EG153: 8 | EH153: 0 | EI153: 6 | EJ153: 26 | EK153: 2 | EL153: 0 | EM153: 0 | EN153: 0 | EO153: 0 | EP153: 0 | EQ153: 0 | ER153: 0 | ES153: 0 | ET153: 0 | EU153: 0 | EV153: 0 | EW153: 0 | EX153: 0 | EY153: 0 | EZ153: 0 | FA153: 0 | FB153: 0 | FC153: 0 | FD153: 0 | FE153: 0 | FF153: 0 | FG153: 0 | FH153: 0 | FI153: 0 | FJ153: 0 | FK153: 0 | FL153: 0 | FM153: 0 | FN153: 0 | FO153: 0 | FP153: 0 | FQ153: 0 | FR153: 0 | FS153: 0 | FT153: 0 | FU153: 122 | FV153: 118 | FW153: 70 | FX153: 0 | FY153: 0 | FZ153: 0 | GA153: 0 | GB153: 0 | GC153: 0 | GD153: 0 | GE153: 0 | GF153: 0 | GG153: 0 | GH153: 0 | GI153: 0 | GJ153: 0 | GK153: 0 | GL153: 0 | GM153: =SUM(GM139:GM150) -> 0 | GN153: 0 | GO153: 0 | GP153: 0 | GQ153: 0 | GR153: 0 | GS153: 0 | GT153: 0 | GU153: 0 | GV153: 0 | GW153: 0 | GX153: 0 | GY153: 0 | GZ153: 0 | HA153: 0 | HB153: 0 | HC153: 0 | HD153: 0 | HE153: 0 | HF153: 0 | HG153: 0 | HH153: 0 | HI153: 120 | HJ153: 18522 | HK153: 11780 | HL153: 0 | HM153: 0 | HN153: 0 | HO153: 0 | HP153: 0 | HQ153: 0 | HR153: 0 | HS153: 0 | HT153: 0 | HU153: 0 | HV153: 0 | HW153: 0
A154: =CONCATENATE(A139,"-",A140,"-",A141,"-",A142,"-",A143,"-",A144,"-",A145,"-",A146,"-",A147,"-",A148,"-",A149,"-",A150) -> 2-1-3-4-5-6-7-8-9-10-11-T
B155: BAS001 | C155: BAS002 | D155: BAS003 | E155: BAS004 | F155: BAS005 | G155: BAS006 | H155: BAS007 | I155: BAS008 | J155: BAS009 | K155: BAS010 | L155: BAS011 | M155: BAS012 | N155: BAS013 | O155: BAS014 | P155: BAS015 | Q155: BAS016 | R155: BAS017 | S155: BAS018 | T155: BAS019 | U155: BAS020 | V155: BAS021 | W155: BAS022 | X155: BAS023 | Y155: BAS024 | Z155: BAS025 | AA155: BAS026 | AB155: BAS027 | AC155: BAS028 | AD155: BAS029 | AE155: BAS030 | AF155: BAS031 | AG155: BAS032 | AH155: BAS033 | AI155: BAS034 | AJ155: BAS035 | AK155: BAS036 | AL155: BAS037 | AM155: BAS038 | AN155: BAS039 | AO155: BAS040 | AP155: BAS041 | AQ155: BAS042 | AR155: BAS043 | AS155: BAS044 | AT155: BAS045 | AU155: BAS046 | AV155: BAS047 | AW155: BAS048 | AX155: BAS049 | AY155: BAS050 | AZ155: BAS051 | BA155: BAS052 | BB155: BAS053 | BC155: BAS054 | BD155: BAS055 | BE155: BAS056 | BF155: BAS057 | BG155: BAS058 | BH155: BAS059 | BI155: BAS060 | BJ155: BAS061 | BK155: BAS062 | BL155: BAS063 | BM155: BAS064 | BN155: BAS065 | BO155: BAS066 | BP155: BAS067 | BQ155: BAS068 | BR155: BAS069 | BS155: BAS070 | BT155: BAS071 | BU155: BAS072 | BV155: BAS073 | BW155: BAS074 | BX155: BAS075 | BY155: BAS076 | BZ155: BAS077 | CA155: BAS078 | CB155: BAS079 | CC155: BAS080 | CD155: BAS081 | CE155: BAS082 | CF155: BAS083 | CG155: BAS084 | CH155: BAS085 | CI155: BAS086 | CJ155: BAS087 | CK155: BAS088 | CL155: BAS089 | CM155: BAS090 | CN155: BAS091 | CO155: BAS092 | CP155: BAS093 | CQ155: BAS094 | CR155: BAS095 | CS155: BAS096 | CT155: BAS097 | CU155: BAS098 | CV155: BAS099 | CW155: BAS100 | CX155: BAS101 | CY155: BAS102 | CZ155: BAS103 | DA155: BAS104 | DB155: BAS105 | DC155: BAS106 | DD155: BAS107 | DE155: BAS108 | DF155: BAS109 | DG155: BAS110 | DH155: BAS111 | DI155: BAS112 | DJ155: BAS113 | DK155: BAS114 | DL155: BAS115 | DM155: BAS116 | DN155: BAS117 | DO155: BAS118 | DP155: BAS119 | DQ155: BAS120 | DR155: BAS121 | DS155: BAS122 | DT155: BAS123 | DU155: BAS124 | DV155: BAS125 | DW155: BAS126 | DX155: BAS127 | DY155: BAS128 | DZ155: BAS129 | EA155: BAS130 | EB155: BAS131 | EC155: BAS132 | ED155: BAS133 | EE155: BAS134 | EF155: BAS135 | EG155: BAS136 | EH155: BAS137 | EI155: BAS138 | EJ155: BAS139 | EK155: BAS140 | EL155: BAS141 | EM155: BAS142 | EN155: BAS143 | EO155: BAS144 | EP155: BAS145 | EQ155: BAS146 | ER155: BAS147 | ES155: BAS148 | ET155: BAS149 | EU155: BAS150 | EV155: BAS151 | EW155: BAS152 | EX155: BAS153 | EY155: BAS154 | EZ155: BAS155 | FA155: BAS156 | FB155: BAS157 | FC155: BAS158 | FD155: BAS159 | FE155: BAS160 | FF155: BAS161 | FG155: BAS162 | FH155: BAS163 | FI155: BAS164 | FJ155: BAS165 | FK155: BAS166 | FL155: BAS167 | FM155: BAS168 | FN155: BAS169 | FO155: BAS170 | FP155: BAS171 | FQ155: BAS172 | FR155: BAS173 | FS155: BAS174 | FT155: BAS175 | FU155: BAS176 | FV155: BAS177 | FW155: BAS178 | FX155: BAS179 | FY155: BAS180 | FZ155: BAS181 | GA155: BAS182 | GB155: BAS183 | GC155: BAS184 | GD155: BAS185 | GE155: BAS186 | GF155: BAS187 | GG155: BAS188 | GH155: BAS189 | GI155: BAS190 | GJ155: BAS191 | GK155: BAS192 | GL155: BAS193 | GM155: BAS194 | GN155: BAS195 | GO155: BAS196 | GP155: BAS197 | GQ155: BAS198 | GR155: BAS199 | GS155: BAS200 | GT155: BAS201 | GU155: BAS202 | GV155: BAS203 | GW155: BAS204 | GX155: BAS205 | GY155: BAS206 | GZ155: BAS207 | HA155: BAS208 | HB155: BAS209 | HC155: BAS210 | HD155: BAS211 | HE155: BAS212 | HF155: BAS213 | HG155: BAS214 | HH155: BAS215 | HI155: BAS216 | HJ155: BAS217 | HK155: BAS218 | HL155: BAS219 | HM155: BAS220 | HN155: BAS221 | HO155: BAS222 | HP155: BAS223 | HQ155: BAS224 | HR155: BAS225 | HS155: BAS226 | HT155: BAS227 | HU155: BAS228 | HV155: BAS229 | HW155: BAS230
B156: =IF(B155=B138,"SI","NO") -> SI | C156: =IF(C155=C138,"SI","NO") -> SI | D156: SI | E156: SI | F156: SI | G156: SI | H156: SI | I156: SI | J156: SI | K156: SI | L156: SI | M156: SI | N156: SI | O156: SI | P156: SI | Q156: SI | R156: SI | S156: SI | T156: SI | U156: SI | V156: SI | W156: SI | X156: SI | Y156: SI | Z156: SI | AA156: SI | AB156: SI | AC156: SI | AD156: SI | AE156: SI | AF156: SI | AG156: SI | AH156: SI | AI156: SI | AJ156: SI | AK156: SI | AL156: SI | AM156: SI | AN156: SI | AO156: SI | AP156: SI | AQ156: SI | AR156: SI | AS156: SI | AT156: SI | AU156: SI | AV156: SI | AW156: SI | AX156: SI | AY156: SI | AZ156: SI | BA156: SI | BB156: SI | BC156: SI | BD156: SI | BE156: SI | BF156: SI | BG156: SI | BH156: SI | BI156: SI | BJ156: SI | BK156: SI | BL156: SI | BM156: SI | BN156: SI | BO156: =IF(BO155=BO138,"SI","NO") -> SI | BP156: SI | BQ156: SI | BR156: SI | BS156: SI | BT156: SI | BU156: SI | BV156: SI | BW156: SI | BX156: SI | BY156: SI | BZ156: SI | CA156: SI | CB156: SI | CC156: SI | CD156: SI | CE156: SI | CF156: SI | CG156: SI | CH156: SI | CI156: SI | CJ156: SI | CK156: SI | CL156: SI | CM156: SI | CN156: SI | CO156: SI | CP156: SI | CQ156: SI | CR156: SI | CS156: SI | CT156: SI | CU156: SI | CV156: SI | CW156: SI | CX156: SI | CY156: SI | CZ156: SI | DA156: SI | DB156: SI | DC156: SI | DD156: SI | DE156: SI | DF156: SI | DG156: SI | DH156: SI | DI156: SI | DJ156: SI | DK156: SI | DL156: SI | DM156: SI | DN156: SI | DO156: SI | DP156: SI | DQ156: SI | DR156: SI | DS156: SI | DT156: SI | DU156: SI | DV156: SI | DW156: SI | DX156: SI | DY156: SI | DZ156: SI | EA156: =IF(EA155=EA138,"SI","NO") -> SI | EB156: SI | EC156: SI | ED156: SI | EE156: SI | EF156: SI | EG156: SI | EH156: SI | EI156: SI | EJ156: SI | EK156: SI | EL156: SI | EM156: SI | EN156: SI | EO156: SI | EP156: SI | EQ156: SI | ER156: SI | ES156: SI | ET156: SI | EU156: SI | EV156: SI | EW156: SI | EX156: SI | EY156: SI | EZ156: SI | FA156: SI | FB156: SI | FC156: SI | FD156: SI | FE156: SI | FF156: SI | FG156: SI | FH156: SI | FI156: SI | FJ156: SI | FK156: SI | FL156: SI | FM156: SI | FN156: SI | FO156: SI | FP156: SI | FQ156: SI | FR156: SI | FS156: SI | FT156: SI | FU156: SI | FV156: SI | FW156: SI | FX156: SI | FY156: SI | FZ156: SI | GA156: SI | GB156: SI | GC156: SI | GD156: SI | GE156: SI | GF156: SI | GG156: SI | GH156: SI | GI156: SI | GJ156: SI | GK156: SI | GL156: SI | GM156: =IF(GM155=GM138,"SI","NO") -> SI | GN156: SI | GO156: SI | GP156: SI | GQ156: SI | GR156: SI | GS156: SI | GT156: SI | GU156: SI | GV156: SI | GW156: SI | GX156: SI | GY156: SI | GZ156: SI | HA156: SI | HB156: SI | HC156: SI | HD156: SI | HE156: SI | HF156: SI | HG156: SI | HH156: SI | HI156: SI | HJ156: SI | HK156: SI | HL156: SI | HM156: SI | HN156: SI | HO156: SI | HP156: SI | HQ156: SI | HR156: SI | HS156: SI | HT156: SI | HU156: SI | HV156: SI | HW156: SI
A159: R_URBANA 04
A160: anno | B160: 2024
A161: cod_red | B161: 03
A162: codmic | B162: (Todas)
A163: cod_prov | B163: (Todas)
A164: coddist | B164: (Todas)
A165: cod_estab | B165: (Todas)
A166: cod_eje | B166: (Todas)
B168: Valores
A169: Etiquetas de fila | B169: BAS001 | C169: BAS002 | D169: BAS003 | E169: BAS004 | F169: BAS005 | G169: BAS006 | H169: BAS007 | I169: BAS008 | J169: BAS009 | K169: BAS010 | L169: BAS011 | M169: BAS012 | N169: BAS013 | O169: BAS014 | P169: BAS015 | Q169: BAS016 | R169: BAS017 | S169: BAS018 | T169: BAS019 | U169: BAS020 | V169: BAS021 | W169: BAS022 | X169: BAS023 | Y169: BAS024 | Z169: BAS025 | AA169: BAS026 | AB169: BAS027 | AC169: BAS028 | AD169: BAS029 | AE169: BAS030 | AF169: BAS031 | AG169: BAS032 | AH169: BAS033 | AI169: BAS034 | AJ169: BAS035 | AK169: BAS036 | AL169: BAS037 | AM169: BAS038 | AN169: BAS039 | AO169: BAS040 | AP169: BAS041 | AQ169: BAS042 | AR169: BAS043 | AS169: BAS044 | AT169: BAS045 | AU169: BAS046 | AV169: BAS047 | AW169: BAS048 | AX169: BAS049 | AY169: BAS050 | AZ169: BAS051 | BA169: BAS052 | BB169: BAS053 | BC169: BAS054 | BD169: BAS055 | BE169: BAS056 | BF169: BAS057 | BG169: BAS058 | BH169: BAS059 | BI169: BAS060 | BJ169: BAS061 | BK169: BAS062 | BL169: BAS063 | BM169: BAS064 | BN169: BAS065 | BO169: BAS066 | BP169: BAS067 | BQ169: BAS068 | BR169: BAS069 | BS169: BAS070 | BT169: BAS071 | BU169: BAS072 | BV169: BAS073 | BW169: BAS074 | BX169: BAS075 | BY169: BAS076 | BZ169: BAS077 | CA169: BAS078 | CB169: BAS079 | CC169: BAS080 | CD169: BAS081 | CE169: BAS082 | CF169: BAS083 | CG169: BAS084 | CH169: BAS085 | CI169: BAS086 | CJ169: BAS087 | CK169: BAS088 | CL169: BAS089 | CM169: BAS090 | CN169: BAS091 | CO169: BAS092 | CP169: BAS093 | CQ169: BAS094 | CR169: BAS095 | CS169: BAS096 | CT169: BAS097 | CU169: BAS098 | CV169: BAS099 | CW169: BAS100 | CX169: BAS101 | CY169: BAS102 | CZ169: BAS103 | DA169: BAS104 | DB169: BAS105 | DC169: BAS106 | DD169: BAS107 | DE169: BAS108 | DF169: BAS109 | DG169: BAS110 | DH169: BAS111 | DI169: BAS112 | DJ169: BAS113 | DK169: BAS114 | DL169: BAS115 | DM169: BAS116 | DN169: BAS117 | DO169: BAS118 | DP169: BAS119 | DQ169: BAS120 | DR169: BAS121 | DS169: BAS122 | DT169: BAS123 | DU169: BAS124 | DV169: BAS125 | DW169: BAS126 | DX169: BAS127 | DY169: BAS128 | DZ169: BAS129 | EA169: BAS130 | EB169: BAS131 | EC169: BAS132 | ED169: BAS133 | EE169: BAS134 | EF169: BAS135 | EG169: BAS136 | EH169: BAS137 | EI169: BAS138 | EJ169: BAS139 | EK169: BAS140 | EL169: BAS141 | EM169: BAS142 | EN169: BAS143 | EO169: BAS144 | EP169: BAS145 | EQ169: BAS146 | ER169: BAS147 | ES169: BAS148 | ET169: BAS149 | EU169: BAS150 | EV169: BAS151 | EW169: BAS152 | EX169: BAS153 | EY169: BAS154 | EZ169: BAS155 | FA169: BAS156 | FB169: BAS157 | FC169: BAS158 | FD169: BAS159 | FE169: BAS160 | FF169: BAS161 | FG169: BAS162 | FH169: BAS163 | FI169: BAS164 | FJ169: BAS165 | FK169: BAS166 | FL169: BAS167 | FM169: BAS168 | FN169: BAS169 | FO169: BAS170 | FP169: BAS171 | FQ169: BAS172 | FR169: BAS173 | FS169: BAS174 | FT169: BAS175 | FU169: BAS176 | FV169: BAS177 | FW169: BAS178 | FX169: BAS179 | FY169: BAS180 | FZ169: BAS181 | GA169: BAS182 | GB169: BAS183 | GC169: BAS184 | GD169: BAS185 | GE169: BAS186 | GF169: BAS187 | GG169: BAS188 | GH169: BAS189 | GI169: BAS190 | GJ169: BAS191 | GK169: BAS192 | GL169: BAS193 | GM169: BAS194 | GN169: BAS195 | GO169: BAS196 | GP169: BAS197 | GQ169: BAS198 | GR169: BAS199 | GS169: BAS200 | GT169: BAS201 | GU169: BAS202 | GV169: BAS203 | GW169: BAS204 | GX169: BAS205 | GY169: BAS206 | GZ169: BAS207 | HA169: BAS208 | HB169: BAS209 | HC169: BAS210 | HD169: BAS211 | HE169: BAS212 | HF169: BAS213 | HG169: BAS214 | HH169: BAS215 | HI169: BAS216 | HJ169: BAS217 | HK169: BAS218 | HL169: BAS219 | HM169: BAS220 | HN169: BAS221 | HO169: BAS222 | HP169: BAS223 | HQ169: BAS224 | HR169: BAS225 | HS169: BAS226 | HT169: BAS227 | HU169: BAS228 | HV169: BAS229 | HW169: BAS230
A170: 2 | B170: 0 | C170: 0 | D170: 0 | E170: 0 | F170: 0 | G170: 0 | H170: 0 | I170: 0 | J170: 0 | K170: 0 | L170: 0 | M170: 0 | N170: 0 | O170: 0 | P170: 0 | Q170: 0 | R170: 0 | S170: 0 | T170: 0 | U170: 0 | V170: 0 | W170: 0 | X170: 0 | Y170: 0 | Z170: 0 | AA170: 0 | AB170: 0 | AC170: 0 | AD170: 0 | AE170: 0 | AF170: 0 | AG170: 0 | AH170: 0 | AI170: 0 | AJ170: 0 | AK170: 0 | AL170: 0 | AM170: 0 | AN170: 0 | AO170: 0 | AP170: 0 | AQ170: 0 | AR170: 0 | AS170: 0 | AT170: 0 | AU170: 0 | AV170: 0 | AW170: 0 | AX170: 0 | AY170: 0 | AZ170: 0 | BA170: 0 | BB170: 0 | BC170: 0 | BD170: 0 | BE170: 0 | BF170: 0 | BG170: 0 | BH170: 0 | BI170: 0 | BJ170: 0 | BK170: 0 | BL170: 0 | BM170: 0 | BN170: 0 | BO170: 0 | BP170: 0 | BQ170: 0 | BR170: 0 | BS170: 0 | BT170: 0 | BU170: 0 | BV170: 0 | BW170: 0 | BX170: 0 | BY170: 0 | BZ170: 0 | CA170: 0 | CB170: 0 | CC170: 0 | CD170: 0 | CE170: 0 | CF170: 0 | CG170: 0 | CH170: 0 | CI170: 0 | CJ170: 0 | CK170: 0 | CL170: 0 | CM170: 0 | CN170: 0 | CO170: 0 | CP170: 0 | CQ170: 0 | CR170: 0 | CS170: 0 | CT170: 0 | CU170: 0 | CV170: 0 | CW170: 0 | CX170: 0 | CY170: 0 | CZ170: 0 | DA170: 0 | DB170: 0 | DC170: 0 | DD170: 0 | DE170: 0 | DF170: 0 | DG170: 0 | DH170: 0 | DI170: 0 | DJ170: 0 | DK170: 0 | DL170: 0 | DM170: 0 | DN170: 0 | DO170: 0 | DP170: 0 | DQ170: 0 | DR170: 0 | DS170: 0 | DT170: 0 | DU170: 0 | DV170: 0 | DW170: 0 | DX170: 0 | DY170: 0 | DZ170: 0 | EA170: 0 | EB170: 0 | EC170: 0 | ED170: 0 | EE170: 0 | EF170: 0 | EG170: 0 | EH170: 0 | EI170: 0 | EJ170: 0 | EK170: 0 | EL170: 0 | EM170: 0 | EN170: 0 | EO170: 0 | EP170: 0 | EQ170: 0 | ER170: 0 | ES170: 0 | ET170: 0 | EU170: 0 | EV170: 0 | EW170: 0 | EX170: 0 | EY170: 0 | EZ170: 0 | FA170: 0 | FB170: 0 | FC170: 0 | FD170: 0 | FE170: 0 | FF170: 0 | FG170: 0 | FH170: 0 | FI170: 0 | FJ170: 0 | FK170: 0 | FL170: 0 | FM170: 0 | FN170: 0 | FO170: 0 | FP170: 0 | FQ170: 0 | FR170: 0 | FS170: 0 | FT170: 0 | FU170: 0 | FV170: 0 | FW170: 0 | FX170: 0 | FY170: 0 | FZ170: 0 | GA170: 0 | GB170: 0 | GC170: 0 | GD170: 0 | GE170: 0 | GF170: 0 | GG170: 0 | GH170: 0 | GI170: 0 | GJ170: 0 | GK170: 0 | GL170: 0 | GM170: 0 | GN170: 0 | GO170: 0 | GP170: 0 | GQ170: 0 | GR170: 0 | GS170: 0 | GT170: 0 | GU170: 0 | GV170: 0 | GW170: 0 | GX170: 0 | GY170: 0 | GZ170: 0 | HA170: 0 | HB170: 0 | HC170: 0 | HD170: 0 | HE170: 0 | HF170: 0 | HG170: 0 | HH170: 0 | HI170: 0 | HJ170: 0 | HK170: 0 | HL170: 0 | HM170: 0 | HN170: 0 | HO170: 0 | HP170: 0 | HQ170: 0 | HR170: 0 | HS170: 0 | HT170: 0 | HU170: 0 | HV170: 0 | HW170: 0
A171: 1 | B171: 0 | C171: 0 | D171: 0 | E171: 0 | F171: 0 | G171: 0 | H171: 0 | I171: 0 | J171: 0 | K171: 0 | L171: 0 | M171: 0 | N171: 0 | O171: 0 | P171: 0 | Q171: 0 | R171: 0 | S171: 0 | T171: 0 | U171: 0 | V171: 0 | W171: 0 | X171: 0 | Y171: 0 | Z171: 0 | AA171: 0 | AB171: 0 | AC171: 0 | AD171: 0 | AE171: 0 | AF171: 0 | AG171: 0 | AH171: 0 | AI171: 0 | AJ171: 0 | AK171: 0 | AL171: 0 | AM171: 0 | AN171: 0 | AO171: 0 | AP171: 0 | AQ171: 0 | AR171: 0 | AS171: 0 | AT171: 0 | AU171: 0 | AV171: 0 | AW171: 0 | AX171: 0 | AY171: 0 | AZ171: 0 | BA171: 0 | BB171: 0 | BC171: 0 | BD171: 0 | BE171: 0 | BF171: 0 | BG171: 0 | BH171: 0 | BI171: 0 | BJ171: 0 | BK171: 0 | BL171: 0 | BM171: 0 | BN171: 0 | BO171: 0 | BP171: 0 | BQ171: 0 | BR171: 0 | BS171: 0 | BT171: 0 | BU171: 0 | BV171: 0 | BW171: 0 | BX171: 0 | BY171: 0 | BZ171: 0 | CA171: 0 | CB171: 0 | CC171: 0 | CD171: 0 | CE171: 0 | CF171: 0 | CG171: 0 | CH171: 0 | CI171: 0 | CJ171: 0 | CK171: 0 | CL171: 0 | CM171: 0 | CN171: 0 | CO171: 0 | CP171: 0 | CQ171: 0 | CR171: 0 | CS171: 0 | CT171: 0 | CU171: 0 | CV171: 0 | CW171: 0 | CX171: 0 | CY171: 0 | CZ171: 0 | DA171: 0 | DB171: 0 | DC171: 0 | DD171: 0 | DE171: 0 | DF171: 0 | DG171: 0 | DH171: 0 | DI171: 0 | DJ171: 0 | DK171: 0 | DL171: 0 | DM171: 0 | DN171: 0 | DO171: 0 | DP171: 0 | DQ171: 0 | DR171: 0 | DS171: 0 | DT171: 0 | DU171: 0 | DV171: 0 | DW171: 0 | DX171: 0 | DY171: 0 | DZ171: 0 | EA171: 0 | EB171: 0 | EC171: 0 | ED171: 0 | EE171: 0 | EF171: 0 | EG171: 0 | EH171: 0 | EI171: 0 | EJ171: 0 | EK171: 0 | EL171: 0 | EM171: 0 | EN171: 0 | EO171: 0 | EP171: 0 | EQ171: 0 | ER171: 0 | ES171: 0 | ET171: 0 | EU171: 0 | EV171: 0 | EW171: 0 | EX171: 0 | EY171: 0 | EZ171: 0 | FA171: 0 | FB171: 0 | FC171: 0 | FD171: 0 | FE171: 0 | FF171: 0 | FG171: 0 | FH171: 0 | FI171: 0 | FJ171: 0 | FK171: 0 | FL171: 0 | FM171: 0 | FN171: 0 | FO171: 0 | FP171: 0 | FQ171: 0 | FR171: 0 | FS171: 0 | FT171: 0 | FU171: 0 | FV171: 0 | FW171: 0 | FX171: 0 | FY171: 0 | FZ171: 0 | GA171: 0 | GB171: 0 | GC171: 0 | GD171: 0 | GE171: 0 | GF171: 0 | GG171: 0 | GH171: 0 | GI171: 0 | GJ171: 0 | GK171: 0 | GL171: 0 | GM171: 0 | GN171: 0 | GO171: 0 | GP171: 0 | GQ171: 0 | GR171: 0 | GS171: 0 | GT171: 0 | GU171: 0 | GV171: 0 | GW171: 0 | GX171: 0 | GY171: 0 | GZ171: 0 | HA171: 0 | HB171: 0 | HC171: 0 | HD171: 0 | HE171: 0 | HF171: 0 | HG171: 0 | HH171: 0 | HI171: 0 | HJ171: 0 | HK171: 0 | HL171: 0 | HM171: 0 | HN171: 0 | HO171: 0 | HP171: 0 | HQ171: 0 | HR171: 0 | HS171: 0 | HT171: 0 | HU171: 0 | HV171: 0 | HW171: 0
A172: 3 | B172: 0 | C172: 0 | D172: 0 | E172: 0 | F172: 0 | G172: 0 | H172: 0 | I172: 0 | J172: 0 | K172: 0 | L172: 0 | M172: 0 | N172: 0 | O172: 0 | P172: 0 | Q172: 0 | R172: 0 | S172: 0 | T172: 0 | U172: 0 | V172: 0 | W172: 0 | X172: 0 | Y172: 0 | Z172: 0 | AA172: 0 | AB172: 0 | AC172: 0 | AD172: 0 | AE172: 0 | AF172: 0 | AG172: 0 | AH172: 0 | AI172: 0 | AJ172: 0 | AK172: 0 | AL172: 0 | AM172: 0 | AN172: 0 | AO172: 0 | AP172: 0 | AQ172: 0 | AR172: 0 | AS172: 0 | AT172: 0 | AU172: 0 | AV172: 0 | AW172: 0 | AX172: 0 | AY172: 0 | AZ172: 0 | BA172: 0 | BB172: 0 | BC172: 1 | BD172: 0 | BE172: 0 | BF172: 0 | BG172: 0 | BH172: 1 | BI172: 0 | BJ172: 0 | BK172: 0 | BL172: 0 | BM172: 1 | BN172: 0 | BO172: 0 | BP172: 0 | BQ172: 0 | BR172: 0 | BS172: 0 | BT172: 0 | BU172: 0 | BV172: 0 | BW172: 0 | BX172: 0 | BY172: 0 | BZ172: 0 | CA172: 0 | CB172: 1 | CC172: 0 | CD172: 0 | CE172: 0 | CF172: 0 | CG172: 1 | CH172: 0 | CI172: 0 | CJ172: 0 | CK172: 0 | CL172: 1 | CM172: 0 | CN172: 0 | CO172: 0 | CP172: 0 | CQ172: 0 | CR172: 0 | CS172: 0 | CT172: 0 | CU172: 0 | CV172: 0 | CW172: 0 | CX172: 0 | CY172: 0 | CZ172: 0 | DA172: 0 | DB172: 0 | DC172: 0 | DD172: 0 | DE172: 0 | DF172: 0 | DG172: 0 | DH172: 0 | DI172: 0 | DJ172: 0 | DK172: 0 | DL172: 0 | DM172: 0 | DN172: 0 | DO172: 0 | DP172: 0 | DQ172: 0 | DR172: 0 | DS172: 0 | DT172: 0 | DU172: 0 | DV172: 0 | DW172: 0 | DX172: 0 | DY172: 0 | DZ172: 0 | EA172: 0 | EB172: 0 | EC172: 0 | ED172: 0 | EE172: 0 | EF172: 0 | EG172: 0 | EH172: 0 | EI172: 0 | EJ172: 0 | EK172: 0 | EL172: 0 | EM172: 0 | EN172: 0 | EO172: 0 | EP172: 0 | EQ172: 0 | ER172: 0 | ES172: 0 | ET172: 0 | EU172: 0 | EV172: 0 | EW172: 0 | EX172: 0 | EY172: 0 | EZ172: 0 | FA172: 0 | FB172: 0 | FC172: 0 | FD172: 0 | FE172: 0 | FF172: 0 | FG172: 0 | FH172: 0 | FI172: 0 | FJ172: 0 | FK172: 0 | FL172: 0 | FM172: 0 | FN172: 0 | FO172: 0 | FP172: 0 | FQ172: 0 | FR172: 0 | FS172: 0 | FT172: 0 | FU172: 0 | FV172: 0 | FW172: 0 | FX172: 0 | FY172: 0 | FZ172: 0 | GA172: 0 | GB172: 0 | GC172: 0 | GD172: 0 | GE172: 0 | GF172: 0 | GG172: 0 | GH172: 0 | GI172: 0 | GJ172: 0 | GK172: 0 | GL172: 0 | GM172: 0 | GN172: 0 | GO172: 0 | GP172: 0 | GQ172: 0 | GR172: 0 | GS172: 0 | GT172: 0 | GU172: 0 | GV172: 0 | GW172: 0 | GX172: 0 | GY172: 0 | GZ172: 0 | HA172: 0 | HB172: 0 | HC172: 0 | HD172: 0 | HE172: 0 | HF172: 0 | HG172: 0 | HH172: 0 | HI172: 0 | HJ172: 0 | HK172: 0 | HL172: 0 | HM172: 0 | HN172: 0 | HO172: 0 | HP172: 0 | HQ172: 0 | HR172: 0 | HS172: 0 | HT172: 0 | HU172: 0 | HV172: 0 | HW172: 0
A173: 4 | B173: 0 | C173: 0 | D173: 0 | E173: 0 | F173: 0 | G173: 0 | H173: 0 | I173: 0 | J173: 0 | K173: 0 | L173: 0 | M173: 0 | N173: 0 | O173: 0 | P173: 0 | Q173: 0 | R173: 0 | S173: 0 | T173: 0 | U173: 0 | V173: 0 | W173: 0 | X173: 0 | Y173: 0 | Z173: 0 | AA173: 0 | AB173: 0 | AC173: 0 | AD173: 0 | AE173: 0 | AF173: 0 | AG173: 0 | AH173: 0 | AI173: 0 | AJ173: 0 | AK173: 1 | AL173: 0 | AM173: 0 | AN173: 2 | AO173: 0 | AP173: 0 | AQ173: 0 | AR173: 0 | AS173: 0 | AT173: 0 | AU173: 0 | AV173: 0 | AW173: 0 | AX173: 0 | AY173: 0 | AZ173: 0 | BA173: 0 | BB173: 0 | BC173: 0 | BD173: 0 | BE173: 0 | BF173: 0 | BG173: 0 | BH173: 0 | BI173: 0 | BJ173: 0 | BK173: 0 | BL173: 0 | BM173: 0 | BN173: 0 | BO173: 0 | BP173: 0 | BQ173: 0 | BR173: 0 | BS173: 0 | BT173: 0 | BU173: 0 | BV173: 0 | BW173: 0 | BX173: 0 | BY173: 1 | BZ173: 0 | CA173: 0 | CB173: 3 | CC173: 0 | CD173: 1 | CE173: 0 | CF173: 0 | CG173: 2 | CH173: 0 | CI173: 0 | CJ173: 0 | CK173: 0 | CL173: 0 | CM173: 0 | CN173: 0 | CO173: 0 | CP173: 0 | CQ173: 1 | CR173: 0 | CS173: 0 | CT173: 0 | CU173: 0 | CV173: 0 | CW173: 0 | CX173: 0 | CY173: 0 | CZ173: 0 | DA173: 0 | DB173: 0 | DC173: 0 | DD173: 0 | DE173: 0 | DF173: 0 | DG173: 0 | DH173: 0 | DI173: 0 | DJ173: 0 | DK173: 0 | DL173: 0 | DM173: 0 | DN173: 0 | DO173: 0 | DP173: 0 | DQ173: 0 | DR173: 0 | DS173: 0 | DT173: 0 | DU173: 0 | DV173: 0 | DW173: 0 | DX173: 0 | DY173: 0 | DZ173: 0 | EA173: 0 | EB173: 0 | EC173: 0 | ED173: 0 | EE173: 0 | EF173: 0 | EG173: 0 | EH173: 0 | EI173: 0 | EJ173: 0 | EK173: 0 | EL173: 0 | EM173: 0 | EN173: 0 | EO173: 0 | EP173: 0 | EQ173: 0 | ER173: 0 | ES173: 0 | ET173: 0 | EU173: 0 | EV173: 0 | EW173: 0 | EX173: 0 | EY173: 0 | EZ173: 0 | FA173: 0 | FB173: 0 | FC173: 0 | FD173: 0 | FE173: 0 | FF173: 0 | FG173: 0 | FH173: 0 | FI173: 0 | FJ173: 0 | FK173: 0 | FL173: 0 | FM173: 0 | FN173: 0 | FO173: 0 | FP173: 0 | FQ173: 0 | FR173: 0 | FS173: 0 | FT173: 0 | FU173: 0 | FV173: 0 | FW173: 0 | FX173: 0 | FY173: 0 | FZ173: 0 | GA173: 0 | GB173: 0 | GC173: 0 | GD173: 0 | GE173: 0 | GF173: 0 | GG173: 0 | GH173: 0 | GI173: 0 | GJ173: 0 | GK173: 0 | GL173: 0 | GM173: 0 | GN173: 0 | GO173: 0 | GP173: 0 | GQ173: 0 | GR173: 0 | GS173: 0 | GT173: 0 | GU173: 0 | GV173: 0 | GW173: 0 | GX173: 0 | GY173: 0 | GZ173: 0 | HA173: 0 | HB173: 0 | HC173: 0 | HD173: 0 | HE173: 0 | HF173: 0 | HG173: 0 | HH173: 0 | HI173: 0 | HJ173: 0 | HK173: 0 | HL173: 0 | HM173: 0 | HN173: 0 | HO173: 0 | HP173: 0 | HQ173: 0 | HR173: 0 | HS173: 0 | HT173: 0 | HU173: 0 | HV173: 0 | HW173: 0
A174: 5 | B174: 0 | C174: 0 | D174: 0 | E174: 0 | F174: 0 | G174: 0 | H174: 0 | I174: 0 | J174: 0 | K174: 0 | L174: 0 | M174: 0 | N174: 0 | O174: 0 | P174: 0 | Q174: 0 | R174: 0 | S174: 0 | T174: 0 | U174: 0 | V174: 0 | W174: 0 | X174: 0 | Y174: 0 | Z174: 0 | AA174: 0 | AB174: 0 | AC174: 0 | AD174: 0 | AE174: 0 | AF174: 0 | AG174: 0 | AH174: 0 | AI174: 1 | AJ174: 0 | AK174: 0 | AL174: 0 | AM174: 0 | AN174: 0 | AO174: 0 | AP174: 1 | AQ174: 0 | AR174: 0 | AS174: 2 | AT174: 0 | AU174: 0 | AV174: 0 | AW174: 0 | AX174: 0 | AY174: 0 | AZ174: 0 | BA174: 0 | BB174: 0 | BC174: 0 | BD174: 0 | BE174: 0 | BF174: 0 | BG174: 0 | BH174: 0 | BI174: 0 | BJ174: 0 | BK174: 0 | BL174: 0 | BM174: 0 | BN174: 0 | BO174: 0 | BP174: 0 | BQ174: 0 | BR174: 0 | BS174: 0 | BT174: 0 | BU174: 0 | BV174: 0 | BW174: 0 | BX174: 0 | BY174: 0 | BZ174: 0 | CA174: 0 | CB174: 0 | CC174: 0 | CD174: 0 | CE174: 0 | CF174: 0 | CG174: 0 | CH174: 0 | CI174: 0 | CJ174: 0 | CK174: 0 | CL174: 0 | CM174: 0 | CN174: 0 | CO174: 0 | CP174: 0 | CQ174: 0 | CR174: 0 | CS174: 0 | CT174: 0 | CU174: 0 | CV174: 0 | CW174: 0 | CX174: 0 | CY174: 0 | CZ174: 0 | DA174: 0 | DB174: 0 | DC174: 0 | DD174: 0 | DE174: 0 | DF174: 0 | DG174: 0 | DH174: 0 | DI174: 0 | DJ174: 0 | DK174: 0 | DL174: 0 | DM174: 0 | DN174: 0 | DO174: 0 | DP174: 0 | DQ174: 0 | DR174: 0 | DS174: 0 | DT174: 0 | DU174: 0 | DV174: 0 | DW174: 0 | DX174: 0 | DY174: 0 | DZ174: 0 | EA174: 0 | EB174: 0 | EC174: 0 | ED174: 0 | EE174: 0 | EF174: 0 | EG174: 0 | EH174: 0 | EI174: 0 | EJ174: 0 | EK174: 0 | EL174: 0 | EM174: 0 | EN174: 0 | EO174: 0 | EP174: 0 | EQ174: 0 | ER174: 0 | ES174: 0 | ET174: 0 | EU174: 0 | EV174: 0 | EW174: 0 | EX174: 0 | EY174: 0 | EZ174: 0 | FA174: 0 | FB174: 0 | FC174: 0 | FD174: 0 | FE174: 0 | FF174: 0 | FG174: 0 | FH174: 0 | FI174: 0 | FJ174: 0 | FK174: 0 | FL174: 0 | FM174: 0 | FN174: 0 | FO174: 0 | FP174: 0 | FQ174: 0 | FR174: 0 | FS174: 0 | FT174: 0 | FU174: 0 | FV174: 0 | FW174: 0 | FX174: 0 | FY174: 0 | FZ174: 0 | GA174: 0 | GB174: 0 | GC174: 0 | GD174: 0 | GE174: 0 | GF174: 0 | GG174: 0 | GH174: 0 | GI174: 0 | GJ174: 0 | GK174: 0 | GL174: 0 | GM174: 0 | GN174: 0 | GO174: 0 | GP174: 0 | GQ174: 0 | GR174: 0 | GS174: 0 | GT174: 0 | GU174: 0 | GV174: 0 | GW174: 0 | GX174: 0 | GY174: 0 | GZ174: 0 | HA174: 0 | HB174: 0 | HC174: 0 | HD174: 0 | HE174: 0 | HF174: 0 | HG174: 0 | HH174: 0 | HI174: 0 | HJ174: 0 | HK174: 0 | HL174: 0 | HM174: 0 | HN174: 0 | HO174: 0 | HP174: 0 | HQ174: 0 | HR174: 0 | HS174: 0 | HT174: 0 | HU174: 0 | HV174: 0 | HW174: 0
A175: 6 | B175: 0 | C175: 0 | D175: 0 | E175: 0 | F175: 0 | G175: 0 | H175: 0 | I175: 0 | J175: 0 | K175: 0 | L175: 0 | M175: 0 | N175: 0 | O175: 0 | P175: 0 | Q175: 0 | R175: 0 | S175: 0 | T175: 0 | U175: 0 | V175: 0 | W175: 0 | X175: 0 | Y175: 0 | Z175: 0 | AA175: 0 | AB175: 0 | AC175: 0 | AD175: 0 | AE175: 0 | AF175: 0 | AG175: 0 | AH175: 0 | AI175: 0 | AJ175: 0 | AK175: 0 | AL175: 0 | AM175: 0 | AN175: 0 | AO175: 0 | AP175: 0 | AQ175: 0 | AR175: 0 | AS175: 0 | AT175: 0 | AU175: 0 | AV175: 0 | AW175: 0 | AX175: 0 | AY175: 0 | AZ175: 0 | BA175: 0 | BB175: 0 | BC175: 0 | BD175: 0 | BE175: 0 | BF175: 0 | BG175: 0 | BH175: 0 | BI175: 0 | BJ175: 0 | BK175: 0 | BL175: 0 | BM175: 0 | BN175: 0 | BO175: 0 | BP175: 0 | BQ175: 0 | BR175: 0 | BS175: 0 | BT175: 0 | BU175: 0 | BV175: 0 | BW175: 0 | BX175: 0 | BY175: 0 | BZ175: 0 | CA175: 0 | CB175: 0 | CC175: 0 | CD175: 0 | CE175: 0 | CF175: 0 | CG175: 0 | CH175: 0 | CI175: 0 | CJ175: 0 | CK175: 0 | CL175: 0 | CM175: 0 | CN175: 0 | CO175: 0 | CP175: 0 | CQ175: 0 | CR175: 0 | CS175: 0 | CT175: 0 | CU175: 0 | CV175: 0 | CW175: 0 | CX175: 0 | CY175: 0 | CZ175: 0 | DA175: 0 | DB175: 0 | DC175: 0 | DD175: 0 | DE175: 0 | DF175: 0 | DG175: 0 | DH175: 0 | DI175: 0 | DJ175: 0 | DK175: 0 | DL175: 0 | DM175: 0 | DN175: 0 | DO175: 0 | DP175: 0 | DQ175: 0 | DR175: 0 | DS175: 0 | DT175: 0 | DU175: 0 | DV175: 0 | DW175: 0 | DX175: 0 | DY175: 0 | DZ175: 0 | EA175: 0 | EB175: 0 | EC175: 0 | ED175: 0 | EE175: 0 | EF175: 0 | EG175: 0 | EH175: 0 | EI175: 0 | EJ175: 0 | EK175: 0 | EL175: 0 | EM175: 0 | EN175: 0 | EO175: 0 | EP175: 0 | EQ175: 0 | ER175: 0 | ES175: 0 | ET175: 0 | EU175: 0 | EV175: 0 | EW175: 0 | EX175: 0 | EY175: 0 | EZ175: 0 | FA175: 0 | FB175: 0 | FC175: 0 | FD175: 0 | FE175: 0 | FF175: 0 | FG175: 0 | FH175: 0 | FI175: 0 | FJ175: 0 | FK175: 0 | FL175: 0 | FM175: 0 | FN175: 0 | FO175: 0 | FP175: 0 | FQ175: 0 | FR175: 0 | FS175: 0 | FT175: 0 | FU175: 0 | FV175: 0 | FW175: 0 | FX175: 0 | FY175: 0 | FZ175: 0 | GA175: 0 | GB175: 0 | GC175: 0 | GD175: 0 | GE175: 0 | GF175: 0 | GG175: 0 | GH175: 0 | GI175: 0 | GJ175: 0 | GK175: 0 | GL175: 0 | GM175: 0 | GN175: 0 | GO175: 0 | GP175: 0 | GQ175: 0 | GR175: 0 | GS175: 0 | GT175: 0 | GU175: 0 | GV175: 0 | GW175: 0 | GX175: 0 | GY175: 0 | GZ175: 0 | HA175: 0 | HB175: 0 | HC175: 0 | HD175: 0 | HE175: 0 | HF175: 0 | HG175: 0 | HH175: 0 | HI175: 0 | HJ175: 0 | HK175: 0 | HL175: 0 | HM175: 0 | HN175: 0 | HO175: 0 | HP175: 0 | HQ175: 0 | HR175: 0 | HS175: 0 | HT175: 0 | HU175: 0 | HV175: 0 | HW175: 0
A176: 7 | B176: 0 | C176: 0 | D176: 0 | E176: 0 | F176: 0 | G176: 0 | H176: 0 | I176: 0 | J176: 0 | K176: 0 | L176: 0 | M176: 0 | N176: 0 | O176: 0 | P176: 0 | Q176: 0 | R176: 0 | S176: 0 | T176: 0 | U176: 0 | V176: 0 | W176: 0 | X176: 0 | Y176: 0 | Z176: 0 | AA176: 0 | AB176: 0 | AC176: 0 | AD176: 0 | AE176: 0 | AF176: 0 | AG176: 0 | AH176: 0 | AI176: 0 | AJ176: 0 | AK176: 0 | AL176: 0 | AM176: 0 | AN176: 0 | AO176: 0 | AP176: 0 | AQ176: 0 | AR176: 0 | AS176: 0 | AT176: 0 | AU176: 0 | AV176: 0 | AW176: 0 | AX176: 0 | AY176: 0 | AZ176: 0 | BA176: 0 | BB176: 0 | BC176: 0 | BD176: 0 | BE176: 0 | BF176: 0 | BG176: 0 | BH176: 0 | BI176: 0 | BJ176: 0 | BK176: 0 | BL176: 0 | BM176: 0 | BN176: 0 | BO176: 0 | BP176: 0 | BQ176: 0 | BR176: 0 | BS176: 0 | BT176: 0 | BU176: 0 | BV176: 0 | BW176: 0 | BX176: 0 | BY176: 0 | BZ176: 0 | CA176: 0 | CB176: 0 | CC176: 0 | CD176: 0 | CE176: 0 | CF176: 0 | CG176: 0 | CH176: 0 | CI176: 0 | CJ176: 0 | CK176: 0 | CL176: 0 | CM176: 0 | CN176: 0 | CO176: 0 | CP176: 0 | CQ176: 0 | CR176: 0 | CS176: 0 | CT176: 0 | CU176: 0 | CV176: 0 | CW176: 0 | CX176: 0 | CY176: 0 | CZ176: 0 | DA176: 0 | DB176: 0 | DC176: 0 | DD176: 0 | DE176: 0 | DF176: 0 | DG176: 0 | DH176: 0 | DI176: 0 | DJ176: 0 | DK176: 0 | DL176: 0 | DM176: 0 | DN176: 0 | DO176: 0 | DP176: 0 | DQ176: 0 | DR176: 0 | DS176: 0 | DT176: 0 | DU176: 0 | DV176: 0 | DW176: 0 | DX176: 0 | DY176: 0 | DZ176: 0 | EA176: 0 | EB176: 0 | EC176: 0 | ED176: 0 | EE176: 0 | EF176: 0 | EG176: 0 | EH176: 0 | EI176: 0 | EJ176: 0 | EK176: 0 | EL176: 0 | EM176: 0 | EN176: 0 | EO176: 0 | EP176: 0 | EQ176: 0 | ER176: 0 | ES176: 0 | ET176: 0 | EU176: 0 | EV176: 0 | EW176: 0 | EX176: 0 | EY176: 0 | EZ176: 0 | FA176: 0 | FB176: 0 | FC176: 0 | FD176: 0 | FE176: 0 | FF176: 0 | FG176: 0 | FH176: 0 | FI176: 0 | FJ176: 0 | FK176: 0 | FL176: 0 | FM176: 0 | FN176: 0 | FO176: 0 | FP176: 0 | FQ176: 0 | FR176: 0 | FS176: 0 | FT176: 0 | FU176: 0 | FV176: 0 | FW176: 0 | FX176: 0 | FY176: 0 | FZ176: 0 | GA176: 0 | GB176: 0 | GC176: 0 | GD176: 0 | GE176: 0 | GF176: 0 | GG176: 0 | GH176: 0 | GI176: 0 | GJ176: 0 | GK176: 0 | GL176: 0 | GM176: 0 | GN176: 0 | GO176: 0 | GP176: 0 | GQ176: 0 | GR176: 0 | GS176: 0 | GT176: 0 | GU176: 0 | GV176: 0 | GW176: 0 | GX176: 0 | GY176: 0 | GZ176: 0 | HA176: 0 | HB176: 0 | HC176: 0 | HD176: 0 | HE176: 0 | HF176: 0 | HG176: 0 | HH176: 0 | HI176: 0 | HJ176: 0 | HK176: 0 | HL176: 0 | HM176: 0 | HN176: 0 | HO176: 0 | HP176: 0 | HQ176: 0 | HR176: 0 | HS176: 0 | HT176: 0 | HU176: 0 | HV176: 0 | HW176: 0
A177: 8 | B177: 0 | C177: 0 | D177: 0 | E177: 0 | F177: 0 | G177: 0 | H177: 0 | I177: 0 | J177: 0 | K177: 0 | L177: 0 | M177: 0 | N177: 0 | O177: 0 | P177: 0 | Q177: 0 | R177: 0 | S177: 0 | T177: 0 | U177: 0 | V177: 0 | W177: 0 | X177: 0 | Y177: 0 | Z177: 0 | AA177: 0 | AB177: 0 | AC177: 0 | AD177: 0 | AE177: 0 | AF177: 0 | AG177: 0 | AH177: 0 | AI177: 0 | AJ177: 0 | AK177: 0 | AL177: 0 | AM177: 0 | AN177: 0 | AO177: 0 | AP177: 0 | AQ177: 0 | AR177: 0 | AS177: 0 | AT177: 0 | AU177: 0 | AV177: 0 | AW177: 0 | AX177: 0 | AY177: 0 | AZ177: 0 | BA177: 0 | BB177: 0 | BC177: 0 | BD177: 0 | BE177: 0 | BF177: 0 | BG177: 0 | BH177: 0 | BI177: 2 | BJ177: 0 | BK177: 0 | BL177: 0 | BM177: 0 | BN177: 0 | BO177: 0 | BP177: 0 | BQ177: 0 | BR177: 0 | BS177: 0 | BT177: 0 | BU177: 0 | BV177: 0 | BW177: 0 | BX177: 0 | BY177: 0 | BZ177: 0 | CA177: 0 | CB177: 0 | CC177: 0 | CD177: 0 | CE177: 0 | CF177: 0 | CG177: 0 | CH177: 0 | CI177: 0 | CJ177: 0 | CK177: 0 | CL177: 0 | CM177: 0 | CN177: 0 | CO177: 0 | CP177: 0 | CQ177: 0 | CR177: 0 | CS177: 0 | CT177: 0 | CU177: 0 | CV177: 0 | CW177: 0 | CX177: 0 | CY177: 0 | CZ177: 0 | DA177: 0 | DB177: 0 | DC177: 0 | DD177: 0 | DE177: 0 | DF177: 0 | DG177: 0 | DH177: 0 | DI177: 0 | DJ177: 0 | DK177: 0 | DL177: 0 | DM177: 0 | DN177: 0 | DO177: 0 | DP177: 0 | DQ177: 0 | DR177: 0 | DS177: 0 | DT177: 0 | DU177: 0 | DV177: 0 | DW177: 0 | DX177: 0 | DY177: 0 | DZ177: 0 | EA177: 0 | EB177: 0 | EC177: 0 | ED177: 0 | EE177: 0 | EF177: 0 | EG177: 0 | EH177: 0 | EI177: 0 | EJ177: 0 | EK177: 0 | EL177: 0 | EM177: 0 | EN177: 0 | EO177: 0 | EP177: 0 | EQ177: 0 | ER177: 0 | ES177: 0 | ET177: 0 | EU177: 0 | EV177: 0 | EW177: 0 | EX177: 0 | EY177: 0 | EZ177: 0 | FA177: 0 | FB177: 0 | FC177: 0 | FD177: 0 | FE177: 0 | FF177: 0 | FG177: 0 | FH177: 0 | FI177: 0 | FJ177: 0 | FK177: 0 | FL177: 0 | FM177: 0 | FN177: 0 | FO177: 0 | FP177: 0 | FQ177: 0 | FR177: 0 | FS177: 0 | FT177: 0 | FU177: 0 | FV177: 0 | FW177: 0 | FX177: 0 | FY177: 0 | FZ177: 0 | GA177: 0 | GB177: 0 | GC177: 0 | GD177: 0 | GE177: 0 | GF177: 0 | GG177: 0 | GH177: 0 | GI177: 0 | GJ177: 0 | GK177: 0 | GL177: 0 | GM177: 0 | GN177: 0 | GO177: 0 | GP177: 0 | GQ177: 0 | GR177: 0 | GS177: 0 | GT177: 0 | GU177: 0 | GV177: 0 | GW177: 0 | GX177: 0 | GY177: 0 | GZ177: 0 | HA177: 0 | HB177: 0 | HC177: 0 | HD177: 0 | HE177: 0 | HF177: 0 | HG177: 0 | HH177: 0 | HI177: 0 | HJ177: 0 | HK177: 0 | HL177: 0 | HM177: 0 | HN177: 0 | HO177: 0 | HP177: 0 | HQ177: 0 | HR177: 0 | HS177: 0 | HT177: 0 | HU177: 0 | HV177: 0 | HW177: 0
A178: 9 | B178: 0 | C178: 0 | D178: 0 | E178: 0 | F178: 0 | G178: 0 | H178: 0 | I178: 0 | J178: 0 | K178: 0 | L178: 0 | M178: 0 | N178: 0 | O178: 0 | P178: 0 | Q178: 0 | R178: 0 | S178: 0 | T178: 0 | U178: 0 | V178: 0 | W178: 0 | X178: 0 | Y178: 0 | Z178: 0 | AA178: 0 | AB178: 0 | AC178: 0 | AD178: 0 | AE178: 0 | AF178: 0 | AG178: 0 | AH178: 0 | AI178: 0 | AJ178: 0 | AK178: 0 | AL178: 0 | AM178: 0 | AN178: 0 | AO178: 0 | AP178: 0 | AQ178: 0 | AR178: 0 | AS178: 0 | AT178: 0 | AU178: 0 | AV178: 0 | AW178: 0 | AX178: 0 | AY178: 0 | AZ178: 0 | BA178: 0 | BB178: 0 | BC178: 0 | BD178: 0 | BE178: 0 | BF178: 0 | BG178: 0 | BH178: 0 | BI178: 0 | BJ178: 0 | BK178: 0 | BL178: 0 | BM178: 0 | BN178: 0 | BO178: 0 | BP178: 0 | BQ178: 0 | BR178: 0 | BS178: 0 | BT178: 0 | BU178: 0 | BV178: 0 | BW178: 0 | BX178: 0 | BY178: 0 | BZ178: 0 | CA178: 0 | CB178: 0 | CC178: 0 | CD178: 0 | CE178: 0 | CF178: 0 | CG178: 0 | CH178: 0 | CI178: 0 | CJ178: 0 | CK178: 0 | CL178: 0 | CM178: 0 | CN178: 0 | CO178: 0 | CP178: 0 | CQ178: 0 | CR178: 0 | CS178: 0 | CT178: 0 | CU178: 0 | CV178: 0 | CW178: 0 | CX178: 0 | CY178: 0 | CZ178: 0 | DA178: 0 | DB178: 0 | DC178: 0 | DD178: 0 | DE178: 0 | DF178: 0 | DG178: 0 | DH178: 0 | DI178: 0 | DJ178: 0 | DK178: 0 | DL178: 0 | DM178: 0 | DN178: 0 | DO178: 0 | DP178: 0 | DQ178: 0 | DR178: 0 | DS178: 0 | DT178: 0 | DU178: 0 | DV178: 0 | DW178: 0 | DX178: 0 | DY178: 0 | DZ178: 0 | EA178: 0 | EB178: 0 | EC178: 0 | ED178: 0 | EE178: 0 | EF178: 0 | EG178: 0 | EH178: 0 | EI178: 0 | EJ178: 0 | EK178: 0 | EL178: 0 | EM178: 0 | EN178: 0 | EO178: 0 | EP178: 0 | EQ178: 0 | ER178: 0 | ES178: 0 | ET178: 0 | EU178: 0 | EV178: 0 | EW178: 0 | EX178: 0 | EY178: 0 | EZ178: 0 | FA178: 0 | FB178: 0 | FC178: 0 | FD178: 0 | FE178: 0 | FF178: 0 | FG178: 0 | FH178: 0 | FI178: 0 | FJ178: 0 | FK178: 0 | FL178: 0 | FM178: 0 | FN178: 0 | FO178: 0 | FP178: 0 | FQ178: 0 | FR178: 0 | FS178: 0 | FT178: 0 | FU178: 0 | FV178: 0 | FW178: 0 | FX178: 0 | FY178: 0 | FZ178: 0 | GA178: 0 | GB178: 0 | GC178: 0 | GD178: 0 | GE178: 0 | GF178: 0 | GG178: 0 | GH178: 0 | GI178: 0 | GJ178: 0 | GK178: 0 | GL178: 0 | GM178: 0 | GN178: 0 | GO178: 0 | GP178: 0 | GQ178: 0 | GR178: 0 | GS178: 0 | GT178: 0 | GU178: 0 | GV178: 0 | GW178: 0 | GX178: 0 | GY178: 0 | GZ178: 0 | HA178: 0 | HB178: 0 | HC178: 0 | HD178: 0 | HE178: 0 | HF178: 0 | HG178: 0 | HH178: 0 | HI178: 0 | HJ178: 0 | HK178: 0 | HL178: 0 | HM178: 0 | HN178: 0 | HO178: 0 | HP178: 0 | HQ178: 0 | HR178: 0 | HS178: 0 | HT178: 0 | HU178: 0 | HV178: 0 | HW178: 0
A179: 10 | B179: 0 | C179: 0 | D179: 0 | E179: 0 | F179: 0 | G179: 0 | H179: 0 | I179: 0 | J179: 0 | K179: 0 | L179: 0 | M179: 0 | N179: 0 | O179: 0 | P179: 0 | Q179: 0 | R179: 0 | S179: 0 | T179: 0 | U179: 0 | V179: 0 | W179: 0 | X179: 0 | Y179: 0 | Z179: 0 | AA179: 0 | AB179: 0 | AC179: 0 | AD179: 0 | AE179: 0 | AF179: 0 | AG179: 0 | AH179: 0 | AI179: 0 | AJ179: 0 | AK179: 0 | AL179: 0 | AM179: 0 | AN179: 0 | AO179: 0 | AP179: 0 | AQ179: 0 | AR179: 0 | AS179: 0 | AT179: 0 | AU179: 0 | AV179: 0 | AW179: 0 | AX179: 0 | AY179: 0 | AZ179: 0 | BA179: 0 | BB179: 0 | BC179: 0 | BD179: 0 | BE179: 0 | BF179: 0 | BG179: 0 | BH179: 0 | BI179: 0 | BJ179: 0 | BK179: 0 | BL179: 0 | BM179: 0 | BN179: 0 | BO179: 0 | BP179: 0 | BQ179: 0 | BR179: 0 | BS179: 0 | BT179: 0 | BU179: 0 | BV179: 0 | BW179: 0 | BX179: 0 | BY179: 0 | BZ179: 0 | CA179: 0 | CB179: 0 | CC179: 0 | CD179: 0 | CE179: 0 | CF179: 0 | CG179: 0 | CH179: 0 | CI179: 0 | CJ179: 0 | CK179: 0 | CL179: 0 | CM179: 0 | CN179: 0 | CO179: 0 | CP179: 0 | CQ179: 0 | CR179: 0 | CS179: 0 | CT179: 0 | CU179: 0 | CV179: 0 | CW179: 0 | CX179: 0 | CY179: 0 | CZ179: 0 | DA179: 0 | DB179: 0 | DC179: 0 | DD179: 0 | DE179: 0 | DF179: 0 | DG179: 0 | DH179: 0 | DI179: 0 | DJ179: 0 | DK179: 0 | DL179: 0 | DM179: 0 | DN179: 0 | DO179: 0 | DP179: 0 | DQ179: 0 | DR179: 0 | DS179: 0 | DT179: 0 | DU179: 0 | DV179: 0 | DW179: 0 | DX179: 0 | DY179: 0 | DZ179: 0 | EA179: 0 | EB179: 0 | EC179: 0 | ED179: 0 | EE179: 0 | EF179: 0 | EG179: 0 | EH179: 0 | EI179: 0 | EJ179: 0 | EK179: 0 | EL179: 0 | EM179: 0 | EN179: 0 | EO179: 0 | EP179: 0 | EQ179: 0 | ER179: 0 | ES179: 0 | ET179: 0 | EU179: 0 | EV179: 0 | EW179: 0 | EX179: 0 | EY179: 0 | EZ179: 0 | FA179: 0 | FB179: 0 | FC179: 0 | FD179: 0 | FE179: 0 | FF179: 0 | FG179: 0 | FH179: 0 | FI179: 0 | FJ179: 0 | FK179: 0 | FL179: 0 | FM179: 0 | FN179: 0 | FO179: 0 | FP179: 0 | FQ179: 0 | FR179: 0 | FS179: 0 | FT179: 0 | FU179: 0 | FV179: 0 | FW179: 0 | FX179: 0 | FY179: 0 | FZ179: 0 | GA179: 0 | GB179: 0 | GC179: 0 | GD179: 0 | GE179: 0 | GF179: 0 | GG179: 0 | GH179: 0 | GI179: 0 | GJ179: 0 | GK179: 0 | GL179: 0 | GM179: 0 | GN179: 0 | GO179: 0 | GP179: 0 | GQ179: 0 | GR179: 0 | GS179: 0 | GT179: 0 | GU179: 0 | GV179: 0 | GW179: 0 | GX179: 0 | GY179: 0 | GZ179: 0 | HA179: 0 | HB179: 0 | HC179: 0 | HD179: 0 | HE179: 0 | HF179: 0 | HG179: 0 | HH179: 0 | HI179: 0 | HJ179: 0 | HK179: 0 | HL179: 0 | HM179: 0 | HN179: 0 | HO179: 0 | HP179: 0 | HQ179: 0 | HR179: 0 | HS179: 0 | HT179: 0 | HU179: 0 | HV179: 0 | HW179: 0
A180: 11 | B180: 0 | C180: 0 | D180: 0 | E180: 0 | F180: 0 | G180: 0 | H180: 0 | I180: 0 | J180: 0 | K180: 0 | L180: 0 | M180: 0 | N180: 0 | O180: 0 | P180: 0 | Q180: 0 | R180: 0 | S180: 0 | T180: 0 | U180: 0 | V180: 0 | W180: 0 | X180: 0 | Y180: 0 | Z180: 0 | AA180: 0 | AB180: 0 | AC180: 0 | AD180: 0 | AE180: 0 | AF180: 0 | AG180: 0 | AH180: 0 | AI180: 0 | AJ180: 0 | AK180: 0 | AL180: 0 | AM180: 0 | AN180: 0 | AO180: 0 | AP180: 0 | AQ180: 0 | AR180: 0 | AS180: 0 | AT180: 0 | AU180: 0 | AV180: 0 | AW180: 0 | AX180: 0 | AY180: 0 | AZ180: 0 | BA180: 0 | BB180: 0 | BC180: 0 | BD180: 0 | BE180: 0 | BF180: 0 | BG180: 0 | BH180: 0 | BI180: 0 | BJ180: 0 | BK180: 0 | BL180: 0 | BM180: 0 | BN180: 0 | BO180: 0 | BP180: 0 | BQ180: 0 | BR180: 0 | BS180: 0 | BT180: 0 | BU180: 0 | BV180: 0 | BW180: 0 | BX180: 0 | BY180: 0 | BZ180: 0 | CA180: 0 | CB180: 0 | CC180: 0 | CD180: 0 | CE180: 0 | CF180: 0 | CG180: 0 | CH180: 0 | CI180: 0 | CJ180: 0 | CK180: 0 | CL180: 0 | CM180: 0 | CN180: 0 | CO180: 0 | CP180: 0 | CQ180: 0 | CR180: 0 | CS180: 0 | CT180: 0 | CU180: 0 | CV180: 0 | CW180: 0 | CX180: 0 | CY180: 0 | CZ180: 0 | DA180: 0 | DB180: 0 | DC180: 0 | DD180: 0 | DE180: 0 | DF180: 0 | DG180: 0 | DH180: 0 | DI180: 0 | DJ180: 0 | DK180: 0 | DL180: 0 | DM180: 0 | DN180: 0 | DO180: 0 | DP180: 0 | DQ180: 0 | DR180: 0 | DS180: 0 | DT180: 0 | DU180: 0 | DV180: 0 | DW180: 0 | DX180: 0 | DY180: 0 | DZ180: 0 | EA180: 0 | EB180: 0 | EC180: 0 | ED180: 0 | EE180: 0 | EF180: 0 | EG180: 0 | EH180: 0 | EI180: 0 | EJ180: 0 | EK180: 0 | EL180: 0 | EM180: 0 | EN180: 0 | EO180: 0 | EP180: 0 | EQ180: 0 | ER180: 0 | ES180: 0 | ET180: 0 | EU180: 0 | EV180: 0 | EW180: 0 | EX180: 0 | EY180: 0 | EZ180: 0 | FA180: 0 | FB180: 0 | FC180: 0 | FD180: 0 | FE180: 0 | FF180: 0 | FG180: 0 | FH180: 0 | FI180: 0 | FJ180: 0 | FK180: 0 | FL180: 0 | FM180: 0 | FN180: 0 | FO180: 0 | FP180: 0 | FQ180: 0 | FR180: 0 | FS180: 0 | FT180: 0 | FU180: 0 | FV180: 0 | FW180: 0 | FX180: 0 | FY180: 0 | FZ180: 0 | GA180: 0 | GB180: 0 | GC180: 0 | GD180: 0 | GE180: 0 | GF180: 0 | GG180: 0 | GH180: 0 | GI180: 0 | GJ180: 0 | GK180: 0 | GL180: 0 | GM180: 0 | GN180: 0 | GO180: 0 | GP180: 0 | GQ180: 0 | GR180: 0 | GS180: 0 | GT180: 0 | GU180: 0 | GV180: 0 | GW180: 0 | GX180: 0 | GY180: 0 | GZ180: 0 | HA180: 0 | HB180: 0 | HC180: 0 | HD180: 0 | HE180: 0 | HF180: 0 | HG180: 0 | HH180: 0 | HI180: 0 | HJ180: 0 | HK180: 0 | HL180: 0 | HM180: 0 | HN180: 0 | HO180: 0 | HP180: 0 | HQ180: 0 | HR180: 0 | HS180: 0 | HT180: 0 | HU180: 0 | HV180: 0 | HW180: 0
A181: T | B181: 0 | C181: 0 | D181: 0 | E181: 0 | F181: 0 | G181: 0 | H181: 0 | I181: 0 | J181: 0 | K181: 0 | L181: 0 | M181: 0 | N181: 0 | O181: 0 | P181: 0 | Q181: 0 | R181: 0 | S181: 0 | T181: 0 | U181: 0 | V181: 0 | W181: 0 | X181: 0 | Y181: 0 | Z181: 0 | AA181: 0 | AB181: 0 | AC181: 0 | AD181: 0 | AE181: 0 | AF181: 0 | AG181: 0 | AH181: 0 | AI181: 1 | AJ181: 0 | AK181: 1 | AL181: 0 | AM181: 0 | AN181: 2 | AO181: 0 | AP181: 1 | AQ181: 0 | AR181: 0 | AS181: 2 | AT181: 0 | AU181: 0 | AV181: 0 | AW181: 0 | AX181: 0 | AY181: 0 | AZ181: 0 | BA181: 0 | BB181: 0 | BC181: 1 | BD181: 0 | BE181: 0 | BF181: 0 | BG181: 0 | BH181: 1 | BI181: 2 | BJ181: 0 | BK181: 0 | BL181: 0 | BM181: 1 | BN181: 0 | BO181: 0 | BP181: 0 | BQ181: 0 | BR181: 0 | BS181: 0 | BT181: 0 | BU181: 0 | BV181: 0 | BW181: 0 | BX181: 0 | BY181: 1 | BZ181: 0 | CA181: 0 | CB181: 4 | CC181: 0 | CD181: 1 | CE181: 0 | CF181: 0 | CG181: 3 | CH181: 0 | CI181: 0 | CJ181: 0 | CK181: 0 | CL181: 1 | CM181: 0 | CN181: 0 | CO181: 0 | CP181: 0 | CQ181: 1 | CR181: 0 | CS181: 0 | CT181: 0 | CU181: 0 | CV181: 0 | CW181: 0 | CX181: 0 | CY181: 0 | CZ181: 0 | DA181: 0 | DB181: 0 | DC181: 0 | DD181: 0 | DE181: 0 | DF181: 0 | DG181: 0 | DH181: 0 | DI181: 0 | DJ181: 0 | DK181: 0 | DL181: 0 | DM181: 0 | DN181: 0 | DO181: 0 | DP181: 0 | DQ181: 0 | DR181: 0 | DS181: 0 | DT181: 0 | DU181: 0 | DV181: 0 | DW181: 0 | DX181: 0 | DY181: 0 | DZ181: 0 | EA181: 0 | EB181: 0 | EC181: 0 | ED181: 0 | EE181: 0 | EF181: 0 | EG181: 0 | EH181: 0 | EI181: 0 | EJ181: 0 | EK181: 0 | EL181: 0 | EM181: 0 | EN181: 0 | EO181: 0 | EP181: 0 | EQ181: 0 | ER181: 0 | ES181: 0 | ET181: 0 | EU181: 0 | EV181: 0 | EW181: 0 | EX181: 0 | EY181: 0 | EZ181: 0 | FA181: 0 | FB181: 0 | FC181: 0 | FD181: 0 | FE181: 0 | FF181: 0 | FG181: 0 | FH181: 0 | FI181: 0 | FJ181: 0 | FK181: 0 | FL181: 0 | FM181: 0 | FN181: 0 | FO181: 0 | FP181: 0 | FQ181: 0 | FR181: 0 | FS181: 0 | FT181: 0 | FU181: 0 | FV181: 0 | FW181: 0 | FX181: 0 | FY181: 0 | FZ181: 0 | GA181: 0 | GB181: 0 | GC181: 0 | GD181: 0 | GE181: 0 | GF181: 0 | GG181: 0 | GH181: 0 | GI181: 0 | GJ181: 0 | GK181: 0 | GL181: 0 | GM181: 0 | GN181: 0 | GO181: 0 | GP181: 0 | GQ181: 0 | GR181: 0 | GS181: 0 | GT181: 0 | GU181: 0 | GV181: 0 | GW181: 0 | GX181: 0 | GY181: 0 | GZ181: 0 | HA181: 0 | HB181: 0 | HC181: 0 | HD181: 0 | HE181: 0 | HF181: 0 | HG181: 0 | HH181: 0 | HI181: 0 | HJ181: 0 | HK181: 0 | HL181: 0 | HM181: 0 | HN181: 0 | HO181: 0 | HP181: 0 | HQ181: 0 | HR181: 0 | HS181: 0 | HT181: 0 | HU181: 0 | HV181: 0 | HW181: 0
A183: TOTAL
A184: =COUNT(A170:A181) -> 11 | B184: =SUM(B170:B181) -> 0 | C184: =SUM(C170:C181) -> 0 | D184: 0 | E184: 0 | F184: 0 | G184: 0 | H184: 0 | I184: 0 | J184: 0 | K184: 0 | L184: 0 | M184: 0 | N184: 0 | O184: 0 | P184: 0 | Q184: 0 | R184: 0 | S184: 0 | T184: 0 | U184: 0 | V184: 0 | W184: 0 | X184: 0 | Y184: 0 | Z184: 0 | AA184: 0 | AB184: 0 | AC184: 0 | AD184: 0 | AE184: 0 | AF184: 0 | AG184: 0 | AH184: 0 | AI184: 2 | AJ184: 0 | AK184: 2 | AL184: 0 | AM184: 0 | AN184: 4 | AO184: 0 | AP184: 2 | AQ184: 0 | AR184: 0 | AS184: 4 | AT184: 0 | AU184: 0 | AV184: 0 | AW184: 0 | AX184: 0 | AY184: 0 | AZ184: 0 | BA184: 0 | BB184: 0 | BC184: 2 | BD184: 0 | BE184: 0 | BF184: 0 | BG184: 0 | BH184: 2 | BI184: 4 | BJ184: 0 | BK184: 0 | BL184: 0 | BM184: 2 | BN184: 0 | BO184: =SUM(BO170:BO181) -> 0 | BP184: 0 | BQ184: 0 | BR184: 0 | BS184: 0 | BT184: 0 | BU184: 0 | BV184: 0 | BW184: 0 | BX184: 0 | BY184: 2 | BZ184: 0 | CA184: 0 | CB184: 8 | CC184: 0 | CD184: 2 | CE184: 0 | CF184: 0 | CG184: 6 | CH184: 0 | CI184: 0 | CJ184: 0 | CK184: 0 | CL184: 2 | CM184: 0 | CN184: 0 | CO184: 0 | CP184: 0 | CQ184: 2 | CR184: 0 | CS184: 0 | CT184: 0 | CU184: 0 | CV184: 0 | CW184: 0 | CX184: 0 | CY184: 0 | CZ184: 0 | DA184: 0 | DB184: 0 | DC184: 0 | DD184: 0 | DE184: 0 | DF184: 0 | DG184: 0 | DH184: 0 | DI184: 0 | DJ184: 0 | DK184: 0 | DL184: 0 | DM184: 0 | DN184: 0 | DO184: 0 | DP184: 0 | DQ184: 0 | DR184: 0 | DS184: 0 | DT184: 0 | DU184: 0 | DV184: 0 | DW184: 0 | DX184: 0 | DY184: 0 | DZ184: 0 | EA184: =SUM(EA170:EA181) -> 0 | EB184: 0 | EC184: 0 | ED184: 0 | EE184: 0 | EF184: 0 | EG184: 0 | EH184: 0 | EI184: 0 | EJ184: 0 | EK184: 0 | EL184: 0 | EM184: 0 | EN184: 0 | EO184: 0 | EP184: 0 | EQ184: 0 | ER184: 0 | ES184: 0 | ET184: 0 | EU184: 0 | EV184: 0 | EW184: 0 | EX184: 0 | EY184: 0 | EZ184: 0 | FA184: 0 | FB184: 0 | FC184: 0 | FD184: 0 | FE184: 0 | FF184: 0 | FG184: 0 | FH184: 0 | FI184: 0 | FJ184: 0 | FK184: 0 | FL184: 0 | FM184: 0 | FN184: 0 | FO184: 0 | FP184: 0 | FQ184: 0 | FR184: 0 | FS184: 0 | FT184: 0 | FU184: 0 | FV184: 0 | FW184: 0 | FX184: 0 | FY184: 0 | FZ184: 0 | GA184: 0 | GB184: 0 | GC184: 0 | GD184: 0 | GE184: 0 | GF184: 0 | GG184: 0 | GH184: 0 | GI184: 0 | GJ184: 0 | GK184: 0 | GL184: 0 | GM184: =SUM(GM170:GM181) -> 0 | GN184: 0 | GO184: 0 | GP184: 0 | GQ184: 0 | GR184: 0 | GS184: 0 | GT184: 0 | GU184: 0 | GV184: 0 | GW184: 0 | GX184: 0 | GY184: 0 | GZ184: 0 | HA184: 0 | HB184: 0 | HC184: 0 | HD184: 0 | HE184: 0 | HF184: 0 | HG184: 0 | HH184: 0 | HI184: 0 | HJ184: 0 | HK184: 0 | HL184: 0 | HM184: 0 | HN184: 0 | HO184: 0 | HP184: 0 | HQ184: 0 | HR184: 0 | HS184: 0 | HT184: 0 | HU184: 0 | HV184: 0 | HW184: 0
A185: =CONCATENATE(A170,"-",A171,"-",A172,"-",A173,"-",A174,"-",A175,"-",A176,"-",A177,"-",A178,"-",A179,"-",A180,"-",A181) -> 2-1-3-4-5-6-7-8-9-10-11-T
B186: BAS001 | C186: BAS002 | D186: BAS003 | E186: BAS004 | F186: BAS005 | G186: BAS006 | H186: BAS007 | I186: BAS008 | J186: BAS009 | K186: BAS010 | L186: BAS011 | M186: BAS012 | N186: BAS013 | O186: BAS014 | P186: BAS015 | Q186: BAS016 | R186: BAS017 | S186: BAS018 | T186: BAS019 | U186: BAS020 | V186: BAS021 | W186: BAS022 | X186: BAS023 | Y186: BAS024 | Z186: BAS025 | AA186: BAS026 | AB186: BAS027 | AC186: BAS028 | AD186: BAS029 | AE186: BAS030 | AF186: BAS031 | AG186: BAS032 | AH186: BAS033 | AI186: BAS034 | AJ186: BAS035 | AK186: BAS036 | AL186: BAS037 | AM186: BAS038 | AN186: BAS039 | AO186: BAS040 | AP186: BAS041 | AQ186: BAS042 | AR186: BAS043 | AS186: BAS044 | AT186: BAS045 | AU186: BAS046 | AV186: BAS047 | AW186: BAS048 | AX186: BAS049 | AY186: BAS050 | AZ186: BAS051 | BA186: BAS052 | BB186: BAS053 | BC186: BAS054 | BD186: BAS055 | BE186: BAS056 | BF186: BAS057 | BG186: BAS058 | BH186: BAS059 | BI186: BAS060 | BJ186: BAS061 | BK186: BAS062 | BL186: BAS063 | BM186: BAS064 | BN186: BAS065 | BO186: BAS066 | BP186: BAS067 | BQ186: BAS068 | BR186: BAS069 | BS186: BAS070 | BT186: BAS071 | BU186: BAS072 | BV186: BAS073 | BW186: BAS074 | BX186: BAS075 | BY186: BAS076 | BZ186: BAS077 | CA186: BAS078 | CB186: BAS079 | CC186: BAS080 | CD186: BAS081 | CE186: BAS082 | CF186: BAS083 | CG186: BAS084 | CH186: BAS085 | CI186: BAS086 | CJ186: BAS087 | CK186: BAS088 | CL186: BAS089 | CM186: BAS090 | CN186: BAS091 | CO186: BAS092 | CP186: BAS093 | CQ186: BAS094 | CR186: BAS095 | CS186: BAS096 | CT186: BAS097 | CU186: BAS098 | CV186: BAS099 | CW186: BAS100 | CX186: BAS101 | CY186: BAS102 | CZ186: BAS103 | DA186: BAS104 | DB186: BAS105 | DC186: BAS106 | DD186: BAS107 | DE186: BAS108 | DF186: BAS109 | DG186: BAS110 | DH186: BAS111 | DI186: BAS112 | DJ186: BAS113 | DK186: BAS114 | DL186: BAS115 | DM186: BAS116 | DN186: BAS117 | DO186: BAS118 | DP186: BAS119 | DQ186: BAS120 | DR186: BAS121 | DS186: BAS122 | DT186: BAS123 | DU186: BAS124 | DV186: BAS125 | DW186: BAS126 | DX186: BAS127 | DY186: BAS128 | DZ186: BAS129 | EA186: BAS130 | EB186: BAS131 | EC186: BAS132 | ED186: BAS133 | EE186: BAS134 | EF186: BAS135 | EG186: BAS136 | EH186: BAS137 | EI186: BAS138 | EJ186: BAS139 | EK186: BAS140 | EL186: BAS141 | EM186: BAS142 | EN186: BAS143 | EO186: BAS144 | EP186: BAS145 | EQ186: BAS146 | ER186: BAS147 | ES186: BAS148 | ET186: BAS149 | EU186: BAS150 | EV186: BAS151 | EW186: BAS152 | EX186: BAS153 | EY186: BAS154 | EZ186: BAS155 | FA186: BAS156 | FB186: BAS157 | FC186: BAS158 | FD186: BAS159 | FE186: BAS160 | FF186: BAS161 | FG186: BAS162 | FH186: BAS163 | FI186: BAS164 | FJ186: BAS165 | FK186: BAS166 | FL186: BAS167 | FM186: BAS168 | FN186: BAS169 | FO186: BAS170 | FP186: BAS171 | FQ186: BAS172 | FR186: BAS173 | FS186: BAS174 | FT186: BAS175 | FU186: BAS176 | FV186: BAS177 | FW186: BAS178 | FX186: BAS179 | FY186: BAS180 | FZ186: BAS181 | GA186: BAS182 | GB186: BAS183 | GC186: BAS184 | GD186: BAS185 | GE186: BAS186 | GF186: BAS187 | GG186: BAS188 | GH186: BAS189 | GI186: BAS190 | GJ186: BAS191 | GK186: BAS192 | GL186: BAS193 | GM186: BAS194 | GN186: BAS195 | GO186: BAS196 | GP186: BAS197 | GQ186: BAS198 | GR186: BAS199 | GS186: BAS200 | GT186: BAS201 | GU186: BAS202 | GV186: BAS203 | GW186: BAS204 | GX186: BAS205 | GY186: BAS206 | GZ186: BAS207 | HA186: BAS208 | HB186: BAS209 | HC186: BAS210 | HD186: BAS211 | HE186: BAS212 | HF186: BAS213 | HG186: BAS214 | HH186: BAS215 | HI186: BAS216 | HJ186: BAS217 | HK186: BAS218 | HL186: BAS219 | HM186: BAS220 | HN186: BAS221 | HO186: BAS222 | HP186: BAS223 | HQ186: BAS224 | HR186: BAS225 | HS186: BAS226 | HT186: BAS227 | HU186: BAS228 | HV186: BAS229 | HW186: BAS230
B187: =IF(B186=B169,"SI","NO") -> SI | C187: =IF(C186=C169,"SI","NO") -> SI | D187: SI | E187: SI | F187: SI | G187: SI | H187: SI | I187: SI | J187: SI | K187: SI | L187: SI | M187: SI | N187: SI | O187: SI | P187: SI | Q187: SI | R187: SI | S187: SI | T187: SI | U187: SI | V187: SI | W187: SI | X187: SI | Y187: SI | Z187: SI | AA187: SI | AB187: SI | AC187: SI | AD187: SI | AE187: SI | AF187: SI | AG187: SI | AH187: SI | AI187: SI | AJ187: SI | AK187: SI | AL187: SI | AM187: SI | AN187: SI | AO187: SI | AP187: SI | AQ187: SI | AR187: SI | AS187: SI | AT187: SI | AU187: SI | AV187: SI | AW187: SI | AX187: SI | AY187: SI | AZ187: SI | BA187: SI | BB187: SI | BC187: SI | BD187: SI | BE187: SI | BF187: SI | BG187: SI | BH187: SI | BI187: SI | BJ187: SI | BK187: SI | BL187: SI | BM187: SI | BN187: SI | BO187: =IF(BO186=BO169,"SI","NO") -> SI | BP187: SI | BQ187: SI | BR187: SI | BS187: SI | BT187: SI | BU187: SI | BV187: SI | BW187: SI | BX187: SI | BY187: SI | BZ187: SI | CA187: SI | CB187: SI | CC187: SI | CD187: SI | CE187: SI | CF187: SI | CG187: SI | CH187: SI | CI187: SI | CJ187: SI | CK187: SI | CL187: SI | CM187: SI | CN187: SI | CO187: SI | CP187: SI | CQ187: SI | CR187: SI | CS187: SI | CT187: SI | CU187: SI | CV187: SI | CW187: SI | CX187: SI | CY187: SI | CZ187: SI | DA187: SI | DB187: SI | DC187: SI | DD187: SI | DE187: SI | DF187: SI | DG187: SI | DH187: SI | DI187: SI | DJ187: SI | DK187: SI | DL187: SI | DM187: SI | DN187: SI | DO187: SI | DP187: SI | DQ187: SI | DR187: SI | DS187: SI | DT187: SI | DU187: SI | DV187: SI | DW187: SI | DX187: SI | DY187: SI | DZ187: SI | EA187: =IF(EA186=EA169,"SI","NO") -> SI | EB187: SI | EC187: SI | ED187: SI | EE187: SI | EF187: SI | EG187: SI | EH187: SI | EI187: SI | EJ187: SI | EK187: SI | EL187: SI | EM187: SI | EN187: SI | EO187: SI | EP187: SI | EQ187: SI | ER187: SI | ES187: SI | ET187: SI | EU187: SI | EV187: SI | EW187: SI | EX187: SI | EY187: SI | EZ187: SI | FA187: SI | FB187: SI | FC187: SI | FD187: SI | FE187: SI | FF187: SI | FG187: SI | FH187: SI | FI187: SI | FJ187: SI | FK187: SI | FL187: SI | FM187: SI | FN187: SI | FO187: SI | FP187: SI | FQ187: SI | FR187: SI | FS187: SI | FT187: SI | FU187: SI | FV187: SI | FW187: SI | FX187: SI | FY187: SI | FZ187: SI | GA187: SI | GB187: SI | GC187: SI | GD187: SI | GE187: SI | GF187: SI | GG187: SI | GH187: SI | GI187: SI | GJ187: SI | GK187: SI | GL187: SI | GM187: =IF(GM186=GM169,"SI","NO") -> SI | GN187: SI | GO187: SI | GP187: SI | GQ187: SI | GR187: SI | GS187: SI | GT187: SI | GU187: SI | GV187: SI | GW187: SI | GX187: SI | GY187: SI | GZ187: SI | HA187: SI | HB187: SI | HC187: SI | HD187: SI | HE187: SI | HF187: SI | HG187: SI | HH187: SI | HI187: SI | HJ187: SI | HK187: SI | HL187: SI | HM187: SI | HN187: SI | HO187: SI | HP187: SI | HQ187: SI | HR187: SI | HS187: SI | HT187: SI | HU187: SI | HV187: SI | HW187: SI
A191: R_SILVESTRE 01
A192: anno | B192: 2024
A193: cod_red | B193: 03
A194: codmic | B194: (Todas)
A195: cod_prov | B195: (Todas)
A196: coddist | B196: (Todas)
A197: cod_estab | B197: (Todas)
A198: cod_eje | B198: (Todas)
B200: Valores
A201: Etiquetas de fila | B201: BAS001 | C201: BAS002 | D201: BAS003 | E201: BAS004 | F201: BAS005 | G201: BAS006 | H201: BAS007 | I201: BAS008 | J201: BAS009 | K201: BAS010 | L201: BAS011 | M201: BAS012 | N201: BAS013 | O201: BAS014 | P201: BAS015 | Q201: BAS016 | R201: BAS017 | S201: BAS018 | T201: BAS019 | U201: BAS020 | V201: BAS021 | W201: BAS022 | X201: BAS023 | Y201: BAS024 | Z201: BAS025 | AA201: BAS026 | AB201: BAS027 | AC201: BAS028 | AD201: BAS029 | AE201: BAS030 | AF201: BAS031 | AG201: BAS032 | AH201: BAS033 | AI201: BAS034 | AJ201: BAS035 | AK201: BAS036 | AL201: BAS037 | AM201: BAS038 | AN201: BAS039 | AO201: BAS040 | AP201: BAS041 | AQ201: BAS042 | AR201: BAS043 | AS201: BAS044 | AT201: BAS045 | AU201: BAS046 | AV201: BAS047 | AW201: BAS048 | AX201: BAS049 | AY201: BAS050 | AZ201: BAS051 | BA201: BAS052 | BB201: BAS053 | BC201: BAS054 | BD201: BAS055 | BE201: BAS056 | BF201: BAS057 | BG201: BAS058 | BH201: BAS059 | BI201: BAS060 | BJ201: BAS061 | BK201: BAS062 | BL201: BAS063 | BM201: BAS064 | BN201: BAS065 | BO201: BAS066 | BP201: BAS067 | BQ201: BAS068 | BR201: BAS069 | BS201: BAS070 | BT201: BAS071 | BU201: BAS072 | BV201: BAS073 | BW201: BAS074 | BX201: BAS075 | BY201: BAS076 | BZ201: BAS077 | CA201: BAS078 | CB201: BAS079 | CC201: BAS080 | CD201: BAS081 | CE201: BAS082 | CF201: BAS083 | CG201: BAS084 | CH201: BAS085 | CI201: BAS086 | CJ201: BAS087 | CK201: BAS088 | CL201: BAS089 | CM201: BAS090 | CN201: BAS091 | CO201: BAS092 | CP201: BAS093 | CQ201: BAS094 | CR201: BAS095 | CS201: BAS096 | CT201: BAS097 | CU201: BAS098 | CV201: BAS099 | CW201: BAS100 | CX201: BAS101 | CY201: BAS102 | CZ201: BAS103 | DA201: BAS104 | DB201: BAS105 | DC201: BAS106 | DD201: BAS107 | DE201: BAS108 | DF201: BAS109 | DG201: BAS110 | DH201: BAS111 | DI201: BAS112 | DJ201: BAS113 | DK201: BAS114 | DL201: BAS115 | DM201: BAS116 | DN201: BAS117 | DO201: BAS118 | DP201: BAS119 | DQ201: BAS120 | DR201: BAS121 | DS201: BAS122 | DT201: BAS123 | DU201: BAS124 | DV201: BAS125 | DW201: BAS126 | DX201: BAS127 | DY201: BAS128 | DZ201: BAS129 | EA201: BAS130 | EB201: BAS131 | EC201: BAS132 | ED201: BAS133 | EE201: BAS134 | EF201: BAS135 | EG201: BAS136 | EH201: BAS137 | EI201: BAS138 | EJ201: BAS139 | EK201: BAS140 | EL201: BAS141 | EM201: BAS142 | EN201: BAS143 | EO201: BAS144 | EP201: BAS145 | EQ201: BAS146 | ER201: BAS147 | ES201: BAS148 | ET201: BAS149 | EU201: BAS150 | EV201: BAS151 | EW201: BAS152 | EX201: BAS153 | EY201: BAS154 | EZ201: BAS155 | FA201: BAS156 | FB201: BAS157 | FC201: BAS158 | FD201: BAS159 | FE201: BAS160 | FF201: BAS161 | FG201: BAS162 | FH201: BAS163 | FI201: BAS164 | FJ201: BAS165 | FK201: BAS166 | FL201: BAS167 | FM201: BAS168 | FN201: BAS169 | FO201: BAS170 | FP201: BAS171 | FQ201: BAS172 | FR201: BAS173 | FS201: BAS174 | FT201: BAS175 | FU201: BAS176 | FV201: BAS177 | FW201: BAS178 | FX201: BAS179 | FY201: BAS180 | FZ201: BAS181 | GA201: BAS182 | GB201: BAS183 | GC201: BAS184 | GD201: BAS185 | GE201: BAS186 | GF201: BAS187 | GG201: BAS188 | GH201: BAS189 | GI201: BAS190 | GJ201: BAS191 | GK201: BAS192 | GL201: BAS193 | GM201: BAS194 | GN201: BAS195 | GO201: BAS196 | GP201: BAS197 | GQ201: BAS198 | GR201: BAS199 | GS201: BAS200 | GT201: BAS201 | GU201: BAS202 | GV201: BAS203 | GW201: BAS204 | GX201: BAS205 | GY201: BAS206 | GZ201: BAS207 | HA201: BAS208 | HB201: BAS209 | HC201: BAS210 | HD201: BAS211 | HE201: BAS212 | HF201: BAS213 | HG201: BAS214 | HH201: BAS215 | HI201: BAS216 | HJ201: BAS217 | HK201: BAS218 | HL201: BAS219 | HM201: BAS220 | HN201: BAS221 | HO201: BAS222 | HP201: BAS223 | HQ201: BAS224 | HR201: BAS225 | HS201: BAS226 | HT201: BAS227 | HU201: BAS228 | HV201: BAS229 | HW201: BAS230
A202: 2 | B202: 0 | C202: 0 | D202: 0 | E202: 0 | F202: 0 | G202: 0 | H202: 0 | I202: 0 | J202: 0 | K202: 0 | L202: 0 | M202: 0 | N202: 0 | O202: 0 | P202: 0 | Q202: 0 | R202: 0 | S202: 0 | T202: 0 | U202: 0 | V202: 0 | W202: 0 | X202: 0 | Y202: 0 | Z202: 0 | AA202: 0 | AB202: 0 | AC202: 126 | AD202: 19 | AE202: 0 | AF202: 0 | AG202: 0 | AH202: 0 | AI202: 0 | AJ202: 0 | AK202: 0 | AL202: 0 | AM202: 0 | AN202: 0 | AO202: 0 | AP202: 0 | AQ202: 0 | AR202: 0 | AS202: 0 | AT202: 0 | AU202: 0 | AV202: 0 | AW202: 0 | AX202: 0 | AY202: 0 | AZ202: 0 | BA202: 0 | BB202: 0 | BC202: 0 | BD202: 0 | BE202: 0 | BF202: 0 | BG202: 0 | BH202: 0 | BI202: 0 | BJ202: 0 | BK202: 0 | BL202: 0 | BM202: 0 | BN202: 0 | BO202: 0 | BP202: 0 | BQ202: 0 | BR202: 0 | BS202: 0 | BT202: 0 | BU202: 0 | BV202: 0 | BW202: 0 | BX202: 1 | BY202: 0 | BZ202: 0 | CA202: 0 | CB202: 0 | CC202: 0 | CD202: 0 | CE202: 0 | CF202: 0 | CG202: 0 | CH202: 0 | CI202: 0 | CJ202: 0 | CK202: 0 | CL202: 0 | CM202: 0 | CN202: 0 | CO202: 0 | CP202: 0 | CQ202: 0 | CR202: 0 | CS202: 1 | CT202: 0 | CU202: 0 | CV202: 0 | CW202: 0 | CX202: 0 | CY202: 1 | CZ202: 0 | DA202: 0 | DB202: 0 | DC202: 0 | DD202: 0 | DE202: 0 | DF202: 0 | DG202: 0 | DH202: 0 | DI202: 0 | DJ202: 0 | DK202: 0 | DL202: 0 | DM202: 0 | DN202: 0 | DO202: 0 | DP202: 0 | DQ202: 0 | DR202: 0 | DS202: 0 | DT202: 0 | DU202: 0 | DV202: 0 | DW202: 0 | DX202: 0 | DY202: 0 | DZ202: 0 | EA202: 0 | EB202: 0 | EC202: 0 | ED202: 0 | EE202: 0 | EF202: 0 | EG202: 0 | EH202: 0 | EI202: 0 | EJ202: 0 | EK202: 0 | EL202: 0 | EM202: 0 | EN202: 0 | EO202: 0 | EP202: 0 | EQ202: 0 | ER202: 0 | ES202: 0 | ET202: 0 | EU202: 0 | EV202: 0 | EW202: 0 | EX202: 0 | EY202: 0 | EZ202: 0 | FA202: 0 | FB202: 0 | FC202: 0 | FD202: 0 | FE202: 0 | FF202: 0 | FG202: 0 | FH202: 0 | FI202: 0 | FJ202: 0 | FK202: 0 | FL202: 0 | FM202: 0 | FN202: 0 | FO202: 0 | FP202: 0 | FQ202: 0 | FR202: 0 | FS202: 0 | FT202: 0 | FU202: 0 | FV202: 0 | FW202: 0 | FX202: 0 | FY202: 0 | FZ202: 0 | GA202: 0 | GB202: 0 | GC202: 0 | GD202: 0 | GE202: 0 | GF202: 0 | GG202: 0 | GH202: 0 | GI202: 0 | GJ202: 0 | GK202: 0 | GL202: 0 | GM202: 0 | GN202: 0 | GO202: 0 | GP202: 0 | GQ202: 0 | GR202: 0 | GS202: 0 | GT202: 0 | GU202: 0 | GV202: 0 | GW202: 0 | GX202: 0 | GY202: 0 | GZ202: 0 | HA202: 0 | HB202: 0 | HC202: 0 | HD202: 0 | HE202: 0 | HF202: 0 | HG202: 0 | HH202: 0 | HI202: 0 | HJ202: 0 | HK202: 0 | HL202: 0 | HM202: 0 | HN202: 0 | HO202: 0 | HP202: 0 | HQ202: 0 | HR202: 0 | HS202: 0 | HT202: 0 | HU202: 0 | HV202: 0 | HW202: 0
A203: 1 | B203: 0 | C203: 0 | D203: 0 | E203: 0 | F203: 0 | G203: 0 | H203: 0 | I203: 0 | J203: 0 | K203: 0 | L203: 0 | M203: 0 | N203: 0 | O203: 0 | P203: 0 | Q203: 0 | R203: 0 | S203: 129 | T203: 19 | U203: 0 | V203: 0 | W203: 0 | X203: 129 | Y203: 19 | Z203: 0 | AA203: 0 | AB203: 0 | AC203: 0 | AD203: 0 | AE203: 0 | AF203: 0 | AG203: 0 | AH203: 0 | AI203: 0 | AJ203: 0 | AK203: 0 | AL203: 0 | AM203: 0 | AN203: 0 | AO203: 0 | AP203: 0 | AQ203: 0 | AR203: 0 | AS203: 0 | AT203: 0 | AU203: 0 | AV203: 0 | AW203: 0 | AX203: 0 | AY203: 0 | AZ203: 0 | BA203: 0 | BB203: 0 | BC203: 0 | BD203: 0 | BE203: 0 | BF203: 0 | BG203: 0 | BH203: 0 | BI203: 0 | BJ203: 0 | BK203: 0 | BL203: 0 | BM203: 0 | BN203: 0 | BO203: 0 | BP203: 0 | BQ203: 0 | BR203: 0 | BS203: 0 | BT203: 0 | BU203: 0 | BV203: 0 | BW203: 0 | BX203: 0 | BY203: 0 | BZ203: 0 | CA203: 0 | CB203: 0 | CC203: 0 | CD203: 0 | CE203: 0 | CF203: 0 | CG203: 0 | CH203: 0 | CI203: 0 | CJ203: 0 | CK203: 0 | CL203: 0 | CM203: 0 | CN203: 0 | CO203: 0 | CP203: 0 | CQ203: 0 | CR203: 0 | CS203: 0 | CT203: 0 | CU203: 0 | CV203: 0 | CW203: 0 | CX203: 0 | CY203: 0 | CZ203: 0 | DA203: 0 | DB203: 0 | DC203: 0 | DD203: 0 | DE203: 0 | DF203: 0 | DG203: 0 | DH203: 0 | DI203: 0 | DJ203: 0 | DK203: 0 | DL203: 0 | DM203: 0 | DN203: 0 | DO203: 0 | DP203: 0 | DQ203: 0 | DR203: 0 | DS203: 0 | DT203: 0 | DU203: 0 | DV203: 0 | DW203: 0 | DX203: 0 | DY203: 0 | DZ203: 0 | EA203: 0 | EB203: 0 | EC203: 0 | ED203: 0 | EE203: 0 | EF203: 0 | EG203: 0 | EH203: 0 | EI203: 0 | EJ203: 0 | EK203: 0 | EL203: 0 | EM203: 0 | EN203: 0 | EO203: 0 | EP203: 0 | EQ203: 0 | ER203: 0 | ES203: 0 | ET203: 0 | EU203: 0 | EV203: 0 | EW203: 0 | EX203: 0 | EY203: 0 | EZ203: 0 | FA203: 0 | FB203: 0 | FC203: 0 | FD203: 0 | FE203: 0 | FF203: 0 | FG203: 0 | FH203: 0 | FI203: 0 | FJ203: 0 | FK203: 0 | FL203: 0 | FM203: 0 | FN203: 0 | FO203: 0 | FP203: 0 | FQ203: 0 | FR203: 0 | FS203: 0 | FT203: 0 | FU203: 0 | FV203: 0 | FW203: 0 | FX203: 0 | FY203: 0 | FZ203: 0 | GA203: 0 | GB203: 0 | GC203: 0 | GD203: 0 | GE203: 0 | GF203: 0 | GG203: 0 | GH203: 0 | GI203: 0 | GJ203: 0 | GK203: 0 | GL203: 0 | GM203: 0 | GN203: 0 | GO203: 0 | GP203: 0 | GQ203: 0 | GR203: 0 | GS203: 0 | GT203: 0 | GU203: 0 | GV203: 0 | GW203: 0 | GX203: 0 | GY203: 0 | GZ203: 0 | HA203: 0 | HB203: 0 | HC203: 0 | HD203: 0 | HE203: 0 | HF203: 0 | HG203: 0 | HH203: 0 | HI203: 0 | HJ203: 0 | HK203: 0 | HL203: 0 | HM203: 0 | HN203: 0 | HO203: 0 | HP203: 0 | HQ203: 0 | HR203: 0 | HS203: 0 | HT203: 0 | HU203: 0 | HV203: 0 | HW203: 0
A204: 3 | B204: 0 | C204: 0 | D204: 0 | E204: 0 | F204: 0 | G204: 0 | H204: 0 | I204: 0 | J204: 0 | K204: 0 | L204: 0 | M204: 0 | N204: 0 | O204: 0 | P204: 0 | Q204: 0 | R204: 0 | S204: 0 | T204: 0 | U204: 0 | V204: 0 | W204: 0 | X204: 0 | Y204: 0 | Z204: 0 | AA204: 0 | AB204: 0 | AC204: 0 | AD204: 0 | AE204: 0 | AF204: 0 | AG204: 0 | AH204: 0 | AI204: 0 | AJ204: 0 | AK204: 0 | AL204: 0 | AM204: 0 | AN204: 0 | AO204: 0 | AP204: 0 | AQ204: 0 | AR204: 0 | AS204: 0 | AT204: 0 | AU204: 0 | AV204: 0 | AW204: 0 | AX204: 0 | AY204: 0 | AZ204: 0 | BA204: 0 | BB204: 0 | BC204: 0 | BD204: 0 | BE204: 0 | BF204: 0 | BG204: 0 | BH204: 0 | BI204: 0 | BJ204: 0 | BK204: 0 | BL204: 0 | BM204: 0 | BN204: 0 | BO204: 0 | BP204: 0 | BQ204: 0 | BR204: 0 | BS204: 0 | BT204: 0 | BU204: 0 | BV204: 0 | BW204: 1 | BX204: 0 | BY204: 0 | BZ204: 0 | CA204: 0 | CB204: 0 | CC204: 0 | CD204: 0 | CE204: 0 | CF204: 0 | CG204: 0 | CH204: 0 | CI204: 0 | CJ204: 0 | CK204: 0 | CL204: 0 | CM204: 0 | CN204: 0 | CO204: 0 | CP204: 0 | CQ204: 0 | CR204: 0 | CS204: 0 | CT204: 0 | CU204: 0 | CV204: 0 | CW204: 0 | CX204: 0 | CY204: 0 | CZ204: 0 | DA204: 0 | DB204: 0 | DC204: 0 | DD204: 0 | DE204: 1 | DF204: 0 | DG204: 0 | DH204: 0 | DI204: 0 | DJ204: 0 | DK204: 0 | DL204: 0 | DM204: 0 | DN204: 0 | DO204: 0 | DP204: 0 | DQ204: 0 | DR204: 0 | DS204: 0 | DT204: 0 | DU204: 0 | DV204: 0 | DW204: 0 | DX204: 0 | DY204: 0 | DZ204: 0 | EA204: 0 | EB204: 0 | EC204: 0 | ED204: 0 | EE204: 0 | EF204: 0 | EG204: 0 | EH204: 0 | EI204: 0 | EJ204: 0 | EK204: 0 | EL204: 0 | EM204: 0 | EN204: 0 | EO204: 0 | EP204: 0 | EQ204: 0 | ER204: 0 | ES204: 0 | ET204: 0 | EU204: 0 | EV204: 0 | EW204: 0 | EX204: 0 | EY204: 0 | EZ204: 0 | FA204: 0 | FB204: 0 | FC204: 0 | FD204: 0 | FE204: 0 | FF204: 0 | FG204: 0 | FH204: 0 | FI204: 0 | FJ204: 0 | FK204: 0 | FL204: 0 | FM204: 0 | FN204: 0 | FO204: 0 | FP204: 0 | FQ204: 0 | FR204: 0 | FS204: 0 | FT204: 0 | FU204: 0 | FV204: 0 | FW204: 0 | FX204: 0 | FY204: 0 | FZ204: 0 | GA204: 0 | GB204: 0 | GC204: 0 | GD204: 0 | GE204: 0 | GF204: 0 | GG204: 0 | GH204: 0 | GI204: 0 | GJ204: 0 | GK204: 0 | GL204: 0 | GM204: 0 | GN204: 0 | GO204: 0 | GP204: 0 | GQ204: 0 | GR204: 0 | GS204: 0 | GT204: 0 | GU204: 0 | GV204: 0 | GW204: 0 | GX204: 0 | GY204: 0 | GZ204: 0 | HA204: 0 | HB204: 0 | HC204: 0 | HD204: 0 | HE204: 0 | HF204: 0 | HG204: 0 | HH204: 0 | HI204: 0 | HJ204: 0 | HK204: 0 | HL204: 0 | HM204: 0 | HN204: 0 | HO204: 0 | HP204: 0 | HQ204: 0 | HR204: 0 | HS204: 0 | HT204: 0 | HU204: 0 | HV204: 0 | HW204: 0
A205: 4 | B205: 0 | C205: 0 | D205: 0 | E205: 0 | F205: 0 | G205: 0 | H205: 0 | I205: 0 | J205: 0 | K205: 0 | L205: 0 | M205: 0 | N205: 0 | O205: 0 | P205: 0 | Q205: 0 | R205: 0 | S205: 0 | T205: 0 | U205: 0 | V205: 0 | W205: 0 | X205: 0 | Y205: 0 | Z205: 0 | AA205: 0 | AB205: 0 | AC205: 0 | AD205: 0 | AE205: 0 | AF205: 0 | AG205: 0 | AH205: 0 | AI205: 0 | AJ205: 0 | AK205: 0 | AL205: 0 | AM205: 0 | AN205: 0 | AO205: 0 | AP205: 0 | AQ205: 0 | AR205: 0 | AS205: 0 | AT205: 0 | AU205: 0 | AV205: 0 | AW205: 0 | AX205: 0 | AY205: 0 | AZ205: 0 | BA205: 0 | BB205: 0 | BC205: 0 | BD205: 0 | BE205: 0 | BF205: 0 | BG205: 0 | BH205: 0 | BI205: 0 | BJ205: 0 | BK205: 0 | BL205: 0 | BM205: 0 | BN205: 0 | BO205: 0 | BP205: 0 | BQ205: 0 | BR205: 0 | BS205: 0 | BT205: 0 | BU205: 0 | BV205: 0 | BW205: 0 | BX205: 0 | BY205: 0 | BZ205: 0 | CA205: 0 | CB205: 0 | CC205: 0 | CD205: 0 | CE205: 0 | CF205: 0 | CG205: 0 | CH205: 0 | CI205: 0 | CJ205: 0 | CK205: 0 | CL205: 0 | CM205: 0 | CN205: 0 | CO205: 0 | CP205: 0 | CQ205: 0 | CR205: 0 | CS205: 0 | CT205: 0 | CU205: 0 | CV205: 0 | CW205: 0 | CX205: 0 | CY205: 0 | CZ205: 0 | DA205: 0 | DB205: 0 | DC205: 0 | DD205: 0 | DE205: 0 | DF205: 0 | DG205: 0 | DH205: 0 | DI205: 0 | DJ205: 0 | DK205: 0 | DL205: 0 | DM205: 0 | DN205: 0 | DO205: 0 | DP205: 0 | DQ205: 0 | DR205: 0 | DS205: 0 | DT205: 0 | DU205: 0 | DV205: 0 | DW205: 0 | DX205: 0 | DY205: 0 | DZ205: 0 | EA205: 0 | EB205: 0 | EC205: 0 | ED205: 0 | EE205: 0 | EF205: 0 | EG205: 0 | EH205: 0 | EI205: 0 | EJ205: 0 | EK205: 0 | EL205: 0 | EM205: 0 | EN205: 0 | EO205: 0 | EP205: 0 | EQ205: 0 | ER205: 0 | ES205: 0 | ET205: 0 | EU205: 0 | EV205: 0 | EW205: 0 | EX205: 0 | EY205: 0 | EZ205: 0 | FA205: 0 | FB205: 0 | FC205: 0 | FD205: 0 | FE205: 0 | FF205: 0 | FG205: 0 | FH205: 0 | FI205: 0 | FJ205: 0 | FK205: 0 | FL205: 0 | FM205: 0 | FN205: 0 | FO205: 0 | FP205: 0 | FQ205: 0 | FR205: 0 | FS205: 0 | FT205: 0 | FU205: 0 | FV205: 0 | FW205: 0 | FX205: 0 | FY205: 0 | FZ205: 0 | GA205: 0 | GB205: 0 | GC205: 0 | GD205: 0 | GE205: 0 | GF205: 0 | GG205: 0 | GH205: 0 | GI205: 0 | GJ205: 0 | GK205: 0 | GL205: 0 | GM205: 0 | GN205: 0 | GO205: 0 | GP205: 0 | GQ205: 0 | GR205: 0 | GS205: 0 | GT205: 0 | GU205: 0 | GV205: 0 | GW205: 0 | GX205: 0 | GY205: 0 | GZ205: 0 | HA205: 0 | HB205: 0 | HC205: 0 | HD205: 0 | HE205: 0 | HF205: 0 | HG205: 0 | HH205: 0 | HI205: 0 | HJ205: 0 | HK205: 0 | HL205: 0 | HM205: 0 | HN205: 0 | HO205: 0 | HP205: 0 | HQ205: 0 | HR205: 0 | HS205: 0 | HT205: 0 | HU205: 0 | HV205: 0 | HW205: 0
A206: 5 | B206: 0 | C206: 0 | D206: 0 | E206: 0 | F206: 0 | G206: 0 | H206: 0 | I206: 0 | J206: 0 | K206: 0 | L206: 0 | M206: 0 | N206: 0 | O206: 0 | P206: 0 | Q206: 0 | R206: 0 | S206: 1 | T206: 18 | U206: 0 | V206: 0 | W206: 0 | X206: 1 | Y206: 18 | Z206: 0 | AA206: 0 | AB206: 0 | AC206: 0 | AD206: 0 | AE206: 0 | AF206: 0 | AG206: 0 | AH206: 0 | AI206: 0 | AJ206: 0 | AK206: 0 | AL206: 0 | AM206: 0 | AN206: 0 | AO206: 0 | AP206: 0 | AQ206: 0 | AR206: 0 | AS206: 0 | AT206: 0 | AU206: 0 | AV206: 0 | AW206: 0 | AX206: 0 | AY206: 0 | AZ206: 0 | BA206: 0 | BB206: 0 | BC206: 0 | BD206: 0 | BE206: 0 | BF206: 0 | BG206: 0 | BH206: 0 | BI206: 0 | BJ206: 0 | BK206: 0 | BL206: 0 | BM206: 0 | BN206: 0 | BO206: 0 | BP206: 0 | BQ206: 0 | BR206: 0 | BS206: 0 | BT206: 0 | BU206: 0 | BV206: 0 | BW206: 0 | BX206: 0 | BY206: 0 | BZ206: 0 | CA206: 0 | CB206: 0 | CC206: 0 | CD206: 0 | CE206: 0 | CF206: 0 | CG206: 0 | CH206: 0 | CI206: 0 | CJ206: 0 | CK206: 0 | CL206: 0 | CM206: 0 | CN206: 0 | CO206: 0 | CP206: 0 | CQ206: 0 | CR206: 0 | CS206: 0 | CT206: 0 | CU206: 0 | CV206: 0 | CW206: 0 | CX206: 0 | CY206: 0 | CZ206: 0 | DA206: 0 | DB206: 0 | DC206: 0 | DD206: 0 | DE206: 0 | DF206: 0 | DG206: 0 | DH206: 0 | DI206: 0 | DJ206: 0 | DK206: 0 | DL206: 0 | DM206: 0 | DN206: 0 | DO206: 0 | DP206: 0 | DQ206: 0 | DR206: 0 | DS206: 0 | DT206: 0 | DU206: 0 | DV206: 0 | DW206: 0 | DX206: 0 | DY206: 0 | DZ206: 0 | EA206: 0 | EB206: 0 | EC206: 0 | ED206: 0 | EE206: 0 | EF206: 0 | EG206: 0 | EH206: 0 | EI206: 0 | EJ206: 0 | EK206: 0 | EL206: 0 | EM206: 0 | EN206: 0 | EO206: 0 | EP206: 0 | EQ206: 0 | ER206: 0 | ES206: 0 | ET206: 0 | EU206: 0 | EV206: 0 | EW206: 0 | EX206: 0 | EY206: 0 | EZ206: 0 | FA206: 0 | FB206: 0 | FC206: 0 | FD206: 0 | FE206: 0 | FF206: 0 | FG206: 0 | FH206: 0 | FI206: 0 | FJ206: 0 | FK206: 0 | FL206: 0 | FM206: 0 | FN206: 0 | FO206: 0 | FP206: 0 | FQ206: 0 | FR206: 0 | FS206: 0 | FT206: 0 | FU206: 0 | FV206: 0 | FW206: 0 | FX206: 0 | FY206: 0 | FZ206: 0 | GA206: 0 | GB206: 0 | GC206: 0 | GD206: 0 | GE206: 0 | GF206: 0 | GG206: 0 | GH206: 0 | GI206: 0 | GJ206: 0 | GK206: 0 | GL206: 0 | GM206: 0 | GN206: 0 | GO206: 0 | GP206: 0 | GQ206: 0 | GR206: 0 | GS206: 0 | GT206: 0 | GU206: 0 | GV206: 0 | GW206: 0 | GX206: 0 | GY206: 0 | GZ206: 0 | HA206: 0 | HB206: 0 | HC206: 0 | HD206: 0 | HE206: 0 | HF206: 0 | HG206: 0 | HH206: 0 | HI206: 0 | HJ206: 0 | HK206: 0 | HL206: 0 | HM206: 0 | HN206: 0 | HO206: 0 | HP206: 0 | HQ206: 0 | HR206: 0 | HS206: 0 | HT206: 0 | HU206: 0 | HV206: 0 | HW206: 0
A207: 6 | B207: 0 | C207: 0 | D207: 0 | E207: 0 | F207: 0 | G207: 0 | H207: 0 | I207: 0 | J207: 0 | K207: 0 | L207: 0 | M207: 0 | N207: 0 | O207: 0 | P207: 0 | Q207: 0 | R207: 0 | S207: 0 | T207: 0 | U207: 0 | V207: 0 | W207: 0 | X207: 0 | Y207: 0 | Z207: 0 | AA207: 0 | AB207: 0 | AC207: 1 | AD207: 18 | AE207: 0 | AF207: 0 | AG207: 0 | AH207: 0 | AI207: 0 | AJ207: 0 | AK207: 0 | AL207: 0 | AM207: 0 | AN207: 0 | AO207: 0 | AP207: 0 | AQ207: 0 | AR207: 0 | AS207: 0 | AT207: 0 | AU207: 0 | AV207: 0 | AW207: 0 | AX207: 0 | AY207: 0 | AZ207: 0 | BA207: 0 | BB207: 0 | BC207: 0 | BD207: 0 | BE207: 0 | BF207: 0 | BG207: 0 | BH207: 0 | BI207: 0 | BJ207: 0 | BK207: 0 | BL207: 0 | BM207: 0 | BN207: 0 | BO207: 0 | BP207: 0 | BQ207: 0 | BR207: 0 | BS207: 0 | BT207: 0 | BU207: 0 | BV207: 1 | BW207: 0 | BX207: 0 | BY207: 0 | BZ207: 0 | CA207: 0 | CB207: 0 | CC207: 0 | CD207: 0 | CE207: 0 | CF207: 0 | CG207: 0 | CH207: 0 | CI207: 0 | CJ207: 0 | CK207: 0 | CL207: 0 | CM207: 0 | CN207: 0 | CO207: 0 | CP207: 0 | CQ207: 0 | CR207: 0 | CS207: 0 | CT207: 0 | CU207: 0 | CV207: 0 | CW207: 0 | CX207: 0 | CY207: 0 | CZ207: 0 | DA207: 0 | DB207: 0 | DC207: 0 | DD207: 0 | DE207: 0 | DF207: 0 | DG207: 0 | DH207: 0 | DI207: 0 | DJ207: 0 | DK207: 0 | DL207: 0 | DM207: 0 | DN207: 0 | DO207: 0 | DP207: 0 | DQ207: 0 | DR207: 0 | DS207: 0 | DT207: 0 | DU207: 0 | DV207: 0 | DW207: 0 | DX207: 0 | DY207: 0 | DZ207: 0 | EA207: 0 | EB207: 0 | EC207: 0 | ED207: 0 | EE207: 0 | EF207: 0 | EG207: 0 | EH207: 0 | EI207: 0 | EJ207: 0 | EK207: 0 | EL207: 0 | EM207: 0 | EN207: 0 | EO207: 0 | EP207: 0 | EQ207: 0 | ER207: 0 | ES207: 0 | ET207: 0 | EU207: 0 | EV207: 0 | EW207: 0 | EX207: 0 | EY207: 0 | EZ207: 0 | FA207: 0 | FB207: 0 | FC207: 0 | FD207: 0 | FE207: 0 | FF207: 0 | FG207: 0 | FH207: 0 | FI207: 0 | FJ207: 0 | FK207: 0 | FL207: 0 | FM207: 0 | FN207: 0 | FO207: 0 | FP207: 0 | FQ207: 0 | FR207: 0 | FS207: 0 | FT207: 0 | FU207: 0 | FV207: 0 | FW207: 0 | FX207: 0 | FY207: 0 | FZ207: 0 | GA207: 0 | GB207: 0 | GC207: 0 | GD207: 0 | GE207: 0 | GF207: 0 | GG207: 0 | GH207: 0 | GI207: 0 | GJ207: 0 | GK207: 0 | GL207: 0 | GM207: 0 | GN207: 0 | GO207: 0 | GP207: 0 | GQ207: 0 | GR207: 0 | GS207: 0 | GT207: 0 | GU207: 0 | GV207: 0 | GW207: 0 | GX207: 0 | GY207: 0 | GZ207: 0 | HA207: 0 | HB207: 0 | HC207: 0 | HD207: 0 | HE207: 0 | HF207: 0 | HG207: 0 | HH207: 0 | HI207: 0 | HJ207: 0 | HK207: 0 | HL207: 0 | HM207: 0 | HN207: 0 | HO207: 0 | HP207: 0 | HQ207: 0 | HR207: 0 | HS207: 0 | HT207: 0 | HU207: 0 | HV207: 0 | HW207: 0
A208: 7 | B208: 0 | C208: 0 | D208: 0 | E208: 0 | F208: 0 | G208: 0 | H208: 0 | I208: 0 | J208: 0 | K208: 0 | L208: 0 | M208: 0 | N208: 0 | O208: 0 | P208: 0 | Q208: 0 | R208: 0 | S208: 1 | T208: 0 | U208: 0 | V208: 0 | W208: 0 | X208: 0 | Y208: 0 | Z208: 0 | AA208: 0 | AB208: 0 | AC208: 9 | AD208: 1 | AE208: 0 | AF208: 0 | AG208: 0 | AH208: 0 | AI208: 0 | AJ208: 0 | AK208: 0 | AL208: 0 | AM208: 0 | AN208: 0 | AO208: 0 | AP208: 0 | AQ208: 0 | AR208: 0 | AS208: 0 | AT208: 0 | AU208: 0 | AV208: 0 | AW208: 0 | AX208: 0 | AY208: 0 | AZ208: 0 | BA208: 0 | BB208: 0 | BC208: 0 | BD208: 0 | BE208: 0 | BF208: 0 | BG208: 0 | BH208: 0 | BI208: 0 | BJ208: 0 | BK208: 0 | BL208: 0 | BM208: 0 | BN208: 0 | BO208: 0 | BP208: 0 | BQ208: 0 | BR208: 0 | BS208: 0 | BT208: 0 | BU208: 0 | BV208: 0 | BW208: 0 | BX208: 0 | BY208: 0 | BZ208: 0 | CA208: 0 | CB208: 0 | CC208: 0 | CD208: 0 | CE208: 0 | CF208: 0 | CG208: 0 | CH208: 0 | CI208: 0 | CJ208: 0 | CK208: 0 | CL208: 0 | CM208: 0 | CN208: 0 | CO208: 0 | CP208: 0 | CQ208: 0 | CR208: 0 | CS208: 0 | CT208: 0 | CU208: 0 | CV208: 0 | CW208: 0 | CX208: 0 | CY208: 0 | CZ208: 0 | DA208: 0 | DB208: 0 | DC208: 0 | DD208: 0 | DE208: 0 | DF208: 0 | DG208: 0 | DH208: 0 | DI208: 0 | DJ208: 0 | DK208: 0 | DL208: 0 | DM208: 0 | DN208: 0 | DO208: 0 | DP208: 0 | DQ208: 0 | DR208: 0 | DS208: 0 | DT208: 0 | DU208: 0 | DV208: 0 | DW208: 0 | DX208: 0 | DY208: 0 | DZ208: 0 | EA208: 0 | EB208: 0 | EC208: 0 | ED208: 0 | EE208: 0 | EF208: 0 | EG208: 0 | EH208: 0 | EI208: 0 | EJ208: 0 | EK208: 0 | EL208: 0 | EM208: 0 | EN208: 0 | EO208: 0 | EP208: 0 | EQ208: 0 | ER208: 0 | ES208: 0 | ET208: 0 | EU208: 0 | EV208: 0 | EW208: 0 | EX208: 0 | EY208: 0 | EZ208: 0 | FA208: 0 | FB208: 0 | FC208: 0 | FD208: 0 | FE208: 0 | FF208: 0 | FG208: 0 | FH208: 0 | FI208: 0 | FJ208: 0 | FK208: 0 | FL208: 0 | FM208: 0 | FN208: 0 | FO208: 0 | FP208: 0 | FQ208: 0 | FR208: 0 | FS208: 0 | FT208: 0 | FU208: 0 | FV208: 0 | FW208: 0 | FX208: 0 | FY208: 0 | FZ208: 0 | GA208: 0 | GB208: 0 | GC208: 0 | GD208: 0 | GE208: 0 | GF208: 0 | GG208: 0 | GH208: 0 | GI208: 0 | GJ208: 0 | GK208: 0 | GL208: 0 | GM208: 0 | GN208: 0 | GO208: 0 | GP208: 0 | GQ208: 0 | GR208: 0 | GS208: 0 | GT208: 0 | GU208: 0 | GV208: 0 | GW208: 0 | GX208: 0 | GY208: 0 | GZ208: 0 | HA208: 0 | HB208: 0 | HC208: 0 | HD208: 0 | HE208: 0 | HF208: 0 | HG208: 0 | HH208: 0 | HI208: 0 | HJ208: 0 | HK208: 0 | HL208: 0 | HM208: 0 | HN208: 0 | HO208: 0 | HP208: 0 | HQ208: 0 | HR208: 0 | HS208: 0 | HT208: 0 | HU208: 0 | HV208: 0 | HW208: 0
A209: 8 | B209: 0 | C209: 0 | D209: 0 | E209: 0 | F209: 0 | G209: 0 | H209: 0 | I209: 0 | J209: 0 | K209: 0 | L209: 0 | M209: 0 | N209: 0 | O209: 0 | P209: 0 | Q209: 0 | R209: 0 | S209: 0 | T209: 0 | U209: 0 | V209: 0 | W209: 0 | X209: 0 | Y209: 0 | Z209: 0 | AA209: 0 | AB209: 0 | AC209: 0 | AD209: 0 | AE209: 0 | AF209: 0 | AG209: 0 | AH209: 0 | AI209: 0 | AJ209: 0 | AK209: 0 | AL209: 0 | AM209: 0 | AN209: 0 | AO209: 0 | AP209: 0 | AQ209: 0 | AR209: 0 | AS209: 0 | AT209: 0 | AU209: 0 | AV209: 0 | AW209: 0 | AX209: 0 | AY209: 0 | AZ209: 0 | BA209: 0 | BB209: 0 | BC209: 0 | BD209: 0 | BE209: 0 | BF209: 0 | BG209: 0 | BH209: 0 | BI209: 0 | BJ209: 0 | BK209: 0 | BL209: 0 | BM209: 0 | BN209: 0 | BO209: 0 | BP209: 0 | BQ209: 0 | BR209: 0 | BS209: 0 | BT209: 0 | BU209: 0 | BV209: 0 | BW209: 0 | BX209: 0 | BY209: 0 | BZ209: 0 | CA209: 0 | CB209: 0 | CC209: 0 | CD209: 0 | CE209: 0 | CF209: 0 | CG209: 0 | CH209: 0 | CI209: 0 | CJ209: 0 | CK209: 0 | CL209: 0 | CM209: 0 | CN209: 0 | CO209: 0 | CP209: 0 | CQ209: 0 | CR209: 0 | CS209: 0 | CT209: 0 | CU209: 0 | CV209: 0 | CW209: 0 | CX209: 0 | CY209: 0 | CZ209: 0 | DA209: 0 | DB209: 0 | DC209: 0 | DD209: 0 | DE209: 0 | DF209: 0 | DG209: 0 | DH209: 0 | DI209: 0 | DJ209: 0 | DK209: 0 | DL209: 0 | DM209: 0 | DN209: 0 | DO209: 0 | DP209: 0 | DQ209: 0 | DR209: 0 | DS209: 0 | DT209: 0 | DU209: 0 | DV209: 0 | DW209: 0 | DX209: 0 | DY209: 0 | DZ209: 0 | EA209: 0 | EB209: 0 | EC209: 0 | ED209: 0 | EE209: 0 | EF209: 0 | EG209: 0 | EH209: 0 | EI209: 0 | EJ209: 0 | EK209: 0 | EL209: 0 | EM209: 0 | EN209: 0 | EO209: 0 | EP209: 0 | EQ209: 0 | ER209: 0 | ES209: 0 | ET209: 0 | EU209: 0 | EV209: 0 | EW209: 0 | EX209: 0 | EY209: 0 | EZ209: 0 | FA209: 0 | FB209: 0 | FC209: 0 | FD209: 0 | FE209: 0 | FF209: 0 | FG209: 0 | FH209: 0 | FI209: 0 | FJ209: 0 | FK209: 0 | FL209: 0 | FM209: 0 | FN209: 0 | FO209: 0 | FP209: 0 | FQ209: 0 | FR209: 0 | FS209: 0 | FT209: 0 | FU209: 0 | FV209: 0 | FW209: 0 | FX209: 0 | FY209: 0 | FZ209: 0 | GA209: 0 | GB209: 0 | GC209: 0 | GD209: 0 | GE209: 0 | GF209: 0 | GG209: 0 | GH209: 0 | GI209: 0 | GJ209: 0 | GK209: 0 | GL209: 0 | GM209: 0 | GN209: 0 | GO209: 0 | GP209: 0 | GQ209: 0 | GR209: 0 | GS209: 0 | GT209: 0 | GU209: 0 | GV209: 0 | GW209: 0 | GX209: 0 | GY209: 0 | GZ209: 0 | HA209: 0 | HB209: 0 | HC209: 0 | HD209: 0 | HE209: 0 | HF209: 0 | HG209: 0 | HH209: 0 | HI209: 0 | HJ209: 0 | HK209: 0 | HL209: 0 | HM209: 0 | HN209: 0 | HO209: 0 | HP209: 0 | HQ209: 0 | HR209: 0 | HS209: 0 | HT209: 0 | HU209: 0 | HV209: 0 | HW209: 0
A210: 9 | B210: 0 | C210: 0 | D210: 0 | E210: 0 | F210: 0 | G210: 0 | H210: 0 | I210: 0 | J210: 0 | K210: 0 | L210: 0 | M210: 0 | N210: 0 | O210: 0 | P210: 0 | Q210: 0 | R210: 0 | S210: 64 | T210: 7 | U210: 0 | V210: 0 | W210: 0 | X210: 64 | Y210: 7 | Z210: 0 | AA210: 0 | AB210: 0 | AC210: 0 | AD210: 0 | AE210: 0 | AF210: 0 | AG210: 0 | AH210: 0 | AI210: 0 | AJ210: 0 | AK210: 0 | AL210: 0 | AM210: 0 | AN210: 0 | AO210: 0 | AP210: 0 | AQ210: 0 | AR210: 0 | AS210: 0 | AT210: 0 | AU210: 0 | AV210: 0 | AW210: 0 | AX210: 0 | AY210: 0 | AZ210: 0 | BA210: 0 | BB210: 0 | BC210: 0 | BD210: 0 | BE210: 0 | BF210: 0 | BG210: 0 | BH210: 0 | BI210: 0 | BJ210: 0 | BK210: 0 | BL210: 0 | BM210: 0 | BN210: 0 | BO210: 0 | BP210: 0 | BQ210: 0 | BR210: 0 | BS210: 0 | BT210: 0 | BU210: 0 | BV210: 0 | BW210: 0 | BX210: 0 | BY210: 0 | BZ210: 0 | CA210: 0 | CB210: 0 | CC210: 0 | CD210: 0 | CE210: 0 | CF210: 0 | CG210: 0 | CH210: 0 | CI210: 0 | CJ210: 0 | CK210: 0 | CL210: 0 | CM210: 0 | CN210: 0 | CO210: 1 | CP210: 0 | CQ210: 5 | CR210: 2 | CS210: 0 | CT210: 0 | CU210: 1 | CV210: 0 | CW210: 5 | CX210: 2 | CY210: 0 | CZ210: 0 | DA210: 0 | DB210: 0 | DC210: 0 | DD210: 0 | DE210: 0 | DF210: 0 | DG210: 0 | DH210: 0 | DI210: 0 | DJ210: 0 | DK210: 0 | DL210: 0 | DM210: 0 | DN210: 0 | DO210: 0 | DP210: 0 | DQ210: 0 | DR210: 0 | DS210: 0 | DT210: 0 | DU210: 0 | DV210: 0 | DW210: 0 | DX210: 0 | DY210: 0 | DZ210: 0 | EA210: 0 | EB210: 0 | EC210: 0 | ED210: 0 | EE210: 0 | EF210: 0 | EG210: 0 | EH210: 0 | EI210: 0 | EJ210: 0 | EK210: 0 | EL210: 0 | EM210: 0 | EN210: 0 | EO210: 0 | EP210: 0 | EQ210: 0 | ER210: 0 | ES210: 0 | ET210: 0 | EU210: 0 | EV210: 0 | EW210: 0 | EX210: 0 | EY210: 0 | EZ210: 0 | FA210: 0 | FB210: 0 | FC210: 0 | FD210: 0 | FE210: 0 | FF210: 0 | FG210: 0 | FH210: 0 | FI210: 0 | FJ210: 0 | FK210: 0 | FL210: 0 | FM210: 0 | FN210: 0 | FO210: 0 | FP210: 0 | FQ210: 0 | FR210: 0 | FS210: 0 | FT210: 0 | FU210: 0 | FV210: 0 | FW210: 0 | FX210: 0 | FY210: 0 | FZ210: 0 | GA210: 0 | GB210: 0 | GC210: 0 | GD210: 0 | GE210: 0 | GF210: 0 | GG210: 0 | GH210: 0 | GI210: 0 | GJ210: 0 | GK210: 0 | GL210: 0 | GM210: 0 | GN210: 0 | GO210: 0 | GP210: 0 | GQ210: 0 | GR210: 0 | GS210: 0 | GT210: 0 | GU210: 0 | GV210: 0 | GW210: 0 | GX210: 0 | GY210: 0 | GZ210: 0 | HA210: 0 | HB210: 0 | HC210: 0 | HD210: 0 | HE210: 0 | HF210: 0 | HG210: 0 | HH210: 0 | HI210: 0 | HJ210: 0 | HK210: 0 | HL210: 0 | HM210: 0 | HN210: 0 | HO210: 0 | HP210: 0 | HQ210: 0 | HR210: 0 | HS210: 0 | HT210: 0 | HU210: 0 | HV210: 0 | HW210: 0
A211: 10 | B211: 0 | C211: 0 | D211: 0 | E211: 0 | F211: 0 | G211: 0 | H211: 0 | I211: 0 | J211: 0 | K211: 0 | L211: 0 | M211: 0 | N211: 0 | O211: 0 | P211: 0 | Q211: 0 | R211: 0 | S211: 0 | T211: 0 | U211: 0 | V211: 0 | W211: 0 | X211: 0 | Y211: 0 | Z211: 0 | AA211: 0 | AB211: 0 | AC211: 64 | AD211: 7 | AE211: 0 | AF211: 0 | AG211: 0 | AH211: 0 | AI211: 0 | AJ211: 0 | AK211: 0 | AL211: 0 | AM211: 0 | AN211: 0 | AO211: 0 | AP211: 0 | AQ211: 0 | AR211: 0 | AS211: 0 | AT211: 0 | AU211: 0 | AV211: 0 | AW211: 0 | AX211: 0 | AY211: 0 | AZ211: 0 | BA211: 0 | BB211: 0 | BC211: 0 | BD211: 0 | BE211: 0 | BF211: 0 | BG211: 0 | BH211: 0 | BI211: 0 | BJ211: 0 | BK211: 0 | BL211: 0 | BM211: 0 | BN211: 0 | BO211: 0 | BP211: 0 | BQ211: 0 | BR211: 0 | BS211: 0 | BT211: 0 | BU211: 0 | BV211: 0 | BW211: 0 | BX211: 0 | BY211: 0 | BZ211: 0 | CA211: 0 | CB211: 0 | CC211: 0 | CD211: 0 | CE211: 0 | CF211: 0 | CG211: 0 | CH211: 0 | CI211: 0 | CJ211: 0 | CK211: 0 | CL211: 0 | CM211: 0 | CN211: 0 | CO211: 0 | CP211: 0 | CQ211: 0 | CR211: 0 | CS211: 0 | CT211: 0 | CU211: 0 | CV211: 0 | CW211: 0 | CX211: 0 | CY211: 0 | CZ211: 0 | DA211: 0 | DB211: 0 | DC211: 0 | DD211: 0 | DE211: 0 | DF211: 0 | DG211: 0 | DH211: 0 | DI211: 0 | DJ211: 0 | DK211: 0 | DL211: 0 | DM211: 0 | DN211: 0 | DO211: 0 | DP211: 0 | DQ211: 0 | DR211: 0 | DS211: 0 | DT211: 0 | DU211: 0 | DV211: 0 | DW211: 0 | DX211: 0 | DY211: 0 | DZ211: 0 | EA211: 0 | EB211: 0 | EC211: 0 | ED211: 0 | EE211: 0 | EF211: 0 | EG211: 0 | EH211: 0 | EI211: 0 | EJ211: 0 | EK211: 0 | EL211: 0 | EM211: 0 | EN211: 0 | EO211: 0 | EP211: 0 | EQ211: 0 | ER211: 0 | ES211: 0 | ET211: 0 | EU211: 0 | EV211: 0 | EW211: 0 | EX211: 0 | EY211: 0 | EZ211: 0 | FA211: 0 | FB211: 0 | FC211: 0 | FD211: 0 | FE211: 0 | FF211: 0 | FG211: 0 | FH211: 0 | FI211: 0 | FJ211: 0 | FK211: 0 | FL211: 0 | FM211: 0 | FN211: 0 | FO211: 0 | FP211: 0 | FQ211: 0 | FR211: 0 | FS211: 0 | FT211: 0 | FU211: 0 | FV211: 0 | FW211: 0 | FX211: 0 | FY211: 0 | FZ211: 0 | GA211: 0 | GB211: 0 | GC211: 0 | GD211: 0 | GE211: 0 | GF211: 0 | GG211: 0 | GH211: 0 | GI211: 0 | GJ211: 0 | GK211: 0 | GL211: 0 | GM211: 0 | GN211: 0 | GO211: 0 | GP211: 0 | GQ211: 0 | GR211: 0 | GS211: 0 | GT211: 0 | GU211: 0 | GV211: 0 | GW211: 0 | GX211: 0 | GY211: 0 | GZ211: 0 | HA211: 0 | HB211: 0 | HC211: 0 | HD211: 0 | HE211: 0 | HF211: 0 | HG211: 0 | HH211: 0 | HI211: 0 | HJ211: 0 | HK211: 0 | HL211: 0 | HM211: 0 | HN211: 0 | HO211: 0 | HP211: 0 | HQ211: 0 | HR211: 0 | HS211: 0 | HT211: 0 | HU211: 0 | HV211: 0 | HW211: 0
A212: 11 | B212: 0 | C212: 0 | D212: 0 | E212: 0 | F212: 0 | G212: 0 | H212: 0 | I212: 0 | J212: 0 | K212: 0 | L212: 0 | M212: 0 | N212: 0 | O212: 0 | P212: 0 | Q212: 0 | R212: 0 | S212: 0 | T212: 0 | U212: 0 | V212: 0 | W212: 0 | X212: 0 | Y212: 0 | Z212: 0 | AA212: 0 | AB212: 0 | AC212: 0 | AD212: 0 | AE212: 0 | AF212: 0 | AG212: 0 | AH212: 0 | AI212: 0 | AJ212: 0 | AK212: 0 | AL212: 0 | AM212: 0 | AN212: 0 | AO212: 0 | AP212: 0 | AQ212: 0 | AR212: 0 | AS212: 0 | AT212: 0 | AU212: 0 | AV212: 0 | AW212: 0 | AX212: 0 | AY212: 0 | AZ212: 0 | BA212: 0 | BB212: 0 | BC212: 0 | BD212: 0 | BE212: 0 | BF212: 0 | BG212: 0 | BH212: 0 | BI212: 0 | BJ212: 0 | BK212: 0 | BL212: 0 | BM212: 0 | BN212: 0 | BO212: 0 | BP212: 0 | BQ212: 0 | BR212: 0 | BS212: 0 | BT212: 0 | BU212: 0 | BV212: 0 | BW212: 0 | BX212: 0 | BY212: 0 | BZ212: 0 | CA212: 0 | CB212: 0 | CC212: 0 | CD212: 0 | CE212: 0 | CF212: 0 | CG212: 0 | CH212: 0 | CI212: 0 | CJ212: 0 | CK212: 0 | CL212: 0 | CM212: 0 | CN212: 0 | CO212: 0 | CP212: 0 | CQ212: 0 | CR212: 0 | CS212: 0 | CT212: 0 | CU212: 0 | CV212: 0 | CW212: 0 | CX212: 0 | CY212: 0 | CZ212: 0 | DA212: 0 | DB212: 0 | DC212: 0 | DD212: 0 | DE212: 0 | DF212: 0 | DG212: 0 | DH212: 0 | DI212: 0 | DJ212: 0 | DK212: 0 | DL212: 0 | DM212: 0 | DN212: 0 | DO212: 0 | DP212: 0 | DQ212: 0 | DR212: 0 | DS212: 0 | DT212: 0 | DU212: 0 | DV212: 0 | DW212: 0 | DX212: 0 | DY212: 0 | DZ212: 0 | EA212: 0 | EB212: 0 | EC212: 0 | ED212: 0 | EE212: 0 | EF212: 0 | EG212: 0 | EH212: 0 | EI212: 0 | EJ212: 0 | EK212: 0 | EL212: 0 | EM212: 0 | EN212: 0 | EO212: 0 | EP212: 0 | EQ212: 0 | ER212: 0 | ES212: 0 | ET212: 0 | EU212: 0 | EV212: 0 | EW212: 0 | EX212: 0 | EY212: 0 | EZ212: 0 | FA212: 0 | FB212: 0 | FC212: 0 | FD212: 0 | FE212: 0 | FF212: 0 | FG212: 0 | FH212: 0 | FI212: 0 | FJ212: 0 | FK212: 0 | FL212: 0 | FM212: 0 | FN212: 0 | FO212: 0 | FP212: 0 | FQ212: 0 | FR212: 0 | FS212: 0 | FT212: 0 | FU212: 0 | FV212: 0 | FW212: 0 | FX212: 0 | FY212: 0 | FZ212: 0 | GA212: 0 | GB212: 0 | GC212: 0 | GD212: 0 | GE212: 0 | GF212: 0 | GG212: 0 | GH212: 0 | GI212: 0 | GJ212: 0 | GK212: 0 | GL212: 0 | GM212: 0 | GN212: 0 | GO212: 0 | GP212: 0 | GQ212: 0 | GR212: 0 | GS212: 0 | GT212: 0 | GU212: 0 | GV212: 0 | GW212: 0 | GX212: 0 | GY212: 0 | GZ212: 0 | HA212: 0 | HB212: 0 | HC212: 0 | HD212: 0 | HE212: 0 | HF212: 0 | HG212: 0 | HH212: 0 | HI212: 0 | HJ212: 0 | HK212: 0 | HL212: 0 | HM212: 0 | HN212: 0 | HO212: 0 | HP212: 0 | HQ212: 0 | HR212: 0 | HS212: 0 | HT212: 0 | HU212: 0 | HV212: 0 | HW212: 0
A213: T | B213: 0 | C213: 0 | D213: 0 | E213: 0 | F213: 0 | G213: 0 | H213: 0 | I213: 0 | J213: 0 | K213: 0 | L213: 0 | M213: 0 | N213: 0 | O213: 0 | P213: 0 | Q213: 0 | R213: 0 | S213: 195 | T213: 44 | U213: 0 | V213: 0 | W213: 0 | X213: 194 | Y213: 44 | Z213: 0 | AA213: 0 | AB213: 0 | AC213: 200 | AD213: 45 | AE213: 0 | AF213: 0 | AG213: 0 | AH213: 0 | AI213: 0 | AJ213: 0 | AK213: 0 | AL213: 0 | AM213: 0 | AN213: 0 | AO213: 0 | AP213: 0 | AQ213: 0 | AR213: 0 | AS213: 0 | AT213: 0 | AU213: 0 | AV213: 0 | AW213: 0 | AX213: 0 | AY213: 0 | AZ213: 0 | BA213: 0 | BB213: 0 | BC213: 0 | BD213: 0 | BE213: 0 | BF213: 0 | BG213: 0 | BH213: 0 | BI213: 0 | BJ213: 0 | BK213: 0 | BL213: 0 | BM213: 0 | BN213: 0 | BO213: 0 | BP213: 0 | BQ213: 0 | BR213: 0 | BS213: 0 | BT213: 0 | BU213: 0 | BV213: 1 | BW213: 1 | BX213: 1 | BY213: 0 | BZ213: 0 | CA213: 0 | CB213: 0 | CC213: 0 | CD213: 0 | CE213: 0 | CF213: 0 | CG213: 0 | CH213: 0 | CI213: 0 | CJ213: 0 | CK213: 0 | CL213: 0 | CM213: 0 | CN213: 0 | CO213: 1 | CP213: 0 | CQ213: 5 | CR213: 2 | CS213: 1 | CT213: 0 | CU213: 1 | CV213: 0 | CW213: 5 | CX213: 2 | CY213: 1 | CZ213: 0 | DA213: 0 | DB213: 0 | DC213: 0 | DD213: 0 | DE213: 1 | DF213: 0 | DG213: 0 | DH213: 0 | DI213: 0 | DJ213: 0 | DK213: 0 | DL213: 0 | DM213: 0 | DN213: 0 | DO213: 0 | DP213: 0 | DQ213: 0 | DR213: 0 | DS213: 0 | DT213: 0 | DU213: 0 | DV213: 0 | DW213: 0 | DX213: 0 | DY213: 0 | DZ213: 0 | EA213: 0 | EB213: 0 | EC213: 0 | ED213: 0 | EE213: 0 | EF213: 0 | EG213: 0 | EH213: 0 | EI213: 0 | EJ213: 0 | EK213: 0 | EL213: 0 | EM213: 0 | EN213: 0 | EO213: 0 | EP213: 0 | EQ213: 0 | ER213: 0 | ES213: 0 | ET213: 0 | EU213: 0 | EV213: 0 | EW213: 0 | EX213: 0 | EY213: 0 | EZ213: 0 | FA213: 0 | FB213: 0 | FC213: 0 | FD213: 0 | FE213: 0 | FF213: 0 | FG213: 0 | FH213: 0 | FI213: 0 | FJ213: 0 | FK213: 0 | FL213: 0 | FM213: 0 | FN213: 0 | FO213: 0 | FP213: 0 | FQ213: 0 | FR213: 0 | FS213: 0 | FT213: 0 | FU213: 0 | FV213: 0 | FW213: 0 | FX213: 0 | FY213: 0 | FZ213: 0 | GA213: 0 | GB213: 0 | GC213: 0 | GD213: 0 | GE213: 0 | GF213: 0 | GG213: 0 | GH213: 0 | GI213: 0 | GJ213: 0 | GK213: 0 | GL213: 0 | GM213: 0 | GN213: 0 | GO213: 0 | GP213: 0 | GQ213: 0 | GR213: 0 | GS213: 0 | GT213: 0 | GU213: 0 | GV213: 0 | GW213: 0 | GX213: 0 | GY213: 0 | GZ213: 0 | HA213: 0 | HB213: 0 | HC213: 0 | HD213: 0 | HE213: 0 | HF213: 0 | HG213: 0 | HH213: 0 | HI213: 0 | HJ213: 0 | HK213: 0 | HL213: 0 | HM213: 0 | HN213: 0 | HO213: 0 | HP213: 0 | HQ213: 0 | HR213: 0 | HS213: 0 | HT213: 0 | HU213: 0 | HV213: 0 | HW213: 0
A215: TOTAL
A216: =COUNT(A202:A213) -> 11 | B216: =SUM(B202:B213) -> 0 | C216: =SUM(C202:C213) -> 0 | D216: 0 | E216: 0 | F216: 0 | G216: 0 | H216: 0 | I216: 0 | J216: 0 | K216: 0 | L216: 0 | M216: 0 | N216: 0 | O216: 0 | P216: 0 | Q216: 0 | R216: 0 | S216: 390 | T216: 88 | U216: 0 | V216: 0 | W216: 0 | X216: 388 | Y216: 88 | Z216: 0 | AA216: 0 | AB216: 0 | AC216: 400 | AD216: 90 | AE216: 0 | AF216: 0 | AG216: 0 | AH216: 0 | AI216: 0 | AJ216: 0 | AK216: 0 | AL216: 0 | AM216: 0 | AN216: 0 | AO216: 0 | AP216: 0 | AQ216: 0 | AR216: 0 | AS216: 0 | AT216: 0 | AU216: 0 | AV216: 0 | AW216: 0 | AX216: 0 | AY216: 0 | AZ216: 0 | BA216: 0 | BB216: 0 | BC216: 0 | BD216: 0 | BE216: 0 | BF216: 0 | BG216: 0 | BH216: 0 | BI216: 0 | BJ216: 0 | BK216: 0 | BL216: 0 | BM216: 0 | BN216: 0 | BO216: =SUM(BO202:BO213) -> 0 | BP216: 0 | BQ216: 0 | BR216: 0 | BS216: 0 | BT216: 0 | BU216: 0 | BV216: 2 | BW216: 2 | BX216: 2 | BY216: 0 | BZ216: 0 | CA216: 0 | CB216: 0 | CC216: 0 | CD216: 0 | CE216: 0 | CF216: 0 | CG216: 0 | CH216: 0 | CI216: 0 | CJ216: 0 | CK216: 0 | CL216: 0 | CM216: 0 | CN216: 0 | CO216: 2 | CP216: 0 | CQ216: 10 | CR216: 4 | CS216: 2 | CT216: 0 | CU216: 2 | CV216: 0 | CW216: 10 | CX216: 4 | CY216: 2 | CZ216: 0 | DA216: 0 | DB216: 0 | DC216: 0 | DD216: 0 | DE216: 2 | DF216: 0 | DG216: 0 | DH216: 0 | DI216: 0 | DJ216: 0 | DK216: 0 | DL216: 0 | DM216: 0 | DN216: 0 | DO216: 0 | DP216: 0 | DQ216: 0 | DR216: 0 | DS216: 0 | DT216: 0 | DU216: 0 | DV216: 0 | DW216: 0 | DX216: 0 | DY216: 0 | DZ216: 0 | EA216: =SUM(EA202:EA213) -> 0 | EB216: 0 | EC216: 0 | ED216: 0 | EE216: 0 | EF216: 0 | EG216: 0 | EH216: 0 | EI216: 0 | EJ216: 0 | EK216: 0 | EL216: 0 | EM216: 0 | EN216: 0 | EO216: 0 | EP216: 0 | EQ216: 0 | ER216: 0 | ES216: 0 | ET216: 0 | EU216: 0 | EV216: 0 | EW216: 0 | EX216: 0 | EY216: 0 | EZ216: 0 | FA216: 0 | FB216: 0 | FC216: 0 | FD216: 0 | FE216: 0 | FF216: 0 | FG216: 0 | FH216: 0 | FI216: 0 | FJ216: 0 | FK216: 0 | FL216: 0 | FM216: 0 | FN216: 0 | FO216: 0 | FP216: 0 | FQ216: 0 | FR216: 0 | FS216: 0 | FT216: 0 | FU216: 0 | FV216: 0 | FW216: 0 | FX216: 0 | FY216: 0 | FZ216: 0 | GA216: 0 | GB216: 0 | GC216: 0 | GD216: 0 | GE216: 0 | GF216: 0 | GG216: 0 | GH216: 0 | GI216: 0 | GJ216: 0 | GK216: 0 | GL216: 0 | GM216: =SUM(GM202:GM213) -> 0 | GN216: 0 | GO216: 0 | GP216: 0 | GQ216: 0 | GR216: 0 | GS216: 0 | GT216: 0 | GU216: 0 | GV216: 0 | GW216: 0 | GX216: 0 | GY216: 0 | GZ216: 0 | HA216: 0 | HB216: 0 | HC216: 0 | HD216: 0 | HE216: 0 | HF216: 0 | HG216: 0 | HH216: 0 | HI216: 0 | HJ216: 0 | HK216: 0 | HL216: 0 | HM216: 0 | HN216: 0 | HO216: 0 | HP216: 0 | HQ216: 0 | HR216: 0 | HS216: 0 | HT216: 0 | HU216: 0 | HV216: 0 | HW216: 0
A217: =CONCATENATE(A202,"-",A203,"-",A204,"-",A205,"-",A206,"-",A207,"-",A208,"-",A209,"-",A210,"-",A211,"-",A212,"-",A213) -> 2-1-3-4-5-6-7-8-9-10-11-T
B218: BAS001 | C218: BAS002 | D218: BAS003 | E218: BAS004 | F218: BAS005 | G218: BAS006 | H218: BAS007 | I218: BAS008 | J218: BAS009 | K218: BAS010 | L218: BAS011 | M218: BAS012 | N218: BAS013 | O218: BAS014 | P218: BAS015 | Q218: BAS016 | R218: BAS017 | S218: BAS018 | T218: BAS019 | U218: BAS020 | V218: BAS021 | W218: BAS022 | X218: BAS023 | Y218: BAS024 | Z218: BAS025 | AA218: BAS026 | AB218: BAS027 | AC218: BAS028 | AD218: BAS029 | AE218: BAS030 | AF218: BAS031 | AG218: BAS032 | AH218: BAS033 | AI218: BAS034 | AJ218: BAS035 | AK218: BAS036 | AL218: BAS037 | AM218: BAS038 | AN218: BAS039 | AO218: BAS040 | AP218: BAS041 | AQ218: BAS042 | AR218: BAS043 | AS218: BAS044 | AT218: BAS045 | AU218: BAS046 | AV218: BAS047 | AW218: BAS048 | AX218: BAS049 | AY218: BAS050 | AZ218: BAS051 | BA218: BAS052 | BB218: BAS053 | BC218: BAS054 | BD218: BAS055 | BE218: BAS056 | BF218: BAS057 | BG218: BAS058 | BH218: BAS059 | BI218: BAS060 | BJ218: BAS061 | BK218: BAS062 | BL218: BAS063 | BM218: BAS064 | BN218: BAS065 | BO218: BAS066 | BP218: BAS067 | BQ218: BAS068 | BR218: BAS069 | BS218: BAS070 | BT218: BAS071 | BU218: BAS072 | BV218: BAS073 | BW218: BAS074 | BX218: BAS075 | BY218: BAS076 | BZ218: BAS077 | CA218: BAS078 | CB218: BAS079 | CC218: BAS080 | CD218: BAS081 | CE218: BAS082 | CF218: BAS083 | CG218: BAS084 | CH218: BAS085 | CI218: BAS086 | CJ218: BAS087 | CK218: BAS088 | CL218: BAS089 | CM218: BAS090 | CN218: BAS091 | CO218: BAS092 | CP218: BAS093 | CQ218: BAS094 | CR218: BAS095 | CS218: BAS096 | CT218: BAS097 | CU218: BAS098 | CV218: BAS099 | CW218: BAS100 | CX218: BAS101 | CY218: BAS102 | CZ218: BAS103 | DA218: BAS104 | DB218: BAS105 | DC218: BAS106 | DD218: BAS107 | DE218: BAS108 | DF218: BAS109 | DG218: BAS110 | DH218: BAS111 | DI218: BAS112 | DJ218: BAS113 | DK218: BAS114 | DL218: BAS115 | DM218: BAS116 | DN218: BAS117 | DO218: BAS118 | DP218: BAS119 | DQ218: BAS120 | DR218: BAS121 | DS218: BAS122 | DT218: BAS123 | DU218: BAS124 | DV218: BAS125 | DW218: BAS126 | DX218: BAS127 | DY218: BAS128 | DZ218: BAS129 | EA218: BAS130 | EB218: BAS131 | EC218: BAS132 | ED218: BAS133 | EE218: BAS134 | EF218: BAS135 | EG218: BAS136 | EH218: BAS137 | EI218: BAS138 | EJ218: BAS139 | EK218: BAS140 | EL218: BAS141 | EM218: BAS142 | EN218: BAS143 | EO218: BAS144 | EP218: BAS145 | EQ218: BAS146 | ER218: BAS147 | ES218: BAS148 | ET218: BAS149 | EU218: BAS150 | EV218: BAS151 | EW218: BAS152 | EX218: BAS153 | EY218: BAS154 | EZ218: BAS155 | FA218: BAS156 | FB218: BAS157 | FC218: BAS158 | FD218: BAS159 | FE218: BAS160 | FF218: BAS161 | FG218: BAS162 | FH218: BAS163 | FI218: BAS164 | FJ218: BAS165 | FK218: BAS166 | FL218: BAS167 | FM218: BAS168 | FN218: BAS169 | FO218: BAS170 | FP218: BAS171 | FQ218: BAS172 | FR218: BAS173 | FS218: BAS174 | FT218: BAS175 | FU218: BAS176 | FV218: BAS177 | FW218: BAS178 | FX218: BAS179 | FY218: BAS180 | FZ218: BAS181 | GA218: BAS182 | GB218: BAS183 | GC218: BAS184 | GD218: BAS185 | GE218: BAS186 | GF218: BAS187 | GG218: BAS188 | GH218: BAS189 | GI218: BAS190 | GJ218: BAS191 | GK218: BAS192 | GL218: BAS193 | GM218: BAS194 | GN218: BAS195 | GO218: BAS196 | GP218: BAS197 | GQ218: BAS198 | GR218: BAS199 | GS218: BAS200 | GT218: BAS201 | GU218: BAS202 | GV218: BAS203 | GW218: BAS204 | GX218: BAS205 | GY218: BAS206 | GZ218: BAS207 | HA218: BAS208 | HB218: BAS209 | HC218: BAS210 | HD218: BAS211 | HE218: BAS212 | HF218: BAS213 | HG218: BAS214 | HH218: BAS215 | HI218: BAS216 | HJ218: BAS217 | HK218: BAS218 | HL218: BAS219 | HM218: BAS220 | HN218: BAS221 | HO218: BAS222 | HP218: BAS223 | HQ218: BAS224 | HR218: BAS225 | HS218: BAS226 | HT218: BAS227 | HU218: BAS228 | HV218: BAS229 | HW218: BAS230
B219: =IF(B218=B201,"SI","NO") -> SI | C219: =IF(C218=C201,"SI","NO") -> SI | D219: =IF(D218=D201,"SI","NO") -> SI | E219: =IF(E218=E201,"SI","NO") -> SI | F219: =IF(F218=F201,"SI","NO") -> SI | G219: =IF(G218=G201,"SI","NO") -> SI | H219: =IF(H218=H201,"SI","NO") -> SI | I219: =IF(I218=I201,"SI","NO") -> SI | J219: =IF(J218=J201,"SI","NO") -> SI | K219: =IF(K218=K201,"SI","NO") -> SI | L219: =IF(L218=L201,"SI","NO") -> SI | M219: =IF(M218=M201,"SI","NO") -> SI | N219: =IF(N218=N201,"SI","NO") -> SI | O219: =IF(O218=O201,"SI","NO") -> SI | P219: =IF(P218=P201,"SI","NO") -> SI | Q219: =IF(Q218=Q201,"SI","NO") -> SI | R219: =IF(R218=R201,"SI","NO") -> SI | S219: =IF(S218=S201,"SI","NO") -> SI | T219: =IF(T218=T201,"SI","NO") -> SI | U219: =IF(U218=U201,"SI","NO") -> SI | V219: =IF(V218=V201,"SI","NO") -> SI | W219: =IF(W218=W201,"SI","NO") -> SI | X219: =IF(X218=X201,"SI","NO") -> SI | Y219: =IF(Y218=Y201,"SI","NO") -> SI | Z219: =IF(Z218=Z201,"SI","NO") -> SI | AA219: =IF(AA218=AA201,"SI","NO") -> SI | AB219: =IF(AB218=AB201,"SI","NO") -> SI | AC219: =IF(AC218=AC201,"SI","NO") -> SI | AD219: =IF(AD218=AD201,"SI","NO") -> SI | AE219: =IF(AE218=AE201,"SI","NO") -> SI | AF219: =IF(AF218=AF201,"SI","NO") -> SI | AG219: =IF(AG218=AG201,"SI","NO") -> SI | AH219: =IF(AH218=AH201,"SI","NO") -> SI | AI219: =IF(AI218=AI201,"SI","NO") -> SI | AJ219: =IF(AJ218=AJ201,"SI","NO") -> SI | AK219: =IF(AK218=AK201,"SI","NO") -> SI | AL219: =IF(AL218=AL201,"SI","NO") -> SI | AM219: =IF(AM218=AM201,"SI","NO") -> SI | AN219: =IF(AN218=AN201,"SI","NO") -> SI | AO219: =IF(AO218=AO201,"SI","NO") -> SI | AP219: =IF(AP218=AP201,"SI","NO") -> SI | AQ219: =IF(AQ218=AQ201,"SI","NO") -> SI | AR219: =IF(AR218=AR201,"SI","NO") -> SI | AS219: =IF(AS218=AS201,"SI","NO") -> SI | AT219: =IF(AT218=AT201,"SI","NO") -> SI | AU219: =IF(AU218=AU201,"SI","NO") -> SI | AV219: =IF(AV218=AV201,"SI","NO") -> SI | AW219: =IF(AW218=AW201,"SI","NO") -> SI | AX219: =IF(AX218=AX201,"SI","NO") -> SI | AY219: =IF(AY218=AY201,"SI","NO") -> SI | AZ219: =IF(AZ218=AZ201,"SI","NO") -> SI | BA219: =IF(BA218=BA201,"SI","NO") -> SI | BB219: =IF(BB218=BB201,"SI","NO") -> SI | BC219: =IF(BC218=BC201,"SI","NO") -> SI | BD219: =IF(BD218=BD201,"SI","NO") -> SI | BE219: =IF(BE218=BE201,"SI","NO") -> SI | BF219: =IF(BF218=BF201,"SI","NO") -> SI | BG219: =IF(BG218=BG201,"SI","NO") -> SI | BH219: =IF(BH218=BH201,"SI","NO") -> SI | BI219: =IF(BI218=BI201,"SI","NO") -> SI | BJ219: =IF(BJ218=BJ201,"SI","NO") -> SI | BK219: =IF(BK218=BK201,"SI","NO") -> SI | BL219: =IF(BL218=BL201,"SI","NO") -> SI | BM219: =IF(BM218=BM201,"SI","NO") -> SI | BN219: =IF(BN218=BN201,"SI","NO") -> SI | BO219: =IF(BO218=BO201,"SI","NO") -> SI | BP219: =IF(BP218=BP201,"SI","NO") -> SI | BQ219: =IF(BQ218=BQ201,"SI","NO") -> SI | BR219: =IF(BR218=BR201,"SI","NO") -> SI | BS219: =IF(BS218=BS201,"SI","NO") -> SI | BT219: =IF(BT218=BT201,"SI","NO") -> SI | BU219: =IF(BU218=BU201,"SI","NO") -> SI | BV219: =IF(BV218=BV201,"SI","NO") -> SI | BW219: =IF(BW218=BW201,"SI","NO") -> SI | BX219: =IF(BX218=BX201,"SI","NO") -> SI | BY219: =IF(BY218=BY201,"SI","NO") -> SI | BZ219: =IF(BZ218=BZ201,"SI","NO") -> SI | CA219: =IF(CA218=CA201,"SI","NO") -> SI | CB219: =IF(CB218=CB201,"SI","NO") -> SI | CC219: =IF(CC218=CC201,"SI","NO") -> SI | CD219: =IF(CD218=CD201,"SI","NO") -> SI | CE219: =IF(CE218=CE201,"SI","NO") -> SI | CF219: =IF(CF218=CF201,"SI","NO") -> SI | CG219: =IF(CG218=CG201,"SI","NO") -> SI | CH219: =IF(CH218=CH201,"SI","NO") -> SI | CI219: =IF(CI218=CI201,"SI","NO") -> SI | CJ219: =IF(CJ218=CJ201,"SI","NO") -> SI | CK219: =IF(CK218=CK201,"SI","NO") -> SI | CL219: =IF(CL218=CL201,"SI","NO") -> SI | CM219: =IF(CM218=CM201,"SI","NO") -> SI | CN219: =IF(CN218=CN201,"SI","NO") -> SI | CO219: =IF(CO218=CO201,"SI","NO") -> SI | CP219: =IF(CP218=CP201,"SI","NO") -> SI | CQ219: =IF(CQ218=CQ201,"SI","NO") -> SI | CR219: =IF(CR218=CR201,"SI","NO") -> SI | CS219: =IF(CS218=CS201,"SI","NO") -> SI | CT219: =IF(CT218=CT201,"SI","NO") -> SI | CU219: =IF(CU218=CU201,"SI","NO") -> SI | CV219: =IF(CV218=CV201,"SI","NO") -> SI | CW219: =IF(CW218=CW201,"SI","NO") -> SI | CX219: =IF(CX218=CX201,"SI","NO") -> SI | CY219: =IF(CY218=CY201,"SI","NO") -> SI | CZ219: =IF(CZ218=CZ201,"SI","NO") -> SI | DA219: =IF(DA218=DA201,"SI","NO") -> SI | DB219: =IF(DB218=DB201,"SI","NO") -> SI | DC219: =IF(DC218=DC201,"SI","NO") -> SI | DD219: =IF(DD218=DD201,"SI","NO") -> SI | DE219: =IF(DE218=DE201,"SI","NO") -> SI | DF219: =IF(DF218=DF201,"SI","NO") -> SI | DG219: =IF(DG218=DG201,"SI","NO") -> SI | DH219: =IF(DH218=DH201,"SI","NO") -> SI | DI219: =IF(DI218=DI201,"SI","NO") -> SI | DJ219: =IF(DJ218=DJ201,"SI","NO") -> SI | DK219: =IF(DK218=DK201,"SI","NO") -> SI | DL219: =IF(DL218=DL201,"SI","NO") -> SI | DM219: =IF(DM218=DM201,"SI","NO") -> SI | DN219: =IF(DN218=DN201,"SI","NO") -> SI | DO219: =IF(DO218=DO201,"SI","NO") -> SI | DP219: =IF(DP218=DP201,"SI","NO") -> SI | DQ219: =IF(DQ218=DQ201,"SI","NO") -> SI | DR219: =IF(DR218=DR201,"SI","NO") -> SI | DS219: =IF(DS218=DS201,"SI","NO") -> SI | DT219: =IF(DT218=DT201,"SI","NO") -> SI | DU219: =IF(DU218=DU201,"SI","NO") -> SI | DV219: =IF(DV218=DV201,"SI","NO") -> SI | DW219: =IF(DW218=DW201,"SI","NO") -> SI | DX219: =IF(DX218=DX201,"SI","NO") -> SI | DY219: =IF(DY218=DY201,"SI","NO") -> SI | DZ219: =IF(DZ218=DZ201,"SI","NO") -> SI | EA219: =IF(EA218=EA201,"SI","NO") -> SI | EB219: =IF(EB218=EB201,"SI","NO") -> SI | EC219: =IF(EC218=EC201,"SI","NO") -> SI | ED219: =IF(ED218=ED201,"SI","NO") -> SI | EE219: =IF(EE218=EE201,"SI","NO") -> SI | EF219: =IF(EF218=EF201,"SI","NO") -> SI | EG219: =IF(EG218=EG201,"SI","NO") -> SI | EH219: =IF(EH218=EH201,"SI","NO") -> SI | EI219: =IF(EI218=EI201,"SI","NO") -> SI | EJ219: =IF(EJ218=EJ201,"SI","NO") -> SI | EK219: =IF(EK218=EK201,"SI","NO") -> SI | EL219: =IF(EL218=EL201,"SI","NO") -> SI | EM219: =IF(EM218=EM201,"SI","NO") -> SI | EN219: =IF(EN218=EN201,"SI","NO") -> SI | EO219: =IF(EO218=EO201,"SI","NO") -> SI | EP219: =IF(EP218=EP201,"SI","NO") -> SI | EQ219: =IF(EQ218=EQ201,"SI","NO") -> SI | ER219: =IF(ER218=ER201,"SI","NO") -> SI | ES219: =IF(ES218=ES201,"SI","NO") -> SI | ET219: =IF(ET218=ET201,"SI","NO") -> SI | EU219: =IF(EU218=EU201,"SI","NO") -> SI | EV219: =IF(EV218=EV201,"SI","NO") -> SI | EW219: =IF(EW218=EW201,"SI","NO") -> SI | EX219: =IF(EX218=EX201,"SI","NO") -> SI | EY219: =IF(EY218=EY201,"SI","NO") -> SI | EZ219: =IF(EZ218=EZ201,"SI","NO") -> SI | FA219: =IF(FA218=FA201,"SI","NO") -> SI | FB219: =IF(FB218=FB201,"SI","NO") -> SI | FC219: =IF(FC218=FC201,"SI","NO") -> SI | FD219: =IF(FD218=FD201,"SI","NO") -> SI | FE219: =IF(FE218=FE201,"SI","NO") -> SI | FF219: =IF(FF218=FF201,"SI","NO") -> SI | FG219: =IF(FG218=FG201,"SI","NO") -> SI | FH219: =IF(FH218=FH201,"SI","NO") -> SI | FI219: =IF(FI218=FI201,"SI","NO") -> SI | FJ219: =IF(FJ218=FJ201,"SI","NO") -> SI | FK219: =IF(FK218=FK201,"SI","NO") -> SI | FL219: =IF(FL218=FL201,"SI","NO") -> SI | FM219: =IF(FM218=FM201,"SI","NO") -> SI | FN219: =IF(FN218=FN201,"SI","NO") -> SI | FO219: =IF(FO218=FO201,"SI","NO") -> SI | FP219: =IF(FP218=FP201,"SI","NO") -> SI | FQ219: =IF(FQ218=FQ201,"SI","NO") -> SI | FR219: =IF(FR218=FR201,"SI","NO") -> SI | FS219: =IF(FS218=FS201,"SI","NO") -> SI | FT219: =IF(FT218=FT201,"SI","NO") -> SI | FU219: =IF(FU218=FU201,"SI","NO") -> SI | FV219: =IF(FV218=FV201,"SI","NO") -> SI | FW219: =IF(FW218=FW201,"SI","NO") -> SI | FX219: =IF(FX218=FX201,"SI","NO") -> SI | FY219: =IF(FY218=FY201,"SI","NO") -> SI | FZ219: =IF(FZ218=FZ201,"SI","NO") -> SI | GA219: =IF(GA218=GA201,"SI","NO") -> SI | GB219: =IF(GB218=GB201,"SI","NO") -> SI | GC219: =IF(GC218=GC201,"SI","NO") -> SI | GD219: =IF(GD218=GD201,"SI","NO") -> SI | GE219: =IF(GE218=GE201,"SI","NO") -> SI | GF219: =IF(GF218=GF201,"SI","NO") -> SI | GG219: =IF(GG218=GG201,"SI","NO") -> SI | GH219: =IF(GH218=GH201,"SI","NO") -> SI | GI219: =IF(GI218=GI201,"SI","NO") -> SI | GJ219: =IF(GJ218=GJ201,"SI","NO") -> SI | GK219: =IF(GK218=GK201,"SI","NO") -> SI | GL219: =IF(GL218=GL201,"SI","NO") -> SI | GM219: =IF(GM218=GM201,"SI","NO") -> SI | GN219: =IF(GN218=GN201,"SI","NO") -> SI | GO219: =IF(GO218=GO201,"SI","NO") -> SI | GP219: =IF(GP218=GP201,"SI","NO") -> SI | GQ219: =IF(GQ218=GQ201,"SI","NO") -> SI | GR219: =IF(GR218=GR201,"SI","NO") -> SI | GS219: =IF(GS218=GS201,"SI","NO") -> SI | GT219: =IF(GT218=GT201,"SI","NO") -> SI | GU219: =IF(GU218=GU201,"SI","NO") -> SI | GV219: =IF(GV218=GV201,"SI","NO") -> SI | GW219: =IF(GW218=GW201,"SI","NO") -> SI | GX219: =IF(GX218=GX201,"SI","NO") -> SI | GY219: =IF(GY218=GY201,"SI","NO") -> SI | GZ219: =IF(GZ218=GZ201,"SI","NO") -> SI | HA219: =IF(HA218=HA201,"SI","NO") -> SI | HB219: =IF(HB218=HB201,"SI","NO") -> SI | HC219: =IF(HC218=HC201,"SI","NO") -> SI | HD219: =IF(HD218=HD201,"SI","NO") -> SI | HE219: =IF(HE218=HE201,"SI","NO") -> SI | HF219: =IF(HF218=HF201,"SI","NO") -> SI | HG219: =IF(HG218=HG201,"SI","NO") -> SI | HH219: =IF(HH218=HH201,"SI","NO") -> SI | HI219: =IF(HI218=HI201,"SI","NO") -> SI | HJ219: =IF(HJ218=HJ201,"SI","NO") -> SI | HK219: =IF(HK218=HK201,"SI","NO") -> SI | HL219: =IF(HL218=HL201,"SI","NO") -> SI | HM219: =IF(HM218=HM201,"SI","NO") -> SI | HN219: =IF(HN218=HN201,"SI","NO") -> SI | HO219: =IF(HO218=HO201,"SI","NO") -> SI | HP219: =IF(HP218=HP201,"SI","NO") -> SI | HQ219: =IF(HQ218=HQ201,"SI","NO") -> SI | HR219: =IF(HR218=HR201,"SI","NO") -> SI | HS219: SI | HT219: SI | HU219: SI | HV219: SI | HW219: SI
A222: R_SILVESTRE 02
A223: anno | B223: 2024
A224: cod_red | B224: 03
A225: codmic | B225: (Todas)
A226: cod_prov | B226: (Todas)
A227: coddist | B227: (Todas)
A228: cod_estab | B228: (Todas)
A229: cod_eje | B229: (Todas)
B231: Valores
A232: Etiquetas de fila | B232: BAS001 | C232: BAS002 | D232: BAS003 | E232: BAS004 | F232: BAS005 | G232: BAS006 | H232: BAS007 | I232: BAS008 | J232: BAS009 | K232: BAS010 | L232: BAS011 | M232: BAS012 | N232: BAS013 | O232: BAS014 | P232: BAS015 | Q232: BAS016 | R232: BAS017 | S232: BAS018 | T232: BAS019 | U232: BAS020 | V232: BAS021 | W232: BAS022 | X232: BAS023 | Y232: BAS024 | Z232: BAS025 | AA232: BAS026 | AB232: BAS027 | AC232: BAS028 | AD232: BAS029 | AE232: BAS030 | AF232: BAS031 | AG232: BAS032 | AH232: BAS033 | AI232: BAS034 | AJ232: BAS035 | AK232: BAS036 | AL232: BAS037 | AM232: BAS038 | AN232: BAS039 | AO232: BAS040 | AP232: BAS041 | AQ232: BAS042 | AR232: BAS043 | AS232: BAS044 | AT232: BAS045 | AU232: BAS046 | AV232: BAS047 | AW232: BAS048 | AX232: BAS049 | AY232: BAS050 | AZ232: BAS051 | BA232: BAS052 | BB232: BAS053 | BC232: BAS054 | BD232: BAS055 | BE232: BAS056 | BF232: BAS057 | BG232: BAS058 | BH232: BAS059 | BI232: BAS060 | BJ232: BAS061 | BK232: BAS062 | BL232: BAS063 | BM232: BAS064 | BN232: BAS065 | BO232: BAS066 | BP232: BAS067 | BQ232: BAS068 | BR232: BAS069 | BS232: BAS070 | BT232: BAS071 | BU232: BAS072 | BV232: BAS073 | BW232: BAS074 | BX232: BAS075 | BY232: BAS076 | BZ232: BAS077 | CA232: BAS078 | CB232: BAS079 | CC232: BAS080 | CD232: BAS081 | CE232: BAS082 | CF232: BAS083 | CG232: BAS084 | CH232: BAS085 | CI232: BAS086 | CJ232: BAS087 | CK232: BAS088 | CL232: BAS089 | CM232: BAS090 | CN232: BAS091 | CO232: BAS092 | CP232: BAS093 | CQ232: BAS094 | CR232: BAS095 | CS232: BAS096 | CT232: BAS097 | CU232: BAS098 | CV232: BAS099 | CW232: BAS100 | CX232: BAS101 | CY232: BAS102 | CZ232: BAS103 | DA232: BAS104 | DB232: BAS105 | DC232: BAS106 | DD232: BAS107 | DE232: BAS108 | DF232: BAS109 | DG232: BAS110 | DH232: BAS111 | DI232: BAS112 | DJ232: BAS113 | DK232: BAS114 | DL232: BAS115 | DM232: BAS116 | DN232: BAS117 | DO232: BAS118 | DP232: BAS119 | DQ232: BAS120 | DR232: BAS121 | DS232: BAS122 | DT232: BAS123 | DU232: BAS124 | DV232: BAS125 | DW232: BAS126 | DX232: BAS127 | DY232: BAS128 | DZ232: BAS129 | EA232: BAS130 | EB232: BAS131 | EC232: BAS132 | ED232: BAS133 | EE232: BAS134 | EF232: BAS135 | EG232: BAS136 | EH232: BAS137 | EI232: BAS138 | EJ232: BAS139 | EK232: BAS140 | EL232: BAS141 | EM232: BAS142 | EN232: BAS143 | EO232: BAS144 | EP232: BAS145 | EQ232: BAS146 | ER232: BAS147 | ES232: BAS148 | ET232: BAS149 | EU232: BAS150 | EV232: BAS151 | EW232: BAS152 | EX232: BAS153 | EY232: BAS154 | EZ232: BAS155 | FA232: BAS156 | FB232: BAS157 | FC232: BAS158 | FD232: BAS159 | FE232: BAS160 | FF232: BAS161 | FG232: BAS162 | FH232: BAS163 | FI232: BAS164 | FJ232: BAS165 | FK232: BAS166 | FL232: BAS167 | FM232: BAS168 | FN232: BAS169 | FO232: BAS170 | FP232: BAS171 | FQ232: BAS172 | FR232: BAS173 | FS232: BAS174 | FT232: BAS175 | FU232: BAS176 | FV232: BAS177 | FW232: BAS178 | FX232: BAS179 | FY232: BAS180 | FZ232: BAS181 | GA232: BAS182 | GB232: BAS183 | GC232: BAS184 | GD232: BAS185 | GE232: BAS186 | GF232: BAS187 | GG232: BAS188 | GH232: BAS189 | GI232: BAS190 | GJ232: BAS191 | GK232: BAS192 | GL232: BAS193 | GM232: BAS194 | GN232: BAS195 | GO232: BAS196 | GP232: BAS197 | GQ232: BAS198 | GR232: BAS199 | GS232: BAS200 | GT232: BAS201 | GU232: BAS202 | GV232: BAS203 | GW232: BAS204 | GX232: BAS205 | GY232: BAS206 | GZ232: BAS207 | HA232: BAS208 | HB232: BAS209 | HC232: BAS210 | HD232: BAS211 | HE232: BAS212 | HF232: BAS213 | HG232: BAS214 | HH232: BAS215 | HI232: BAS216 | HJ232: BAS217 | HK232: BAS218 | HL232: BAS219 | HM232: BAS220 | HN232: BAS221 | HO232: BAS222 | HP232: BAS223 | HQ232: BAS224 | HR232: BAS225 | HS232: BAS226 | HT232: BAS227 | HU232: BAS228 | HV232: BAS229 | HW232: BAS230
A233: 2 | B233: 0 | C233: 0 | D233: 0 | E233: 0 | F233: 0 | G233: 0 | H233: 0 | I233: 0 | J233: 0 | K233: 0 | L233: 0 | M233: 0 | N233: 0 | O233: 0 | P233: 0 | Q233: 0 | R233: 0 | S233: 0 | T233: 0 | U233: 0 | V233: 0 | W233: 0 | X233: 0 | Y233: 0 | Z233: 0 | AA233: 0 | AB233: 0 | AC233: 0 | AD233: 0 | AE233: 0 | AF233: 0 | AG233: 0 | AH233: 0 | AI233: 0 | AJ233: 0 | AK233: 0 | AL233: 0 | AM233: 0 | AN233: 0 | AO233: 0 | AP233: 0 | AQ233: 0 | AR233: 0 | AS233: 0 | AT233: 0 | AU233: 0 | AV233: 0 | AW233: 0 | AX233: 0 | AY233: 0 | AZ233: 0 | BA233: 0 | BB233: 126 | BC233: 19 | BD233: 0 | BE233: 0 | BF233: 0 | BG233: 0 | BH233: 0 | BI233: 2 | BJ233: 0 | BK233: 0 | BL233: 0 | BM233: 0 | BN233: 0 | BO233: 0 | BP233: 0 | BQ233: 0 | BR233: 0 | BS233: 0 | BT233: 0 | BU233: 0 | BV233: 0 | BW233: 0 | BX233: 0 | BY233: 0 | BZ233: 0 | CA233: 0 | CB233: 0 | CC233: 0 | CD233: 0 | CE233: 0 | CF233: 0 | CG233: 0 | CH233: 0 | CI233: 0 | CJ233: 0 | CK233: 0 | CL233: 0 | CM233: 0 | CN233: 1 | CO233: 0 | CP233: 0 | CQ233: 0 | CR233: 0 | CS233: 0 | CT233: 0 | CU233: 0 | CV233: 0 | CW233: 0 | CX233: 0 | CY233: 0 | CZ233: 0 | DA233: 0 | DB233: 0 | DC233: 0 | DD233: 0 | DE233: 0 | DF233: 0 | DG233: 0 | DH233: 0 | DI233: 0 | DJ233: 0 | DK233: 0 | DL233: 0 | DM233: 0 | DN233: 0 | DO233: 0 | DP233: 0 | DQ233: 0 | DR233: 0 | DS233: 0 | DT233: 0 | DU233: 0 | DV233: 0 | DW233: 0 | DX233: 0 | DY233: 0 | DZ233: 0 | EA233: 0 | EB233: 0 | EC233: 0 | ED233: 0 | EE233: 0 | EF233: 0 | EG233: 0 | EH233: 0 | EI233: 0 | EJ233: 0 | EK233: 0 | EL233: 0 | EM233: 0 | EN233: 0 | EO233: 0 | EP233: 0 | EQ233: 0 | ER233: 0 | ES233: 0 | ET233: 0 | EU233: 0 | EV233: 0 | EW233: 0 | EX233: 0 | EY233: 0 | EZ233: 0 | FA233: 0 | FB233: 0 | FC233: 0 | FD233: 0 | FE233: 0 | FF233: 0 | FG233: 0 | FH233: 0 | FI233: 0 | FJ233: 0 | FK233: 0 | FL233: 0 | FM233: 0 | FN233: 0 | FO233: 0 | FP233: 0 | FQ233: 0 | FR233: 0 | FS233: 0 | FT233: 0 | FU233: 0 | FV233: 0 | FW233: 0 | FX233: 0 | FY233: 0 | FZ233: 0 | GA233: 0 | GB233: 0 | GC233: 0 | GD233: 0 | GE233: 0 | GF233: 0 | GG233: 0 | GH233: 0 | GI233: 0 | GJ233: 0 | GK233: 0 | GL233: 0 | GM233: 0 | GN233: 0 | GO233: 0 | GP233: 0 | GQ233: 0 | GR233: 0 | GS233: 0 | GT233: 0 | GU233: 0 | GV233: 0 | GW233: 0 | GX233: 0 | GY233: 0 | GZ233: 0 | HA233: 0 | HB233: 0 | HC233: 0 | HD233: 0 | HE233: 0 | HF233: 0 | HG233: 0 | HH233: 0 | HI233: 0 | HJ233: 0 | HK233: 0 | HL233: 0 | HM233: 0 | HN233: 0 | HO233: 0 | HP233: 0 | HQ233: 0 | HR233: 0 | HS233: 0 | HT233: 0 | HU233: 0 | HV233: 0 | HW233: 0
A234: 1 | B234: 0 | C234: 0 | D234: 0 | E234: 0 | F234: 0 | G234: 0 | H234: 0 | I234: 0 | J234: 0 | K234: 0 | L234: 0 | M234: 0 | N234: 0 | O234: 0 | P234: 0 | Q234: 0 | R234: 0 | S234: 0 | T234: 0 | U234: 0 | V234: 0 | W234: 0 | X234: 0 | Y234: 0 | Z234: 0 | AA234: 0 | AB234: 0 | AC234: 0 | AD234: 0 | AE234: 0 | AF234: 0 | AG234: 0 | AH234: 0 | AI234: 0 | AJ234: 0 | AK234: 0 | AL234: 0 | AM234: 0 | AN234: 0 | AO234: 0 | AP234: 0 | AQ234: 0 | AR234: 0 | AS234: 0 | AT234: 0 | AU234: 0 | AV234: 0 | AW234: 0 | AX234: 0 | AY234: 0 | AZ234: 0 | BA234: 0 | BB234: 258 | BC234: 38 | BD234: 0 | BE234: 0 | BF234: 0 | BG234: 0 | BH234: 0 | BI234: 0 | BJ234: 0 | BK234: 0 | BL234: 0 | BM234: 0 | BN234: 0 | BO234: 0 | BP234: 0 | BQ234: 0 | BR234: 0 | BS234: 0 | BT234: 0 | BU234: 0 | BV234: 0 | BW234: 0 | BX234: 0 | BY234: 0 | BZ234: 0 | CA234: 0 | CB234: 0 | CC234: 0 | CD234: 0 | CE234: 0 | CF234: 0 | CG234: 0 | CH234: 0 | CI234: 0 | CJ234: 0 | CK234: 0 | CL234: 0 | CM234: 0 | CN234: 3 | CO234: 0 | CP234: 0 | CQ234: 0 | CR234: 0 | CS234: 0 | CT234: 0 | CU234: 0 | CV234: 0 | CW234: 0 | CX234: 0 | CY234: 0 | CZ234: 0 | DA234: 0 | DB234: 0 | DC234: 0 | DD234: 0 | DE234: 0 | DF234: 0 | DG234: 0 | DH234: 0 | DI234: 0 | DJ234: 0 | DK234: 0 | DL234: 0 | DM234: 0 | DN234: 0 | DO234: 0 | DP234: 0 | DQ234: 0 | DR234: 0 | DS234: 0 | DT234: 0 | DU234: 0 | DV234: 0 | DW234: 0 | DX234: 0 | DY234: 0 | DZ234: 0 | EA234: 0 | EB234: 0 | EC234: 0 | ED234: 0 | EE234: 0 | EF234: 0 | EG234: 0 | EH234: 0 | EI234: 0 | EJ234: 0 | EK234: 0 | EL234: 0 | EM234: 0 | EN234: 0 | EO234: 0 | EP234: 0 | EQ234: 0 | ER234: 0 | ES234: 0 | ET234: 0 | EU234: 0 | EV234: 0 | EW234: 0 | EX234: 0 | EY234: 0 | EZ234: 0 | FA234: 0 | FB234: 0 | FC234: 0 | FD234: 0 | FE234: 0 | FF234: 0 | FG234: 0 | FH234: 0 | FI234: 0 | FJ234: 0 | FK234: 0 | FL234: 0 | FM234: 0 | FN234: 0 | FO234: 0 | FP234: 0 | FQ234: 0 | FR234: 0 | FS234: 0 | FT234: 0 | FU234: 0 | FV234: 0 | FW234: 0 | FX234: 0 | FY234: 0 | FZ234: 0 | GA234: 0 | GB234: 0 | GC234: 0 | GD234: 0 | GE234: 0 | GF234: 0 | GG234: 0 | GH234: 0 | GI234: 0 | GJ234: 0 | GK234: 0 | GL234: 0 | GM234: 0 | GN234: 0 | GO234: 0 | GP234: 0 | GQ234: 0 | GR234: 0 | GS234: 0 | GT234: 0 | GU234: 0 | GV234: 0 | GW234: 0 | GX234: 0 | GY234: 0 | GZ234: 0 | HA234: 0 | HB234: 0 | HC234: 0 | HD234: 0 | HE234: 0 | HF234: 0 | HG234: 0 | HH234: 0 | HI234: 0 | HJ234: 0 | HK234: 0 | HL234: 0 | HM234: 0 | HN234: 0 | HO234: 0 | HP234: 0 | HQ234: 0 | HR234: 0 | HS234: 0 | HT234: 0 | HU234: 0 | HV234: 0 | HW234: 0
A235: 3 | B235: 0 | C235: 0 | D235: 0 | E235: 0 | F235: 0 | G235: 0 | H235: 0 | I235: 0 | J235: 0 | K235: 0 | L235: 0 | M235: 0 | N235: 0 | O235: 0 | P235: 0 | Q235: 0 | R235: 0 | S235: 0 | T235: 0 | U235: 0 | V235: 0 | W235: 0 | X235: 0 | Y235: 0 | Z235: 0 | AA235: 0 | AB235: 0 | AC235: 0 | AD235: 0 | AE235: 0 | AF235: 0 | AG235: 0 | AH235: 0 | AI235: 0 | AJ235: 0 | AK235: 0 | AL235: 0 | AM235: 0 | AN235: 0 | AO235: 0 | AP235: 0 | AQ235: 0 | AR235: 0 | AS235: 0 | AT235: 0 | AU235: 0 | AV235: 0 | AW235: 0 | AX235: 0 | AY235: 0 | AZ235: 0 | BA235: 0 | BB235: 0 | BC235: 0 | BD235: 0 | BE235: 0 | BF235: 0 | BG235: 0 | BH235: 0 | BI235: 1 | BJ235: 0 | BK235: 0 | BL235: 0 | BM235: 0 | BN235: 0 | BO235: 0 | BP235: 0 | BQ235: 0 | BR235: 0 | BS235: 0 | BT235: 0 | BU235: 0 | BV235: 0 | BW235: 0 | BX235: 0 | BY235: 0 | BZ235: 0 | CA235: 0 | CB235: 0 | CC235: 0 | CD235: 0 | CE235: 0 | CF235: 0 | CG235: 0 | CH235: 0 | CI235: 0 | CJ235: 0 | CK235: 0 | CL235: 0 | CM235: 0 | CN235: 0 | CO235: 0 | CP235: 0 | CQ235: 0 | CR235: 0 | CS235: 0 | CT235: 0 | CU235: 0 | CV235: 0 | CW235: 0 | CX235: 0 | CY235: 0 | CZ235: 0 | DA235: 0 | DB235: 0 | DC235: 0 | DD235: 0 | DE235: 0 | DF235: 0 | DG235: 0 | DH235: 0 | DI235: 0 | DJ235: 0 | DK235: 0 | DL235: 0 | DM235: 0 | DN235: 0 | DO235: 0 | DP235: 0 | DQ235: 0 | DR235: 0 | DS235: 0 | DT235: 0 | DU235: 0 | DV235: 0 | DW235: 0 | DX235: 0 | DY235: 0 | DZ235: 0 | EA235: 0 | EB235: 0 | EC235: 0 | ED235: 0 | EE235: 0 | EF235: 0 | EG235: 0 | EH235: 0 | EI235: 0 | EJ235: 0 | EK235: 0 | EL235: 0 | EM235: 0 | EN235: 0 | EO235: 0 | EP235: 0 | EQ235: 0 | ER235: 0 | ES235: 0 | ET235: 0 | EU235: 0 | EV235: 0 | EW235: 0 | EX235: 0 | EY235: 0 | EZ235: 0 | FA235: 0 | FB235: 0 | FC235: 0 | FD235: 0 | FE235: 0 | FF235: 0 | FG235: 0 | FH235: 0 | FI235: 0 | FJ235: 0 | FK235: 0 | FL235: 0 | FM235: 0 | FN235: 0 | FO235: 0 | FP235: 0 | FQ235: 0 | FR235: 0 | FS235: 0 | FT235: 0 | FU235: 0 | FV235: 0 | FW235: 0 | FX235: 0 | FY235: 0 | FZ235: 0 | GA235: 0 | GB235: 0 | GC235: 0 | GD235: 0 | GE235: 0 | GF235: 0 | GG235: 0 | GH235: 0 | GI235: 0 | GJ235: 0 | GK235: 0 | GL235: 0 | GM235: 0 | GN235: 0 | GO235: 0 | GP235: 0 | GQ235: 0 | GR235: 0 | GS235: 0 | GT235: 0 | GU235: 0 | GV235: 0 | GW235: 0 | GX235: 0 | GY235: 0 | GZ235: 0 | HA235: 0 | HB235: 0 | HC235: 0 | HD235: 0 | HE235: 0 | HF235: 0 | HG235: 0 | HH235: 0 | HI235: 0 | HJ235: 0 | HK235: 0 | HL235: 0 | HM235: 0 | HN235: 0 | HO235: 0 | HP235: 0 | HQ235: 0 | HR235: 0 | HS235: 0 | HT235: 0 | HU235: 0 | HV235: 0 | HW235: 0
A236: 4 | B236: 0 | C236: 0 | D236: 0 | E236: 0 | F236: 0 | G236: 0 | H236: 0 | I236: 0 | J236: 0 | K236: 0 | L236: 0 | M236: 0 | N236: 0 | O236: 0 | P236: 0 | Q236: 0 | R236: 0 | S236: 0 | T236: 0 | U236: 0 | V236: 0 | W236: 0 | X236: 0 | Y236: 0 | Z236: 0 | AA236: 0 | AB236: 0 | AC236: 0 | AD236: 0 | AE236: 0 | AF236: 0 | AG236: 0 | AH236: 0 | AI236: 0 | AJ236: 0 | AK236: 0 | AL236: 0 | AM236: 0 | AN236: 0 | AO236: 0 | AP236: 0 | AQ236: 0 | AR236: 0 | AS236: 0 | AT236: 0 | AU236: 0 | AV236: 0 | AW236: 0 | AX236: 0 | AY236: 0 | AZ236: 0 | BA236: 0 | BB236: 0 | BC236: 0 | BD236: 0 | BE236: 0 | BF236: 0 | BG236: 0 | BH236: 0 | BI236: 0 | BJ236: 0 | BK236: 0 | BL236: 0 | BM236: 0 | BN236: 0 | BO236: 0 | BP236: 0 | BQ236: 0 | BR236: 0 | BS236: 0 | BT236: 0 | BU236: 0 | BV236: 0 | BW236: 0 | BX236: 0 | BY236: 0 | BZ236: 0 | CA236: 0 | CB236: 0 | CC236: 0 | CD236: 0 | CE236: 0 | CF236: 0 | CG236: 0 | CH236: 0 | CI236: 0 | CJ236: 0 | CK236: 0 | CL236: 0 | CM236: 0 | CN236: 0 | CO236: 0 | CP236: 0 | CQ236: 0 | CR236: 0 | CS236: 0 | CT236: 0 | CU236: 0 | CV236: 0 | CW236: 0 | CX236: 0 | CY236: 0 | CZ236: 0 | DA236: 0 | DB236: 0 | DC236: 0 | DD236: 0 | DE236: 0 | DF236: 0 | DG236: 0 | DH236: 0 | DI236: 0 | DJ236: 0 | DK236: 0 | DL236: 0 | DM236: 0 | DN236: 0 | DO236: 0 | DP236: 0 | DQ236: 0 | DR236: 0 | DS236: 0 | DT236: 0 | DU236: 0 | DV236: 0 | DW236: 0 | DX236: 0 | DY236: 0 | DZ236: 0 | EA236: 0 | EB236: 0 | EC236: 0 | ED236: 0 | EE236: 0 | EF236: 0 | EG236: 0 | EH236: 0 | EI236: 0 | EJ236: 0 | EK236: 0 | EL236: 0 | EM236: 0 | EN236: 0 | EO236: 0 | EP236: 0 | EQ236: 0 | ER236: 0 | ES236: 0 | ET236: 0 | EU236: 0 | EV236: 0 | EW236: 0 | EX236: 0 | EY236: 0 | EZ236: 0 | FA236: 0 | FB236: 0 | FC236: 0 | FD236: 0 | FE236: 0 | FF236: 0 | FG236: 0 | FH236: 0 | FI236: 0 | FJ236: 0 | FK236: 0 | FL236: 0 | FM236: 0 | FN236: 0 | FO236: 0 | FP236: 0 | FQ236: 0 | FR236: 0 | FS236: 0 | FT236: 0 | FU236: 0 | FV236: 0 | FW236: 0 | FX236: 0 | FY236: 0 | FZ236: 0 | GA236: 0 | GB236: 0 | GC236: 0 | GD236: 0 | GE236: 0 | GF236: 0 | GG236: 0 | GH236: 0 | GI236: 0 | GJ236: 0 | GK236: 0 | GL236: 0 | GM236: 0 | GN236: 0 | GO236: 0 | GP236: 0 | GQ236: 0 | GR236: 0 | GS236: 0 | GT236: 0 | GU236: 0 | GV236: 0 | GW236: 0 | GX236: 0 | GY236: 0 | GZ236: 0 | HA236: 0 | HB236: 0 | HC236: 0 | HD236: 0 | HE236: 0 | HF236: 0 | HG236: 0 | HH236: 0 | HI236: 0 | HJ236: 0 | HK236: 0 | HL236: 0 | HM236: 0 | HN236: 0 | HO236: 0 | HP236: 0 | HQ236: 0 | HR236: 0 | HS236: 0 | HT236: 0 | HU236: 0 | HV236: 0 | HW236: 0
A237: 5 | B237: 0 | C237: 0 | D237: 0 | E237: 0 | F237: 0 | G237: 0 | H237: 0 | I237: 0 | J237: 0 | K237: 0 | L237: 0 | M237: 0 | N237: 0 | O237: 0 | P237: 0 | Q237: 0 | R237: 0 | S237: 0 | T237: 0 | U237: 0 | V237: 0 | W237: 0 | X237: 0 | Y237: 0 | Z237: 0 | AA237: 0 | AB237: 0 | AC237: 0 | AD237: 0 | AE237: 0 | AF237: 0 | AG237: 0 | AH237: 0 | AI237: 0 | AJ237: 0 | AK237: 0 | AL237: 0 | AM237: 0 | AN237: 0 | AO237: 0 | AP237: 0 | AQ237: 0 | AR237: 0 | AS237: 0 | AT237: 0 | AU237: 0 | AV237: 0 | AW237: 0 | AX237: 0 | AY237: 0 | AZ237: 0 | BA237: 0 | BB237: 2 | BC237: 36 | BD237: 0 | BE237: 0 | BF237: 0 | BG237: 0 | BH237: 0 | BI237: 0 | BJ237: 0 | BK237: 0 | BL237: 0 | BM237: 0 | BN237: 0 | BO237: 0 | BP237: 0 | BQ237: 0 | BR237: 0 | BS237: 0 | BT237: 0 | BU237: 0 | BV237: 0 | BW237: 0 | BX237: 0 | BY237: 0 | BZ237: 0 | CA237: 0 | CB237: 0 | CC237: 0 | CD237: 0 | CE237: 0 | CF237: 0 | CG237: 0 | CH237: 0 | CI237: 0 | CJ237: 0 | CK237: 0 | CL237: 0 | CM237: 0 | CN237: 0 | CO237: 0 | CP237: 0 | CQ237: 0 | CR237: 0 | CS237: 0 | CT237: 0 | CU237: 0 | CV237: 0 | CW237: 0 | CX237: 0 | CY237: 0 | CZ237: 0 | DA237: 0 | DB237: 0 | DC237: 0 | DD237: 0 | DE237: 0 | DF237: 0 | DG237: 0 | DH237: 0 | DI237: 0 | DJ237: 0 | DK237: 0 | DL237: 0 | DM237: 0 | DN237: 0 | DO237: 0 | DP237: 0 | DQ237: 0 | DR237: 0 | DS237: 0 | DT237: 0 | DU237: 0 | DV237: 0 | DW237: 0 | DX237: 0 | DY237: 0 | DZ237: 0 | EA237: 0 | EB237: 0 | EC237: 0 | ED237: 0 | EE237: 0 | EF237: 0 | EG237: 0 | EH237: 0 | EI237: 0 | EJ237: 0 | EK237: 0 | EL237: 0 | EM237: 0 | EN237: 0 | EO237: 0 | EP237: 0 | EQ237: 0 | ER237: 0 | ES237: 0 | ET237: 0 | EU237: 0 | EV237: 0 | EW237: 0 | EX237: 0 | EY237: 0 | EZ237: 0 | FA237: 0 | FB237: 0 | FC237: 0 | FD237: 0 | FE237: 0 | FF237: 0 | FG237: 0 | FH237: 0 | FI237: 0 | FJ237: 0 | FK237: 0 | FL237: 0 | FM237: 0 | FN237: 0 | FO237: 0 | FP237: 0 | FQ237: 0 | FR237: 0 | FS237: 0 | FT237: 0 | FU237: 0 | FV237: 0 | FW237: 0 | FX237: 0 | FY237: 0 | FZ237: 0 | GA237: 0 | GB237: 0 | GC237: 0 | GD237: 0 | GE237: 0 | GF237: 0 | GG237: 0 | GH237: 0 | GI237: 0 | GJ237: 0 | GK237: 0 | GL237: 0 | GM237: 0 | GN237: 0 | GO237: 0 | GP237: 0 | GQ237: 0 | GR237: 0 | GS237: 0 | GT237: 0 | GU237: 0 | GV237: 0 | GW237: 0 | GX237: 0 | GY237: 0 | GZ237: 0 | HA237: 0 | HB237: 0 | HC237: 0 | HD237: 0 | HE237: 0 | HF237: 0 | HG237: 0 | HH237: 0 | HI237: 0 | HJ237: 0 | HK237: 0 | HL237: 0 | HM237: 0 | HN237: 0 | HO237: 0 | HP237: 0 | HQ237: 0 | HR237: 0 | HS237: 0 | HT237: 0 | HU237: 0 | HV237: 0 | HW237: 0
A238: 6 | B238: 0 | C238: 0 | D238: 0 | E238: 0 | F238: 0 | G238: 0 | H238: 0 | I238: 0 | J238: 0 | K238: 0 | L238: 0 | M238: 0 | N238: 0 | O238: 0 | P238: 0 | Q238: 0 | R238: 0 | S238: 0 | T238: 0 | U238: 0 | V238: 0 | W238: 0 | X238: 0 | Y238: 0 | Z238: 0 | AA238: 0 | AB238: 0 | AC238: 0 | AD238: 0 | AE238: 0 | AF238: 0 | AG238: 0 | AH238: 0 | AI238: 0 | AJ238: 0 | AK238: 0 | AL238: 0 | AM238: 0 | AN238: 0 | AO238: 0 | AP238: 0 | AQ238: 0 | AR238: 0 | AS238: 0 | AT238: 0 | AU238: 0 | AV238: 0 | AW238: 0 | AX238: 0 | AY238: 0 | AZ238: 0 | BA238: 0 | BB238: 1 | BC238: 18 | BD238: 0 | BE238: 0 | BF238: 0 | BG238: 0 | BH238: 0 | BI238: 0 | BJ238: 0 | BK238: 0 | BL238: 0 | BM238: 0 | BN238: 0 | BO238: 0 | BP238: 0 | BQ238: 0 | BR238: 0 | BS238: 0 | BT238: 0 | BU238: 0 | BV238: 0 | BW238: 0 | BX238: 0 | BY238: 0 | BZ238: 0 | CA238: 0 | CB238: 0 | CC238: 0 | CD238: 0 | CE238: 0 | CF238: 0 | CG238: 0 | CH238: 0 | CI238: 0 | CJ238: 0 | CK238: 0 | CL238: 0 | CM238: 0 | CN238: 0 | CO238: 0 | CP238: 0 | CQ238: 0 | CR238: 0 | CS238: 0 | CT238: 0 | CU238: 0 | CV238: 0 | CW238: 0 | CX238: 0 | CY238: 0 | CZ238: 0 | DA238: 0 | DB238: 0 | DC238: 0 | DD238: 0 | DE238: 0 | DF238: 0 | DG238: 0 | DH238: 0 | DI238: 0 | DJ238: 0 | DK238: 0 | DL238: 0 | DM238: 0 | DN238: 0 | DO238: 0 | DP238: 0 | DQ238: 0 | DR238: 0 | DS238: 0 | DT238: 0 | DU238: 0 | DV238: 0 | DW238: 0 | DX238: 0 | DY238: 0 | DZ238: 0 | EA238: 0 | EB238: 0 | EC238: 0 | ED238: 0 | EE238: 0 | EF238: 0 | EG238: 0 | EH238: 0 | EI238: 0 | EJ238: 0 | EK238: 0 | EL238: 0 | EM238: 0 | EN238: 0 | EO238: 0 | EP238: 0 | EQ238: 0 | ER238: 0 | ES238: 0 | ET238: 0 | EU238: 0 | EV238: 0 | EW238: 0 | EX238: 0 | EY238: 0 | EZ238: 0 | FA238: 0 | FB238: 0 | FC238: 0 | FD238: 0 | FE238: 0 | FF238: 0 | FG238: 0 | FH238: 0 | FI238: 0 | FJ238: 0 | FK238: 0 | FL238: 0 | FM238: 0 | FN238: 0 | FO238: 0 | FP238: 0 | FQ238: 0 | FR238: 0 | FS238: 0 | FT238: 0 | FU238: 0 | FV238: 0 | FW238: 0 | FX238: 0 | FY238: 0 | FZ238: 0 | GA238: 0 | GB238: 0 | GC238: 0 | GD238: 0 | GE238: 0 | GF238: 0 | GG238: 0 | GH238: 0 | GI238: 0 | GJ238: 0 | GK238: 0 | GL238: 0 | GM238: 0 | GN238: 0 | GO238: 0 | GP238: 0 | GQ238: 0 | GR238: 0 | GS238: 0 | GT238: 0 | GU238: 0 | GV238: 0 | GW238: 0 | GX238: 0 | GY238: 0 | GZ238: 0 | HA238: 0 | HB238: 0 | HC238: 0 | HD238: 0 | HE238: 0 | HF238: 0 | HG238: 0 | HH238: 0 | HI238: 0 | HJ238: 0 | HK238: 0 | HL238: 0 | HM238: 0 | HN238: 0 | HO238: 0 | HP238: 0 | HQ238: 0 | HR238: 0 | HS238: 0 | HT238: 0 | HU238: 0 | HV238: 0 | HW238: 0
A239: 7 | B239: 0 | C239: 0 | D239: 0 | E239: 0 | F239: 0 | G239: 0 | H239: 0 | I239: 0 | J239: 0 | K239: 0 | L239: 0 | M239: 0 | N239: 0 | O239: 0 | P239: 0 | Q239: 0 | R239: 0 | S239: 0 | T239: 0 | U239: 0 | V239: 0 | W239: 0 | X239: 0 | Y239: 0 | Z239: 0 | AA239: 0 | AB239: 0 | AC239: 0 | AD239: 0 | AE239: 0 | AF239: 0 | AG239: 0 | AH239: 0 | AI239: 0 | AJ239: 0 | AK239: 0 | AL239: 0 | AM239: 0 | AN239: 0 | AO239: 0 | AP239: 0 | AQ239: 0 | AR239: 0 | AS239: 0 | AT239: 0 | AU239: 0 | AV239: 0 | AW239: 0 | AX239: 0 | AY239: 0 | AZ239: 0 | BA239: 0 | BB239: 10 | BC239: 1 | BD239: 0 | BE239: 0 | BF239: 0 | BG239: 0 | BH239: 0 | BI239: 0 | BJ239: 0 | BK239: 0 | BL239: 0 | BM239: 0 | BN239: 0 | BO239: 0 | BP239: 0 | BQ239: 0 | BR239: 0 | BS239: 0 | BT239: 0 | BU239: 0 | BV239: 0 | BW239: 0 | BX239: 0 | BY239: 0 | BZ239: 0 | CA239: 0 | CB239: 0 | CC239: 0 | CD239: 0 | CE239: 0 | CF239: 0 | CG239: 0 | CH239: 0 | CI239: 0 | CJ239: 0 | CK239: 0 | CL239: 0 | CM239: 0 | CN239: 0 | CO239: 0 | CP239: 0 | CQ239: 0 | CR239: 0 | CS239: 0 | CT239: 0 | CU239: 0 | CV239: 0 | CW239: 0 | CX239: 0 | CY239: 0 | CZ239: 0 | DA239: 0 | DB239: 0 | DC239: 0 | DD239: 0 | DE239: 0 | DF239: 0 | DG239: 0 | DH239: 0 | DI239: 0 | DJ239: 0 | DK239: 0 | DL239: 0 | DM239: 0 | DN239: 0 | DO239: 0 | DP239: 0 | DQ239: 0 | DR239: 0 | DS239: 0 | DT239: 0 | DU239: 0 | DV239: 0 | DW239: 0 | DX239: 0 | DY239: 0 | DZ239: 0 | EA239: 0 | EB239: 0 | EC239: 0 | ED239: 0 | EE239: 0 | EF239: 0 | EG239: 0 | EH239: 0 | EI239: 0 | EJ239: 0 | EK239: 0 | EL239: 0 | EM239: 0 | EN239: 0 | EO239: 0 | EP239: 0 | EQ239: 0 | ER239: 0 | ES239: 0 | ET239: 0 | EU239: 0 | EV239: 0 | EW239: 0 | EX239: 0 | EY239: 0 | EZ239: 0 | FA239: 0 | FB239: 0 | FC239: 0 | FD239: 0 | FE239: 0 | FF239: 0 | FG239: 0 | FH239: 0 | FI239: 0 | FJ239: 0 | FK239: 0 | FL239: 0 | FM239: 0 | FN239: 0 | FO239: 0 | FP239: 0 | FQ239: 0 | FR239: 0 | FS239: 0 | FT239: 0 | FU239: 0 | FV239: 0 | FW239: 0 | FX239: 0 | FY239: 0 | FZ239: 0 | GA239: 0 | GB239: 0 | GC239: 0 | GD239: 0 | GE239: 0 | GF239: 0 | GG239: 0 | GH239: 0 | GI239: 0 | GJ239: 0 | GK239: 0 | GL239: 0 | GM239: 0 | GN239: 0 | GO239: 0 | GP239: 0 | GQ239: 0 | GR239: 0 | GS239: 0 | GT239: 0 | GU239: 0 | GV239: 0 | GW239: 0 | GX239: 0 | GY239: 0 | GZ239: 0 | HA239: 0 | HB239: 0 | HC239: 0 | HD239: 0 | HE239: 0 | HF239: 0 | HG239: 0 | HH239: 0 | HI239: 0 | HJ239: 0 | HK239: 0 | HL239: 0 | HM239: 0 | HN239: 0 | HO239: 0 | HP239: 0 | HQ239: 0 | HR239: 0 | HS239: 0 | HT239: 0 | HU239: 0 | HV239: 0 | HW239: 0
A240: 8 | B240: 0 | C240: 0 | D240: 0 | E240: 0 | F240: 0 | G240: 0 | H240: 0 | I240: 0 | J240: 0 | K240: 0 | L240: 0 | M240: 0 | N240: 0 | O240: 0 | P240: 0 | Q240: 0 | R240: 0 | S240: 0 | T240: 0 | U240: 0 | V240: 0 | W240: 0 | X240: 0 | Y240: 0 | Z240: 0 | AA240: 0 | AB240: 0 | AC240: 0 | AD240: 0 | AE240: 0 | AF240: 0 | AG240: 0 | AH240: 0 | AI240: 0 | AJ240: 0 | AK240: 0 | AL240: 0 | AM240: 0 | AN240: 0 | AO240: 0 | AP240: 0 | AQ240: 0 | AR240: 0 | AS240: 0 | AT240: 0 | AU240: 0 | AV240: 0 | AW240: 0 | AX240: 0 | AY240: 0 | AZ240: 0 | BA240: 0 | BB240: 0 | BC240: 0 | BD240: 0 | BE240: 0 | BF240: 0 | BG240: 0 | BH240: 0 | BI240: 0 | BJ240: 0 | BK240: 0 | BL240: 0 | BM240: 0 | BN240: 0 | BO240: 0 | BP240: 0 | BQ240: 0 | BR240: 0 | BS240: 0 | BT240: 0 | BU240: 0 | BV240: 0 | BW240: 0 | BX240: 0 | BY240: 0 | BZ240: 0 | CA240: 0 | CB240: 0 | CC240: 0 | CD240: 0 | CE240: 0 | CF240: 0 | CG240: 0 | CH240: 0 | CI240: 0 | CJ240: 0 | CK240: 0 | CL240: 0 | CM240: 0 | CN240: 1 | CO240: 0 | CP240: 0 | CQ240: 0 | CR240: 0 | CS240: 0 | CT240: 0 | CU240: 0 | CV240: 0 | CW240: 0 | CX240: 0 | CY240: 0 | CZ240: 0 | DA240: 0 | DB240: 0 | DC240: 0 | DD240: 0 | DE240: 0 | DF240: 0 | DG240: 0 | DH240: 0 | DI240: 0 | DJ240: 0 | DK240: 0 | DL240: 0 | DM240: 0 | DN240: 0 | DO240: 0 | DP240: 0 | DQ240: 0 | DR240: 0 | DS240: 0 | DT240: 0 | DU240: 0 | DV240: 0 | DW240: 0 | DX240: 0 | DY240: 0 | DZ240: 0 | EA240: 0 | EB240: 0 | EC240: 0 | ED240: 0 | EE240: 0 | EF240: 0 | EG240: 0 | EH240: 0 | EI240: 0 | EJ240: 0 | EK240: 0 | EL240: 0 | EM240: 0 | EN240: 0 | EO240: 0 | EP240: 0 | EQ240: 0 | ER240: 0 | ES240: 0 | ET240: 0 | EU240: 0 | EV240: 0 | EW240: 0 | EX240: 0 | EY240: 0 | EZ240: 0 | FA240: 0 | FB240: 0 | FC240: 0 | FD240: 0 | FE240: 0 | FF240: 0 | FG240: 0 | FH240: 0 | FI240: 0 | FJ240: 0 | FK240: 0 | FL240: 0 | FM240: 0 | FN240: 0 | FO240: 0 | FP240: 0 | FQ240: 0 | FR240: 0 | FS240: 0 | FT240: 0 | FU240: 0 | FV240: 0 | FW240: 0 | FX240: 0 | FY240: 0 | FZ240: 0 | GA240: 0 | GB240: 0 | GC240: 0 | GD240: 0 | GE240: 0 | GF240: 0 | GG240: 0 | GH240: 0 | GI240: 0 | GJ240: 0 | GK240: 0 | GL240: 0 | GM240: 0 | GN240: 0 | GO240: 0 | GP240: 0 | GQ240: 0 | GR240: 0 | GS240: 0 | GT240: 0 | GU240: 0 | GV240: 0 | GW240: 0 | GX240: 0 | GY240: 0 | GZ240: 0 | HA240: 0 | HB240: 0 | HC240: 0 | HD240: 0 | HE240: 0 | HF240: 0 | HG240: 0 | HH240: 0 | HI240: 0 | HJ240: 0 | HK240: 0 | HL240: 0 | HM240: 0 | HN240: 0 | HO240: 0 | HP240: 0 | HQ240: 0 | HR240: 0 | HS240: 0 | HT240: 0 | HU240: 0 | HV240: 0 | HW240: 0
A241: 9 | B241: 0 | C241: 0 | D241: 0 | E241: 0 | F241: 0 | G241: 0 | H241: 0 | I241: 0 | J241: 0 | K241: 0 | L241: 0 | M241: 0 | N241: 0 | O241: 0 | P241: 0 | Q241: 0 | R241: 0 | S241: 0 | T241: 0 | U241: 0 | V241: 0 | W241: 0 | X241: 0 | Y241: 0 | Z241: 0 | AA241: 0 | AB241: 0 | AC241: 0 | AD241: 0 | AE241: 0 | AF241: 0 | AG241: 0 | AH241: 0 | AI241: 0 | AJ241: 0 | AK241: 0 | AL241: 0 | AM241: 0 | AN241: 0 | AO241: 0 | AP241: 0 | AQ241: 0 | AR241: 0 | AS241: 0 | AT241: 0 | AU241: 0 | AV241: 0 | AW241: 0 | AX241: 0 | AY241: 0 | AZ241: 0 | BA241: 0 | BB241: 128 | BC241: 14 | BD241: 0 | BE241: 2 | BF241: 0 | BG241: 10 | BH241: 4 | BI241: 0 | BJ241: 0 | BK241: 0 | BL241: 0 | BM241: 0 | BN241: 0 | BO241: 0 | BP241: 0 | BQ241: 0 | BR241: 0 | BS241: 0 | BT241: 0 | BU241: 0 | BV241: 0 | BW241: 0 | BX241: 0 | BY241: 0 | BZ241: 0 | CA241: 0 | CB241: 0 | CC241: 0 | CD241: 0 | CE241: 0 | CF241: 0 | CG241: 0 | CH241: 0 | CI241: 0 | CJ241: 0 | CK241: 0 | CL241: 0 | CM241: 0 | CN241: 44 | CO241: 0 | CP241: 0 | CQ241: 0 | CR241: 0 | CS241: 0 | CT241: 0 | CU241: 0 | CV241: 0 | CW241: 0 | CX241: 0 | CY241: 0 | CZ241: 0 | DA241: 0 | DB241: 0 | DC241: 0 | DD241: 0 | DE241: 0 | DF241: 0 | DG241: 0 | DH241: 0 | DI241: 0 | DJ241: 0 | DK241: 0 | DL241: 0 | DM241: 0 | DN241: 0 | DO241: 0 | DP241: 0 | DQ241: 0 | DR241: 0 | DS241: 0 | DT241: 0 | DU241: 0 | DV241: 0 | DW241: 0 | DX241: 0 | DY241: 0 | DZ241: 0 | EA241: 0 | EB241: 0 | EC241: 0 | ED241: 0 | EE241: 0 | EF241: 0 | EG241: 0 | EH241: 0 | EI241: 0 | EJ241: 0 | EK241: 0 | EL241: 0 | EM241: 0 | EN241: 0 | EO241: 0 | EP241: 0 | EQ241: 0 | ER241: 0 | ES241: 0 | ET241: 0 | EU241: 0 | EV241: 0 | EW241: 0 | EX241: 0 | EY241: 0 | EZ241: 0 | FA241: 0 | FB241: 0 | FC241: 0 | FD241: 0 | FE241: 0 | FF241: 0 | FG241: 0 | FH241: 0 | FI241: 0 | FJ241: 0 | FK241: 0 | FL241: 0 | FM241: 0 | FN241: 0 | FO241: 0 | FP241: 0 | FQ241: 0 | FR241: 0 | FS241: 0 | FT241: 0 | FU241: 0 | FV241: 0 | FW241: 0 | FX241: 0 | FY241: 0 | FZ241: 0 | GA241: 0 | GB241: 0 | GC241: 0 | GD241: 0 | GE241: 0 | GF241: 0 | GG241: 0 | GH241: 0 | GI241: 0 | GJ241: 0 | GK241: 0 | GL241: 0 | GM241: 0 | GN241: 0 | GO241: 0 | GP241: 0 | GQ241: 0 | GR241: 0 | GS241: 0 | GT241: 0 | GU241: 0 | GV241: 0 | GW241: 0 | GX241: 0 | GY241: 0 | GZ241: 0 | HA241: 0 | HB241: 0 | HC241: 0 | HD241: 0 | HE241: 0 | HF241: 0 | HG241: 0 | HH241: 0 | HI241: 0 | HJ241: 0 | HK241: 0 | HL241: 0 | HM241: 0 | HN241: 0 | HO241: 0 | HP241: 0 | HQ241: 0 | HR241: 0 | HS241: 0 | HT241: 0 | HU241: 0 | HV241: 0 | HW241: 0
A242: 10 | B242: 0 | C242: 0 | D242: 0 | E242: 0 | F242: 0 | G242: 0 | H242: 0 | I242: 0 | J242: 0 | K242: 0 | L242: 0 | M242: 0 | N242: 0 | O242: 0 | P242: 0 | Q242: 0 | R242: 0 | S242: 0 | T242: 0 | U242: 0 | V242: 0 | W242: 0 | X242: 0 | Y242: 0 | Z242: 0 | AA242: 0 | AB242: 0 | AC242: 0 | AD242: 0 | AE242: 0 | AF242: 0 | AG242: 0 | AH242: 0 | AI242: 0 | AJ242: 0 | AK242: 0 | AL242: 0 | AM242: 0 | AN242: 0 | AO242: 0 | AP242: 0 | AQ242: 0 | AR242: 0 | AS242: 0 | AT242: 0 | AU242: 0 | AV242: 0 | AW242: 0 | AX242: 0 | AY242: 0 | AZ242: 0 | BA242: 0 | BB242: 64 | BC242: 7 | BD242: 0 | BE242: 0 | BF242: 0 | BG242: 0 | BH242: 0 | BI242: 0 | BJ242: 0 | BK242: 0 | BL242: 0 | BM242: 0 | BN242: 0 | BO242: 0 | BP242: 0 | BQ242: 0 | BR242: 0 | BS242: 0 | BT242: 0 | BU242: 0 | BV242: 0 | BW242: 0 | BX242: 0 | BY242: 0 | BZ242: 0 | CA242: 0 | CB242: 0 | CC242: 0 | CD242: 0 | CE242: 0 | CF242: 0 | CG242: 0 | CH242: 0 | CI242: 0 | CJ242: 0 | CK242: 0 | CL242: 0 | CM242: 0 | CN242: 11 | CO242: 0 | CP242: 0 | CQ242: 0 | CR242: 0 | CS242: 0 | CT242: 0 | CU242: 0 | CV242: 0 | CW242: 0 | CX242: 0 | CY242: 0 | CZ242: 0 | DA242: 0 | DB242: 0 | DC242: 0 | DD242: 0 | DE242: 0 | DF242: 0 | DG242: 0 | DH242: 0 | DI242: 0 | DJ242: 0 | DK242: 0 | DL242: 0 | DM242: 0 | DN242: 0 | DO242: 0 | DP242: 0 | DQ242: 0 | DR242: 0 | DS242: 0 | DT242: 0 | DU242: 0 | DV242: 0 | DW242: 0 | DX242: 0 | DY242: 0 | DZ242: 0 | EA242: 0 | EB242: 0 | EC242: 0 | ED242: 0 | EE242: 0 | EF242: 0 | EG242: 0 | EH242: 0 | EI242: 0 | EJ242: 0 | EK242: 0 | EL242: 0 | EM242: 0 | EN242: 0 | EO242: 0 | EP242: 0 | EQ242: 0 | ER242: 0 | ES242: 0 | ET242: 0 | EU242: 0 | EV242: 0 | EW242: 0 | EX242: 0 | EY242: 0 | EZ242: 0 | FA242: 0 | FB242: 0 | FC242: 0 | FD242: 0 | FE242: 0 | FF242: 0 | FG242: 0 | FH242: 0 | FI242: 0 | FJ242: 0 | FK242: 0 | FL242: 0 | FM242: 0 | FN242: 0 | FO242: 0 | FP242: 0 | FQ242: 0 | FR242: 0 | FS242: 0 | FT242: 0 | FU242: 0 | FV242: 0 | FW242: 0 | FX242: 0 | FY242: 0 | FZ242: 0 | GA242: 0 | GB242: 0 | GC242: 0 | GD242: 0 | GE242: 0 | GF242: 0 | GG242: 0 | GH242: 0 | GI242: 0 | GJ242: 0 | GK242: 0 | GL242: 0 | GM242: 0 | GN242: 0 | GO242: 0 | GP242: 0 | GQ242: 0 | GR242: 0 | GS242: 0 | GT242: 0 | GU242: 0 | GV242: 0 | GW242: 0 | GX242: 0 | GY242: 0 | GZ242: 0 | HA242: 0 | HB242: 0 | HC242: 0 | HD242: 0 | HE242: 0 | HF242: 0 | HG242: 0 | HH242: 0 | HI242: 0 | HJ242: 0 | HK242: 0 | HL242: 0 | HM242: 0 | HN242: 0 | HO242: 0 | HP242: 0 | HQ242: 0 | HR242: 0 | HS242: 0 | HT242: 0 | HU242: 0 | HV242: 0 | HW242: 0
A243: 11 | B243: 0 | C243: 0 | D243: 0 | E243: 0 | F243: 0 | G243: 0 | H243: 0 | I243: 0 | J243: 0 | K243: 0 | L243: 0 | M243: 0 | N243: 0 | O243: 0 | P243: 0 | Q243: 0 | R243: 0 | S243: 0 | T243: 0 | U243: 0 | V243: 0 | W243: 0 | X243: 0 | Y243: 0 | Z243: 0 | AA243: 0 | AB243: 0 | AC243: 0 | AD243: 0 | AE243: 0 | AF243: 0 | AG243: 0 | AH243: 0 | AI243: 0 | AJ243: 0 | AK243: 0 | AL243: 0 | AM243: 0 | AN243: 0 | AO243: 0 | AP243: 0 | AQ243: 0 | AR243: 0 | AS243: 0 | AT243: 0 | AU243: 0 | AV243: 0 | AW243: 0 | AX243: 0 | AY243: 0 | AZ243: 0 | BA243: 0 | BB243: 0 | BC243: 0 | BD243: 0 | BE243: 0 | BF243: 0 | BG243: 0 | BH243: 0 | BI243: 0 | BJ243: 0 | BK243: 0 | BL243: 0 | BM243: 0 | BN243: 0 | BO243: 0 | BP243: 0 | BQ243: 0 | BR243: 0 | BS243: 0 | BT243: 0 | BU243: 0 | BV243: 0 | BW243: 0 | BX243: 0 | BY243: 0 | BZ243: 0 | CA243: 0 | CB243: 0 | CC243: 0 | CD243: 0 | CE243: 0 | CF243: 0 | CG243: 0 | CH243: 0 | CI243: 0 | CJ243: 0 | CK243: 0 | CL243: 0 | CM243: 0 | CN243: 5 | CO243: 0 | CP243: 0 | CQ243: 0 | CR243: 0 | CS243: 0 | CT243: 0 | CU243: 0 | CV243: 0 | CW243: 0 | CX243: 0 | CY243: 0 | CZ243: 0 | DA243: 0 | DB243: 0 | DC243: 0 | DD243: 0 | DE243: 0 | DF243: 0 | DG243: 0 | DH243: 0 | DI243: 0 | DJ243: 0 | DK243: 0 | DL243: 0 | DM243: 0 | DN243: 0 | DO243: 0 | DP243: 0 | DQ243: 0 | DR243: 0 | DS243: 0 | DT243: 0 | DU243: 0 | DV243: 0 | DW243: 0 | DX243: 0 | DY243: 0 | DZ243: 0 | EA243: 0 | EB243: 0 | EC243: 0 | ED243: 0 | EE243: 0 | EF243: 0 | EG243: 0 | EH243: 0 | EI243: 0 | EJ243: 0 | EK243: 0 | EL243: 0 | EM243: 0 | EN243: 0 | EO243: 0 | EP243: 0 | EQ243: 0 | ER243: 0 | ES243: 0 | ET243: 0 | EU243: 0 | EV243: 0 | EW243: 0 | EX243: 0 | EY243: 0 | EZ243: 0 | FA243: 0 | FB243: 0 | FC243: 0 | FD243: 0 | FE243: 0 | FF243: 0 | FG243: 0 | FH243: 0 | FI243: 0 | FJ243: 0 | FK243: 0 | FL243: 0 | FM243: 0 | FN243: 0 | FO243: 0 | FP243: 0 | FQ243: 0 | FR243: 0 | FS243: 0 | FT243: 0 | FU243: 0 | FV243: 0 | FW243: 0 | FX243: 0 | FY243: 0 | FZ243: 0 | GA243: 0 | GB243: 0 | GC243: 0 | GD243: 0 | GE243: 0 | GF243: 0 | GG243: 0 | GH243: 0 | GI243: 0 | GJ243: 0 | GK243: 0 | GL243: 0 | GM243: 0 | GN243: 0 | GO243: 0 | GP243: 0 | GQ243: 0 | GR243: 0 | GS243: 0 | GT243: 0 | GU243: 0 | GV243: 0 | GW243: 0 | GX243: 0 | GY243: 0 | GZ243: 0 | HA243: 0 | HB243: 0 | HC243: 0 | HD243: 0 | HE243: 0 | HF243: 0 | HG243: 0 | HH243: 0 | HI243: 0 | HJ243: 0 | HK243: 0 | HL243: 0 | HM243: 0 | HN243: 0 | HO243: 0 | HP243: 0 | HQ243: 0 | HR243: 0 | HS243: 0 | HT243: 0 | HU243: 0 | HV243: 0 | HW243: 0
A244: T | B244: 0 | C244: 0 | D244: 0 | E244: 0 | F244: 0 | G244: 0 | H244: 0 | I244: 0 | J244: 0 | K244: 0 | L244: 0 | M244: 0 | N244: 0 | O244: 0 | P244: 0 | Q244: 0 | R244: 0 | S244: 0 | T244: 0 | U244: 0 | V244: 0 | W244: 0 | X244: 0 | Y244: 0 | Z244: 0 | AA244: 0 | AB244: 0 | AC244: 0 | AD244: 0 | AE244: 0 | AF244: 0 | AG244: 0 | AH244: 0 | AI244: 0 | AJ244: 0 | AK244: 0 | AL244: 0 | AM244: 0 | AN244: 0 | AO244: 0 | AP244: 0 | AQ244: 0 | AR244: 0 | AS244: 0 | AT244: 0 | AU244: 0 | AV244: 0 | AW244: 0 | AX244: 0 | AY244: 0 | AZ244: 0 | BA244: 0 | BB244: 589 | BC244: 133 | BD244: 0 | BE244: 2 | BF244: 0 | BG244: 10 | BH244: 4 | BI244: 3 | BJ244: 0 | BK244: 0 | BL244: 0 | BM244: 0 | BN244: 0 | BO244: 0 | BP244: 0 | BQ244: 0 | BR244: 0 | BS244: 0 | BT244: 0 | BU244: 0 | BV244: 0 | BW244: 0 | BX244: 0 | BY244: 0 | BZ244: 0 | CA244: 0 | CB244: 0 | CC244: 0 | CD244: 0 | CE244: 0 | CF244: 0 | CG244: 0 | CH244: 0 | CI244: 0 | CJ244: 0 | CK244: 0 | CL244: 0 | CM244: 0 | CN244: 65 | CO244: 0 | CP244: 0 | CQ244: 0 | CR244: 0 | CS244: 0 | CT244: 0 | CU244: 0 | CV244: 0 | CW244: 0 | CX244: 0 | CY244: 0 | CZ244: 0 | DA244: 0 | DB244: 0 | DC244: 0 | DD244: 0 | DE244: 0 | DF244: 0 | DG244: 0 | DH244: 0 | DI244: 0 | DJ244: 0 | DK244: 0 | DL244: 0 | DM244: 0 | DN244: 0 | DO244: 0 | DP244: 0 | DQ244: 0 | DR244: 0 | DS244: 0 | DT244: 0 | DU244: 0 | DV244: 0 | DW244: 0 | DX244: 0 | DY244: 0 | DZ244: 0 | EA244: 0 | EB244: 0 | EC244: 0 | ED244: 0 | EE244: 0 | EF244: 0 | EG244: 0 | EH244: 0 | EI244: 0 | EJ244: 0 | EK244: 0 | EL244: 0 | EM244: 0 | EN244: 0 | EO244: 0 | EP244: 0 | EQ244: 0 | ER244: 0 | ES244: 0 | ET244: 0 | EU244: 0 | EV244: 0 | EW244: 0 | EX244: 0 | EY244: 0 | EZ244: 0 | FA244: 0 | FB244: 0 | FC244: 0 | FD244: 0 | FE244: 0 | FF244: 0 | FG244: 0 | FH244: 0 | FI244: 0 | FJ244: 0 | FK244: 0 | FL244: 0 | FM244: 0 | FN244: 0 | FO244: 0 | FP244: 0 | FQ244: 0 | FR244: 0 | FS244: 0 | FT244: 0 | FU244: 0 | FV244: 0 | FW244: 0 | FX244: 0 | FY244: 0 | FZ244: 0 | GA244: 0 | GB244: 0 | GC244: 0 | GD244: 0 | GE244: 0 | GF244: 0 | GG244: 0 | GH244: 0 | GI244: 0 | GJ244: 0 | GK244: 0 | GL244: 0 | GM244: 0 | GN244: 0 | GO244: 0 | GP244: 0 | GQ244: 0 | GR244: 0 | GS244: 0 | GT244: 0 | GU244: 0 | GV244: 0 | GW244: 0 | GX244: 0 | GY244: 0 | GZ244: 0 | HA244: 0 | HB244: 0 | HC244: 0 | HD244: 0 | HE244: 0 | HF244: 0 | HG244: 0 | HH244: 0 | HI244: 0 | HJ244: 0 | HK244: 0 | HL244: 0 | HM244: 0 | HN244: 0 | HO244: 0 | HP244: 0 | HQ244: 0 | HR244: 0 | HS244: 0 | HT244: 0 | HU244: 0 | HV244: 0 | HW244: 0
A246: TOTAL
A247: =COUNT(A233:A244) -> 11 | B247: =SUM(B233:B244) -> 0 | C247: =SUM(C233:C244) -> 0 | D247: 0 | E247: 0 | F247: 0 | G247: 0 | H247: 0 | I247: 0 | J247: 0 | K247: 0 | L247: 0 | M247: 0 | N247: 0 | O247: 0 | P247: 0 | Q247: 0 | R247: 0 | S247: 0 | T247: 0 | U247: 0 | V247: 0 | W247: 0 | X247: 0 | Y247: 0 | Z247: 0 | AA247: 0 | AB247: 0 | AC247: 0 | AD247: 0 | AE247: 0 | AF247: 0 | AG247: 0 | AH247: 0 | AI247: 0 | AJ247: 0 | AK247: 0 | AL247: 0 | AM247: 0 | AN247: 0 | AO247: 0 | AP247: 0 | AQ247: 0 | AR247: 0 | AS247: 0 | AT247: 0 | AU247: 0 | AV247: 0 | AW247: 0 | AX247: 0 | AY247: 0 | AZ247: 0 | BA247: 0 | BB247: 1178 | BC247: 266 | BD247: 0 | BE247: 4 | BF247: 0 | BG247: 20 | BH247: 8 | BI247: 6 | BJ247: 0 | BK247: 0 | BL247: 0 | BM247: 0 | BN247: 0 | BO247: =SUM(BO233:BO244) -> 0 | BP247: 0 | BQ247: 0 | BR247: 0 | BS247: 0 | BT247: 0 | BU247: 0 | BV247: 0 | BW247: 0 | BX247: 0 | BY247: 0 | BZ247: 0 | CA247: 0 | CB247: 0 | CC247: 0 | CD247: 0 | CE247: 0 | CF247: 0 | CG247: 0 | CH247: 0 | CI247: 0 | CJ247: 0 | CK247: 0 | CL247: 0 | CM247: 0 | CN247: 130 | CO247: 0 | CP247: 0 | CQ247: 0 | CR247: 0 | CS247: 0 | CT247: 0 | CU247: 0 | CV247: 0 | CW247: 0 | CX247: 0 | CY247: 0 | CZ247: 0 | DA247: 0 | DB247: 0 | DC247: 0 | DD247: 0 | DE247: 0 | DF247: 0 | DG247: 0 | DH247: 0 | DI247: 0 | DJ247: 0 | DK247: 0 | DL247: 0 | DM247: 0 | DN247: 0 | DO247: 0 | DP247: 0 | DQ247: 0 | DR247: 0 | DS247: 0 | DT247: 0 | DU247: 0 | DV247: 0 | DW247: 0 | DX247: 0 | DY247: 0 | DZ247: 0 | EA247: =SUM(EA233:EA244) -> 0 | EB247: 0 | EC247: 0 | ED247: 0 | EE247: 0 | EF247: 0 | EG247: 0 | EH247: 0 | EI247: 0 | EJ247: 0 | EK247: 0 | EL247: 0 | EM247: 0 | EN247: 0 | EO247: 0 | EP247: 0 | EQ247: 0 | ER247: 0 | ES247: 0 | ET247: 0 | EU247: 0 | EV247: 0 | EW247: 0 | EX247: 0 | EY247: 0 | EZ247: 0 | FA247: 0 | FB247: 0 | FC247: 0 | FD247: 0 | FE247: 0 | FF247: 0 | FG247: 0 | FH247: 0 | FI247: 0 | FJ247: 0 | FK247: 0 | FL247: 0 | FM247: 0 | FN247: 0 | FO247: 0 | FP247: 0 | FQ247: 0 | FR247: 0 | FS247: 0 | FT247: 0 | FU247: 0 | FV247: 0 | FW247: 0 | FX247: 0 | FY247: 0 | FZ247: 0 | GA247: 0 | GB247: 0 | GC247: 0 | GD247: 0 | GE247: 0 | GF247: 0 | GG247: 0 | GH247: 0 | GI247: 0 | GJ247: 0 | GK247: 0 | GL247: 0 | GM247: =SUM(GM233:GM244) -> 0 | GN247: 0 | GO247: 0 | GP247: 0 | GQ247: 0 | GR247: 0 | GS247: 0 | GT247: 0 | GU247: 0 | GV247: 0 | GW247: 0 | GX247: 0 | GY247: 0 | GZ247: 0 | HA247: 0 | HB247: 0 | HC247: 0 | HD247: 0 | HE247: 0 | HF247: 0 | HG247: 0 | HH247: 0 | HI247: 0 | HJ247: 0 | HK247: 0 | HL247: 0 | HM247: 0 | HN247: 0 | HO247: 0 | HP247: 0 | HQ247: 0 | HR247: 0 | HS247: 0 | HT247: 0 | HU247: 0 | HV247: 0 | HW247: 0
A248: =CONCATENATE(A233,"-",A234,"-",A235,"-",A236,"-",A237,"-",A238,"-",A239,"-",A240,"-",A241,"-",A242,"-",A243,"-",A244) -> 2-1-3-4-5-6-7-8-9-10-11-T
B249: BAS001 | C249: BAS002 | D249: BAS003 | E249: BAS004 | F249: BAS005 | G249: BAS006 | H249: BAS007 | I249: BAS008 | J249: BAS009 | K249: BAS010 | L249: BAS011 | M249: BAS012 | N249: BAS013 | O249: BAS014 | P249: BAS015 | Q249: BAS016 | R249: BAS017 | S249: BAS018 | T249: BAS019 | U249: BAS020 | V249: BAS021 | W249: BAS022 | X249: BAS023 | Y249: BAS024 | Z249: BAS025 | AA249: BAS026 | AB249: BAS027 | AC249: BAS028 | AD249: BAS029 | AE249: BAS030 | AF249: BAS031 | AG249: BAS032 | AH249: BAS033 | AI249: BAS034 | AJ249: BAS035 | AK249: BAS036 | AL249: BAS037 | AM249: BAS038 | AN249: BAS039 | AO249: BAS040 | AP249: BAS041 | AQ249: BAS042 | AR249: BAS043 | AS249: BAS044 | AT249: BAS045 | AU249: BAS046 | AV249: BAS047 | AW249: BAS048 | AX249: BAS049 | AY249: BAS050 | AZ249: BAS051 | BA249: BAS052 | BB249: BAS053 | BC249: BAS054 | BD249: BAS055 | BE249: BAS056 | BF249: BAS057 | BG249: BAS058 | BH249: BAS059 | BI249: BAS060 | BJ249: BAS061 | BK249: BAS062 | BL249: BAS063 | BM249: BAS064 | BN249: BAS065 | BO249: BAS066 | BP249: BAS067 | BQ249: BAS068 | BR249: BAS069 | BS249: BAS070 | BT249: BAS071 | BU249: BAS072 | BV249: BAS073 | BW249: BAS074 | BX249: BAS075 | BY249: BAS076 | BZ249: BAS077 | CA249: BAS078 | CB249: BAS079 | CC249: BAS080 | CD249: BAS081 | CE249: BAS082 | CF249: BAS083 | CG249: BAS084 | CH249: BAS085 | CI249: BAS086 | CJ249: BAS087 | CK249: BAS088 | CL249: BAS089 | CM249: BAS090 | CN249: BAS091 | CO249: BAS092 | CP249: BAS093 | CQ249: BAS094 | CR249: BAS095 | CS249: BAS096 | CT249: BAS097 | CU249: BAS098 | CV249: BAS099 | CW249: BAS100 | CX249: BAS101 | CY249: BAS102 | CZ249: BAS103 | DA249: BAS104 | DB249: BAS105 | DC249: BAS106 | DD249: BAS107 | DE249: BAS108 | DF249: BAS109 | DG249: BAS110 | DH249: BAS111 | DI249: BAS112 | DJ249: BAS113 | DK249: BAS114 | DL249: BAS115 | DM249: BAS116 | DN249: BAS117 | DO249: BAS118 | DP249: BAS119 | DQ249: BAS120 | DR249: BAS121 | DS249: BAS122 | DT249: BAS123 | DU249: BAS124 | DV249: BAS125 | DW249: BAS126 | DX249: BAS127 | DY249: BAS128 | DZ249: BAS129 | EA249: BAS130 | EB249: BAS131 | EC249: BAS132 | ED249: BAS133 | EE249: BAS134 | EF249: BAS135 | EG249: BAS136 | EH249: BAS137 | EI249: BAS138 | EJ249: BAS139 | EK249: BAS140 | EL249: BAS141 | EM249: BAS142 | EN249: BAS143 | EO249: BAS144 | EP249: BAS145 | EQ249: BAS146 | ER249: BAS147 | ES249: BAS148 | ET249: BAS149 | EU249: BAS150 | EV249: BAS151 | EW249: BAS152 | EX249: BAS153 | EY249: BAS154 | EZ249: BAS155 | FA249: BAS156 | FB249: BAS157 | FC249: BAS158 | FD249: BAS159 | FE249: BAS160 | FF249: BAS161 | FG249: BAS162 | FH249: BAS163 | FI249: BAS164 | FJ249: BAS165 | FK249: BAS166 | FL249: BAS167 | FM249: BAS168 | FN249: BAS169 | FO249: BAS170 | FP249: BAS171 | FQ249: BAS172 | FR249: BAS173 | FS249: BAS174 | FT249: BAS175 | FU249: BAS176 | FV249: BAS177 | FW249: BAS178 | FX249: BAS179 | FY249: BAS180 | FZ249: BAS181 | GA249: BAS182 | GB249: BAS183 | GC249: BAS184 | GD249: BAS185 | GE249: BAS186 | GF249: BAS187 | GG249: BAS188 | GH249: BAS189 | GI249: BAS190 | GJ249: BAS191 | GK249: BAS192 | GL249: BAS193 | GM249: BAS194 | GN249: BAS195 | GO249: BAS196 | GP249: BAS197 | GQ249: BAS198 | GR249: BAS199 | GS249: BAS200 | GT249: BAS201 | GU249: BAS202 | GV249: BAS203 | GW249: BAS204 | GX249: BAS205 | GY249: BAS206 | GZ249: BAS207 | HA249: BAS208 | HB249: BAS209 | HC249: BAS210 | HD249: BAS211 | HE249: BAS212 | HF249: BAS213 | HG249: BAS214 | HH249: BAS215 | HI249: BAS216 | HJ249: BAS217 | HK249: BAS218 | HL249: BAS219 | HM249: BAS220 | HN249: BAS221 | HO249: BAS222 | HP249: BAS223 | HQ249: BAS224 | HR249: BAS225 | HS249: BAS226 | HT249: BAS227 | HU249: BAS228 | HV249: BAS229 | HW249: BAS230
B250: =IF(B249=B232,"SI","NO") -> SI | C250: =IF(C249=C232,"SI","NO") -> SI | D250: SI | E250: SI | F250: SI | G250: SI | H250: SI | I250: SI | J250: SI | K250: SI | L250: SI | M250: SI | N250: SI | O250: SI | P250: SI | Q250: SI | R250: SI | S250: SI | T250: SI | U250: SI | V250: SI | W250: SI | X250: SI | Y250: SI | Z250: SI | AA250: SI | AB250: SI | AC250: SI | AD250: SI | AE250: SI | AF250: SI | AG250: SI | AH250: SI | AI250: SI | AJ250: SI | AK250: SI | AL250: SI | AM250: SI | AN250: SI | AO250: SI | AP250: SI | AQ250: SI | AR250: SI | AS250: SI | AT250: SI | AU250: SI | AV250: SI | AW250: SI | AX250: SI | AY250: SI | AZ250: SI | BA250: SI | BB250: SI | BC250: SI | BD250: SI | BE250: SI | BF250: SI | BG250: SI | BH250: SI | BI250: SI | BJ250: SI | BK250: SI | BL250: SI | BM250: SI | BN250: SI | BO250: =IF(BO249=BO232,"SI","NO") -> SI | BP250: SI | BQ250: SI | BR250: SI | BS250: SI | BT250: SI | BU250: SI | BV250: SI | BW250: SI | BX250: SI | BY250: SI | BZ250: SI | CA250: SI | CB250: SI | CC250: SI | CD250: SI | CE250: SI | CF250: SI | CG250: SI | CH250: SI | CI250: SI | CJ250: SI | CK250: SI | CL250: SI | CM250: SI | CN250: SI | CO250: SI | CP250: SI | CQ250: SI | CR250: SI | CS250: SI | CT250: SI | CU250: SI | CV250: SI | CW250: SI | CX250: SI | CY250: SI | CZ250: SI | DA250: SI | DB250: SI | DC250: SI | DD250: SI | DE250: SI | DF250: SI | DG250: SI | DH250: SI | DI250: SI | DJ250: SI | DK250: SI | DL250: SI | DM250: SI | DN250: SI | DO250: SI | DP250: SI | DQ250: SI | DR250: SI | DS250: SI | DT250: SI | DU250: SI | DV250: SI | DW250: SI | DX250: SI | DY250: SI | DZ250: SI | EA250: =IF(EA249=EA232,"SI","NO") -> SI | EB250: SI | EC250: SI | ED250: SI | EE250: SI | EF250: SI | EG250: SI | EH250: SI | EI250: SI | EJ250: SI | EK250: SI | EL250: SI | EM250: SI | EN250: SI | EO250: SI | EP250: SI | EQ250: SI | ER250: SI | ES250: SI | ET250: SI | EU250: SI | EV250: SI | EW250: SI | EX250: SI | EY250: SI | EZ250: SI | FA250: SI | FB250: SI | FC250: SI | FD250: SI | FE250: SI | FF250: SI | FG250: SI | FH250: SI | FI250: SI | FJ250: SI | FK250: SI | FL250: SI | FM250: SI | FN250: SI | FO250: SI | FP250: SI | FQ250: SI | FR250: SI | FS250: SI | FT250: SI | FU250: SI | FV250: SI | FW250: SI | FX250: SI | FY250: SI | FZ250: SI | GA250: SI | GB250: SI | GC250: SI | GD250: SI | GE250: SI | GF250: SI | GG250: SI | GH250: SI | GI250: SI | GJ250: SI | GK250: SI | GL250: SI | GM250: =IF(GM249=GM232,"SI","NO") -> SI | GN250: SI | GO250: SI | GP250: SI | GQ250: SI | GR250: SI | GS250: SI | GT250: SI | GU250: SI | GV250: SI | GW250: SI | GX250: SI | GY250: SI | GZ250: SI | HA250: SI | HB250: SI | HC250: SI | HD250: SI | HE250: SI | HF250: SI | HG250: SI | HH250: SI | HI250: SI | HJ250: SI | HK250: SI | HL250: SI | HM250: SI | HN250: SI | HO250: SI | HP250: SI | HQ250: SI | HR250: SI | HS250: SI | HT250: SI | HU250: SI | HV250: SI | HW250: SI
A253: PONZONOSOS
A254: anno | B254: 2024
A255: cod_red | B255: 03
A256: codmic | B256: (Todas)
A257: cod_prov | B257: (Todas)
A258: coddist | B258: (Todas)
A259: cod_estab | B259: (Todas)
A260: cod_eje | B260: (Todas)
B262: Valores
A263: Etiquetas de fila | B263: BAS001 | C263: BAS002 | D263: BAS003 | E263: BAS004 | F263: BAS005 | G263: BAS006 | H263: BAS007 | I263: BAS008 | J263: BAS009 | K263: BAS010 | L263: BAS011 | M263: BAS012 | N263: BAS013 | O263: BAS014 | P263: BAS015 | Q263: BAS016 | R263: BAS017 | S263: BAS018 | T263: BAS019 | U263: BAS020 | V263: BAS021 | W263: BAS022 | X263: BAS023 | Y263: BAS024 | Z263: BAS025 | AA263: BAS026 | AB263: BAS027 | AC263: BAS028 | AD263: BAS029 | AE263: BAS030 | AF263: BAS031 | AG263: BAS032 | AH263: BAS033 | AI263: BAS034 | AJ263: BAS035 | AK263: BAS036 | AL263: BAS037 | AM263: BAS038 | AN263: BAS039 | AO263: BAS040 | AP263: BAS041 | AQ263: BAS042 | AR263: BAS043 | AS263: BAS044 | AT263: BAS045 | AU263: BAS046 | AV263: BAS047 | AW263: BAS048 | AX263: BAS049 | AY263: BAS050 | AZ263: BAS051 | BA263: BAS052 | BB263: BAS053 | BC263: BAS054 | BD263: BAS055 | BE263: BAS056 | BF263: BAS057 | BG263: BAS058 | BH263: BAS059 | BI263: BAS060 | BJ263: BAS061 | BK263: BAS062 | BL263: BAS063 | BM263: BAS064 | BN263: BAS065 | BO263: BAS066 | BP263: BAS067 | BQ263: BAS068 | BR263: BAS069 | BS263: BAS070 | BT263: BAS071 | BU263: BAS072 | BV263: BAS073 | BW263: BAS074 | BX263: BAS075 | BY263: BAS076 | BZ263: BAS077 | CA263: BAS078 | CB263: BAS079 | CC263: BAS080 | CD263: BAS081 | CE263: BAS082 | CF263: BAS083 | CG263: BAS084 | CH263: BAS085 | CI263: BAS086 | CJ263: BAS087 | CK263: BAS088 | CL263: BAS089 | CM263: BAS090 | CN263: BAS091 | CO263: BAS092 | CP263: BAS093 | CQ263: BAS094 | CR263: BAS095 | CS263: BAS096 | CT263: BAS097 | CU263: BAS098 | CV263: BAS099 | CW263: BAS100 | CX263: BAS101 | CY263: BAS102 | CZ263: BAS103 | DA263: BAS104 | DB263: BAS105 | DC263: BAS106 | DD263: BAS107 | DE263: BAS108 | DF263: BAS109 | DG263: BAS110 | DH263: BAS111 | DI263: BAS112 | DJ263: BAS113 | DK263: BAS114 | DL263: BAS115 | DM263: BAS116 | DN263: BAS117 | DO263: BAS118 | DP263: BAS119 | DQ263: BAS120 | DR263: BAS121 | DS263: BAS122 | DT263: BAS123 | DU263: BAS124 | DV263: BAS125 | DW263: BAS126 | DX263: BAS127 | DY263: BAS128 | DZ263: BAS129 | EA263: BAS130 | EB263: BAS131 | EC263: BAS132 | ED263: BAS133 | EE263: BAS134 | EF263: BAS135 | EG263: BAS136 | EH263: BAS137 | EI263: BAS138 | EJ263: BAS139 | EK263: BAS140 | EL263: BAS141 | EM263: BAS142 | EN263: BAS143 | EO263: BAS144 | EP263: BAS145 | EQ263: BAS146 | ER263: BAS147 | ES263: BAS148 | ET263: BAS149 | EU263: BAS150 | EV263: BAS151 | EW263: BAS152 | EX263: BAS153 | EY263: BAS154 | EZ263: BAS155 | FA263: BAS156 | FB263: BAS157 | FC263: BAS158 | FD263: BAS159 | FE263: BAS160 | FF263: BAS161 | FG263: BAS162 | FH263: BAS163 | FI263: BAS164 | FJ263: BAS165 | FK263: BAS166 | FL263: BAS167 | FM263: BAS168 | FN263: BAS169 | FO263: BAS170 | FP263: BAS171 | FQ263: BAS172 | FR263: BAS173 | FS263: BAS174 | FT263: BAS175 | FU263: BAS176 | FV263: BAS177 | FW263: BAS178 | FX263: BAS179 | FY263: BAS180 | FZ263: BAS181 | GA263: BAS182 | GB263: BAS183 | GC263: BAS184 | GD263: BAS185 | GE263: BAS186 | GF263: BAS187 | GG263: BAS188 | GH263: BAS189 | GI263: BAS190 | GJ263: BAS191 | GK263: BAS192 | GL263: BAS193 | GM263: BAS194 | GN263: BAS195 | GO263: BAS196 | GP263: BAS197 | GQ263: BAS198 | GR263: BAS199 | GS263: BAS200 | GT263: BAS201 | GU263: BAS202 | GV263: BAS203 | GW263: BAS204 | GX263: BAS205 | GY263: BAS206 | GZ263: BAS207 | HA263: BAS208 | HB263: BAS209 | HC263: BAS210 | HD263: BAS211 | HE263: BAS212 | HF263: BAS213 | HG263: BAS214 | HH263: BAS215 | HI263: BAS216 | HJ263: BAS217 | HK263: BAS218 | HL263: BAS219 | HM263: BAS220 | HN263: BAS221 | HO263: BAS222 | HP263: BAS223 | HQ263: BAS224 | HR263: BAS225 | HS263: BAS226 | HT263: BAS227 | HU263: BAS228 | HV263: BAS229 | HW263: BAS230
A264: 2 | B264: 0 | C264: 0 | D264: 0 | E264: 0 | F264: 0 | G264: 1 | H264: 1 | I264: 1 | J264: 0 | K264: 0 | L264: 0 | M264: 0 | N264: 0 | O264: 0 | P264: 0 | Q264: 0 | R264: 0 | S264: 0 | T264: 0 | U264: 0 | V264: 0 | W264: 0 | X264: 0 | Y264: 0 | Z264: 0 | AA264: 0 | AB264: 0 | AC264: 0 | AD264: 0 | AE264: 0 | AF264: 0 | AG264: 0 | AH264: 0 | AI264: 0 | AJ264: 0 | AK264: 0 | AL264: 0 | AM264: 0 | AN264: 0 | AO264: 0 | AP264: 0 | AQ264: 1 | AR264: 0 | AS264: 0 | AT264: 0 | AU264: 0 | AV264: 0 | AW264: 0 | AX264: 0 | AY264: 0 | AZ264: 0 | BA264: 0 | BB264: 0 | BC264: 0 | BD264: 0 | BE264: 0 | BF264: 0 | BG264: 0 | BH264: 0 | BI264: 0 | BJ264: 0 | BK264: 0 | BL264: 0 | BM264: 0 | BN264: 0 | BO264: 0 | BP264: 0 | BQ264: 0 | BR264: 0 | BS264: 0 | BT264: 0 | BU264: 0 | BV264: 0 | BW264: 0 | BX264: 0 | BY264: 0 | BZ264: 0 | CA264: 0 | CB264: 0 | CC264: 0 | CD264: 0 | CE264: 0 | CF264: 0 | CG264: 0 | CH264: 0 | CI264: 0 | CJ264: 0 | CK264: 0 | CL264: 0 | CM264: 0 | CN264: 1 | CO264: 1 | CP264: 0 | CQ264: 0 | CR264: 0 | CS264: 0 | CT264: 0 | CU264: 0 | CV264: 0 | CW264: 0 | CX264: 0 | CY264: 0 | CZ264: 0 | DA264: 0 | DB264: 0 | DC264: 0 | DD264: 0 | DE264: 0 | DF264: 0 | DG264: 0 | DH264: 0 | DI264: 0 | DJ264: 0 | DK264: 0 | DL264: 1 | DM264: 0 | DN264: 0 | DO264: 2 | DP264: 0 | DQ264: 0 | DR264: 0 | DS264: 1 | DT264: 0 | DU264: 0 | DV264: 1 | DW264: 0 | DX264: 0 | DY264: 0 | DZ264: 0 | EA264: 2 | EB264: 0 | EC264: 0 | ED264: 0 | EE264: 0 | EF264: 1 | EG264: 0 | EH264: 0 | EI264: 0 | EJ264: 0 | EK264: 0 | EL264: 0 | EM264: 0 | EN264: 0 | EO264: 0 | EP264: 0 | EQ264: 0 | ER264: 0 | ES264: 0 | ET264: 0 | EU264: 0 | EV264: 0 | EW264: 0 | EX264: 0 | EY264: 0 | EZ264: 0 | FA264: 0 | FB264: 0 | FC264: 0 | FD264: 0 | FE264: 0 | FF264: 0 | FG264: 0 | FH264: 0 | FI264: 0 | FJ264: 0 | FK264: 0 | FL264: 0 | FM264: 0 | FN264: 0 | FO264: 0 | FP264: 0 | FQ264: 0 | FR264: 0 | FS264: 0 | FT264: 0 | FU264: 0 | FV264: 0 | FW264: 0 | FX264: 0 | FY264: 0 | FZ264: 0 | GA264: 0 | GB264: 0 | GC264: 0 | GD264: 0 | GE264: 0 | GF264: 0 | GG264: 0 | GH264: 0 | GI264: 0 | GJ264: 0 | GK264: 0 | GL264: 0 | GM264: 0 | GN264: 0 | GO264: 0 | GP264: 0 | GQ264: 0 | GR264: 0 | GS264: 0 | GT264: 0 | GU264: 0 | GV264: 0 | GW264: 0 | GX264: 0 | GY264: 0 | GZ264: 0 | HA264: 0 | HB264: 0 | HC264: 0 | HD264: 0 | HE264: 0 | HF264: 0 | HG264: 0 | HH264: 0 | HI264: 0 | HJ264: 0 | HK264: 0 | HL264: 0 | HM264: 0 | HN264: 0 | HO264: 0 | HP264: 0 | HQ264: 0 | HR264: 0 | HS264: 0 | HT264: 0 | HU264: 0 | HV264: 0 | HW264: 0
A265: 1 | B265: 1 | C265: 0 | D265: 1 | E265: 1 | F265: 0 | G265: 0 | H265: 0 | I265: 0 | J265: 0 | K265: 0 | L265: 0 | M265: 0 | N265: 0 | O265: 0 | P265: 0 | Q265: 0 | R265: 0 | S265: 0 | T265: 0 | U265: 0 | V265: 0 | W265: 0 | X265: 0 | Y265: 0 | Z265: 0 | AA265: 0 | AB265: 0 | AC265: 0 | AD265: 0 | AE265: 0 | AF265: 0 | AG265: 0 | AH265: 0 | AI265: 0 | AJ265: 0 | AK265: 0 | AL265: 0 | AM265: 0 | AN265: 0 | AO265: 0 | AP265: 1 | AQ265: 0 | AR265: 0 | AS265: 0 | AT265: 0 | AU265: 0 | AV265: 0 | AW265: 2 | AX265: 0 | AY265: 0 | AZ265: 0 | BA265: 0 | BB265: 0 | BC265: 0 | BD265: 0 | BE265: 0 | BF265: 0 | BG265: 0 | BH265: 0 | BI265: 0 | BJ265: 0 | BK265: 0 | BL265: 0 | BM265: 0 | BN265: 0 | BO265: 0 | BP265: 0 | BQ265: 0 | BR265: 0 | BS265: 0 | BT265: 0 | BU265: 0 | BV265: 0 | BW265: 0 | BX265: 1 | BY265: 0 | BZ265: 0 | CA265: 0 | CB265: 0 | CC265: 0 | CD265: 0 | CE265: 0 | CF265: 0 | CG265: 0 | CH265: 0 | CI265: 0 | CJ265: 0 | CK265: 0 | CL265: 0 | CM265: 0 | CN265: 0 | CO265: 0 | CP265: 0 | CQ265: 0 | CR265: 0 | CS265: 0 | CT265: 0 | CU265: 0 | CV265: 0 | CW265: 0 | CX265: 0 | CY265: 0 | CZ265: 1 | DA265: 1 | DB265: 0 | DC265: 0 | DD265: 0 | DE265: 0 | DF265: 0 | DG265: 0 | DH265: 0 | DI265: 0 | DJ265: 0 | DK265: 0 | DL265: 0 | DM265: 0 | DN265: 0 | DO265: 0 | DP265: 0 | DQ265: 0 | DR265: 0 | DS265: 0 | DT265: 0 | DU265: 0 | DV265: 0 | DW265: 0 | DX265: 0 | DY265: 0 | DZ265: 0 | EA265: 0 | EB265: 0 | EC265: 0 | ED265: 0 | EE265: 0 | EF265: 0 | EG265: 1 | EH265: 0 | EI265: 0 | EJ265: 0 | EK265: 0 | EL265: 0 | EM265: 0 | EN265: 0 | EO265: 0 | EP265: 0 | EQ265: 0 | ER265: 0 | ES265: 0 | ET265: 0 | EU265: 0 | EV265: 0 | EW265: 0 | EX265: 0 | EY265: 0 | EZ265: 0 | FA265: 0 | FB265: 0 | FC265: 0 | FD265: 0 | FE265: 0 | FF265: 0 | FG265: 0 | FH265: 0 | FI265: 0 | FJ265: 0 | FK265: 0 | FL265: 0 | FM265: 0 | FN265: 0 | FO265: 0 | FP265: 0 | FQ265: 0 | FR265: 0 | FS265: 0 | FT265: 0 | FU265: 0 | FV265: 0 | FW265: 0 | FX265: 0 | FY265: 0 | FZ265: 0 | GA265: 0 | GB265: 0 | GC265: 0 | GD265: 0 | GE265: 0 | GF265: 0 | GG265: 0 | GH265: 0 | GI265: 0 | GJ265: 0 | GK265: 0 | GL265: 0 | GM265: 0 | GN265: 0 | GO265: 0 | GP265: 0 | GQ265: 0 | GR265: 0 | GS265: 0 | GT265: 0 | GU265: 0 | GV265: 0 | GW265: 0 | GX265: 0 | GY265: 0 | GZ265: 0 | HA265: 0 | HB265: 0 | HC265: 0 | HD265: 0 | HE265: 0 | HF265: 0 | HG265: 0 | HH265: 0 | HI265: 0 | HJ265: 0 | HK265: 0 | HL265: 0 | HM265: 0 | HN265: 0 | HO265: 0 | HP265: 0 | HQ265: 0 | HR265: 0 | HS265: 0 | HT265: 0 | HU265: 0 | HV265: 0 | HW265: 0
A266: 3 | B266: 0 | C266: 0 | D266: 0 | E266: 1 | F266: 0 | G266: 0 | H266: 0 | I266: 1 | J266: 0 | K266: 0 | L266: 0 | M266: 0 | N266: 0 | O266: 0 | P266: 0 | Q266: 0 | R266: 0 | S266: 0 | T266: 0 | U266: 0 | V266: 0 | W266: 0 | X266: 0 | Y266: 0 | Z266: 0 | AA266: 0 | AB266: 0 | AC266: 0 | AD266: 0 | AE266: 0 | AF266: 0 | AG266: 0 | AH266: 0 | AI266: 0 | AJ266: 0 | AK266: 0 | AL266: 0 | AM266: 0 | AN266: 0 | AO266: 0 | AP266: 0 | AQ266: 0 | AR266: 0 | AS266: 0 | AT266: 0 | AU266: 0 | AV266: 1 | AW266: 0 | AX266: 0 | AY266: 0 | AZ266: 0 | BA266: 0 | BB266: 0 | BC266: 0 | BD266: 0 | BE266: 0 | BF266: 0 | BG266: 0 | BH266: 0 | BI266: 0 | BJ266: 0 | BK266: 0 | BL266: 0 | BM266: 0 | BN266: 1 | BO266: 0 | BP266: 0 | BQ266: 0 | BR266: 0 | BS266: 0 | BT266: 0 | BU266: 0 | BV266: 0 | BW266: 0 | BX266: 0 | BY266: 0 | BZ266: 0 | CA266: 0 | CB266: 0 | CC266: 0 | CD266: 0 | CE266: 1 | CF266: 0 | CG266: 0 | CH266: 0 | CI266: 0 | CJ266: 0 | CK266: 0 | CL266: 0 | CM266: 0 | CN266: 0 | CO266: 0 | CP266: 0 | CQ266: 0 | CR266: 0 | CS266: 0 | CT266: 0 | CU266: 0 | CV266: 0 | CW266: 0 | CX266: 1 | CY266: 0 | CZ266: 0 | DA266: 1 | DB266: 0 | DC266: 0 | DD266: 0 | DE266: 0 | DF266: 0 | DG266: 0 | DH266: 1 | DI266: 0 | DJ266: 0 | DK266: 1 | DL266: 0 | DM266: 0 | DN266: 0 | DO266: 0 | DP266: 0 | DQ266: 0 | DR266: 0 | DS266: 1 | DT266: 0 | DU266: 0 | DV266: 1 | DW266: 0 | DX266: 0 | DY266: 0 | DZ266: 0 | EA266: 0 | EB266: 0 | EC266: 0 | ED266: 0 | EE266: 0 | EF266: 0 | EG266: 0 | EH266: 0 | EI266: 0 | EJ266: 0 | EK266: 0 | EL266: 0 | EM266: 0 | EN266: 0 | EO266: 0 | EP266: 0 | EQ266: 0 | ER266: 0 | ES266: 0 | ET266: 0 | EU266: 0 | EV266: 0 | EW266: 0 | EX266: 0 | EY266: 0 | EZ266: 0 | FA266: 0 | FB266: 0 | FC266: 0 | FD266: 0 | FE266: 0 | FF266: 0 | FG266: 0 | FH266: 0 | FI266: 0 | FJ266: 0 | FK266: 0 | FL266: 0 | FM266: 0 | FN266: 0 | FO266: 0 | FP266: 0 | FQ266: 0 | FR266: 0 | FS266: 0 | FT266: 0 | FU266: 0 | FV266: 0 | FW266: 0 | FX266: 0 | FY266: 0 | FZ266: 0 | GA266: 0 | GB266: 0 | GC266: 0 | GD266: 0 | GE266: 0 | GF266: 0 | GG266: 0 | GH266: 0 | GI266: 0 | GJ266: 0 | GK266: 0 | GL266: 0 | GM266: 0 | GN266: 0 | GO266: 0 | GP266: 0 | GQ266: 0 | GR266: 0 | GS266: 0 | GT266: 0 | GU266: 0 | GV266: 0 | GW266: 0 | GX266: 0 | GY266: 0 | GZ266: 0 | HA266: 0 | HB266: 0 | HC266: 0 | HD266: 0 | HE266: 0 | HF266: 0 | HG266: 0 | HH266: 0 | HI266: 0 | HJ266: 0 | HK266: 0 | HL266: 0 | HM266: 0 | HN266: 0 | HO266: 0 | HP266: 0 | HQ266: 0 | HR266: 0 | HS266: 0 | HT266: 0 | HU266: 0 | HV266: 0 | HW266: 0
A267: 4 | B267: 1 | C267: 0 | D267: 1 | E267: 0 | F267: 0 | G267: 0 | H267: 1 | I267: 0 | J267: 2 | K267: 0 | L267: 0 | M267: 0 | N267: 0 | O267: 0 | P267: 0 | Q267: 0 | R267: 0 | S267: 0 | T267: 0 | U267: 0 | V267: 0 | W267: 0 | X267: 0 | Y267: 0 | Z267: 0 | AA267: 0 | AB267: 0 | AC267: 0 | AD267: 0 | AE267: 0 | AF267: 0 | AG267: 0 | AH267: 0 | AI267: 0 | AJ267: 0 | AK267: 0 | AL267: 0 | AM267: 0 | AN267: 0 | AO267: 0 | AP267: 0 | AQ267: 0 | AR267: 0 | AS267: 0 | AT267: 0 | AU267: 0 | AV267: 0 | AW267: 1 | AX267: 0 | AY267: 0 | AZ267: 0 | BA267: 0 | BB267: 0 | BC267: 0 | BD267: 0 | BE267: 0 | BF267: 0 | BG267: 0 | BH267: 0 | BI267: 0 | BJ267: 0 | BK267: 0 | BL267: 0 | BM267: 0 | BN267: 0 | BO267: 0 | BP267: 0 | BQ267: 0 | BR267: 0 | BS267: 0 | BT267: 0 | BU267: 0 | BV267: 0 | BW267: 0 | BX267: 0 | BY267: 0 | BZ267: 0 | CA267: 0 | CB267: 1 | CC267: 0 | CD267: 0 | CE267: 2 | CF267: 0 | CG267: 0 | CH267: 0 | CI267: 2 | CJ267: 0 | CK267: 0 | CL267: 0 | CM267: 0 | CN267: 0 | CO267: 1 | CP267: 0 | CQ267: 0 | CR267: 0 | CS267: 0 | CT267: 0 | CU267: 0 | CV267: 0 | CW267: 0 | CX267: 0 | CY267: 0 | CZ267: 1 | DA267: 1 | DB267: 1 | DC267: 0 | DD267: 0 | DE267: 0 | DF267: 0 | DG267: 0 | DH267: 1 | DI267: 0 | DJ267: 0 | DK267: 1 | DL267: 0 | DM267: 0 | DN267: 0 | DO267: 0 | DP267: 1 | DQ267: 0 | DR267: 0 | DS267: 0 | DT267: 0 | DU267: 0 | DV267: 0 | DW267: 0 | DX267: 0 | DY267: 0 | DZ267: 0 | EA267: 1 | EB267: 0 | EC267: 0 | ED267: 0 | EE267: 0 | EF267: 0 | EG267: 0 | EH267: 0 | EI267: 0 | EJ267: 0 | EK267: 0 | EL267: 0 | EM267: 0 | EN267: 0 | EO267: 0 | EP267: 0 | EQ267: 0 | ER267: 0 | ES267: 0 | ET267: 0 | EU267: 0 | EV267: 0 | EW267: 0 | EX267: 0 | EY267: 0 | EZ267: 0 | FA267: 0 | FB267: 0 | FC267: 0 | FD267: 0 | FE267: 0 | FF267: 0 | FG267: 0 | FH267: 0 | FI267: 0 | FJ267: 0 | FK267: 0 | FL267: 0 | FM267: 0 | FN267: 0 | FO267: 0 | FP267: 0 | FQ267: 0 | FR267: 0 | FS267: 0 | FT267: 0 | FU267: 0 | FV267: 0 | FW267: 0 | FX267: 0 | FY267: 0 | FZ267: 0 | GA267: 0 | GB267: 0 | GC267: 0 | GD267: 0 | GE267: 0 | GF267: 0 | GG267: 0 | GH267: 0 | GI267: 0 | GJ267: 0 | GK267: 0 | GL267: 0 | GM267: 0 | GN267: 0 | GO267: 0 | GP267: 0 | GQ267: 0 | GR267: 0 | GS267: 0 | GT267: 0 | GU267: 0 | GV267: 0 | GW267: 0 | GX267: 0 | GY267: 0 | GZ267: 0 | HA267: 0 | HB267: 0 | HC267: 0 | HD267: 0 | HE267: 0 | HF267: 0 | HG267: 0 | HH267: 0 | HI267: 0 | HJ267: 0 | HK267: 0 | HL267: 0 | HM267: 0 | HN267: 0 | HO267: 0 | HP267: 0 | HQ267: 0 | HR267: 0 | HS267: 0 | HT267: 0 | HU267: 0 | HV267: 0 | HW267: 0
A268: 5 | B268: 0 | C268: 0 | D268: 0 | E268: 0 | F268: 1 | G268: 0 | H268: 0 | I268: 0 | J268: 0 | K268: 0 | L268: 0 | M268: 0 | N268: 0 | O268: 0 | P268: 0 | Q268: 0 | R268: 0 | S268: 0 | T268: 0 | U268: 0 | V268: 0 | W268: 0 | X268: 0 | Y268: 0 | Z268: 0 | AA268: 0 | AB268: 0 | AC268: 0 | AD268: 0 | AE268: 0 | AF268: 0 | AG268: 0 | AH268: 0 | AI268: 0 | AJ268: 0 | AK268: 0 | AL268: 0 | AM268: 0 | AN268: 0 | AO268: 0 | AP268: 0 | AQ268: 0 | AR268: 0 | AS268: 0 | AT268: 0 | AU268: 0 | AV268: 0 | AW268: 1 | AX268: 0 | AY268: 0 | AZ268: 0 | BA268: 0 | BB268: 0 | BC268: 0 | BD268: 0 | BE268: 0 | BF268: 0 | BG268: 0 | BH268: 0 | BI268: 0 | BJ268: 0 | BK268: 0 | BL268: 0 | BM268: 0 | BN268: 0 | BO268: 0 | BP268: 0 | BQ268: 0 | BR268: 0 | BS268: 0 | BT268: 0 | BU268: 0 | BV268: 0 | BW268: 0 | BX268: 0 | BY268: 0 | BZ268: 0 | CA268: 0 | CB268: 0 | CC268: 0 | CD268: 0 | CE268: 0 | CF268: 0 | CG268: 0 | CH268: 0 | CI268: 0 | CJ268: 0 | CK268: 0 | CL268: 0 | CM268: 0 | CN268: 0 | CO268: 0 | CP268: 0 | CQ268: 0 | CR268: 0 | CS268: 0 | CT268: 0 | CU268: 0 | CV268: 0 | CW268: 0 | CX268: 0 | CY268: 1 | CZ268: 0 | DA268: 0 | DB268: 0 | DC268: 0 | DD268: 0 | DE268: 0 | DF268: 0 | DG268: 0 | DH268: 0 | DI268: 0 | DJ268: 0 | DK268: 1 | DL268: 0 | DM268: 0 | DN268: 0 | DO268: 0 | DP268: 0 | DQ268: 0 | DR268: 0 | DS268: 0 | DT268: 0 | DU268: 0 | DV268: 1 | DW268: 0 | DX268: 0 | DY268: 0 | DZ268: 0 | EA268: 1 | EB268: 0 | EC268: 0 | ED268: 1 | EE268: 0 | EF268: 0 | EG268: 0 | EH268: 0 | EI268: 0 | EJ268: 0 | EK268: 0 | EL268: 0 | EM268: 0 | EN268: 0 | EO268: 0 | EP268: 0 | EQ268: 0 | ER268: 0 | ES268: 0 | ET268: 0 | EU268: 0 | EV268: 0 | EW268: 0 | EX268: 0 | EY268: 0 | EZ268: 0 | FA268: 0 | FB268: 0 | FC268: 0 | FD268: 0 | FE268: 0 | FF268: 0 | FG268: 0 | FH268: 0 | FI268: 0 | FJ268: 0 | FK268: 0 | FL268: 0 | FM268: 0 | FN268: 0 | FO268: 0 | FP268: 0 | FQ268: 0 | FR268: 0 | FS268: 0 | FT268: 0 | FU268: 0 | FV268: 0 | FW268: 0 | FX268: 0 | FY268: 0 | FZ268: 0 | GA268: 0 | GB268: 0 | GC268: 0 | GD268: 0 | GE268: 0 | GF268: 0 | GG268: 0 | GH268: 0 | GI268: 0 | GJ268: 0 | GK268: 0 | GL268: 0 | GM268: 0 | GN268: 0 | GO268: 0 | GP268: 0 | GQ268: 0 | GR268: 0 | GS268: 0 | GT268: 0 | GU268: 0 | GV268: 0 | GW268: 0 | GX268: 0 | GY268: 0 | GZ268: 0 | HA268: 0 | HB268: 0 | HC268: 0 | HD268: 0 | HE268: 0 | HF268: 0 | HG268: 0 | HH268: 0 | HI268: 0 | HJ268: 0 | HK268: 0 | HL268: 0 | HM268: 0 | HN268: 0 | HO268: 0 | HP268: 0 | HQ268: 0 | HR268: 0 | HS268: 0 | HT268: 0 | HU268: 0 | HV268: 0 | HW268: 0
A269: 6 | B269: 0 | C269: 0 | D269: 1 | E269: 0 | F269: 1 | G269: 0 | H269: 0 | I269: 1 | J269: 0 | K269: 0 | L269: 0 | M269: 0 | N269: 0 | O269: 0 | P269: 0 | Q269: 0 | R269: 0 | S269: 0 | T269: 0 | U269: 0 | V269: 0 | W269: 0 | X269: 0 | Y269: 0 | Z269: 0 | AA269: 0 | AB269: 0 | AC269: 0 | AD269: 0 | AE269: 0 | AF269: 0 | AG269: 0 | AH269: 0 | AI269: 0 | AJ269: 0 | AK269: 0 | AL269: 0 | AM269: 0 | AN269: 0 | AO269: 0 | AP269: 0 | AQ269: 0 | AR269: 0 | AS269: 0 | AT269: 0 | AU269: 0 | AV269: 0 | AW269: 0 | AX269: 0 | AY269: 0 | AZ269: 0 | BA269: 0 | BB269: 0 | BC269: 0 | BD269: 0 | BE269: 0 | BF269: 0 | BG269: 1 | BH269: 1 | BI269: 0 | BJ269: 0 | BK269: 0 | BL269: 0 | BM269: 0 | BN269: 0 | BO269: 0 | BP269: 0 | BQ269: 0 | BR269: 0 | BS269: 0 | BT269: 0 | BU269: 0 | BV269: 0 | BW269: 0 | BX269: 0 | BY269: 0 | BZ269: 0 | CA269: 0 | CB269: 0 | CC269: 0 | CD269: 0 | CE269: 0 | CF269: 0 | CG269: 0 | CH269: 0 | CI269: 0 | CJ269: 1 | CK269: 0 | CL269: 0 | CM269: 0 | CN269: 0 | CO269: 0 | CP269: 0 | CQ269: 0 | CR269: 0 | CS269: 0 | CT269: 0 | CU269: 0 | CV269: 0 | CW269: 0 | CX269: 0 | CY269: 0 | CZ269: 1 | DA269: 0 | DB269: 1 | DC269: 0 | DD269: 0 | DE269: 1 | DF269: 0 | DG269: 0 | DH269: 0 | DI269: 0 | DJ269: 0 | DK269: 0 | DL269: 0 | DM269: 0 | DN269: 1 | DO269: 0 | DP269: 0 | DQ269: 0 | DR269: 0 | DS269: 1 | DT269: 0 | DU269: 0 | DV269: 0 | DW269: 0 | DX269: 0 | DY269: 0 | DZ269: 0 | EA269: 0 | EB269: 0 | EC269: 0 | ED269: 0 | EE269: 0 | EF269: 0 | EG269: 1 | EH269: 0 | EI269: 0 | EJ269: 0 | EK269: 0 | EL269: 0 | EM269: 0 | EN269: 0 | EO269: 0 | EP269: 0 | EQ269: 0 | ER269: 0 | ES269: 0 | ET269: 0 | EU269: 0 | EV269: 0 | EW269: 0 | EX269: 0 | EY269: 0 | EZ269: 0 | FA269: 0 | FB269: 0 | FC269: 0 | FD269: 0 | FE269: 0 | FF269: 0 | FG269: 0 | FH269: 0 | FI269: 0 | FJ269: 0 | FK269: 0 | FL269: 0 | FM269: 0 | FN269: 0 | FO269: 0 | FP269: 0 | FQ269: 0 | FR269: 0 | FS269: 0 | FT269: 0 | FU269: 0 | FV269: 0 | FW269: 0 | FX269: 0 | FY269: 0 | FZ269: 0 | GA269: 0 | GB269: 0 | GC269: 0 | GD269: 0 | GE269: 0 | GF269: 0 | GG269: 0 | GH269: 0 | GI269: 0 | GJ269: 0 | GK269: 0 | GL269: 0 | GM269: 0 | GN269: 0 | GO269: 0 | GP269: 0 | GQ269: 0 | GR269: 0 | GS269: 0 | GT269: 0 | GU269: 0 | GV269: 0 | GW269: 0 | GX269: 0 | GY269: 0 | GZ269: 0 | HA269: 0 | HB269: 0 | HC269: 0 | HD269: 0 | HE269: 0 | HF269: 0 | HG269: 0 | HH269: 0 | HI269: 0 | HJ269: 0 | HK269: 0 | HL269: 0 | HM269: 0 | HN269: 0 | HO269: 0 | HP269: 0 | HQ269: 0 | HR269: 0 | HS269: 0 | HT269: 0 | HU269: 0 | HV269: 0 | HW269: 0
A270: 7 | B270: 0 | C270: 0 | D270: 2 | E270: 0 | F270: 0 | G270: 0 | H270: 0 | I270: 0 | J270: 0 | K270: 0 | L270: 0 | M270: 0 | N270: 0 | O270: 0 | P270: 0 | Q270: 0 | R270: 0 | S270: 0 | T270: 0 | U270: 0 | V270: 0 | W270: 0 | X270: 0 | Y270: 0 | Z270: 0 | AA270: 0 | AB270: 0 | AC270: 0 | AD270: 0 | AE270: 0 | AF270: 0 | AG270: 0 | AH270: 0 | AI270: 0 | AJ270: 0 | AK270: 0 | AL270: 0 | AM270: 0 | AN270: 0 | AO270: 0 | AP270: 0 | AQ270: 0 | AR270: 0 | AS270: 0 | AT270: 0 | AU270: 0 | AV270: 0 | AW270: 0 | AX270: 0 | AY270: 0 | AZ270: 0 | BA270: 0 | BB270: 0 | BC270: 0 | BD270: 0 | BE270: 0 | BF270: 0 | BG270: 0 | BH270: 0 | BI270: 0 | BJ270: 0 | BK270: 0 | BL270: 0 | BM270: 0 | BN270: 0 | BO270: 0 | BP270: 0 | BQ270: 0 | BR270: 0 | BS270: 0 | BT270: 0 | BU270: 0 | BV270: 0 | BW270: 0 | BX270: 0 | BY270: 0 | BZ270: 0 | CA270: 0 | CB270: 0 | CC270: 0 | CD270: 0 | CE270: 0 | CF270: 0 | CG270: 0 | CH270: 0 | CI270: 0 | CJ270: 0 | CK270: 0 | CL270: 1 | CM270: 0 | CN270: 0 | CO270: 0 | CP270: 0 | CQ270: 0 | CR270: 0 | CS270: 1 | CT270: 0 | CU270: 0 | CV270: 0 | CW270: 0 | CX270: 0 | CY270: 0 | CZ270: 0 | DA270: 0 | DB270: 0 | DC270: 0 | DD270: 0 | DE270: 0 | DF270: 0 | DG270: 0 | DH270: 0 | DI270: 0 | DJ270: 0 | DK270: 0 | DL270: 0 | DM270: 0 | DN270: 0 | DO270: 0 | DP270: 1 | DQ270: 0 | DR270: 0 | DS270: 0 | DT270: 0 | DU270: 0 | DV270: 0 | DW270: 0 | DX270: 0 | DY270: 0 | DZ270: 0 | EA270: 0 | EB270: 0 | EC270: 0 | ED270: 0 | EE270: 0 | EF270: 0 | EG270: 0 | EH270: 0 | EI270: 0 | EJ270: 0 | EK270: 0 | EL270: 0 | EM270: 0 | EN270: 0 | EO270: 0 | EP270: 0 | EQ270: 0 | ER270: 0 | ES270: 0 | ET270: 0 | EU270: 0 | EV270: 0 | EW270: 0 | EX270: 0 | EY270: 0 | EZ270: 0 | FA270: 0 | FB270: 0 | FC270: 0 | FD270: 0 | FE270: 0 | FF270: 0 | FG270: 0 | FH270: 0 | FI270: 0 | FJ270: 0 | FK270: 0 | FL270: 0 | FM270: 0 | FN270: 0 | FO270: 0 | FP270: 0 | FQ270: 0 | FR270: 0 | FS270: 0 | FT270: 0 | FU270: 0 | FV270: 0 | FW270: 0 | FX270: 0 | FY270: 0 | FZ270: 0 | GA270: 0 | GB270: 0 | GC270: 0 | GD270: 0 | GE270: 0 | GF270: 0 | GG270: 0 | GH270: 0 | GI270: 0 | GJ270: 0 | GK270: 0 | GL270: 0 | GM270: 0 | GN270: 0 | GO270: 0 | GP270: 0 | GQ270: 0 | GR270: 0 | GS270: 0 | GT270: 0 | GU270: 0 | GV270: 0 | GW270: 0 | GX270: 0 | GY270: 0 | GZ270: 0 | HA270: 0 | HB270: 0 | HC270: 0 | HD270: 0 | HE270: 0 | HF270: 0 | HG270: 0 | HH270: 0 | HI270: 0 | HJ270: 0 | HK270: 0 | HL270: 0 | HM270: 0 | HN270: 0 | HO270: 0 | HP270: 0 | HQ270: 0 | HR270: 0 | HS270: 0 | HT270: 0 | HU270: 0 | HV270: 0 | HW270: 0
A271: 8 | B271: 0 | C271: 0 | D271: 0 | E271: 0 | F271: 0 | G271: 0 | H271: 0 | I271: 0 | J271: 0 | K271: 0 | L271: 0 | M271: 0 | N271: 0 | O271: 0 | P271: 0 | Q271: 0 | R271: 0 | S271: 0 | T271: 0 | U271: 0 | V271: 0 | W271: 0 | X271: 0 | Y271: 0 | Z271: 0 | AA271: 0 | AB271: 0 | AC271: 0 | AD271: 0 | AE271: 0 | AF271: 0 | AG271: 0 | AH271: 0 | AI271: 0 | AJ271: 0 | AK271: 0 | AL271: 0 | AM271: 0 | AN271: 0 | AO271: 0 | AP271: 0 | AQ271: 0 | AR271: 0 | AS271: 0 | AT271: 0 | AU271: 0 | AV271: 0 | AW271: 0 | AX271: 0 | AY271: 0 | AZ271: 0 | BA271: 0 | BB271: 0 | BC271: 0 | BD271: 0 | BE271: 1 | BF271: 0 | BG271: 0 | BH271: 0 | BI271: 0 | BJ271: 0 | BK271: 0 | BL271: 0 | BM271: 0 | BN271: 0 | BO271: 0 | BP271: 0 | BQ271: 0 | BR271: 0 | BS271: 0 | BT271: 0 | BU271: 0 | BV271: 0 | BW271: 0 | BX271: 0 | BY271: 0 | BZ271: 0 | CA271: 0 | CB271: 0 | CC271: 1 | CD271: 0 | CE271: 1 | CF271: 0 | CG271: 0 | CH271: 0 | CI271: 0 | CJ271: 0 | CK271: 0 | CL271: 1 | CM271: 0 | CN271: 0 | CO271: 0 | CP271: 0 | CQ271: 0 | CR271: 0 | CS271: 0 | CT271: 0 | CU271: 0 | CV271: 0 | CW271: 0 | CX271: 0 | CY271: 0 | CZ271: 0 | DA271: 0 | DB271: 0 | DC271: 0 | DD271: 0 | DE271: 0 | DF271: 0 | DG271: 0 | DH271: 0 | DI271: 0 | DJ271: 0 | DK271: 0 | DL271: 0 | DM271: 0 | DN271: 0 | DO271: 0 | DP271: 0 | DQ271: 0 | DR271: 0 | DS271: 0 | DT271: 1 | DU271: 0 | DV271: 1 | DW271: 0 | DX271: 0 | DY271: 0 | DZ271: 0 | EA271: 0 | EB271: 0 | EC271: 0 | ED271: 0 | EE271: 0 | EF271: 0 | EG271: 0 | EH271: 0 | EI271: 0 | EJ271: 0 | EK271: 0 | EL271: 0 | EM271: 0 | EN271: 0 | EO271: 0 | EP271: 0 | EQ271: 0 | ER271: 0 | ES271: 0 | ET271: 0 | EU271: 0 | EV271: 0 | EW271: 0 | EX271: 0 | EY271: 0 | EZ271: 0 | FA271: 0 | FB271: 0 | FC271: 0 | FD271: 0 | FE271: 0 | FF271: 0 | FG271: 0 | FH271: 0 | FI271: 0 | FJ271: 0 | FK271: 0 | FL271: 0 | FM271: 0 | FN271: 0 | FO271: 0 | FP271: 0 | FQ271: 0 | FR271: 0 | FS271: 0 | FT271: 0 | FU271: 0 | FV271: 0 | FW271: 0 | FX271: 0 | FY271: 0 | FZ271: 0 | GA271: 0 | GB271: 0 | GC271: 0 | GD271: 0 | GE271: 0 | GF271: 0 | GG271: 0 | GH271: 0 | GI271: 0 | GJ271: 0 | GK271: 0 | GL271: 0 | GM271: 0 | GN271: 0 | GO271: 0 | GP271: 0 | GQ271: 0 | GR271: 0 | GS271: 0 | GT271: 0 | GU271: 0 | GV271: 0 | GW271: 0 | GX271: 0 | GY271: 0 | GZ271: 0 | HA271: 0 | HB271: 0 | HC271: 0 | HD271: 0 | HE271: 0 | HF271: 0 | HG271: 0 | HH271: 0 | HI271: 0 | HJ271: 0 | HK271: 0 | HL271: 0 | HM271: 0 | HN271: 0 | HO271: 0 | HP271: 0 | HQ271: 0 | HR271: 0 | HS271: 0 | HT271: 0 | HU271: 0 | HV271: 0 | HW271: 0
A272: 9 | B272: 0 | C272: 0 | D272: 0 | E272: 1 | F272: 1 | G272: 0 | H272: 0 | I272: 0 | J272: 0 | K272: 0 | L272: 0 | M272: 0 | N272: 0 | O272: 0 | P272: 0 | Q272: 0 | R272: 0 | S272: 0 | T272: 0 | U272: 0 | V272: 0 | W272: 0 | X272: 0 | Y272: 0 | Z272: 0 | AA272: 0 | AB272: 0 | AC272: 0 | AD272: 0 | AE272: 0 | AF272: 0 | AG272: 0 | AH272: 0 | AI272: 0 | AJ272: 0 | AK272: 0 | AL272: 0 | AM272: 0 | AN272: 0 | AO272: 0 | AP272: 0 | AQ272: 0 | AR272: 0 | AS272: 0 | AT272: 0 | AU272: 0 | AV272: 0 | AW272: 0 | AX272: 0 | AY272: 0 | AZ272: 0 | BA272: 0 | BB272: 0 | BC272: 0 | BD272: 0 | BE272: 0 | BF272: 0 | BG272: 0 | BH272: 0 | BI272: 0 | BJ272: 0 | BK272: 0 | BL272: 0 | BM272: 0 | BN272: 0 | BO272: 0 | BP272: 0 | BQ272: 0 | BR272: 0 | BS272: 0 | BT272: 0 | BU272: 0 | BV272: 0 | BW272: 0 | BX272: 0 | BY272: 0 | BZ272: 0 | CA272: 0 | CB272: 0 | CC272: 0 | CD272: 0 | CE272: 0 | CF272: 0 | CG272: 0 | CH272: 0 | CI272: 0 | CJ272: 0 | CK272: 0 | CL272: 0 | CM272: 0 | CN272: 0 | CO272: 0 | CP272: 0 | CQ272: 0 | CR272: 0 | CS272: 0 | CT272: 0 | CU272: 0 | CV272: 0 | CW272: 0 | CX272: 0 | CY272: 0 | CZ272: 0 | DA272: 0 | DB272: 0 | DC272: 0 | DD272: 0 | DE272: 0 | DF272: 0 | DG272: 0 | DH272: 0 | DI272: 0 | DJ272: 0 | DK272: 0 | DL272: 0 | DM272: 0 | DN272: 0 | DO272: 0 | DP272: 0 | DQ272: 0 | DR272: 0 | DS272: 0 | DT272: 0 | DU272: 0 | DV272: 2 | DW272: 0 | DX272: 0 | DY272: 0 | DZ272: 0 | EA272: 1 | EB272: 0 | EC272: 0 | ED272: 0 | EE272: 0 | EF272: 0 | EG272: 0 | EH272: 0 | EI272: 0 | EJ272: 0 | EK272: 0 | EL272: 0 | EM272: 0 | EN272: 0 | EO272: 0 | EP272: 0 | EQ272: 0 | ER272: 0 | ES272: 0 | ET272: 0 | EU272: 0 | EV272: 0 | EW272: 0 | EX272: 0 | EY272: 0 | EZ272: 0 | FA272: 0 | FB272: 0 | FC272: 0 | FD272: 0 | FE272: 0 | FF272: 0 | FG272: 0 | FH272: 0 | FI272: 0 | FJ272: 0 | FK272: 0 | FL272: 0 | FM272: 0 | FN272: 0 | FO272: 0 | FP272: 0 | FQ272: 0 | FR272: 0 | FS272: 0 | FT272: 0 | FU272: 0 | FV272: 0 | FW272: 0 | FX272: 0 | FY272: 0 | FZ272: 0 | GA272: 0 | GB272: 0 | GC272: 0 | GD272: 0 | GE272: 0 | GF272: 0 | GG272: 0 | GH272: 0 | GI272: 0 | GJ272: 0 | GK272: 0 | GL272: 0 | GM272: 0 | GN272: 0 | GO272: 0 | GP272: 0 | GQ272: 0 | GR272: 0 | GS272: 0 | GT272: 0 | GU272: 0 | GV272: 0 | GW272: 0 | GX272: 0 | GY272: 0 | GZ272: 0 | HA272: 0 | HB272: 0 | HC272: 0 | HD272: 0 | HE272: 0 | HF272: 0 | HG272: 0 | HH272: 0 | HI272: 0 | HJ272: 0 | HK272: 0 | HL272: 0 | HM272: 0 | HN272: 0 | HO272: 0 | HP272: 0 | HQ272: 0 | HR272: 0 | HS272: 0 | HT272: 0 | HU272: 0 | HV272: 0 | HW272: 0
A273: 10 | B273: 0 | C273: 0 | D273: 0 | E273: 0 | F273: 0 | G273: 1 | H273: 0 | I273: 0 | J273: 0 | K273: 0 | L273: 0 | M273: 0 | N273: 0 | O273: 0 | P273: 0 | Q273: 0 | R273: 0 | S273: 0 | T273: 0 | U273: 0 | V273: 0 | W273: 0 | X273: 0 | Y273: 0 | Z273: 0 | AA273: 0 | AB273: 0 | AC273: 0 | AD273: 0 | AE273: 0 | AF273: 0 | AG273: 0 | AH273: 0 | AI273: 0 | AJ273: 0 | AK273: 0 | AL273: 0 | AM273: 0 | AN273: 0 | AO273: 0 | AP273: 0 | AQ273: 0 | AR273: 0 | AS273: 0 | AT273: 0 | AU273: 0 | AV273: 0 | AW273: 0 | AX273: 0 | AY273: 1 | AZ273: 0 | BA273: 0 | BB273: 0 | BC273: 1 | BD273: 0 | BE273: 0 | BF273: 0 | BG273: 0 | BH273: 0 | BI273: 0 | BJ273: 0 | BK273: 0 | BL273: 0 | BM273: 0 | BN273: 0 | BO273: 0 | BP273: 0 | BQ273: 0 | BR273: 0 | BS273: 0 | BT273: 0 | BU273: 0 | BV273: 0 | BW273: 0 | BX273: 0 | BY273: 0 | BZ273: 0 | CA273: 0 | CB273: 0 | CC273: 0 | CD273: 0 | CE273: 1 | CF273: 0 | CG273: 0 | CH273: 0 | CI273: 0 | CJ273: 0 | CK273: 0 | CL273: 0 | CM273: 0 | CN273: 0 | CO273: 0 | CP273: 0 | CQ273: 0 | CR273: 0 | CS273: 0 | CT273: 0 | CU273: 0 | CV273: 0 | CW273: 0 | CX273: 0 | CY273: 0 | CZ273: 0 | DA273: 0 | DB273: 0 | DC273: 0 | DD273: 0 | DE273: 0 | DF273: 0 | DG273: 0 | DH273: 0 | DI273: 0 | DJ273: 0 | DK273: 0 | DL273: 0 | DM273: 0 | DN273: 0 | DO273: 0 | DP273: 0 | DQ273: 0 | DR273: 0 | DS273: 0 | DT273: 0 | DU273: 1 | DV273: 0 | DW273: 0 | DX273: 0 | DY273: 0 | DZ273: 0 | EA273: 1 | EB273: 0 | EC273: 0 | ED273: 0 | EE273: 0 | EF273: 0 | EG273: 0 | EH273: 0 | EI273: 0 | EJ273: 0 | EK273: 0 | EL273: 0 | EM273: 0 | EN273: 0 | EO273: 0 | EP273: 0 | EQ273: 0 | ER273: 0 | ES273: 0 | ET273: 0 | EU273: 0 | EV273: 0 | EW273: 0 | EX273: 0 | EY273: 0 | EZ273: 0 | FA273: 0 | FB273: 0 | FC273: 0 | FD273: 0 | FE273: 0 | FF273: 0 | FG273: 0 | FH273: 0 | FI273: 0 | FJ273: 0 | FK273: 0 | FL273: 0 | FM273: 0 | FN273: 0 | FO273: 0 | FP273: 0 | FQ273: 0 | FR273: 0 | FS273: 0 | FT273: 0 | FU273: 0 | FV273: 0 | FW273: 0 | FX273: 0 | FY273: 0 | FZ273: 0 | GA273: 0 | GB273: 0 | GC273: 0 | GD273: 0 | GE273: 0 | GF273: 0 | GG273: 0 | GH273: 0 | GI273: 0 | GJ273: 0 | GK273: 0 | GL273: 0 | GM273: 0 | GN273: 0 | GO273: 0 | GP273: 0 | GQ273: 0 | GR273: 0 | GS273: 0 | GT273: 0 | GU273: 0 | GV273: 0 | GW273: 0 | GX273: 0 | GY273: 0 | GZ273: 0 | HA273: 0 | HB273: 0 | HC273: 0 | HD273: 0 | HE273: 0 | HF273: 0 | HG273: 0 | HH273: 0 | HI273: 0 | HJ273: 0 | HK273: 0 | HL273: 0 | HM273: 0 | HN273: 0 | HO273: 0 | HP273: 0 | HQ273: 0 | HR273: 0 | HS273: 0 | HT273: 0 | HU273: 0 | HV273: 0 | HW273: 0
A274: 11 | B274: 0 | C274: 0 | D274: 0 | E274: 1 | F274: 0 | G274: 0 | H274: 0 | I274: 0 | J274: 0 | K274: 0 | L274: 0 | M274: 0 | N274: 0 | O274: 0 | P274: 0 | Q274: 0 | R274: 0 | S274: 0 | T274: 0 | U274: 0 | V274: 0 | W274: 0 | X274: 0 | Y274: 0 | Z274: 0 | AA274: 0 | AB274: 0 | AC274: 0 | AD274: 0 | AE274: 0 | AF274: 0 | AG274: 0 | AH274: 0 | AI274: 0 | AJ274: 0 | AK274: 0 | AL274: 0 | AM274: 0 | AN274: 1 | AO274: 0 | AP274: 0 | AQ274: 0 | AR274: 0 | AS274: 0 | AT274: 0 | AU274: 0 | AV274: 0 | AW274: 0 | AX274: 0 | AY274: 0 | AZ274: 0 | BA274: 0 | BB274: 0 | BC274: 0 | BD274: 0 | BE274: 0 | BF274: 0 | BG274: 0 | BH274: 0 | BI274: 0 | BJ274: 0 | BK274: 0 | BL274: 0 | BM274: 0 | BN274: 0 | BO274: 0 | BP274: 0 | BQ274: 0 | BR274: 0 | BS274: 0 | BT274: 0 | BU274: 0 | BV274: 0 | BW274: 0 | BX274: 0 | BY274: 0 | BZ274: 0 | CA274: 0 | CB274: 0 | CC274: 0 | CD274: 0 | CE274: 0 | CF274: 0 | CG274: 0 | CH274: 0 | CI274: 0 | CJ274: 0 | CK274: 0 | CL274: 0 | CM274: 0 | CN274: 1 | CO274: 0 | CP274: 0 | CQ274: 0 | CR274: 0 | CS274: 0 | CT274: 0 | CU274: 0 | CV274: 0 | CW274: 0 | CX274: 0 | CY274: 0 | CZ274: 0 | DA274: 0 | DB274: 0 | DC274: 0 | DD274: 0 | DE274: 1 | DF274: 0 | DG274: 0 | DH274: 0 | DI274: 0 | DJ274: 0 | DK274: 0 | DL274: 0 | DM274: 0 | DN274: 0 | DO274: 0 | DP274: 0 | DQ274: 0 | DR274: 0 | DS274: 0 | DT274: 0 | DU274: 0 | DV274: 0 | DW274: 0 | DX274: 1 | DY274: 0 | DZ274: 0 | EA274: 0 | EB274: 0 | EC274: 0 | ED274: 0 | EE274: 0 | EF274: 0 | EG274: 0 | EH274: 0 | EI274: 0 | EJ274: 0 | EK274: 0 | EL274: 0 | EM274: 0 | EN274: 0 | EO274: 0 | EP274: 0 | EQ274: 0 | ER274: 0 | ES274: 0 | ET274: 0 | EU274: 0 | EV274: 0 | EW274: 0 | EX274: 0 | EY274: 0 | EZ274: 0 | FA274: 0 | FB274: 0 | FC274: 0 | FD274: 0 | FE274: 0 | FF274: 0 | FG274: 0 | FH274: 0 | FI274: 0 | FJ274: 0 | FK274: 0 | FL274: 0 | FM274: 0 | FN274: 0 | FO274: 0 | FP274: 0 | FQ274: 0 | FR274: 0 | FS274: 0 | FT274: 0 | FU274: 0 | FV274: 0 | FW274: 0 | FX274: 0 | FY274: 0 | FZ274: 0 | GA274: 0 | GB274: 0 | GC274: 0 | GD274: 0 | GE274: 0 | GF274: 0 | GG274: 0 | GH274: 0 | GI274: 0 | GJ274: 0 | GK274: 0 | GL274: 0 | GM274: 0 | GN274: 0 | GO274: 0 | GP274: 0 | GQ274: 0 | GR274: 0 | GS274: 0 | GT274: 0 | GU274: 0 | GV274: 0 | GW274: 0 | GX274: 0 | GY274: 0 | GZ274: 0 | HA274: 0 | HB274: 0 | HC274: 0 | HD274: 0 | HE274: 0 | HF274: 0 | HG274: 0 | HH274: 0 | HI274: 0 | HJ274: 0 | HK274: 0 | HL274: 0 | HM274: 0 | HN274: 0 | HO274: 0 | HP274: 0 | HQ274: 0 | HR274: 0 | HS274: 0 | HT274: 0 | HU274: 0 | HV274: 0 | HW274: 0
